Workbook

Sheet 資料一覧
A1: 【居宅介護等事業所用】
A3: 1 | B3: 事前提出書類
A4: ・ 特に指定のあるもの以外は、運営指導実施予定日の属する月の 前々月末時点の状況を記入してください。
C5: 提出チェック
A6: （1） | B6: 事前提出資料（すべてこのエクセルファイルにあります） | C6: 事業者
B7: 【共通】基本情報 ※事業所番号ごとに作成すること
B8: P1 職員の配置状況
B9: P2 職員の勤務状況（１）シフト別の勤務形態
B10: P3-1 職員の勤務状況（２）勤務実績 （直近3か月分の実績）
B11: P3-2 職員の勤務状況（２）勤務実績 （直近3か月分の実績）
B12: P3-3 職員の勤務状況（２）勤務実績 （直近3か月分の実績）
B13: P4 サービス提供責任者配置数の根拠
B14: P5-1 障害福祉サービス費の請求状況（居宅介護、重度訪問介護）
B15: P5-2 障害福祉サービス費の請求状況（行動援護、同行援護）
B16: P6-1 利用者情報及び居宅介護等計画の作成状況（居宅介護）
B17: P6-2 利用者情報及び居宅介護等計画の作成状況（重度訪問介護）
B18: P6-3 利用者情報及び居宅介護等計画の作成状況（行動援護）
B19: P6-4 利用者情報及び居宅介護等計画の作成状況（同行援護）
B20: P7 苦情・事故の対応記録
B21: P8 業務継続計画、衛生管理、身体拘束の禁止及び虐待の防止に関する取組状況
B22: P9 主眼事項・着眼点自己点検
A23: （2） | B23: 運営規程、サービス利用契約書、重要事項説明書、個人情報提供に係る同意書
A24: （3） | B24: 法人・事業所の組織図、施設案内（パンフレット等）
A26: 2 | B26: 当日準備書類等
A27: ・ 次の書類はすべてのサービスに共通するものではありません。 ・ 準備すべき書類の中で該当するものがない場合は、 今回の指導のためだけに新たに作成する必要はありません。 ・ 会場配置図を参考にご用意ください。（会場内に準備してください。） ・ 指導当日に追加資料の提示を求める場合があります。 ・ 指導対象は、基本的に運営指導を行う前年度から指導日の当月までが原則となりますが、 さかのぼって資料を求める場合があります。
C28: 提出チェック
A29: （1） | B29: 指定基準に関する書類 | C29: 事業者
A30: ① | B30: 指定基準省令と解釈通知
A31: ② | B31: 報酬告示と留意事項通知
A32: （2） | B32: 人員に関する書類
A33: ① | B33: 職員勤務表
A34: ② | B34: 出勤簿又はタイムカード
A35: ③ | B35: 専任、兼任の状況がわかる書類
A36: ④ | B36: 利用者数がわかる書類（当該年度の利用者数）
A37: ⑤ | B37: 職員履歴書及び資格、経験がわかる書類（資格証など）
A38: ⑥ | B38: 就業規則
A39: ⑦ | B39: 雇用契約書及び辞令がある場合は辞令書
A40: ⑧ | B40: 給与支払明細書
A41: （3） | B41: 設備に関する書類
A42: ① | B42: 設備・備品台帳
A43: （4） | B43: 運営に関する書類
A44: ① | B44: 定款、寄付行為等
A45: ② | B45: サービスの提供の記録(実績記録票、その他ケース記録など）
A46: ③ | B46: 利用契約に関する書類
A47: ④ | B47: 支給決定障害者・保護者に関する市町への通知に係る記録
A48: ⑤ | B48: サービス等（障害児支援）利用計画書・児童発達支援計画書
A49: ⑥ | B49: 個別支援計画等原案の同意に関する記録
A50: ⑦ | B50: 受給者証写し
A51: ⑧ | B51: 利用申込み受付簿
A52: ⑨ | B52: 身体拘束等の記録（委員会の議事録及び研修の記録等）
A53: ⑩ | B53: 職員研修に関する記録
A54: ⑪ | B54: 苦情の内容等の記録
A55: ⑫ | B55: 事故の状況及び事故に際して採った処置についての記録
A56: ⑬ | B56: 虐待防止のための取組みがわかる記録・書類（委員会の議事録及び研修の記録等）
A57: （5） | B57: 自立支援給付費等及び利用者負担額に関する書類
A58: ① | B58: 介護給付費・訓練等給付費等請求書
A59: ② | B59: 介護給付費・訓練等給付費等明細書
A60: ③ | B60: 特例介護給付費・訓練等給付費等請求書
A61: ④ | B61: 特例介護給付費・訓練等給付費等明細書
A62: ⑤ | B62: サービス実績記録票
A63: ⑥ | B63: 各種加算関係書類
A64: ⑦ | B64: 利用者負担額の請求書
A65: ⑧ | B65: 利用者負担額の領収書控
A66: ⑨ | B66: 法定代理受領の通知の写し
A67: ⑩ | B67: サービス提供証明書
A68: ⑪ | B68: 金銭の支払を求める同意に関する記録
A69: ⑫ | B69: 支払を求める金銭の算定に関する積算の根拠

Sheet 【共通】
K1: 資料作成者
B3: 指定障害福祉サービス事業者・障害者支援施設・一般相談・特定相談支援事業者指導資料
J4: （令和 | L4: =IF(L9="","",IF(N9=1,L9-1,L9)) -> 7 | M4: 年 | N4: =IF(N9="","",MONTH(EOMONTH(DATE(SUM(2018+L9),N9,P9),-1))) -> 6 | O4: 月 | P4: =IF(N4="","",20) -> 20 | Q4: 日現在）
B5: 事業所・施設名 | H5: 事業所番号 | I5: 2 | J5: 2
B6: 事業所等所在地 | C6: 〒 － | M6: TEL | O6: - | Q6: -
C7: 浜松市 | M7: FAX | O7: - | Q7: -
B8: 法人名 | H8: 法人代表者
B9: 管理者 | H9: 運営指導年月日 | J9: 令和 | L9: 7 | M9: 年 | N9: 7 | O9: 月 | P9: 10 | Q9: 日
B10: 実施サービス種類 （施設サービス含む） とその利用定員、 利用者の数 | C10: サービス種類 | F10: 契約者の数 | H10: 左記サービスの 当初指定年月日
G11: 人 | M11: 年 | O11: 月 | P11: 1 | Q11: 日 | U11: 平成
G12: 人 | M12: 年 | O12: 月 | P12: 1 | Q12: 日 | U12: 令和
G13: 人 | M13: 年 | O13: 月 | P13: 1 | Q13: 日
G14: 人 | M14: 年 | O14: 月 | P14: 1 | Q14: 日
G15: 人 | M15: 年 | O15: 月 | P15: 1 | Q15: 日
G16: 人 | M16: 年 | O16: 月 | P16: 1 | Q16: 日
B17: 併設事業所 | H17: バックアップ 施設等
B18: ※事業所番号ごとに作成すること。
C19: 部分のみ入力可能。 | H19: ※以降、全シート共通
C21: 部分はプルダウンメニューから該当するものを選択すること。
A24: ●前回指導結果通知に基づく指導事項（助言指導を含む。）の改善状況 | I24: （前回指導実施日 | J24: 令和 | M24: 年 | O24: 月 | Q24: 日）
A25: 指導事項 | E25: 改善措置状況 | I25: 未改善の理由
A33: ●市への質疑事項
C112: 居宅介護
C113: 重度訪問介護
C114: 同行援護
C115: 行動援護
C116: 療養介護
C117: 生活介護
C118: 短期入所（空床型）
C119: 短期入所（併設型）
C120: 短期入所（単独型）
C121: 自立訓練（機能訓練）
C122: 自立訓練（生活訓練）
C123: 宿泊型自立訓練
C124: 就労移行支援
C125: 就労継続支援Ａ型
C126: 就労継続支援Ｂ型
C127: 就労定着支援
C128: 自立生活援助
C129: 共同生活援助
C130: 施設入所支援
C131: 施設入所支援（経過的）
C132: 地域相談支援（地域移行支援）
C133: 地域相談支援（地域定着支援）
C134: 計画相談支援

Sheet P1
B1: １ 職員の配置状況（既存資料の添付可） | E1: =【共通】!J4&【共通】!L4&【共通】!M4&【共通】!N4&【共通】!O4&【共通】!P4&【共通】!Q4 -> （令和7年6月20日現在） | N1: =" １ / "&Q1 -> １ / 1 | Q1: =IF(C76<>"",4,IF(C53<>"",3,IF(C30<>"",2,1))) -> 1
C2: 職 種 | D2: 氏 名 | E2: 年齢 | F2: 雇用 形態 | G2: 勤続年数 | H2: 勤務形態 | I2: 兼務先 | J2: 資格 | K2: 居宅 介護 | L2: 重度 訪問 | M2: 行動 援護 | N2: 同行 援護 | Q2: 常勤／専従
B3: 例 | C3: 管理者兼サービス提供責任者 | D3: ○○ ○○ | E3: 50 | F3: 正 | G3: 5年以上 10年未満 | H3: 常勤／兼務 | I3: 同事業所 | J3: 介護福祉士、同行援護従事者養成研修（一般・応用） | K3: サ | L3: サ | M3: × | N3: サ | Q3: 常勤／兼務
B4: 例 | C4: サービス提供責任者 | D4: □□ □□ | E4: 45 | F4: 正 | G4: 10年以上 | H4: 常勤／専従 | I4: - | J4: 実務者研修、ヘルパー２級 | K4: サ | L4: サ | M4: × | N4: × | Q4: 非常勤／専従
B5: 例 | C5: ヘルパー | D5: △△ △△ | E5: 30 | F5: 登 | G5: 1年以上 3年未満 | H5: 非常勤／兼務 | I5: 他法人 | J5: 居宅介護職員初任者研修、同行援護従事者養成研修（一般） | K5: 従 | L5: × | M5: × | N5: 従 | Q5: 非常勤／兼務
B6: 1 | Q6: 同事業所
B7: =B6+1 -> 2 | Q7: 同法人 他事業所
B8: =B7+1 -> 3 | Q8: 他法人
B9: 4 | Q9: -
B10: =B9+1 -> 5 | Q10: 1年未満
B11: 6 | Q11: 1年以上 3年未満
B12: 7 | Q12: 3年以上 5年未満
B13: 8 | Q13: 5年以上
B14: 9
B15: 10
B16: 11
B17: 12
B18: 13
B19: 14
B20: 15
B21: 注 | C21: １ 登録ヘルパーも含め、当該事業所の職員として勤務するすべての職員について記載すること。
C22: ２ 雇用形態は、正規職員は「正」、非正規雇用職員は「非」、登録ヘルパーは「登」を選択すること。
C23: ３ 勤務年数は、当該事業所における勤務年数を選択すること。
C24: ４ 勤務形態は、「常勤／専従」、「常勤／兼務」、「非常勤／専従」、「非常勤／兼務」のいずれかを選択すること。
C25: ５ 兼務先は、「同事業所内」、「同法人他事業所」、「他法人」から選択すること。
C26: ６ 資格は、介護福祉士、実務者研修、看護師、各種修了した研修名等を記載すること。
C27: ７ K～Ｎ列は各サービスの従事状況を記入することとし、サービス提供責任者は「サ」、従業者は「従」、従事しない事業は「×」を選択すること。
B28: １ 職員の配置状況（既存資料の添付可） | E28: =$E$1 -> （令和7年6月20日現在） | N28: =" 2 / "&Q1 -> 2 / 1
C29: 職 種 | D29: 氏 名 | E29: 年齢 | F29: 雇用 形態 | G29: 勤続年数 | H29: 勤務形態 | I29: 兼務先 | J29: 資格 | K29: 居宅 介護 | L29: 重度 訪問 | M29: 行動 援護 | N29: 同行 援護
B30: =B20+1 -> 16
B31: =B30+1 -> 17
B32: =B31+1 -> 18
B33: 19
B34: 20
B35: 21
B36: 22
B37: 23
B38: 24
B39: 25
B40: 26
B41: 27
B42: 28
B43: 29
B44: 30
B45: 31
B46: 32
B47: 33
B48: 34
B49: 35
B50: 36
B51: １ 職員の配置状況（既存資料の添付可） | E51: =$E$1 -> （令和7年6月20日現在） | N51: =" 3 / "&Q1 -> 3 / 1
C52: 職 種 | D52: 氏 名 | E52: 年齢 | F52: 雇用 形態 | G52: 勤続年数 | H52: 勤務形態 | I52: 兼務先 | J52: 資格 | K52: 居宅 介護 | L52: 重度 訪問 | M52: 行動 援護 | N52: 同行 援護
B53: =B50+1 -> 37
B54: =B53+1 -> 38
B55: =B54+1 -> 39
B56: 40
B57: 41
B58: 42
B59: 43
B60: 44
B61: 45
B62: 46
B63: 47
B64: 48
B65: 49
B66: 50
B67: 51
B68: 52
B69: 53
B70: 54
B71: 55
B72: 56
B73: 57
B74: １ 職員の配置状況（既存資料の添付可） | E74: =$E$1 -> （令和7年6月20日現在） | N74: =" 4 / "&Q1 -> 4 / 1
C75: 職 種 | D75: 氏 名 | E75: 年齢 | F75: 雇用 形態 | G75: 勤続年数 | H75: 勤務形態 | I75: 兼務先 | J75: 資格 | K75: 居宅 介護 | L75: 重度 訪問 | M75: 行動 援護 | N75: 同行 援護
B76: =B73+1 -> 58
B77: =B76+1 -> 59
B78: =B77+1 -> 60
B79: 61
B80: 62
B81: 63
B82: 64
B83: 65
B84: 66
B85: 67
B86: 68
B87: 69
B88: 70
B89: 71
B90: 72
B91: 73
B92: 74
B93: 75
B94: 76
B95: 77
B96: 78

Sheet P2
B1: ２ 直接処遇職員（介護職員等）の勤務状況
B2: (1) シフト別の勤務形態
B3: 記号 | D3: 始業時間 | F3: 終業時間 | H3: 休憩時間 | J3: 実働時間 | L3: 備考
B4: A | C4: ： | E4: ～ | G4: （ | I4: ） | J4: =IF(OR(D4="",F4=""),0,(IF(D4>F4,1,0)-D4+F4-H4)*24) -> 0
B5: B | C5: ： | E5: ～ | G5: （ | I5: ） | J5: 0
B6: C | C6: ： | E6: ～ | G6: （ | I6: ） | J6: 0
B7: D | C7: ： | E7: ～ | G7: （ | I7: ） | J7: 0
B8: E | C8: ： | E8: ～ | G8: （ | I8: ） | J8: 0
B9: F | C9: ： | E9: ～ | G9: （ | I9: ） | J9: =IF(OR(D9="",F9=""),0,(IF(D9>F9,1,0)-D9+F9-H9)*24) -> 0
B10: G | C10: ： | E10: ～ | G10: （ | I10: ） | J10: =IF(OR(D10="",F10=""),0,(IF(D10>F10,1,0)-D10+F10-H10)*24) -> 0
B11: H | C11: ： | E11: ～ | G11: （ | I11: ） | J11: =IF(OR(D11="",F11=""),0,(IF(D11>F11,1,0)-D11+F11-H11)*24) -> 0
B12: I | C12: ： | E12: ～ | G12: （ | I12: ） | J12: 0
B13: J | C13: ： | E13: ～ | G13: （ | I13: ） | J13: 0
B14: K | C14: ： | E14: ～ | G14: （ | I14: ） | J14: =IF(OR(D14="",F14=""),0,(IF(D14>F14,1,0)-D14+F14-H14)*24) -> 0
B15: L | C15: ： | E15: ～ | G15: （ | I15: ） | J15: =IF(OR(D15="",F15=""),0,(IF(D15>F15,1,0)-D15+F15-H15)*24) -> 0
B16: M | C16: ： | E16: ～ | G16: （ | I16: ） | J16: 0
B17: N | C17: ： | E17: ～ | G17: （ | I17: ） | J17: =IF(OR(D17="",F17=""),0,(IF(D17>F17,1,0)-D17+F17-H17)*24) -> 0
B18: O | C18: ： | E18: ～ | G18: （ | I18: ） | J18: 0
B19: Ｐ | C19: ： | E19: ～ | G19: （ | I19: ） | J19: 0
B20: Ｑ | C20: ： | E20: ～ | G20: （ | I20: ） | J20: =IF(OR(D20="",F20=""),0,(IF(D20>F20,1,0)-D20+F20-H20)*24) -> 0
B21: Ｒ | C21: ： | E21: ～ | G21: （ | I21: ） | J21: 0
B22: S | C22: ： | E22: ～ | G22: （ | I22: ） | J22: 0
B23: T | C23: ： | E23: ～ | G23: （ | I23: ） | J23: 0
B24: U | C24: ： | E24: ～ | G24: （ | I24: ） | J24: 0
B25: V | C25: ： | E25: ～ | G25: （ | I25: ） | J25: 0
B26: W | C26: ： | E26: ～ | G26: （ | I26: ） | J26: 0
B27: X | C27: ： | E27: ～ | G27: （ | I27: ） | J27: 0
B28: Y | C28: ： | E28: ～ | G28: （ | I28: ） | J28: 0
B29: Z | C29: ： | E29: ～ | G29: （ | I29: ） | J29: =IF(OR(D29="",F29=""),0,(IF(D29>F29,1,0)-D29+F29-H29)*24) -> 0
C30: ： | E30: ～ | G30: （ | I30: ） | J30: 0
B32: 登① | C32: ： | J32: =IF(D32="",0,D32*24) -> 0
B33: 登② | C33: ： | J33: =IF(D33="",0,D33*24) -> 0
B34: 登③ | C34: ： | J34: 0
B35: 登④ | C35: ： | J35: 0
B36: 登⑤ | C36: ： | J36: 0
B37: 登⑥ | C37: ： | J37: 0
B38: 登⑦ | C38: ： | J38: 0
B39: 登⑧ | C39: ： | J39: 0
B40: 登⑨ | C40: ： | J40: 0
B41: 登⑩ | C41: ： | J41: 0
B42: 登⑪ | C42: ： | J42: 0
B43: 登⑫ | C43: ： | J43: 0
B44: 登⑬ | C44: ： | J44: 0
B45: 登⑭ | C45: ： | J45: 0
B46: 登⑮ | C46: ： | J46: 0
C47: ： | J47: 0
B49: 注１ 始業時間及び終業時間は24時間表記とすること。
B50: 注２ 休憩時間は、1時間の場合「1:00」、45分の場合「00:45」と入力すること。
B51: ※休憩時間がない場合も「0：00」と入力すること。
B52: 注３ シフト管理が困難な登録ヘルパーについては、従事する時間数を入力すること。
B53: （例）1時間30分の勤務⇒「1：30」、2時間の勤務⇒「2：00」
B54: 注４ シフト記号が不足する場合は適宜行を追加し、任意のシフト記号を設けること。
B56: 【記載例】
B58: 記号 | D58: 始業時間 | F58: 終業時間 | H58: 休憩時間 | J58: 実働時間 | L58: 備考
B59: A | C59: ： | D59: 08:30:00 | E59: ～ | F59: 17:15:00 | G59: （ | H59: 01:00:00 | I59: ） | J59: =IF(OR(D59="",F59=""),0,(IF(D59>F59,1,0)-D59+F59-H59)*24) -> 7.75
B60: B | C60: ： | D60: 09:00:00 | E60: ～ | F60: 16:30:00 | G60: （ | H60: 00:45:00 | I60: ） | J60: =IF(OR(D60="",F60=""),0,(IF(D60>F60,1,0)-D60+F60-H60)*24) -> 6.75 | L60: 育児・介護休業法に係る短時間勤務該当者
B61: C | C61: ： | D61: 10:30:00 | E61: ～ | F61: 16:00:00 | G61: （ | H61: 00:00:00 | I61: ） | J61: =IF(OR(D61="",F61=""),0,(IF(D61>F61,1,0)-D61+F61-H61)*24) -> 5.5
B63: 登① | C63: ： | D63: 01:30:00 | J63: =IF(D63="",0,D63*24) -> 1.5
B64: 登② | C64: ： | D64: 02:45:00 | J64: =IF(D64="",0,D64*24) -> 2.75

Sheet P3-1
B3: (2) 勤務実績 （直近3か月分の実績） | N3: =YEAR(EOMONTH(DATE(SUM(2018+【共通】!L9),【共通】!N9,【共通】!P9),-2)) -> 2025 | S3: （ | T3: =IFERROR("令和 "&VLOOKUP(N3,BL5:BM12,2,FALSE),"") -> 令和 7 | V3: 年 | W3: =MONTH(EOMONTH(DATE(2023,【共通】!N9,【共通】!P9),-2)) -> 5 | X3: 月分実績 | Z3: ） | AA3: 当該事業所の常勤の職員が当該月に勤務すべき時間数 | AN3: 時間／日 | AR3: 時間／週 | AV3: 時間／月 | AX3: ="1 / "&COUNTA(C$7,C$57,C$106,C$155,C$204) -> 1 / 1
C5: 職 種 | I5: 氏 名 | N5: 勤務 形態 | Q5: =DATE($N$3,$W$3,1) -> 2025-05-01 | R5: =Q5+1 -> 2025-05-02 | S5: =R5+1 -> 2025-05-03 | T5: =S5+1 -> 2025-05-04 | U5: 2025-05-05 | V5: 2025-05-06 | W5: 2025-05-07 | X5: 2025-05-08 | Y5: 2025-05-09 | Z5: 2025-05-10 | AA5: 2025-05-11 | AB5: 2025-05-12 | AC5: 2025-05-13 | AD5: 2025-05-14 | AE5: 2025-05-15 | AF5: 2025-05-16 | AG5: 2025-05-17 | AH5: 2025-05-18 | AI5: 2025-05-19 | AJ5: 2025-05-20 | AK5: 2025-05-21 | AL5: 2025-05-22 | AM5: 2025-05-23 | AN5: 2025-05-24 | AO5: 2025-05-25 | AP5: 2025-05-26 | AQ5: 2025-05-27 | AR5: =AQ5+1 -> 2025-05-28 | AS5: =IF(DAY(DATE($N$3,$W$3,29))=29,AR5+1,"") -> 2025-05-29 | AT5: =IF(DAY(DATE($N$3,$W$3,30))=30,AS5+1,"") -> 2025-05-30 | AU5: =IF(DAY(DATE($N$3,$W$3,31))=31,AT5+1,"") -> 2025-05-31 | AV5: 勤務日数 | AX5: 常勤換算 | BL5: 2023 | BM5: 5
Q6: =VLOOKUP(WEEKDAY(Q5,2),$BA$7:$BB$14,2,FALSE) -> 木 | R6: 金 | S6: 土 | T6: 日 | U6: 月 | V6: 火 | W6: 水 | X6: 木 | Y6: 金 | Z6: 土 | AA6: 日 | AB6: 月 | AC6: 火 | AD6: 水 | AE6: 木 | AF6: 金 | AG6: 土 | AH6: 日 | AI6: 月 | AJ6: 火 | AK6: 水 | AL6: 木 | AM6: 金 | AN6: 土 | AO6: 日 | AP6: 月 | AQ6: 火 | AR6: 水 | AS6: =IF(AS5="","",VLOOKUP(WEEKDAY(AS5,2),$BA$7:$BB$14,2,FALSE)) -> 木 | AT6: =IF(AT5="","",VLOOKUP(WEEKDAY(AT5,2),$BA$7:$BB$14,2,FALSE)) -> 金 | AU6: =IF(AU5="","",VLOOKUP(WEEKDAY(AU5,2),$BA$7:$BB$14,2,FALSE)) -> 土 | AV6: 勤務時間 | BL6: =BL5+1 -> 2024 | BM6: =BM5+1 -> 6
B7: 例 | C7: 管理者 | I7: ○○ ○○ | N7: 常勤 兼務 | Q7: A | R7: A | U7: A | V7: A | W7: A | X7: A | Y7: A | AB7: A | AC7: A | AD7: A | AE7: A | AF7: A | AI7: A | AJ7: A | AK7: A | AL7: A | AM7: A | AP7: A | AQ7: A | AR7: A | AS7: A | AT7: A | AV7: =COUNTA(Q7:AU7) -> 22 | AW7: =AV8 -> 170.5 | AX7: =IFERROR(ROUNDDOWN(AV8/$AT$3,1),"") ->  | BA7: 1 | BB7: 月 | BC7: 管理者 | BG7: 常勤 専従 | BH7: 常勤 兼務 | BI7: 非常勤 専従 | BJ7: 非常勤 兼務 | BL7: =BL6+1 -> 2025 | BM7: 7
Q8: =IFERROR(VLOOKUP(Q7,'P2'!$B$59:$J$64,9,FALSE),"") -> 7.75 | R8: =IFERROR(VLOOKUP(R7,'P2'!$B$59:$J$64,9,FALSE),"") -> 7.75 | S8: =IFERROR(VLOOKUP(S7,'P2'!$B$59:$J$64,9,FALSE),"") ->  | T8: =IFERROR(VLOOKUP(T7,'P2'!$B$59:$J$64,9,FALSE),"") ->  | U8: =IFERROR(VLOOKUP(U7,'P2'!$B$59:$J$64,9,FALSE),"") -> 7.75 | V8: =IFERROR(VLOOKUP(V7,'P2'!$B$59:$J$64,9,FALSE),"") -> 7.75 | W8: =IFERROR(VLOOKUP(W7,'P2'!$B$59:$J$64,9,FALSE),"") -> 7.75 | X8: =IFERROR(VLOOKUP(X7,'P2'!$B$59:$J$64,9,FALSE),"") -> 7.75 | Y8: =IFERROR(VLOOKUP(Y7,'P2'!$B$59:$J$64,9,FALSE),"") -> 7.75 | Z8: =IFERROR(VLOOKUP(Z7,'P2'!$B$59:$J$64,9,FALSE),"") ->  | AA8: =IFERROR(VLOOKUP(AA7,'P2'!$B$59:$J$64,9,FALSE),"") ->  | AB8: =IFERROR(VLOOKUP(AB7,'P2'!$B$59:$J$64,9,FALSE),"") -> 7.75 | AC8: =IFERROR(VLOOKUP(AC7,'P2'!$B$59:$J$64,9,FALSE),"") -> 7.75 | AD8: =IFERROR(VLOOKUP(AD7,'P2'!$B$59:$J$64,9,FALSE),"") -> 7.75 | AE8: =IFERROR(VLOOKUP(AE7,'P2'!$B$59:$J$64,9,FALSE),"") -> 7.75 | AF8: =IFERROR(VLOOKUP(AF7,'P2'!$B$59:$J$64,9,FALSE),"") -> 7.75 | AG8: =IFERROR(VLOOKUP(AG7,'P2'!$B$59:$J$64,9,FALSE),"") ->  | AH8: =IFERROR(VLOOKUP(AH7,'P2'!$B$59:$J$64,9,FALSE),"") ->  | AI8: =IFERROR(VLOOKUP(AI7,'P2'!$B$59:$J$64,9,FALSE),"") -> 7.75 | AJ8: =IFERROR(VLOOKUP(AJ7,'P2'!$B$59:$J$64,9,FALSE),"") -> 7.75 | AK8: =IFERROR(VLOOKUP(AK7,'P2'!$B$59:$J$64,9,FALSE),"") -> 7.75 | AL8: =IFERROR(VLOOKUP(AL7,'P2'!$B$59:$J$64,9,FALSE),"") -> 7.75 | AM8: =IFERROR(VLOOKUP(AM7,'P2'!$B$59:$J$64,9,FALSE),"") -> 7.75 | AN8: =IFERROR(VLOOKUP(AN7,'P2'!$B$59:$J$64,9,FALSE),"") ->  | AO8: =IFERROR(VLOOKUP(AO7,'P2'!$B$59:$J$64,9,FALSE),"") ->  | AP8: =IFERROR(VLOOKUP(AP7,'P2'!$B$59:$J$64,9,FALSE),"") -> 7.75 | AQ8: =IFERROR(VLOOKUP(AQ7,'P2'!$B$59:$J$64,9,FALSE),"") -> 7.75 | AR8: =IFERROR(VLOOKUP(AR7,'P2'!$B$59:$J$64,9,FALSE),"") -> 7.75 | AS8: =IFERROR(VLOOKUP(AS7,'P2'!$B$59:$J$64,9,FALSE),"") -> 7.75 | AT8: =IFERROR(VLOOKUP(AT7,'P2'!$B$59:$J$64,9,FALSE),"") -> 7.75 | AU8: =IFERROR(VLOOKUP(AU7,'P2'!$B$59:$J$64,9,FALSE),"") ->  | AV8: =SUM(Q8:AU8) -> 170.5 | BA8: 2 | BB8: 火 | BC8: サービス提供責任者 | BL8: 2026 | BM8: 8
B9: 例 | C9: サービス提供責任者 | I9: ×× ×× | N9: 常勤 専従 | Q9: B | R9: B | U9: B | V9: B | W9: B | X9: B | Y9: B | AB9: B | AC9: B | AD9: B | AE9: B | AF9: B | AI9: B | AJ9: B | AK9: B | AL9: B | AM9: B | AP9: B | AQ9: B | AR9: B | AS9: B | AT9: B | AU9: B | AV9: =COUNTA(Q9:AU9) -> 23 | AW9: =AV10 -> 155.25 | AX9: =IFERROR(ROUNDDOWN(AV10/$AT$3,1),"") ->  | BA9: 3 | BB9: 水 | BC9: ヘルパー | BL9: 2027 | BM9: 9
Q10: =IFERROR(VLOOKUP(Q9,'P2'!$B$59:$J$64,9,FALSE),"") -> 6.75 | R10: =IFERROR(VLOOKUP(R9,'P2'!$B$59:$J$64,9,FALSE),"") -> 6.75 | S10: =IFERROR(VLOOKUP(S9,'P2'!$B$59:$J$64,9,FALSE),"") ->  | T10: =IFERROR(VLOOKUP(T9,'P2'!$B$59:$J$64,9,FALSE),"") ->  | U10: =IFERROR(VLOOKUP(U9,'P2'!$B$59:$J$64,9,FALSE),"") -> 6.75 | V10: =IFERROR(VLOOKUP(V9,'P2'!$B$59:$J$64,9,FALSE),"") -> 6.75 | W10: =IFERROR(VLOOKUP(W9,'P2'!$B$59:$J$64,9,FALSE),"") -> 6.75 | X10: =IFERROR(VLOOKUP(X9,'P2'!$B$59:$J$64,9,FALSE),"") -> 6.75 | Y10: =IFERROR(VLOOKUP(Y9,'P2'!$B$59:$J$64,9,FALSE),"") -> 6.75 | Z10: =IFERROR(VLOOKUP(Z9,'P2'!$B$59:$J$64,9,FALSE),"") ->  | AA10: =IFERROR(VLOOKUP(AA9,'P2'!$B$59:$J$64,9,FALSE),"") ->  | AB10: =IFERROR(VLOOKUP(AB9,'P2'!$B$59:$J$64,9,FALSE),"") -> 6.75 | AC10: =IFERROR(VLOOKUP(AC9,'P2'!$B$59:$J$64,9,FALSE),"") -> 6.75 | AD10: =IFERROR(VLOOKUP(AD9,'P2'!$B$59:$J$64,9,FALSE),"") -> 6.75 | AE10: =IFERROR(VLOOKUP(AE9,'P2'!$B$59:$J$64,9,FALSE),"") -> 6.75 | AF10: =IFERROR(VLOOKUP(AF9,'P2'!$B$59:$J$64,9,FALSE),"") -> 6.75 | AG10: =IFERROR(VLOOKUP(AG9,'P2'!$B$59:$J$64,9,FALSE),"") ->  | AH10: =IFERROR(VLOOKUP(AH9,'P2'!$B$59:$J$64,9,FALSE),"") ->  | AI10: =IFERROR(VLOOKUP(AI9,'P2'!$B$59:$J$64,9,FALSE),"") -> 6.75 | AJ10: =IFERROR(VLOOKUP(AJ9,'P2'!$B$59:$J$64,9,FALSE),"") -> 6.75 | AK10: =IFERROR(VLOOKUP(AK9,'P2'!$B$59:$J$64,9,FALSE),"") -> 6.75 | AL10: =IFERROR(VLOOKUP(AL9,'P2'!$B$59:$J$64,9,FALSE),"") -> 6.75 | AM10: =IFERROR(VLOOKUP(AM9,'P2'!$B$59:$J$64,9,FALSE),"") -> 6.75 | AN10: =IFERROR(VLOOKUP(AN9,'P2'!$B$59:$J$64,9,FALSE),"") ->  | AO10: =IFERROR(VLOOKUP(AO9,'P2'!$B$59:$J$64,9,FALSE),"") ->  | AP10: =IFERROR(VLOOKUP(AP9,'P2'!$B$59:$J$64,9,FALSE),"") -> 6.75 | AQ10: =IFERROR(VLOOKUP(AQ9,'P2'!$B$59:$J$64,9,FALSE),"") -> 6.75 | AR10: =IFERROR(VLOOKUP(AR9,'P2'!$B$59:$J$64,9,FALSE),"") -> 6.75 | AS10: =IFERROR(VLOOKUP(AS9,'P2'!$B$59:$J$64,9,FALSE),"") -> 6.75 | AT10: =IFERROR(VLOOKUP(AT9,'P2'!$B$59:$J$64,9,FALSE),"") -> 6.75 | AU10: =IFERROR(VLOOKUP(AU9,'P2'!$B$59:$J$64,9,FALSE),"") -> 6.75 | AV10: =SUM(Q10:AU10) -> 155.25 | BA10: 4 | BB10: 木 | BC10: 登録ヘルパー | BL10: 2028 | BM10: 10
B11: 例 | C11: ヘルパー | I11: △△ △△ | N11: 非常勤 兼務 | Q11: 登② | R11: 登② | U11: 登① | V11: 登① | X11: 登② | Y11: 登② | AB11: 登① | AC11: 登① | AE11: 登② | AF11: 登② | AI11: 登① | AJ11: 登① | AL11: 登② | AM11: 登② | AP11: 登① | AQ11: 登① | AS11: 登② | AT11: 登② | AV11: =COUNTA(Q11:AU11) -> 18 | AW11: =AV12 -> 39.5 | AX11: =IFERROR(ROUNDDOWN(AV12/$AT$3,1),"") ->  | BA11: 5 | BB11: 金 | BL11: 2029 | BM11: 11
Q12: =IFERROR(VLOOKUP(Q11,'P2'!$B$59:$J$64,9,FALSE),"") -> 2.75 | R12: =IFERROR(VLOOKUP(R11,'P2'!$B$59:$J$64,9,FALSE),"") -> 2.75 | S12: =IFERROR(VLOOKUP(S11,'P2'!$B$59:$J$64,9,FALSE),"") ->  | T12: =IFERROR(VLOOKUP(T11,'P2'!$B$59:$J$64,9,FALSE),"") ->  | U12: =IFERROR(VLOOKUP(U11,'P2'!$B$59:$J$64,9,FALSE),"") -> 1.5 | V12: =IFERROR(VLOOKUP(V11,'P2'!$B$59:$J$64,9,FALSE),"") -> 1.5 | W12: =IFERROR(VLOOKUP(W11,'P2'!$B$59:$J$64,9,FALSE),"") ->  | X12: =IFERROR(VLOOKUP(X11,'P2'!$B$59:$J$64,9,FALSE),"") -> 2.75 | Y12: =IFERROR(VLOOKUP(Y11,'P2'!$B$59:$J$64,9,FALSE),"") -> 2.75 | Z12: =IFERROR(VLOOKUP(Z11,'P2'!$B$59:$J$64,9,FALSE),"") ->  | AA12: =IFERROR(VLOOKUP(AA11,'P2'!$B$59:$J$64,9,FALSE),"") ->  | AB12: =IFERROR(VLOOKUP(AB11,'P2'!$B$59:$J$64,9,FALSE),"") -> 1.5 | AC12: =IFERROR(VLOOKUP(AC11,'P2'!$B$59:$J$64,9,FALSE),"") -> 1.5 | AD12: =IFERROR(VLOOKUP(AD11,'P2'!$B$59:$J$64,9,FALSE),"") ->  | AE12: =IFERROR(VLOOKUP(AE11,'P2'!$B$59:$J$64,9,FALSE),"") -> 2.75 | AF12: =IFERROR(VLOOKUP(AF11,'P2'!$B$59:$J$64,9,FALSE),"") -> 2.75 | AG12: =IFERROR(VLOOKUP(AG11,'P2'!$B$59:$J$64,9,FALSE),"") ->  | AH12: =IFERROR(VLOOKUP(AH11,'P2'!$B$59:$J$64,9,FALSE),"") ->  | AI12: =IFERROR(VLOOKUP(AI11,'P2'!$B$59:$J$64,9,FALSE),"") -> 1.5 | AJ12: =IFERROR(VLOOKUP(AJ11,'P2'!$B$59:$J$64,9,FALSE),"") -> 1.5 | AK12: =IFERROR(VLOOKUP(AK11,'P2'!$B$59:$J$64,9,FALSE),"") ->  | AL12: =IFERROR(VLOOKUP(AL11,'P2'!$B$59:$J$64,9,FALSE),"") -> 2.75 | AM12: =IFERROR(VLOOKUP(AM11,'P2'!$B$59:$J$64,9,FALSE),"") -> 2.75 | AN12: =IFERROR(VLOOKUP(AN11,'P2'!$B$59:$J$64,9,FALSE),"") ->  | AO12: =IFERROR(VLOOKUP(AO11,'P2'!$B$59:$J$64,9,FALSE),"") ->  | AP12: =IFERROR(VLOOKUP(AP11,'P2'!$B$59:$J$64,9,FALSE),"") -> 1.5 | AQ12: =IFERROR(VLOOKUP(AQ11,'P2'!$B$59:$J$64,9,FALSE),"") -> 1.5 | AR12: =IFERROR(VLOOKUP(AR11,'P2'!$B$59:$J$64,9,FALSE),"") ->  | AS12: =IFERROR(VLOOKUP(AS11,'P2'!$B$59:$J$64,9,FALSE),"") -> 2.75 | AT12: =IFERROR(VLOOKUP(AT11,'P2'!$B$59:$J$64,9,FALSE),"") -> 2.75 | AU12: =IFERROR(VLOOKUP(AU11,'P2'!$B$59:$J$64,9,FALSE),"") ->  | AV12: =SUM(Q12:AU12) -> 39.5 | BA12: 6 | BB12: 土 | BL12: 2030 | BM12: 12
B13: =ROW(B1) -> 1 | AV13: =COUNTA(Q13:AU13) -> 0 | AW13: =AV14 -> 0 | AX13: =IFERROR(ROUNDDOWN(AV14/$AT$3,1),"") ->  | BA13: 7 | BB13: 日
Q14: =IFERROR(VLOOKUP(Q13,'P2'!$B$4:$J$48,9,FALSE),"") ->  | R14: =IFERROR(VLOOKUP(R13,'P2'!$B$4:$J$48,9,FALSE),"") ->  | S14: =IFERROR(VLOOKUP(S13,'P2'!$B$4:$J$48,9,FALSE),"") ->  | T14: =IFERROR(VLOOKUP(T13,'P2'!$B$4:$J$48,9,FALSE),"") ->  | U14: =IFERROR(VLOOKUP(U13,'P2'!$B$4:$J$48,9,FALSE),"") ->  | V14: =IFERROR(VLOOKUP(V13,'P2'!$B$4:$J$48,9,FALSE),"") ->  | W14: =IFERROR(VLOOKUP(W13,'P2'!$B$4:$J$48,9,FALSE),"") ->  | X14: =IFERROR(VLOOKUP(X13,'P2'!$B$4:$J$48,9,FALSE),"") ->  | Y14: =IFERROR(VLOOKUP(Y13,'P2'!$B$4:$J$48,9,FALSE),"") ->  | Z14: =IFERROR(VLOOKUP(Z13,'P2'!$B$4:$J$48,9,FALSE),"") ->  | AA14: =IFERROR(VLOOKUP(AA13,'P2'!$B$4:$J$48,9,FALSE),"") ->  | AB14: =IFERROR(VLOOKUP(AB13,'P2'!$B$4:$J$48,9,FALSE),"") ->  | AC14: =IFERROR(VLOOKUP(AC13,'P2'!$B$4:$J$48,9,FALSE),"") ->  | AD14: =IFERROR(VLOOKUP(AD13,'P2'!$B$4:$J$48,9,FALSE),"") ->  | AE14: =IFERROR(VLOOKUP(AE13,'P2'!$B$4:$J$48,9,FALSE),"") ->  | AF14: =IFERROR(VLOOKUP(AF13,'P2'!$B$4:$J$48,9,FALSE),"") ->  | AG14: =IFERROR(VLOOKUP(AG13,'P2'!$B$4:$J$48,9,FALSE),"") ->  | AH14: =IFERROR(VLOOKUP(AH13,'P2'!$B$4:$J$48,9,FALSE),"") ->  | AI14: =IFERROR(VLOOKUP(AI13,'P2'!$B$4:$J$48,9,FALSE),"") ->  | AJ14: =IFERROR(VLOOKUP(AJ13,'P2'!$B$4:$J$48,9,FALSE),"") ->  | AK14: =IFERROR(VLOOKUP(AK13,'P2'!$B$4:$J$48,9,FALSE),"") ->  | AL14: =IFERROR(VLOOKUP(AL13,'P2'!$B$4:$J$48,9,FALSE),"") ->  | AM14: =IFERROR(VLOOKUP(AM13,'P2'!$B$4:$J$48,9,FALSE),"") ->  | AN14: =IFERROR(VLOOKUP(AN13,'P2'!$B$4:$J$48,9,FALSE),"") ->  | AO14: =IFERROR(VLOOKUP(AO13,'P2'!$B$4:$J$48,9,FALSE),"") ->  | AP14: =IFERROR(VLOOKUP(AP13,'P2'!$B$4:$J$48,9,FALSE),"") ->  | AQ14: =IFERROR(VLOOKUP(AQ13,'P2'!$B$4:$J$48,9,FALSE),"") ->  | AR14: =IFERROR(VLOOKUP(AR13,'P2'!$B$4:$J$48,9,FALSE),"") ->  | AS14: =IFERROR(VLOOKUP(AS13,'P2'!$B$4:$J$48,9,FALSE),"") ->  | AT14: =IFERROR(VLOOKUP(AT13,'P2'!$B$4:$J$48,9,FALSE),"") ->  | AU14: =IFERROR(VLOOKUP(AU13,'P2'!$B$4:$J$48,9,FALSE),"") ->  | AV14: =SUM(Q14:AU14) -> 0
B15: =B13+1 -> 2 | AV15: =COUNTA(Q15:AU15) -> 0 | AW15: =AV16 -> 0 | AX15: =IFERROR(ROUNDDOWN(AV16/$AT$3,1),"") -> 
Q16: =IFERROR(VLOOKUP(Q15,'P2'!$B$4:$J$48,9,FALSE),"") ->  | R16: =IFERROR(VLOOKUP(R15,'P2'!$B$4:$J$48,9,FALSE),"") ->  | S16: =IFERROR(VLOOKUP(S15,'P2'!$B$4:$J$48,9,FALSE),"") ->  | T16: =IFERROR(VLOOKUP(T15,'P2'!$B$4:$J$48,9,FALSE),"") ->  | U16: =IFERROR(VLOOKUP(U15,'P2'!$B$4:$J$48,9,FALSE),"") ->  | V16: =IFERROR(VLOOKUP(V15,'P2'!$B$4:$J$48,9,FALSE),"") ->  | W16: =IFERROR(VLOOKUP(W15,'P2'!$B$4:$J$48,9,FALSE),"") ->  | X16: =IFERROR(VLOOKUP(X15,'P2'!$B$4:$J$48,9,FALSE),"") ->  | Y16: =IFERROR(VLOOKUP(Y15,'P2'!$B$4:$J$48,9,FALSE),"") ->  | Z16: =IFERROR(VLOOKUP(Z15,'P2'!$B$4:$J$48,9,FALSE),"") ->  | AA16: =IFERROR(VLOOKUP(AA15,'P2'!$B$4:$J$48,9,FALSE),"") ->  | AB16: =IFERROR(VLOOKUP(AB15,'P2'!$B$4:$J$48,9,FALSE),"") ->  | AC16: =IFERROR(VLOOKUP(AC15,'P2'!$B$4:$J$48,9,FALSE),"") ->  | AD16: =IFERROR(VLOOKUP(AD15,'P2'!$B$4:$J$48,9,FALSE),"") ->  | AE16: =IFERROR(VLOOKUP(AE15,'P2'!$B$4:$J$48,9,FALSE),"") ->  | AF16: =IFERROR(VLOOKUP(AF15,'P2'!$B$4:$J$48,9,FALSE),"") ->  | AG16: =IFERROR(VLOOKUP(AG15,'P2'!$B$4:$J$48,9,FALSE),"") ->  | AH16: =IFERROR(VLOOKUP(AH15,'P2'!$B$4:$J$48,9,FALSE),"") ->  | AI16: =IFERROR(VLOOKUP(AI15,'P2'!$B$4:$J$48,9,FALSE),"") ->  | AJ16: =IFERROR(VLOOKUP(AJ15,'P2'!$B$4:$J$48,9,FALSE),"") ->  | AK16: =IFERROR(VLOOKUP(AK15,'P2'!$B$4:$J$48,9,FALSE),"") ->  | AL16: =IFERROR(VLOOKUP(AL15,'P2'!$B$4:$J$48,9,FALSE),"") ->  | AM16: =IFERROR(VLOOKUP(AM15,'P2'!$B$4:$J$48,9,FALSE),"") ->  | AN16: =IFERROR(VLOOKUP(AN15,'P2'!$B$4:$J$48,9,FALSE),"") ->  | AO16: =IFERROR(VLOOKUP(AO15,'P2'!$B$4:$J$48,9,FALSE),"") ->  | AP16: =IFERROR(VLOOKUP(AP15,'P2'!$B$4:$J$48,9,FALSE),"") ->  | AQ16: =IFERROR(VLOOKUP(AQ15,'P2'!$B$4:$J$48,9,FALSE),"") ->  | AR16: =IFERROR(VLOOKUP(AR15,'P2'!$B$4:$J$48,9,FALSE),"") ->  | AS16: =IFERROR(VLOOKUP(AS15,'P2'!$B$4:$J$48,9,FALSE),"") ->  | AT16: =IFERROR(VLOOKUP(AT15,'P2'!$B$4:$J$48,9,FALSE),"") ->  | AU16: =IFERROR(VLOOKUP(AU15,'P2'!$B$4:$J$48,9,FALSE),"") ->  | AV16: =SUM(Q16:AU16) -> 0
B17: =B15+1 -> 3 | AV17: =COUNTA(Q17:AU17) -> 0 | AW17: =AV18 -> 0 | AX17: =IFERROR(ROUNDDOWN(AV18/$AT$3,1),"") -> 
Q18: =IFERROR(VLOOKUP(Q17,'P2'!$B$4:$J$48,9,FALSE),"") ->  | R18: =IFERROR(VLOOKUP(R17,'P2'!$B$4:$J$48,9,FALSE),"") ->  | S18: =IFERROR(VLOOKUP(S17,'P2'!$B$4:$J$48,9,FALSE),"") ->  | T18: =IFERROR(VLOOKUP(T17,'P2'!$B$4:$J$48,9,FALSE),"") ->  | U18: =IFERROR(VLOOKUP(U17,'P2'!$B$4:$J$48,9,FALSE),"") ->  | V18: =IFERROR(VLOOKUP(V17,'P2'!$B$4:$J$48,9,FALSE),"") ->  | W18: =IFERROR(VLOOKUP(W17,'P2'!$B$4:$J$48,9,FALSE),"") ->  | X18: =IFERROR(VLOOKUP(X17,'P2'!$B$4:$J$48,9,FALSE),"") ->  | Y18: =IFERROR(VLOOKUP(Y17,'P2'!$B$4:$J$48,9,FALSE),"") ->  | Z18: =IFERROR(VLOOKUP(Z17,'P2'!$B$4:$J$48,9,FALSE),"") ->  | AA18: =IFERROR(VLOOKUP(AA17,'P2'!$B$4:$J$48,9,FALSE),"") ->  | AB18: =IFERROR(VLOOKUP(AB17,'P2'!$B$4:$J$48,9,FALSE),"") ->  | AC18: =IFERROR(VLOOKUP(AC17,'P2'!$B$4:$J$48,9,FALSE),"") ->  | AD18: =IFERROR(VLOOKUP(AD17,'P2'!$B$4:$J$48,9,FALSE),"") ->  | AE18: =IFERROR(VLOOKUP(AE17,'P2'!$B$4:$J$48,9,FALSE),"") ->  | AF18: =IFERROR(VLOOKUP(AF17,'P2'!$B$4:$J$48,9,FALSE),"") ->  | AG18: =IFERROR(VLOOKUP(AG17,'P2'!$B$4:$J$48,9,FALSE),"") ->  | AH18: =IFERROR(VLOOKUP(AH17,'P2'!$B$4:$J$48,9,FALSE),"") ->  | AI18: =IFERROR(VLOOKUP(AI17,'P2'!$B$4:$J$48,9,FALSE),"") ->  | AJ18: =IFERROR(VLOOKUP(AJ17,'P2'!$B$4:$J$48,9,FALSE),"") ->  | AK18: =IFERROR(VLOOKUP(AK17,'P2'!$B$4:$J$48,9,FALSE),"") ->  | AL18: =IFERROR(VLOOKUP(AL17,'P2'!$B$4:$J$48,9,FALSE),"") ->  | AM18: =IFERROR(VLOOKUP(AM17,'P2'!$B$4:$J$48,9,FALSE),"") ->  | AN18: =IFERROR(VLOOKUP(AN17,'P2'!$B$4:$J$48,9,FALSE),"") ->  | AO18: =IFERROR(VLOOKUP(AO17,'P2'!$B$4:$J$48,9,FALSE),"") ->  | AP18: =IFERROR(VLOOKUP(AP17,'P2'!$B$4:$J$48,9,FALSE),"") ->  | AQ18: =IFERROR(VLOOKUP(AQ17,'P2'!$B$4:$J$48,9,FALSE),"") ->  | AR18: =IFERROR(VLOOKUP(AR17,'P2'!$B$4:$J$48,9,FALSE),"") ->  | AS18: =IFERROR(VLOOKUP(AS17,'P2'!$B$4:$J$48,9,FALSE),"") ->  | AT18: =IFERROR(VLOOKUP(AT17,'P2'!$B$4:$J$48,9,FALSE),"") ->  | AU18: =IFERROR(VLOOKUP(AU17,'P2'!$B$4:$J$48,9,FALSE),"") ->  | AV18: =SUM(Q18:AU18) -> 0
B19: =B17+1 -> 4 | AV19: =COUNTA(Q19:AU19) -> 0 | AW19: =AV20 -> 0 | AX19: =IFERROR(ROUNDDOWN(AV20/$AT$3,1),"") -> 
Q20: =IFERROR(VLOOKUP(Q19,'P2'!$B$4:$J$48,9,FALSE),"") ->  | R20: =IFERROR(VLOOKUP(R19,'P2'!$B$4:$J$48,9,FALSE),"") ->  | S20: =IFERROR(VLOOKUP(S19,'P2'!$B$4:$J$48,9,FALSE),"") ->  | T20: =IFERROR(VLOOKUP(T19,'P2'!$B$4:$J$48,9,FALSE),"") ->  | U20: =IFERROR(VLOOKUP(U19,'P2'!$B$4:$J$48,9,FALSE),"") ->  | V20: =IFERROR(VLOOKUP(V19,'P2'!$B$4:$J$48,9,FALSE),"") ->  | W20: =IFERROR(VLOOKUP(W19,'P2'!$B$4:$J$48,9,FALSE),"") ->  | X20: =IFERROR(VLOOKUP(X19,'P2'!$B$4:$J$48,9,FALSE),"") ->  | Y20: =IFERROR(VLOOKUP(Y19,'P2'!$B$4:$J$48,9,FALSE),"") ->  | Z20: =IFERROR(VLOOKUP(Z19,'P2'!$B$4:$J$48,9,FALSE),"") ->  | AA20: =IFERROR(VLOOKUP(AA19,'P2'!$B$4:$J$48,9,FALSE),"") ->  | AB20: =IFERROR(VLOOKUP(AB19,'P2'!$B$4:$J$48,9,FALSE),"") ->  | AC20: =IFERROR(VLOOKUP(AC19,'P2'!$B$4:$J$48,9,FALSE),"") ->  | AD20: =IFERROR(VLOOKUP(AD19,'P2'!$B$4:$J$48,9,FALSE),"") ->  | AE20: =IFERROR(VLOOKUP(AE19,'P2'!$B$4:$J$48,9,FALSE),"") ->  | AF20: =IFERROR(VLOOKUP(AF19,'P2'!$B$4:$J$48,9,FALSE),"") ->  | AG20: =IFERROR(VLOOKUP(AG19,'P2'!$B$4:$J$48,9,FALSE),"") ->  | AH20: =IFERROR(VLOOKUP(AH19,'P2'!$B$4:$J$48,9,FALSE),"") ->  | AI20: =IFERROR(VLOOKUP(AI19,'P2'!$B$4:$J$48,9,FALSE),"") ->  | AJ20: =IFERROR(VLOOKUP(AJ19,'P2'!$B$4:$J$48,9,FALSE),"") ->  | AK20: =IFERROR(VLOOKUP(AK19,'P2'!$B$4:$J$48,9,FALSE),"") ->  | AL20: =IFERROR(VLOOKUP(AL19,'P2'!$B$4:$J$48,9,FALSE),"") ->  | AM20: =IFERROR(VLOOKUP(AM19,'P2'!$B$4:$J$48,9,FALSE),"") ->  | AN20: =IFERROR(VLOOKUP(AN19,'P2'!$B$4:$J$48,9,FALSE),"") ->  | AO20: =IFERROR(VLOOKUP(AO19,'P2'!$B$4:$J$48,9,FALSE),"") ->  | AP20: =IFERROR(VLOOKUP(AP19,'P2'!$B$4:$J$48,9,FALSE),"") ->  | AQ20: =IFERROR(VLOOKUP(AQ19,'P2'!$B$4:$J$48,9,FALSE),"") ->  | AR20: =IFERROR(VLOOKUP(AR19,'P2'!$B$4:$J$48,9,FALSE),"") ->  | AS20: =IFERROR(VLOOKUP(AS19,'P2'!$B$4:$J$48,9,FALSE),"") ->  | AT20: =IFERROR(VLOOKUP(AT19,'P2'!$B$4:$J$48,9,FALSE),"") ->  | AU20: =IFERROR(VLOOKUP(AU19,'P2'!$B$4:$J$48,9,FALSE),"") ->  | AV20: =SUM(Q20:AU20) -> 0
B21: =B19+1 -> 5 | AV21: =COUNTA(Q21:AU21) -> 0 | AW21: =AV22 -> 0 | AX21: =IFERROR(ROUNDDOWN(AV22/$AT$3,1),"") -> 
Q22: =IFERROR(VLOOKUP(Q21,'P2'!$B$4:$J$48,9,FALSE),"") ->  | R22: =IFERROR(VLOOKUP(R21,'P2'!$B$4:$J$48,9,FALSE),"") ->  | S22: =IFERROR(VLOOKUP(S21,'P2'!$B$4:$J$48,9,FALSE),"") ->  | T22: =IFERROR(VLOOKUP(T21,'P2'!$B$4:$J$48,9,FALSE),"") ->  | U22: =IFERROR(VLOOKUP(U21,'P2'!$B$4:$J$48,9,FALSE),"") ->  | V22: =IFERROR(VLOOKUP(V21,'P2'!$B$4:$J$48,9,FALSE),"") ->  | W22: =IFERROR(VLOOKUP(W21,'P2'!$B$4:$J$48,9,FALSE),"") ->  | X22: =IFERROR(VLOOKUP(X21,'P2'!$B$4:$J$48,9,FALSE),"") ->  | Y22: =IFERROR(VLOOKUP(Y21,'P2'!$B$4:$J$48,9,FALSE),"") ->  | Z22: =IFERROR(VLOOKUP(Z21,'P2'!$B$4:$J$48,9,FALSE),"") ->  | AA22: =IFERROR(VLOOKUP(AA21,'P2'!$B$4:$J$48,9,FALSE),"") ->  | AB22: =IFERROR(VLOOKUP(AB21,'P2'!$B$4:$J$48,9,FALSE),"") ->  | AC22: =IFERROR(VLOOKUP(AC21,'P2'!$B$4:$J$48,9,FALSE),"") ->  | AD22: =IFERROR(VLOOKUP(AD21,'P2'!$B$4:$J$48,9,FALSE),"") ->  | AE22: =IFERROR(VLOOKUP(AE21,'P2'!$B$4:$J$48,9,FALSE),"") ->  | AF22: =IFERROR(VLOOKUP(AF21,'P2'!$B$4:$J$48,9,FALSE),"") ->  | AG22: =IFERROR(VLOOKUP(AG21,'P2'!$B$4:$J$48,9,FALSE),"") ->  | AH22: =IFERROR(VLOOKUP(AH21,'P2'!$B$4:$J$48,9,FALSE),"") ->  | AI22: =IFERROR(VLOOKUP(AI21,'P2'!$B$4:$J$48,9,FALSE),"") ->  | AJ22: =IFERROR(VLOOKUP(AJ21,'P2'!$B$4:$J$48,9,FALSE),"") ->  | AK22: =IFERROR(VLOOKUP(AK21,'P2'!$B$4:$J$48,9,FALSE),"") ->  | AL22: =IFERROR(VLOOKUP(AL21,'P2'!$B$4:$J$48,9,FALSE),"") ->  | AM22: =IFERROR(VLOOKUP(AM21,'P2'!$B$4:$J$48,9,FALSE),"") ->  | AN22: =IFERROR(VLOOKUP(AN21,'P2'!$B$4:$J$48,9,FALSE),"") ->  | AO22: =IFERROR(VLOOKUP(AO21,'P2'!$B$4:$J$48,9,FALSE),"") ->  | AP22: =IFERROR(VLOOKUP(AP21,'P2'!$B$4:$J$48,9,FALSE),"") ->  | AQ22: =IFERROR(VLOOKUP(AQ21,'P2'!$B$4:$J$48,9,FALSE),"") ->  | AR22: =IFERROR(VLOOKUP(AR21,'P2'!$B$4:$J$48,9,FALSE),"") ->  | AS22: =IFERROR(VLOOKUP(AS21,'P2'!$B$4:$J$48,9,FALSE),"") ->  | AT22: =IFERROR(VLOOKUP(AT21,'P2'!$B$4:$J$48,9,FALSE),"") ->  | AU22: =IFERROR(VLOOKUP(AU21,'P2'!$B$4:$J$48,9,FALSE),"") ->  | AV22: =SUM(Q22:AU22) -> 0
B23: =B21+1 -> 6 | AV23: =COUNTA(Q23:AU23) -> 0 | AW23: =AV24 -> 0 | AX23: =IFERROR(ROUNDDOWN(AV24/$AT$3,1),"") -> 
Q24: =IFERROR(VLOOKUP(Q23,'P2'!$B$4:$J$48,9,FALSE),"") ->  | R24: =IFERROR(VLOOKUP(R23,'P2'!$B$4:$J$48,9,FALSE),"") ->  | S24: =IFERROR(VLOOKUP(S23,'P2'!$B$4:$J$48,9,FALSE),"") ->  | T24: =IFERROR(VLOOKUP(T23,'P2'!$B$4:$J$48,9,FALSE),"") ->  | U24: =IFERROR(VLOOKUP(U23,'P2'!$B$4:$J$48,9,FALSE),"") ->  | V24: =IFERROR(VLOOKUP(V23,'P2'!$B$4:$J$48,9,FALSE),"") ->  | W24: =IFERROR(VLOOKUP(W23,'P2'!$B$4:$J$48,9,FALSE),"") ->  | X24: =IFERROR(VLOOKUP(X23,'P2'!$B$4:$J$48,9,FALSE),"") ->  | Y24: =IFERROR(VLOOKUP(Y23,'P2'!$B$4:$J$48,9,FALSE),"") ->  | Z24: =IFERROR(VLOOKUP(Z23,'P2'!$B$4:$J$48,9,FALSE),"") ->  | AA24: =IFERROR(VLOOKUP(AA23,'P2'!$B$4:$J$48,9,FALSE),"") ->  | AB24: =IFERROR(VLOOKUP(AB23,'P2'!$B$4:$J$48,9,FALSE),"") ->  | AC24: =IFERROR(VLOOKUP(AC23,'P2'!$B$4:$J$48,9,FALSE),"") ->  | AD24: =IFERROR(VLOOKUP(AD23,'P2'!$B$4:$J$48,9,FALSE),"") ->  | AE24: =IFERROR(VLOOKUP(AE23,'P2'!$B$4:$J$48,9,FALSE),"") ->  | AF24: =IFERROR(VLOOKUP(AF23,'P2'!$B$4:$J$48,9,FALSE),"") ->  | AG24: =IFERROR(VLOOKUP(AG23,'P2'!$B$4:$J$48,9,FALSE),"") ->  | AH24: =IFERROR(VLOOKUP(AH23,'P2'!$B$4:$J$48,9,FALSE),"") ->  | AI24: =IFERROR(VLOOKUP(AI23,'P2'!$B$4:$J$48,9,FALSE),"") ->  | AJ24: =IFERROR(VLOOKUP(AJ23,'P2'!$B$4:$J$48,9,FALSE),"") ->  | AK24: =IFERROR(VLOOKUP(AK23,'P2'!$B$4:$J$48,9,FALSE),"") ->  | AL24: =IFERROR(VLOOKUP(AL23,'P2'!$B$4:$J$48,9,FALSE),"") ->  | AM24: =IFERROR(VLOOKUP(AM23,'P2'!$B$4:$J$48,9,FALSE),"") ->  | AN24: =IFERROR(VLOOKUP(AN23,'P2'!$B$4:$J$48,9,FALSE),"") ->  | AO24: =IFERROR(VLOOKUP(AO23,'P2'!$B$4:$J$48,9,FALSE),"") ->  | AP24: =IFERROR(VLOOKUP(AP23,'P2'!$B$4:$J$48,9,FALSE),"") ->  | AQ24: =IFERROR(VLOOKUP(AQ23,'P2'!$B$4:$J$48,9,FALSE),"") ->  | AR24: =IFERROR(VLOOKUP(AR23,'P2'!$B$4:$J$48,9,FALSE),"") ->  | AS24: =IFERROR(VLOOKUP(AS23,'P2'!$B$4:$J$48,9,FALSE),"") ->  | AT24: =IFERROR(VLOOKUP(AT23,'P2'!$B$4:$J$48,9,FALSE),"") ->  | AU24: =IFERROR(VLOOKUP(AU23,'P2'!$B$4:$J$48,9,FALSE),"") ->  | AV24: =SUM(Q24:AU24) -> 0
B25: =B23+1 -> 7 | AV25: =COUNTA(Q25:AU25) -> 0 | AW25: =AV26 -> 0 | AX25: =IFERROR(ROUNDDOWN(AV26/$AT$3,1),"") -> 
Q26: =IFERROR(VLOOKUP(Q25,'P2'!$B$4:$J$48,9,FALSE),"") ->  | R26: =IFERROR(VLOOKUP(R25,'P2'!$B$4:$J$48,9,FALSE),"") ->  | S26: =IFERROR(VLOOKUP(S25,'P2'!$B$4:$J$48,9,FALSE),"") ->  | T26: =IFERROR(VLOOKUP(T25,'P2'!$B$4:$J$48,9,FALSE),"") ->  | U26: =IFERROR(VLOOKUP(U25,'P2'!$B$4:$J$48,9,FALSE),"") ->  | V26: =IFERROR(VLOOKUP(V25,'P2'!$B$4:$J$48,9,FALSE),"") ->  | W26: =IFERROR(VLOOKUP(W25,'P2'!$B$4:$J$48,9,FALSE),"") ->  | X26: =IFERROR(VLOOKUP(X25,'P2'!$B$4:$J$48,9,FALSE),"") ->  | Y26: =IFERROR(VLOOKUP(Y25,'P2'!$B$4:$J$48,9,FALSE),"") ->  | Z26: =IFERROR(VLOOKUP(Z25,'P2'!$B$4:$J$48,9,FALSE),"") ->  | AA26: =IFERROR(VLOOKUP(AA25,'P2'!$B$4:$J$48,9,FALSE),"") ->  | AB26: =IFERROR(VLOOKUP(AB25,'P2'!$B$4:$J$48,9,FALSE),"") ->  | AC26: =IFERROR(VLOOKUP(AC25,'P2'!$B$4:$J$48,9,FALSE),"") ->  | AD26: =IFERROR(VLOOKUP(AD25,'P2'!$B$4:$J$48,9,FALSE),"") ->  | AE26: =IFERROR(VLOOKUP(AE25,'P2'!$B$4:$J$48,9,FALSE),"") ->  | AF26: =IFERROR(VLOOKUP(AF25,'P2'!$B$4:$J$48,9,FALSE),"") ->  | AG26: =IFERROR(VLOOKUP(AG25,'P2'!$B$4:$J$48,9,FALSE),"") ->  | AH26: =IFERROR(VLOOKUP(AH25,'P2'!$B$4:$J$48,9,FALSE),"") ->  | AI26: =IFERROR(VLOOKUP(AI25,'P2'!$B$4:$J$48,9,FALSE),"") ->  | AJ26: =IFERROR(VLOOKUP(AJ25,'P2'!$B$4:$J$48,9,FALSE),"") ->  | AK26: =IFERROR(VLOOKUP(AK25,'P2'!$B$4:$J$48,9,FALSE),"") ->  | AL26: =IFERROR(VLOOKUP(AL25,'P2'!$B$4:$J$48,9,FALSE),"") ->  | AM26: =IFERROR(VLOOKUP(AM25,'P2'!$B$4:$J$48,9,FALSE),"") ->  | AN26: =IFERROR(VLOOKUP(AN25,'P2'!$B$4:$J$48,9,FALSE),"") ->  | AO26: =IFERROR(VLOOKUP(AO25,'P2'!$B$4:$J$48,9,FALSE),"") ->  | AP26: =IFERROR(VLOOKUP(AP25,'P2'!$B$4:$J$48,9,FALSE),"") ->  | AQ26: =IFERROR(VLOOKUP(AQ25,'P2'!$B$4:$J$48,9,FALSE),"") ->  | AR26: =IFERROR(VLOOKUP(AR25,'P2'!$B$4:$J$48,9,FALSE),"") ->  | AS26: =IFERROR(VLOOKUP(AS25,'P2'!$B$4:$J$48,9,FALSE),"") ->  | AT26: =IFERROR(VLOOKUP(AT25,'P2'!$B$4:$J$48,9,FALSE),"") ->  | AU26: =IFERROR(VLOOKUP(AU25,'P2'!$B$4:$J$48,9,FALSE),"") ->  | AV26: =SUM(Q26:AU26) -> 0
B27: =B25+1 -> 8 | AV27: =COUNTA(Q27:AU27) -> 0 | AW27: =AV28 -> 0 | AX27: =IFERROR(ROUNDDOWN(AV28/$AT$3,1),"") -> 
Q28: =IFERROR(VLOOKUP(Q27,'P2'!$B$4:$J$48,9,FALSE),"") ->  | R28: =IFERROR(VLOOKUP(R27,'P2'!$B$4:$J$48,9,FALSE),"") ->  | S28: =IFERROR(VLOOKUP(S27,'P2'!$B$4:$J$48,9,FALSE),"") ->  | T28: =IFERROR(VLOOKUP(T27,'P2'!$B$4:$J$48,9,FALSE),"") ->  | U28: =IFERROR(VLOOKUP(U27,'P2'!$B$4:$J$48,9,FALSE),"") ->  | V28: =IFERROR(VLOOKUP(V27,'P2'!$B$4:$J$48,9,FALSE),"") ->  | W28: =IFERROR(VLOOKUP(W27,'P2'!$B$4:$J$48,9,FALSE),"") ->  | X28: =IFERROR(VLOOKUP(X27,'P2'!$B$4:$J$48,9,FALSE),"") ->  | Y28: =IFERROR(VLOOKUP(Y27,'P2'!$B$4:$J$48,9,FALSE),"") ->  | Z28: =IFERROR(VLOOKUP(Z27,'P2'!$B$4:$J$48,9,FALSE),"") ->  | AA28: =IFERROR(VLOOKUP(AA27,'P2'!$B$4:$J$48,9,FALSE),"") ->  | AB28: =IFERROR(VLOOKUP(AB27,'P2'!$B$4:$J$48,9,FALSE),"") ->  | AC28: =IFERROR(VLOOKUP(AC27,'P2'!$B$4:$J$48,9,FALSE),"") ->  | AD28: =IFERROR(VLOOKUP(AD27,'P2'!$B$4:$J$48,9,FALSE),"") ->  | AE28: =IFERROR(VLOOKUP(AE27,'P2'!$B$4:$J$48,9,FALSE),"") ->  | AF28: =IFERROR(VLOOKUP(AF27,'P2'!$B$4:$J$48,9,FALSE),"") ->  | AG28: =IFERROR(VLOOKUP(AG27,'P2'!$B$4:$J$48,9,FALSE),"") ->  | AH28: =IFERROR(VLOOKUP(AH27,'P2'!$B$4:$J$48,9,FALSE),"") ->  | AI28: =IFERROR(VLOOKUP(AI27,'P2'!$B$4:$J$48,9,FALSE),"") ->  | AJ28: =IFERROR(VLOOKUP(AJ27,'P2'!$B$4:$J$48,9,FALSE),"") ->  | AK28: =IFERROR(VLOOKUP(AK27,'P2'!$B$4:$J$48,9,FALSE),"") ->  | AL28: =IFERROR(VLOOKUP(AL27,'P2'!$B$4:$J$48,9,FALSE),"") ->  | AM28: =IFERROR(VLOOKUP(AM27,'P2'!$B$4:$J$48,9,FALSE),"") ->  | AN28: =IFERROR(VLOOKUP(AN27,'P2'!$B$4:$J$48,9,FALSE),"") ->  | AO28: =IFERROR(VLOOKUP(AO27,'P2'!$B$4:$J$48,9,FALSE),"") ->  | AP28: =IFERROR(VLOOKUP(AP27,'P2'!$B$4:$J$48,9,FALSE),"") ->  | AQ28: =IFERROR(VLOOKUP(AQ27,'P2'!$B$4:$J$48,9,FALSE),"") ->  | AR28: =IFERROR(VLOOKUP(AR27,'P2'!$B$4:$J$48,9,FALSE),"") ->  | AS28: =IFERROR(VLOOKUP(AS27,'P2'!$B$4:$J$48,9,FALSE),"") ->  | AT28: =IFERROR(VLOOKUP(AT27,'P2'!$B$4:$J$48,9,FALSE),"") ->  | AU28: =IFERROR(VLOOKUP(AU27,'P2'!$B$4:$J$48,9,FALSE),"") ->  | AV28: =SUM(Q28:AU28) -> 0
B29: =B27+1 -> 9 | AV29: =COUNTA(Q29:AU29) -> 0 | AW29: =AV30 -> 0 | AX29: =IFERROR(ROUNDDOWN(AV30/$AT$3,1),"") -> 
Q30: =IFERROR(VLOOKUP(Q29,'P2'!$B$4:$J$48,9,FALSE),"") ->  | R30: =IFERROR(VLOOKUP(R29,'P2'!$B$4:$J$48,9,FALSE),"") ->  | S30: =IFERROR(VLOOKUP(S29,'P2'!$B$4:$J$48,9,FALSE),"") ->  | T30: =IFERROR(VLOOKUP(T29,'P2'!$B$4:$J$48,9,FALSE),"") ->  | U30: =IFERROR(VLOOKUP(U29,'P2'!$B$4:$J$48,9,FALSE),"") ->  | V30: =IFERROR(VLOOKUP(V29,'P2'!$B$4:$J$48,9,FALSE),"") ->  | W30: =IFERROR(VLOOKUP(W29,'P2'!$B$4:$J$48,9,FALSE),"") ->  | X30: =IFERROR(VLOOKUP(X29,'P2'!$B$4:$J$48,9,FALSE),"") ->  | Y30: =IFERROR(VLOOKUP(Y29,'P2'!$B$4:$J$48,9,FALSE),"") ->  | Z30: =IFERROR(VLOOKUP(Z29,'P2'!$B$4:$J$48,9,FALSE),"") ->  | AA30: =IFERROR(VLOOKUP(AA29,'P2'!$B$4:$J$48,9,FALSE),"") ->  | AB30: =IFERROR(VLOOKUP(AB29,'P2'!$B$4:$J$48,9,FALSE),"") ->  | AC30: =IFERROR(VLOOKUP(AC29,'P2'!$B$4:$J$48,9,FALSE),"") ->  | AD30: =IFERROR(VLOOKUP(AD29,'P2'!$B$4:$J$48,9,FALSE),"") ->  | AE30: =IFERROR(VLOOKUP(AE29,'P2'!$B$4:$J$48,9,FALSE),"") ->  | AF30: =IFERROR(VLOOKUP(AF29,'P2'!$B$4:$J$48,9,FALSE),"") ->  | AG30: =IFERROR(VLOOKUP(AG29,'P2'!$B$4:$J$48,9,FALSE),"") ->  | AH30: =IFERROR(VLOOKUP(AH29,'P2'!$B$4:$J$48,9,FALSE),"") ->  | AI30: =IFERROR(VLOOKUP(AI29,'P2'!$B$4:$J$48,9,FALSE),"") ->  | AJ30: =IFERROR(VLOOKUP(AJ29,'P2'!$B$4:$J$48,9,FALSE),"") ->  | AK30: =IFERROR(VLOOKUP(AK29,'P2'!$B$4:$J$48,9,FALSE),"") ->  | AL30: =IFERROR(VLOOKUP(AL29,'P2'!$B$4:$J$48,9,FALSE),"") ->  | AM30: =IFERROR(VLOOKUP(AM29,'P2'!$B$4:$J$48,9,FALSE),"") ->  | AN30: =IFERROR(VLOOKUP(AN29,'P2'!$B$4:$J$48,9,FALSE),"") ->  | AO30: =IFERROR(VLOOKUP(AO29,'P2'!$B$4:$J$48,9,FALSE),"") ->  | AP30: =IFERROR(VLOOKUP(AP29,'P2'!$B$4:$J$48,9,FALSE),"") ->  | AQ30: =IFERROR(VLOOKUP(AQ29,'P2'!$B$4:$J$48,9,FALSE),"") ->  | AR30: =IFERROR(VLOOKUP(AR29,'P2'!$B$4:$J$48,9,FALSE),"") ->  | AS30: =IFERROR(VLOOKUP(AS29,'P2'!$B$4:$J$48,9,FALSE),"") ->  | AT30: =IFERROR(VLOOKUP(AT29,'P2'!$B$4:$J$48,9,FALSE),"") ->  | AU30: =IFERROR(VLOOKUP(AU29,'P2'!$B$4:$J$48,9,FALSE),"") ->  | AV30: =SUM(Q30:AU30) -> 0
B31: =B29+1 -> 10 | AV31: =COUNTA(Q31:AU31) -> 0 | AW31: =AV32 -> 0 | AX31: =IFERROR(ROUNDDOWN(AV32/$AT$3,1),"") -> 
Q32: =IFERROR(VLOOKUP(Q31,'P2'!$B$4:$J$48,9,FALSE),"") ->  | R32: =IFERROR(VLOOKUP(R31,'P2'!$B$4:$J$48,9,FALSE),"") ->  | S32: =IFERROR(VLOOKUP(S31,'P2'!$B$4:$J$48,9,FALSE),"") ->  | T32: =IFERROR(VLOOKUP(T31,'P2'!$B$4:$J$48,9,FALSE),"") ->  | U32: =IFERROR(VLOOKUP(U31,'P2'!$B$4:$J$48,9,FALSE),"") ->  | V32: =IFERROR(VLOOKUP(V31,'P2'!$B$4:$J$48,9,FALSE),"") ->  | W32: =IFERROR(VLOOKUP(W31,'P2'!$B$4:$J$48,9,FALSE),"") ->  | X32: =IFERROR(VLOOKUP(X31,'P2'!$B$4:$J$48,9,FALSE),"") ->  | Y32: =IFERROR(VLOOKUP(Y31,'P2'!$B$4:$J$48,9,FALSE),"") ->  | Z32: =IFERROR(VLOOKUP(Z31,'P2'!$B$4:$J$48,9,FALSE),"") ->  | AA32: =IFERROR(VLOOKUP(AA31,'P2'!$B$4:$J$48,9,FALSE),"") ->  | AB32: =IFERROR(VLOOKUP(AB31,'P2'!$B$4:$J$48,9,FALSE),"") ->  | AC32: =IFERROR(VLOOKUP(AC31,'P2'!$B$4:$J$48,9,FALSE),"") ->  | AD32: =IFERROR(VLOOKUP(AD31,'P2'!$B$4:$J$48,9,FALSE),"") ->  | AE32: =IFERROR(VLOOKUP(AE31,'P2'!$B$4:$J$48,9,FALSE),"") ->  | AF32: =IFERROR(VLOOKUP(AF31,'P2'!$B$4:$J$48,9,FALSE),"") ->  | AG32: =IFERROR(VLOOKUP(AG31,'P2'!$B$4:$J$48,9,FALSE),"") ->  | AH32: =IFERROR(VLOOKUP(AH31,'P2'!$B$4:$J$48,9,FALSE),"") ->  | AI32: =IFERROR(VLOOKUP(AI31,'P2'!$B$4:$J$48,9,FALSE),"") ->  | AJ32: =IFERROR(VLOOKUP(AJ31,'P2'!$B$4:$J$48,9,FALSE),"") ->  | AK32: =IFERROR(VLOOKUP(AK31,'P2'!$B$4:$J$48,9,FALSE),"") ->  | AL32: =IFERROR(VLOOKUP(AL31,'P2'!$B$4:$J$48,9,FALSE),"") ->  | AM32: =IFERROR(VLOOKUP(AM31,'P2'!$B$4:$J$48,9,FALSE),"") ->  | AN32: =IFERROR(VLOOKUP(AN31,'P2'!$B$4:$J$48,9,FALSE),"") ->  | AO32: =IFERROR(VLOOKUP(AO31,'P2'!$B$4:$J$48,9,FALSE),"") ->  | AP32: =IFERROR(VLOOKUP(AP31,'P2'!$B$4:$J$48,9,FALSE),"") ->  | AQ32: =IFERROR(VLOOKUP(AQ31,'P2'!$B$4:$J$48,9,FALSE),"") ->  | AR32: =IFERROR(VLOOKUP(AR31,'P2'!$B$4:$J$48,9,FALSE),"") ->  | AS32: =IFERROR(VLOOKUP(AS31,'P2'!$B$4:$J$48,9,FALSE),"") ->  | AT32: =IFERROR(VLOOKUP(AT31,'P2'!$B$4:$J$48,9,FALSE),"") ->  | AU32: =IFERROR(VLOOKUP(AU31,'P2'!$B$4:$J$48,9,FALSE),"") ->  | AV32: =SUM(Q32:AU32) -> 0
B33: =B31+1 -> 11 | AV33: =COUNTA(Q33:AU33) -> 0 | AW33: =AV34 -> 0 | AX33: =IFERROR(ROUNDDOWN(AV34/$AT$3,1),"") -> 
Q34: =IFERROR(VLOOKUP(Q33,'P2'!$B$4:$J$48,9,FALSE),"") ->  | R34: =IFERROR(VLOOKUP(R33,'P2'!$B$4:$J$48,9,FALSE),"") ->  | S34: =IFERROR(VLOOKUP(S33,'P2'!$B$4:$J$48,9,FALSE),"") ->  | T34: =IFERROR(VLOOKUP(T33,'P2'!$B$4:$J$48,9,FALSE),"") ->  | U34: =IFERROR(VLOOKUP(U33,'P2'!$B$4:$J$48,9,FALSE),"") ->  | V34: =IFERROR(VLOOKUP(V33,'P2'!$B$4:$J$48,9,FALSE),"") ->  | W34: =IFERROR(VLOOKUP(W33,'P2'!$B$4:$J$48,9,FALSE),"") ->  | X34: =IFERROR(VLOOKUP(X33,'P2'!$B$4:$J$48,9,FALSE),"") ->  | Y34: =IFERROR(VLOOKUP(Y33,'P2'!$B$4:$J$48,9,FALSE),"") ->  | Z34: =IFERROR(VLOOKUP(Z33,'P2'!$B$4:$J$48,9,FALSE),"") ->  | AA34: =IFERROR(VLOOKUP(AA33,'P2'!$B$4:$J$48,9,FALSE),"") ->  | AB34: =IFERROR(VLOOKUP(AB33,'P2'!$B$4:$J$48,9,FALSE),"") ->  | AC34: =IFERROR(VLOOKUP(AC33,'P2'!$B$4:$J$48,9,FALSE),"") ->  | AD34: =IFERROR(VLOOKUP(AD33,'P2'!$B$4:$J$48,9,FALSE),"") ->  | AE34: =IFERROR(VLOOKUP(AE33,'P2'!$B$4:$J$48,9,FALSE),"") ->  | AF34: =IFERROR(VLOOKUP(AF33,'P2'!$B$4:$J$48,9,FALSE),"") ->  | AG34: =IFERROR(VLOOKUP(AG33,'P2'!$B$4:$J$48,9,FALSE),"") ->  | AH34: =IFERROR(VLOOKUP(AH33,'P2'!$B$4:$J$48,9,FALSE),"") ->  | AI34: =IFERROR(VLOOKUP(AI33,'P2'!$B$4:$J$48,9,FALSE),"") ->  | AJ34: =IFERROR(VLOOKUP(AJ33,'P2'!$B$4:$J$48,9,FALSE),"") ->  | AK34: =IFERROR(VLOOKUP(AK33,'P2'!$B$4:$J$48,9,FALSE),"") ->  | AL34: =IFERROR(VLOOKUP(AL33,'P2'!$B$4:$J$48,9,FALSE),"") ->  | AM34: =IFERROR(VLOOKUP(AM33,'P2'!$B$4:$J$48,9,FALSE),"") ->  | AN34: =IFERROR(VLOOKUP(AN33,'P2'!$B$4:$J$48,9,FALSE),"") ->  | AO34: =IFERROR(VLOOKUP(AO33,'P2'!$B$4:$J$48,9,FALSE),"") ->  | AP34: =IFERROR(VLOOKUP(AP33,'P2'!$B$4:$J$48,9,FALSE),"") ->  | AQ34: =IFERROR(VLOOKUP(AQ33,'P2'!$B$4:$J$48,9,FALSE),"") ->  | AR34: =IFERROR(VLOOKUP(AR33,'P2'!$B$4:$J$48,9,FALSE),"") ->  | AS34: =IFERROR(VLOOKUP(AS33,'P2'!$B$4:$J$48,9,FALSE),"") ->  | AT34: =IFERROR(VLOOKUP(AT33,'P2'!$B$4:$J$48,9,FALSE),"") ->  | AU34: =IFERROR(VLOOKUP(AU33,'P2'!$B$4:$J$48,9,FALSE),"") ->  | AV34: =SUM(Q34:AU34) -> 0
B35: =B33+1 -> 12 | AV35: =COUNTA(Q35:AU35) -> 0 | AW35: =AV36 -> 0 | AX35: =IFERROR(ROUNDDOWN(AV36/$AT$3,1),"") -> 
Q36: =IFERROR(VLOOKUP(Q35,'P2'!$B$4:$J$48,9,FALSE),"") ->  | R36: =IFERROR(VLOOKUP(R35,'P2'!$B$4:$J$48,9,FALSE),"") ->  | S36: =IFERROR(VLOOKUP(S35,'P2'!$B$4:$J$48,9,FALSE),"") ->  | T36: =IFERROR(VLOOKUP(T35,'P2'!$B$4:$J$48,9,FALSE),"") ->  | U36: =IFERROR(VLOOKUP(U35,'P2'!$B$4:$J$48,9,FALSE),"") ->  | V36: =IFERROR(VLOOKUP(V35,'P2'!$B$4:$J$48,9,FALSE),"") ->  | W36: =IFERROR(VLOOKUP(W35,'P2'!$B$4:$J$48,9,FALSE),"") ->  | X36: =IFERROR(VLOOKUP(X35,'P2'!$B$4:$J$48,9,FALSE),"") ->  | Y36: =IFERROR(VLOOKUP(Y35,'P2'!$B$4:$J$48,9,FALSE),"") ->  | Z36: =IFERROR(VLOOKUP(Z35,'P2'!$B$4:$J$48,9,FALSE),"") ->  | AA36: =IFERROR(VLOOKUP(AA35,'P2'!$B$4:$J$48,9,FALSE),"") ->  | AB36: =IFERROR(VLOOKUP(AB35,'P2'!$B$4:$J$48,9,FALSE),"") ->  | AC36: =IFERROR(VLOOKUP(AC35,'P2'!$B$4:$J$48,9,FALSE),"") ->  | AD36: =IFERROR(VLOOKUP(AD35,'P2'!$B$4:$J$48,9,FALSE),"") ->  | AE36: =IFERROR(VLOOKUP(AE35,'P2'!$B$4:$J$48,9,FALSE),"") ->  | AF36: =IFERROR(VLOOKUP(AF35,'P2'!$B$4:$J$48,9,FALSE),"") ->  | AG36: =IFERROR(VLOOKUP(AG35,'P2'!$B$4:$J$48,9,FALSE),"") ->  | AH36: =IFERROR(VLOOKUP(AH35,'P2'!$B$4:$J$48,9,FALSE),"") ->  | AI36: =IFERROR(VLOOKUP(AI35,'P2'!$B$4:$J$48,9,FALSE),"") ->  | AJ36: =IFERROR(VLOOKUP(AJ35,'P2'!$B$4:$J$48,9,FALSE),"") ->  | AK36: =IFERROR(VLOOKUP(AK35,'P2'!$B$4:$J$48,9,FALSE),"") ->  | AL36: =IFERROR(VLOOKUP(AL35,'P2'!$B$4:$J$48,9,FALSE),"") ->  | AM36: =IFERROR(VLOOKUP(AM35,'P2'!$B$4:$J$48,9,FALSE),"") ->  | AN36: =IFERROR(VLOOKUP(AN35,'P2'!$B$4:$J$48,9,FALSE),"") ->  | AO36: =IFERROR(VLOOKUP(AO35,'P2'!$B$4:$J$48,9,FALSE),"") ->  | AP36: =IFERROR(VLOOKUP(AP35,'P2'!$B$4:$J$48,9,FALSE),"") ->  | AQ36: =IFERROR(VLOOKUP(AQ35,'P2'!$B$4:$J$48,9,FALSE),"") ->  | AR36: =IFERROR(VLOOKUP(AR35,'P2'!$B$4:$J$48,9,FALSE),"") ->  | AS36: =IFERROR(VLOOKUP(AS35,'P2'!$B$4:$J$48,9,FALSE),"") ->  | AT36: =IFERROR(VLOOKUP(AT35,'P2'!$B$4:$J$48,9,FALSE),"") ->  | AU36: =IFERROR(VLOOKUP(AU35,'P2'!$B$4:$J$48,9,FALSE),"") ->  | AV36: =SUM(Q36:AU36) -> 0
B37: =B35+1 -> 13 | AV37: =COUNTA(Q37:AU37) -> 0 | AW37: =AV38 -> 0 | AX37: =IFERROR(ROUNDDOWN(AV38/$AT$3,1),"") -> 
Q38: =IFERROR(VLOOKUP(Q37,'P2'!$B$4:$J$48,9,FALSE),"") ->  | R38: =IFERROR(VLOOKUP(R37,'P2'!$B$4:$J$48,9,FALSE),"") ->  | S38: =IFERROR(VLOOKUP(S37,'P2'!$B$4:$J$48,9,FALSE),"") ->  | T38: =IFERROR(VLOOKUP(T37,'P2'!$B$4:$J$48,9,FALSE),"") ->  | U38: =IFERROR(VLOOKUP(U37,'P2'!$B$4:$J$48,9,FALSE),"") ->  | V38: =IFERROR(VLOOKUP(V37,'P2'!$B$4:$J$48,9,FALSE),"") ->  | W38: =IFERROR(VLOOKUP(W37,'P2'!$B$4:$J$48,9,FALSE),"") ->  | X38: =IFERROR(VLOOKUP(X37,'P2'!$B$4:$J$48,9,FALSE),"") ->  | Y38: =IFERROR(VLOOKUP(Y37,'P2'!$B$4:$J$48,9,FALSE),"") ->  | Z38: =IFERROR(VLOOKUP(Z37,'P2'!$B$4:$J$48,9,FALSE),"") ->  | AA38: =IFERROR(VLOOKUP(AA37,'P2'!$B$4:$J$48,9,FALSE),"") ->  | AB38: =IFERROR(VLOOKUP(AB37,'P2'!$B$4:$J$48,9,FALSE),"") ->  | AC38: =IFERROR(VLOOKUP(AC37,'P2'!$B$4:$J$48,9,FALSE),"") ->  | AD38: =IFERROR(VLOOKUP(AD37,'P2'!$B$4:$J$48,9,FALSE),"") ->  | AE38: =IFERROR(VLOOKUP(AE37,'P2'!$B$4:$J$48,9,FALSE),"") ->  | AF38: =IFERROR(VLOOKUP(AF37,'P2'!$B$4:$J$48,9,FALSE),"") ->  | AG38: =IFERROR(VLOOKUP(AG37,'P2'!$B$4:$J$48,9,FALSE),"") ->  | AH38: =IFERROR(VLOOKUP(AH37,'P2'!$B$4:$J$48,9,FALSE),"") ->  | AI38: =IFERROR(VLOOKUP(AI37,'P2'!$B$4:$J$48,9,FALSE),"") ->  | AJ38: =IFERROR(VLOOKUP(AJ37,'P2'!$B$4:$J$48,9,FALSE),"") ->  | AK38: =IFERROR(VLOOKUP(AK37,'P2'!$B$4:$J$48,9,FALSE),"") ->  | AL38: =IFERROR(VLOOKUP(AL37,'P2'!$B$4:$J$48,9,FALSE),"") ->  | AM38: =IFERROR(VLOOKUP(AM37,'P2'!$B$4:$J$48,9,FALSE),"") ->  | AN38: =IFERROR(VLOOKUP(AN37,'P2'!$B$4:$J$48,9,FALSE),"") ->  | AO38: =IFERROR(VLOOKUP(AO37,'P2'!$B$4:$J$48,9,FALSE),"") ->  | AP38: =IFERROR(VLOOKUP(AP37,'P2'!$B$4:$J$48,9,FALSE),"") ->  | AQ38: =IFERROR(VLOOKUP(AQ37,'P2'!$B$4:$J$48,9,FALSE),"") ->  | AR38: =IFERROR(VLOOKUP(AR37,'P2'!$B$4:$J$48,9,FALSE),"") ->  | AS38: =IFERROR(VLOOKUP(AS37,'P2'!$B$4:$J$48,9,FALSE),"") ->  | AT38: =IFERROR(VLOOKUP(AT37,'P2'!$B$4:$J$48,9,FALSE),"") ->  | AU38: =IFERROR(VLOOKUP(AU37,'P2'!$B$4:$J$48,9,FALSE),"") ->  | AV38: =SUM(Q38:AU38) -> 0
B39: =B37+1 -> 14 | AV39: =COUNTA(Q39:AU39) -> 0 | AW39: =AV40 -> 0 | AX39: =IFERROR(ROUNDDOWN(AV40/$AT$3,1),"") -> 
Q40: =IFERROR(VLOOKUP(Q39,'P2'!$B$4:$J$48,9,FALSE),"") ->  | R40: =IFERROR(VLOOKUP(R39,'P2'!$B$4:$J$48,9,FALSE),"") ->  | S40: =IFERROR(VLOOKUP(S39,'P2'!$B$4:$J$48,9,FALSE),"") ->  | T40: =IFERROR(VLOOKUP(T39,'P2'!$B$4:$J$48,9,FALSE),"") ->  | U40: =IFERROR(VLOOKUP(U39,'P2'!$B$4:$J$48,9,FALSE),"") ->  | V40: =IFERROR(VLOOKUP(V39,'P2'!$B$4:$J$48,9,FALSE),"") ->  | W40: =IFERROR(VLOOKUP(W39,'P2'!$B$4:$J$48,9,FALSE),"") ->  | X40: =IFERROR(VLOOKUP(X39,'P2'!$B$4:$J$48,9,FALSE),"") ->  | Y40: =IFERROR(VLOOKUP(Y39,'P2'!$B$4:$J$48,9,FALSE),"") ->  | Z40: =IFERROR(VLOOKUP(Z39,'P2'!$B$4:$J$48,9,FALSE),"") ->  | AA40: =IFERROR(VLOOKUP(AA39,'P2'!$B$4:$J$48,9,FALSE),"") ->  | AB40: =IFERROR(VLOOKUP(AB39,'P2'!$B$4:$J$48,9,FALSE),"") ->  | AC40: =IFERROR(VLOOKUP(AC39,'P2'!$B$4:$J$48,9,FALSE),"") ->  | AD40: =IFERROR(VLOOKUP(AD39,'P2'!$B$4:$J$48,9,FALSE),"") ->  | AE40: =IFERROR(VLOOKUP(AE39,'P2'!$B$4:$J$48,9,FALSE),"") ->  | AF40: =IFERROR(VLOOKUP(AF39,'P2'!$B$4:$J$48,9,FALSE),"") ->  | AG40: =IFERROR(VLOOKUP(AG39,'P2'!$B$4:$J$48,9,FALSE),"") ->  | AH40: =IFERROR(VLOOKUP(AH39,'P2'!$B$4:$J$48,9,FALSE),"") ->  | AI40: =IFERROR(VLOOKUP(AI39,'P2'!$B$4:$J$48,9,FALSE),"") ->  | AJ40: =IFERROR(VLOOKUP(AJ39,'P2'!$B$4:$J$48,9,FALSE),"") ->  | AK40: =IFERROR(VLOOKUP(AK39,'P2'!$B$4:$J$48,9,FALSE),"") ->  | AL40: =IFERROR(VLOOKUP(AL39,'P2'!$B$4:$J$48,9,FALSE),"") ->  | AM40: =IFERROR(VLOOKUP(AM39,'P2'!$B$4:$J$48,9,FALSE),"") ->  | AN40: =IFERROR(VLOOKUP(AN39,'P2'!$B$4:$J$48,9,FALSE),"") ->  | AO40: =IFERROR(VLOOKUP(AO39,'P2'!$B$4:$J$48,9,FALSE),"") ->  | AP40: =IFERROR(VLOOKUP(AP39,'P2'!$B$4:$J$48,9,FALSE),"") ->  | AQ40: =IFERROR(VLOOKUP(AQ39,'P2'!$B$4:$J$48,9,FALSE),"") ->  | AR40: =IFERROR(VLOOKUP(AR39,'P2'!$B$4:$J$48,9,FALSE),"") ->  | AS40: =IFERROR(VLOOKUP(AS39,'P2'!$B$4:$J$48,9,FALSE),"") ->  | AT40: =IFERROR(VLOOKUP(AT39,'P2'!$B$4:$J$48,9,FALSE),"") ->  | AU40: =IFERROR(VLOOKUP(AU39,'P2'!$B$4:$J$48,9,FALSE),"") ->  | AV40: =SUM(Q40:AU40) -> 0
B41: =B39+1 -> 15 | AV41: =COUNTA(Q41:AU41) -> 0 | AW41: =AV42 -> 0 | AX41: =IFERROR(ROUNDDOWN(AV42/$AT$3,1),"") -> 
Q42: =IFERROR(VLOOKUP(Q41,'P2'!$B$4:$J$48,9,FALSE),"") ->  | R42: =IFERROR(VLOOKUP(R41,'P2'!$B$4:$J$48,9,FALSE),"") ->  | S42: =IFERROR(VLOOKUP(S41,'P2'!$B$4:$J$48,9,FALSE),"") ->  | T42: =IFERROR(VLOOKUP(T41,'P2'!$B$4:$J$48,9,FALSE),"") ->  | U42: =IFERROR(VLOOKUP(U41,'P2'!$B$4:$J$48,9,FALSE),"") ->  | V42: =IFERROR(VLOOKUP(V41,'P2'!$B$4:$J$48,9,FALSE),"") ->  | W42: =IFERROR(VLOOKUP(W41,'P2'!$B$4:$J$48,9,FALSE),"") ->  | X42: =IFERROR(VLOOKUP(X41,'P2'!$B$4:$J$48,9,FALSE),"") ->  | Y42: =IFERROR(VLOOKUP(Y41,'P2'!$B$4:$J$48,9,FALSE),"") ->  | Z42: =IFERROR(VLOOKUP(Z41,'P2'!$B$4:$J$48,9,FALSE),"") ->  | AA42: =IFERROR(VLOOKUP(AA41,'P2'!$B$4:$J$48,9,FALSE),"") ->  | AB42: =IFERROR(VLOOKUP(AB41,'P2'!$B$4:$J$48,9,FALSE),"") ->  | AC42: =IFERROR(VLOOKUP(AC41,'P2'!$B$4:$J$48,9,FALSE),"") ->  | AD42: =IFERROR(VLOOKUP(AD41,'P2'!$B$4:$J$48,9,FALSE),"") ->  | AE42: =IFERROR(VLOOKUP(AE41,'P2'!$B$4:$J$48,9,FALSE),"") ->  | AF42: =IFERROR(VLOOKUP(AF41,'P2'!$B$4:$J$48,9,FALSE),"") ->  | AG42: =IFERROR(VLOOKUP(AG41,'P2'!$B$4:$J$48,9,FALSE),"") ->  | AH42: =IFERROR(VLOOKUP(AH41,'P2'!$B$4:$J$48,9,FALSE),"") ->  | AI42: =IFERROR(VLOOKUP(AI41,'P2'!$B$4:$J$48,9,FALSE),"") ->  | AJ42: =IFERROR(VLOOKUP(AJ41,'P2'!$B$4:$J$48,9,FALSE),"") ->  | AK42: =IFERROR(VLOOKUP(AK41,'P2'!$B$4:$J$48,9,FALSE),"") ->  | AL42: =IFERROR(VLOOKUP(AL41,'P2'!$B$4:$J$48,9,FALSE),"") ->  | AM42: =IFERROR(VLOOKUP(AM41,'P2'!$B$4:$J$48,9,FALSE),"") ->  | AN42: =IFERROR(VLOOKUP(AN41,'P2'!$B$4:$J$48,9,FALSE),"") ->  | AO42: =IFERROR(VLOOKUP(AO41,'P2'!$B$4:$J$48,9,FALSE),"") ->  | AP42: =IFERROR(VLOOKUP(AP41,'P2'!$B$4:$J$48,9,FALSE),"") ->  | AQ42: =IFERROR(VLOOKUP(AQ41,'P2'!$B$4:$J$48,9,FALSE),"") ->  | AR42: =IFERROR(VLOOKUP(AR41,'P2'!$B$4:$J$48,9,FALSE),"") ->  | AS42: =IFERROR(VLOOKUP(AS41,'P2'!$B$4:$J$48,9,FALSE),"") ->  | AT42: =IFERROR(VLOOKUP(AT41,'P2'!$B$4:$J$48,9,FALSE),"") ->  | AU42: =IFERROR(VLOOKUP(AU41,'P2'!$B$4:$J$48,9,FALSE),"") ->  | AV42: =SUM(Q42:AU42) -> 0
B43: =B41+1 -> 16 | AV43: =COUNTA(Q43:AU43) -> 0 | AW43: =AV44 -> 0 | AX43: =IFERROR(ROUNDDOWN(AV44/$AT$3,1),"") -> 
Q44: =IFERROR(VLOOKUP(Q43,'P2'!$B$4:$J$48,9,FALSE),"") ->  | R44: =IFERROR(VLOOKUP(R43,'P2'!$B$4:$J$48,9,FALSE),"") ->  | S44: =IFERROR(VLOOKUP(S43,'P2'!$B$4:$J$48,9,FALSE),"") ->  | T44: =IFERROR(VLOOKUP(T43,'P2'!$B$4:$J$48,9,FALSE),"") ->  | U44: =IFERROR(VLOOKUP(U43,'P2'!$B$4:$J$48,9,FALSE),"") ->  | V44: =IFERROR(VLOOKUP(V43,'P2'!$B$4:$J$48,9,FALSE),"") ->  | W44: =IFERROR(VLOOKUP(W43,'P2'!$B$4:$J$48,9,FALSE),"") ->  | X44: =IFERROR(VLOOKUP(X43,'P2'!$B$4:$J$48,9,FALSE),"") ->  | Y44: =IFERROR(VLOOKUP(Y43,'P2'!$B$4:$J$48,9,FALSE),"") ->  | Z44: =IFERROR(VLOOKUP(Z43,'P2'!$B$4:$J$48,9,FALSE),"") ->  | AA44: =IFERROR(VLOOKUP(AA43,'P2'!$B$4:$J$48,9,FALSE),"") ->  | AB44: =IFERROR(VLOOKUP(AB43,'P2'!$B$4:$J$48,9,FALSE),"") ->  | AC44: =IFERROR(VLOOKUP(AC43,'P2'!$B$4:$J$48,9,FALSE),"") ->  | AD44: =IFERROR(VLOOKUP(AD43,'P2'!$B$4:$J$48,9,FALSE),"") ->  | AE44: =IFERROR(VLOOKUP(AE43,'P2'!$B$4:$J$48,9,FALSE),"") ->  | AF44: =IFERROR(VLOOKUP(AF43,'P2'!$B$4:$J$48,9,FALSE),"") ->  | AG44: =IFERROR(VLOOKUP(AG43,'P2'!$B$4:$J$48,9,FALSE),"") ->  | AH44: =IFERROR(VLOOKUP(AH43,'P2'!$B$4:$J$48,9,FALSE),"") ->  | AI44: =IFERROR(VLOOKUP(AI43,'P2'!$B$4:$J$48,9,FALSE),"") ->  | AJ44: =IFERROR(VLOOKUP(AJ43,'P2'!$B$4:$J$48,9,FALSE),"") ->  | AK44: =IFERROR(VLOOKUP(AK43,'P2'!$B$4:$J$48,9,FALSE),"") ->  | AL44: =IFERROR(VLOOKUP(AL43,'P2'!$B$4:$J$48,9,FALSE),"") ->  | AM44: =IFERROR(VLOOKUP(AM43,'P2'!$B$4:$J$48,9,FALSE),"") ->  | AN44: =IFERROR(VLOOKUP(AN43,'P2'!$B$4:$J$48,9,FALSE),"") ->  | AO44: =IFERROR(VLOOKUP(AO43,'P2'!$B$4:$J$48,9,FALSE),"") ->  | AP44: =IFERROR(VLOOKUP(AP43,'P2'!$B$4:$J$48,9,FALSE),"") ->  | AQ44: =IFERROR(VLOOKUP(AQ43,'P2'!$B$4:$J$48,9,FALSE),"") ->  | AR44: =IFERROR(VLOOKUP(AR43,'P2'!$B$4:$J$48,9,FALSE),"") ->  | AS44: =IFERROR(VLOOKUP(AS43,'P2'!$B$4:$J$48,9,FALSE),"") ->  | AT44: =IFERROR(VLOOKUP(AT43,'P2'!$B$4:$J$48,9,FALSE),"") ->  | AU44: =IFERROR(VLOOKUP(AU43,'P2'!$B$4:$J$48,9,FALSE),"") ->  | AV44: =SUM(Q44:AU44) -> 0
B45: =B43+1 -> 17 | AV45: =COUNTA(Q45:AU45) -> 0 | AW45: =AV46 -> 0 | AX45: =IFERROR(ROUNDDOWN(AV46/$AT$3,1),"") -> 
Q46: =IFERROR(VLOOKUP(Q45,'P2'!$B$4:$J$48,9,FALSE),"") ->  | R46: =IFERROR(VLOOKUP(R45,'P2'!$B$4:$J$48,9,FALSE),"") ->  | S46: =IFERROR(VLOOKUP(S45,'P2'!$B$4:$J$48,9,FALSE),"") ->  | T46: =IFERROR(VLOOKUP(T45,'P2'!$B$4:$J$48,9,FALSE),"") ->  | U46: =IFERROR(VLOOKUP(U45,'P2'!$B$4:$J$48,9,FALSE),"") ->  | V46: =IFERROR(VLOOKUP(V45,'P2'!$B$4:$J$48,9,FALSE),"") ->  | W46: =IFERROR(VLOOKUP(W45,'P2'!$B$4:$J$48,9,FALSE),"") ->  | X46: =IFERROR(VLOOKUP(X45,'P2'!$B$4:$J$48,9,FALSE),"") ->  | Y46: =IFERROR(VLOOKUP(Y45,'P2'!$B$4:$J$48,9,FALSE),"") ->  | Z46: =IFERROR(VLOOKUP(Z45,'P2'!$B$4:$J$48,9,FALSE),"") ->  | AA46: =IFERROR(VLOOKUP(AA45,'P2'!$B$4:$J$48,9,FALSE),"") ->  | AB46: =IFERROR(VLOOKUP(AB45,'P2'!$B$4:$J$48,9,FALSE),"") ->  | AC46: =IFERROR(VLOOKUP(AC45,'P2'!$B$4:$J$48,9,FALSE),"") ->  | AD46: =IFERROR(VLOOKUP(AD45,'P2'!$B$4:$J$48,9,FALSE),"") ->  | AE46: =IFERROR(VLOOKUP(AE45,'P2'!$B$4:$J$48,9,FALSE),"") ->  | AF46: =IFERROR(VLOOKUP(AF45,'P2'!$B$4:$J$48,9,FALSE),"") ->  | AG46: =IFERROR(VLOOKUP(AG45,'P2'!$B$4:$J$48,9,FALSE),"") ->  | AH46: =IFERROR(VLOOKUP(AH45,'P2'!$B$4:$J$48,9,FALSE),"") ->  | AI46: =IFERROR(VLOOKUP(AI45,'P2'!$B$4:$J$48,9,FALSE),"") ->  | AJ46: =IFERROR(VLOOKUP(AJ45,'P2'!$B$4:$J$48,9,FALSE),"") ->  | AK46: =IFERROR(VLOOKUP(AK45,'P2'!$B$4:$J$48,9,FALSE),"") ->  | AL46: =IFERROR(VLOOKUP(AL45,'P2'!$B$4:$J$48,9,FALSE),"") ->  | AM46: =IFERROR(VLOOKUP(AM45,'P2'!$B$4:$J$48,9,FALSE),"") ->  | AN46: =IFERROR(VLOOKUP(AN45,'P2'!$B$4:$J$48,9,FALSE),"") ->  | AO46: =IFERROR(VLOOKUP(AO45,'P2'!$B$4:$J$48,9,FALSE),"") ->  | AP46: =IFERROR(VLOOKUP(AP45,'P2'!$B$4:$J$48,9,FALSE),"") ->  | AQ46: =IFERROR(VLOOKUP(AQ45,'P2'!$B$4:$J$48,9,FALSE),"") ->  | AR46: =IFERROR(VLOOKUP(AR45,'P2'!$B$4:$J$48,9,FALSE),"") ->  | AS46: =IFERROR(VLOOKUP(AS45,'P2'!$B$4:$J$48,9,FALSE),"") ->  | AT46: =IFERROR(VLOOKUP(AT45,'P2'!$B$4:$J$48,9,FALSE),"") ->  | AU46: =IFERROR(VLOOKUP(AU45,'P2'!$B$4:$J$48,9,FALSE),"") ->  | AV46: =SUM(Q46:AU46) -> 0
B47: =B45+1 -> 18 | AV47: =COUNTA(Q47:AU47) -> 0 | AW47: =AV48 -> 0 | AX47: =IFERROR(ROUNDDOWN(AV48/$AT$3,1),"") -> 
Q48: =IFERROR(VLOOKUP(Q47,'P2'!$B$4:$J$48,9,FALSE),"") ->  | R48: =IFERROR(VLOOKUP(R47,'P2'!$B$4:$J$48,9,FALSE),"") ->  | S48: =IFERROR(VLOOKUP(S47,'P2'!$B$4:$J$48,9,FALSE),"") ->  | T48: =IFERROR(VLOOKUP(T47,'P2'!$B$4:$J$48,9,FALSE),"") ->  | U48: =IFERROR(VLOOKUP(U47,'P2'!$B$4:$J$48,9,FALSE),"") ->  | V48: =IFERROR(VLOOKUP(V47,'P2'!$B$4:$J$48,9,FALSE),"") ->  | W48: =IFERROR(VLOOKUP(W47,'P2'!$B$4:$J$48,9,FALSE),"") ->  | X48: =IFERROR(VLOOKUP(X47,'P2'!$B$4:$J$48,9,FALSE),"") ->  | Y48: =IFERROR(VLOOKUP(Y47,'P2'!$B$4:$J$48,9,FALSE),"") ->  | Z48: =IFERROR(VLOOKUP(Z47,'P2'!$B$4:$J$48,9,FALSE),"") ->  | AA48: =IFERROR(VLOOKUP(AA47,'P2'!$B$4:$J$48,9,FALSE),"") ->  | AB48: =IFERROR(VLOOKUP(AB47,'P2'!$B$4:$J$48,9,FALSE),"") ->  | AC48: =IFERROR(VLOOKUP(AC47,'P2'!$B$4:$J$48,9,FALSE),"") ->  | AD48: =IFERROR(VLOOKUP(AD47,'P2'!$B$4:$J$48,9,FALSE),"") ->  | AE48: =IFERROR(VLOOKUP(AE47,'P2'!$B$4:$J$48,9,FALSE),"") ->  | AF48: =IFERROR(VLOOKUP(AF47,'P2'!$B$4:$J$48,9,FALSE),"") ->  | AG48: =IFERROR(VLOOKUP(AG47,'P2'!$B$4:$J$48,9,FALSE),"") ->  | AH48: =IFERROR(VLOOKUP(AH47,'P2'!$B$4:$J$48,9,FALSE),"") ->  | AI48: =IFERROR(VLOOKUP(AI47,'P2'!$B$4:$J$48,9,FALSE),"") ->  | AJ48: =IFERROR(VLOOKUP(AJ47,'P2'!$B$4:$J$48,9,FALSE),"") ->  | AK48: =IFERROR(VLOOKUP(AK47,'P2'!$B$4:$J$48,9,FALSE),"") ->  | AL48: =IFERROR(VLOOKUP(AL47,'P2'!$B$4:$J$48,9,FALSE),"") ->  | AM48: =IFERROR(VLOOKUP(AM47,'P2'!$B$4:$J$48,9,FALSE),"") ->  | AN48: =IFERROR(VLOOKUP(AN47,'P2'!$B$4:$J$48,9,FALSE),"") ->  | AO48: =IFERROR(VLOOKUP(AO47,'P2'!$B$4:$J$48,9,FALSE),"") ->  | AP48: =IFERROR(VLOOKUP(AP47,'P2'!$B$4:$J$48,9,FALSE),"") ->  | AQ48: =IFERROR(VLOOKUP(AQ47,'P2'!$B$4:$J$48,9,FALSE),"") ->  | AR48: =IFERROR(VLOOKUP(AR47,'P2'!$B$4:$J$48,9,FALSE),"") ->  | AS48: =IFERROR(VLOOKUP(AS47,'P2'!$B$4:$J$48,9,FALSE),"") ->  | AT48: =IFERROR(VLOOKUP(AT47,'P2'!$B$4:$J$48,9,FALSE),"") ->  | AU48: =IFERROR(VLOOKUP(AU47,'P2'!$B$4:$J$48,9,FALSE),"") ->  | AV48: =SUM(Q48:AU48) -> 0
B51: ※P2で作成したシフト記号を記載すること。なお、公休の場合は空欄とすること。
B52: ※管理者が他の職種と兼務する場合は、職種ごとに分けて記載すること。
B54: (2) 勤務実績 （直近3か月分の実績） | S54: （ | T54: =$T$3 -> 令和 7 | V54: 年 | W54: =$W$3 -> 5 | X54: 月分実績 | Z54: ） | AX54: ="2 / "&COUNTA(C$7,C$57,C$106,C$155,C$204) -> 2 / 1
C55: 職 種 | I55: 氏 名 | N55: 勤務 形態 | Q55: =Q$5 -> 2025-05-01 | R55: =R$5 -> 2025-05-02 | S55: 2025-05-03 | T55: 2025-05-04 | U55: 2025-05-05 | V55: 2025-05-06 | W55: 2025-05-07 | X55: 2025-05-08 | Y55: 2025-05-09 | Z55: 2025-05-10 | AA55: 2025-05-11 | AB55: 2025-05-12 | AC55: 2025-05-13 | AD55: 2025-05-14 | AE55: 2025-05-15 | AF55: 2025-05-16 | AG55: 2025-05-17 | AH55: 2025-05-18 | AI55: 2025-05-19 | AJ55: 2025-05-20 | AK55: 2025-05-21 | AL55: 2025-05-22 | AM55: 2025-05-23 | AN55: 2025-05-24 | AO55: 2025-05-25 | AP55: 2025-05-26 | AQ55: 2025-05-27 | AR55: 2025-05-28 | AS55: 2025-05-29 | AT55: 2025-05-30 | AU55: 2025-05-31 | AV55: 勤務日数 | AX55: 常勤換算
Q56: =Q$6 -> 木 | R56: =R$6 -> 金 | S56: 土 | T56: 日 | U56: 月 | V56: 火 | W56: 水 | X56: 木 | Y56: 金 | Z56: 土 | AA56: 日 | AB56: 月 | AC56: 火 | AD56: 水 | AE56: 木 | AF56: 金 | AG56: 土 | AH56: 日 | AI56: 月 | AJ56: 火 | AK56: 水 | AL56: 木 | AM56: 金 | AN56: 土 | AO56: 日 | AP56: 月 | AQ56: 火 | AR56: 水 | AS56: 木 | AT56: 金 | AU56: 土 | AV56: 勤務時間
B57: =B47+1 -> 19 | AV57: =COUNTA(Q57:AU57) -> 0 | AW57: =AV58 -> 0 | AX57: =IFERROR(ROUNDDOWN(AV58/$AT$3,1),"") -> 
Q58: =IFERROR(VLOOKUP(Q57,'P2'!$B$4:$J$48,9,FALSE),"") ->  | R58: =IFERROR(VLOOKUP(R57,'P2'!$B$4:$J$48,9,FALSE),"") ->  | S58: =IFERROR(VLOOKUP(S57,'P2'!$B$4:$J$48,9,FALSE),"") ->  | T58: =IFERROR(VLOOKUP(T57,'P2'!$B$4:$J$48,9,FALSE),"") ->  | U58: =IFERROR(VLOOKUP(U57,'P2'!$B$4:$J$48,9,FALSE),"") ->  | V58: =IFERROR(VLOOKUP(V57,'P2'!$B$4:$J$48,9,FALSE),"") ->  | W58: =IFERROR(VLOOKUP(W57,'P2'!$B$4:$J$48,9,FALSE),"") ->  | X58: =IFERROR(VLOOKUP(X57,'P2'!$B$4:$J$48,9,FALSE),"") ->  | Y58: =IFERROR(VLOOKUP(Y57,'P2'!$B$4:$J$48,9,FALSE),"") ->  | Z58: =IFERROR(VLOOKUP(Z57,'P2'!$B$4:$J$48,9,FALSE),"") ->  | AA58: =IFERROR(VLOOKUP(AA57,'P2'!$B$4:$J$48,9,FALSE),"") ->  | AB58: =IFERROR(VLOOKUP(AB57,'P2'!$B$4:$J$48,9,FALSE),"") ->  | AC58: =IFERROR(VLOOKUP(AC57,'P2'!$B$4:$J$48,9,FALSE),"") ->  | AD58: =IFERROR(VLOOKUP(AD57,'P2'!$B$4:$J$48,9,FALSE),"") ->  | AE58: =IFERROR(VLOOKUP(AE57,'P2'!$B$4:$J$48,9,FALSE),"") ->  | AF58: =IFERROR(VLOOKUP(AF57,'P2'!$B$4:$J$48,9,FALSE),"") ->  | AG58: =IFERROR(VLOOKUP(AG57,'P2'!$B$4:$J$48,9,FALSE),"") ->  | AH58: =IFERROR(VLOOKUP(AH57,'P2'!$B$4:$J$48,9,FALSE),"") ->  | AI58: =IFERROR(VLOOKUP(AI57,'P2'!$B$4:$J$48,9,FALSE),"") ->  | AJ58: =IFERROR(VLOOKUP(AJ57,'P2'!$B$4:$J$48,9,FALSE),"") ->  | AK58: =IFERROR(VLOOKUP(AK57,'P2'!$B$4:$J$48,9,FALSE),"") ->  | AL58: =IFERROR(VLOOKUP(AL57,'P2'!$B$4:$J$48,9,FALSE),"") ->  | AM58: =IFERROR(VLOOKUP(AM57,'P2'!$B$4:$J$48,9,FALSE),"") ->  | AN58: =IFERROR(VLOOKUP(AN57,'P2'!$B$4:$J$48,9,FALSE),"") ->  | AO58: =IFERROR(VLOOKUP(AO57,'P2'!$B$4:$J$48,9,FALSE),"") ->  | AP58: =IFERROR(VLOOKUP(AP57,'P2'!$B$4:$J$48,9,FALSE),"") ->  | AQ58: =IFERROR(VLOOKUP(AQ57,'P2'!$B$4:$J$48,9,FALSE),"") ->  | AR58: =IFERROR(VLOOKUP(AR57,'P2'!$B$4:$J$48,9,FALSE),"") ->  | AS58: =IFERROR(VLOOKUP(AS57,'P2'!$B$4:$J$48,9,FALSE),"") ->  | AT58: =IFERROR(VLOOKUP(AT57,'P2'!$B$4:$J$48,9,FALSE),"") ->  | AU58: =IFERROR(VLOOKUP(AU57,'P2'!$B$4:$J$48,9,FALSE),"") ->  | AV58: =SUM(Q58:AU58) -> 0
B59: =B57+1 -> 20 | AV59: =COUNTA(Q59:AU59) -> 0 | AW59: =AV60 -> 0 | AX59: =IFERROR(ROUNDDOWN(AV60/$AT$3,1),"") -> 
Q60: =IFERROR(VLOOKUP(Q59,'P2'!$B$4:$J$48,9,FALSE),"") ->  | R60: =IFERROR(VLOOKUP(R59,'P2'!$B$4:$J$48,9,FALSE),"") ->  | S60: =IFERROR(VLOOKUP(S59,'P2'!$B$4:$J$48,9,FALSE),"") ->  | T60: =IFERROR(VLOOKUP(T59,'P2'!$B$4:$J$48,9,FALSE),"") ->  | U60: =IFERROR(VLOOKUP(U59,'P2'!$B$4:$J$48,9,FALSE),"") ->  | V60: =IFERROR(VLOOKUP(V59,'P2'!$B$4:$J$48,9,FALSE),"") ->  | W60: =IFERROR(VLOOKUP(W59,'P2'!$B$4:$J$48,9,FALSE),"") ->  | X60: =IFERROR(VLOOKUP(X59,'P2'!$B$4:$J$48,9,FALSE),"") ->  | Y60: =IFERROR(VLOOKUP(Y59,'P2'!$B$4:$J$48,9,FALSE),"") ->  | Z60: =IFERROR(VLOOKUP(Z59,'P2'!$B$4:$J$48,9,FALSE),"") ->  | AA60: =IFERROR(VLOOKUP(AA59,'P2'!$B$4:$J$48,9,FALSE),"") ->  | AB60: =IFERROR(VLOOKUP(AB59,'P2'!$B$4:$J$48,9,FALSE),"") ->  | AC60: =IFERROR(VLOOKUP(AC59,'P2'!$B$4:$J$48,9,FALSE),"") ->  | AD60: =IFERROR(VLOOKUP(AD59,'P2'!$B$4:$J$48,9,FALSE),"") ->  | AE60: =IFERROR(VLOOKUP(AE59,'P2'!$B$4:$J$48,9,FALSE),"") ->  | AF60: =IFERROR(VLOOKUP(AF59,'P2'!$B$4:$J$48,9,FALSE),"") ->  | AG60: =IFERROR(VLOOKUP(AG59,'P2'!$B$4:$J$48,9,FALSE),"") ->  | AH60: =IFERROR(VLOOKUP(AH59,'P2'!$B$4:$J$48,9,FALSE),"") ->  | AI60: =IFERROR(VLOOKUP(AI59,'P2'!$B$4:$J$48,9,FALSE),"") ->  | AJ60: =IFERROR(VLOOKUP(AJ59,'P2'!$B$4:$J$48,9,FALSE),"") ->  | AK60: =IFERROR(VLOOKUP(AK59,'P2'!$B$4:$J$48,9,FALSE),"") ->  | AL60: =IFERROR(VLOOKUP(AL59,'P2'!$B$4:$J$48,9,FALSE),"") ->  | AM60: =IFERROR(VLOOKUP(AM59,'P2'!$B$4:$J$48,9,FALSE),"") ->  | AN60: =IFERROR(VLOOKUP(AN59,'P2'!$B$4:$J$48,9,FALSE),"") ->  | AO60: =IFERROR(VLOOKUP(AO59,'P2'!$B$4:$J$48,9,FALSE),"") ->  | AP60: =IFERROR(VLOOKUP(AP59,'P2'!$B$4:$J$48,9,FALSE),"") ->  | AQ60: =IFERROR(VLOOKUP(AQ59,'P2'!$B$4:$J$48,9,FALSE),"") ->  | AR60: =IFERROR(VLOOKUP(AR59,'P2'!$B$4:$J$48,9,FALSE),"") ->  | AS60: =IFERROR(VLOOKUP(AS59,'P2'!$B$4:$J$48,9,FALSE),"") ->  | AT60: =IFERROR(VLOOKUP(AT59,'P2'!$B$4:$J$48,9,FALSE),"") ->  | AU60: =IFERROR(VLOOKUP(AU59,'P2'!$B$4:$J$48,9,FALSE),"") ->  | AV60: =SUM(Q60:AU60) -> 0
B61: 21 | AV61: =COUNTA(Q61:AU61) -> 0 | AW61: =AV62 -> 0 | AX61: =IFERROR(ROUNDDOWN(AV62/$AT$3,1),"") -> 
Q62: =IFERROR(VLOOKUP(Q61,'P2'!$B$4:$J$48,9,FALSE),"") ->  | R62: =IFERROR(VLOOKUP(R61,'P2'!$B$4:$J$48,9,FALSE),"") ->  | S62: =IFERROR(VLOOKUP(S61,'P2'!$B$4:$J$48,9,FALSE),"") ->  | T62: =IFERROR(VLOOKUP(T61,'P2'!$B$4:$J$48,9,FALSE),"") ->  | U62: =IFERROR(VLOOKUP(U61,'P2'!$B$4:$J$48,9,FALSE),"") ->  | V62: =IFERROR(VLOOKUP(V61,'P2'!$B$4:$J$48,9,FALSE),"") ->  | W62: =IFERROR(VLOOKUP(W61,'P2'!$B$4:$J$48,9,FALSE),"") ->  | X62: =IFERROR(VLOOKUP(X61,'P2'!$B$4:$J$48,9,FALSE),"") ->  | Y62: =IFERROR(VLOOKUP(Y61,'P2'!$B$4:$J$48,9,FALSE),"") ->  | Z62: =IFERROR(VLOOKUP(Z61,'P2'!$B$4:$J$48,9,FALSE),"") ->  | AA62: =IFERROR(VLOOKUP(AA61,'P2'!$B$4:$J$48,9,FALSE),"") ->  | AB62: =IFERROR(VLOOKUP(AB61,'P2'!$B$4:$J$48,9,FALSE),"") ->  | AC62: =IFERROR(VLOOKUP(AC61,'P2'!$B$4:$J$48,9,FALSE),"") ->  | AD62: =IFERROR(VLOOKUP(AD61,'P2'!$B$4:$J$48,9,FALSE),"") ->  | AE62: =IFERROR(VLOOKUP(AE61,'P2'!$B$4:$J$48,9,FALSE),"") ->  | AF62: =IFERROR(VLOOKUP(AF61,'P2'!$B$4:$J$48,9,FALSE),"") ->  | AG62: =IFERROR(VLOOKUP(AG61,'P2'!$B$4:$J$48,9,FALSE),"") ->  | AH62: =IFERROR(VLOOKUP(AH61,'P2'!$B$4:$J$48,9,FALSE),"") ->  | AI62: =IFERROR(VLOOKUP(AI61,'P2'!$B$4:$J$48,9,FALSE),"") ->  | AJ62: =IFERROR(VLOOKUP(AJ61,'P2'!$B$4:$J$48,9,FALSE),"") ->  | AK62: =IFERROR(VLOOKUP(AK61,'P2'!$B$4:$J$48,9,FALSE),"") ->  | AL62: =IFERROR(VLOOKUP(AL61,'P2'!$B$4:$J$48,9,FALSE),"") ->  | AM62: =IFERROR(VLOOKUP(AM61,'P2'!$B$4:$J$48,9,FALSE),"") ->  | AN62: =IFERROR(VLOOKUP(AN61,'P2'!$B$4:$J$48,9,FALSE),"") ->  | AO62: =IFERROR(VLOOKUP(AO61,'P2'!$B$4:$J$48,9,FALSE),"") ->  | AP62: =IFERROR(VLOOKUP(AP61,'P2'!$B$4:$J$48,9,FALSE),"") ->  | AQ62: =IFERROR(VLOOKUP(AQ61,'P2'!$B$4:$J$48,9,FALSE),"") ->  | AR62: =IFERROR(VLOOKUP(AR61,'P2'!$B$4:$J$48,9,FALSE),"") ->  | AS62: =IFERROR(VLOOKUP(AS61,'P2'!$B$4:$J$48,9,FALSE),"") ->  | AT62: =IFERROR(VLOOKUP(AT61,'P2'!$B$4:$J$48,9,FALSE),"") ->  | AU62: =IFERROR(VLOOKUP(AU61,'P2'!$B$4:$J$48,9,FALSE),"") ->  | AV62: =SUM(Q62:AU62) -> 0
B63: 22 | AV63: =COUNTA(Q63:AU63) -> 0 | AW63: =AV64 -> 0 | AX63: =IFERROR(ROUNDDOWN(AV64/$AT$3,1),"") -> 
Q64: =IFERROR(VLOOKUP(Q63,'P2'!$B$4:$J$48,9,FALSE),"") ->  | R64: =IFERROR(VLOOKUP(R63,'P2'!$B$4:$J$48,9,FALSE),"") ->  | S64: =IFERROR(VLOOKUP(S63,'P2'!$B$4:$J$48,9,FALSE),"") ->  | T64: =IFERROR(VLOOKUP(T63,'P2'!$B$4:$J$48,9,FALSE),"") ->  | U64: =IFERROR(VLOOKUP(U63,'P2'!$B$4:$J$48,9,FALSE),"") ->  | V64: =IFERROR(VLOOKUP(V63,'P2'!$B$4:$J$48,9,FALSE),"") ->  | W64: =IFERROR(VLOOKUP(W63,'P2'!$B$4:$J$48,9,FALSE),"") ->  | X64: =IFERROR(VLOOKUP(X63,'P2'!$B$4:$J$48,9,FALSE),"") ->  | Y64: =IFERROR(VLOOKUP(Y63,'P2'!$B$4:$J$48,9,FALSE),"") ->  | Z64: =IFERROR(VLOOKUP(Z63,'P2'!$B$4:$J$48,9,FALSE),"") ->  | AA64: =IFERROR(VLOOKUP(AA63,'P2'!$B$4:$J$48,9,FALSE),"") ->  | AB64: =IFERROR(VLOOKUP(AB63,'P2'!$B$4:$J$48,9,FALSE),"") ->  | AC64: =IFERROR(VLOOKUP(AC63,'P2'!$B$4:$J$48,9,FALSE),"") ->  | AD64: =IFERROR(VLOOKUP(AD63,'P2'!$B$4:$J$48,9,FALSE),"") ->  | AE64: =IFERROR(VLOOKUP(AE63,'P2'!$B$4:$J$48,9,FALSE),"") ->  | AF64: =IFERROR(VLOOKUP(AF63,'P2'!$B$4:$J$48,9,FALSE),"") ->  | AG64: =IFERROR(VLOOKUP(AG63,'P2'!$B$4:$J$48,9,FALSE),"") ->  | AH64: =IFERROR(VLOOKUP(AH63,'P2'!$B$4:$J$48,9,FALSE),"") ->  | AI64: =IFERROR(VLOOKUP(AI63,'P2'!$B$4:$J$48,9,FALSE),"") ->  | AJ64: =IFERROR(VLOOKUP(AJ63,'P2'!$B$4:$J$48,9,FALSE),"") ->  | AK64: =IFERROR(VLOOKUP(AK63,'P2'!$B$4:$J$48,9,FALSE),"") ->  | AL64: =IFERROR(VLOOKUP(AL63,'P2'!$B$4:$J$48,9,FALSE),"") ->  | AM64: =IFERROR(VLOOKUP(AM63,'P2'!$B$4:$J$48,9,FALSE),"") ->  | AN64: =IFERROR(VLOOKUP(AN63,'P2'!$B$4:$J$48,9,FALSE),"") ->  | AO64: =IFERROR(VLOOKUP(AO63,'P2'!$B$4:$J$48,9,FALSE),"") ->  | AP64: =IFERROR(VLOOKUP(AP63,'P2'!$B$4:$J$48,9,FALSE),"") ->  | AQ64: =IFERROR(VLOOKUP(AQ63,'P2'!$B$4:$J$48,9,FALSE),"") ->  | AR64: =IFERROR(VLOOKUP(AR63,'P2'!$B$4:$J$48,9,FALSE),"") ->  | AS64: =IFERROR(VLOOKUP(AS63,'P2'!$B$4:$J$48,9,FALSE),"") ->  | AT64: =IFERROR(VLOOKUP(AT63,'P2'!$B$4:$J$48,9,FALSE),"") ->  | AU64: =IFERROR(VLOOKUP(AU63,'P2'!$B$4:$J$48,9,FALSE),"") ->  | AV64: =SUM(Q64:AU64) -> 0
B65: 23 | AV65: =COUNTA(Q65:AU65) -> 0 | AW65: =AV66 -> 0 | AX65: =IFERROR(ROUNDDOWN(AV66/$AT$3,1),"") -> 
Q66: =IFERROR(VLOOKUP(Q65,'P2'!$B$4:$J$48,9,FALSE),"") ->  | R66: =IFERROR(VLOOKUP(R65,'P2'!$B$4:$J$48,9,FALSE),"") ->  | S66: =IFERROR(VLOOKUP(S65,'P2'!$B$4:$J$48,9,FALSE),"") ->  | T66: =IFERROR(VLOOKUP(T65,'P2'!$B$4:$J$48,9,FALSE),"") ->  | U66: =IFERROR(VLOOKUP(U65,'P2'!$B$4:$J$48,9,FALSE),"") ->  | V66: =IFERROR(VLOOKUP(V65,'P2'!$B$4:$J$48,9,FALSE),"") ->  | W66: =IFERROR(VLOOKUP(W65,'P2'!$B$4:$J$48,9,FALSE),"") ->  | X66: =IFERROR(VLOOKUP(X65,'P2'!$B$4:$J$48,9,FALSE),"") ->  | Y66: =IFERROR(VLOOKUP(Y65,'P2'!$B$4:$J$48,9,FALSE),"") ->  | Z66: =IFERROR(VLOOKUP(Z65,'P2'!$B$4:$J$48,9,FALSE),"") ->  | AA66: =IFERROR(VLOOKUP(AA65,'P2'!$B$4:$J$48,9,FALSE),"") ->  | AB66: =IFERROR(VLOOKUP(AB65,'P2'!$B$4:$J$48,9,FALSE),"") ->  | AC66: =IFERROR(VLOOKUP(AC65,'P2'!$B$4:$J$48,9,FALSE),"") ->  | AD66: =IFERROR(VLOOKUP(AD65,'P2'!$B$4:$J$48,9,FALSE),"") ->  | AE66: =IFERROR(VLOOKUP(AE65,'P2'!$B$4:$J$48,9,FALSE),"") ->  | AF66: =IFERROR(VLOOKUP(AF65,'P2'!$B$4:$J$48,9,FALSE),"") ->  | AG66: =IFERROR(VLOOKUP(AG65,'P2'!$B$4:$J$48,9,FALSE),"") ->  | AH66: =IFERROR(VLOOKUP(AH65,'P2'!$B$4:$J$48,9,FALSE),"") ->  | AI66: =IFERROR(VLOOKUP(AI65,'P2'!$B$4:$J$48,9,FALSE),"") ->  | AJ66: =IFERROR(VLOOKUP(AJ65,'P2'!$B$4:$J$48,9,FALSE),"") ->  | AK66: =IFERROR(VLOOKUP(AK65,'P2'!$B$4:$J$48,9,FALSE),"") ->  | AL66: =IFERROR(VLOOKUP(AL65,'P2'!$B$4:$J$48,9,FALSE),"") ->  | AM66: =IFERROR(VLOOKUP(AM65,'P2'!$B$4:$J$48,9,FALSE),"") ->  | AN66: =IFERROR(VLOOKUP(AN65,'P2'!$B$4:$J$48,9,FALSE),"") ->  | AO66: =IFERROR(VLOOKUP(AO65,'P2'!$B$4:$J$48,9,FALSE),"") ->  | AP66: =IFERROR(VLOOKUP(AP65,'P2'!$B$4:$J$48,9,FALSE),"") ->  | AQ66: =IFERROR(VLOOKUP(AQ65,'P2'!$B$4:$J$48,9,FALSE),"") ->  | AR66: =IFERROR(VLOOKUP(AR65,'P2'!$B$4:$J$48,9,FALSE),"") ->  | AS66: =IFERROR(VLOOKUP(AS65,'P2'!$B$4:$J$48,9,FALSE),"") ->  | AT66: =IFERROR(VLOOKUP(AT65,'P2'!$B$4:$J$48,9,FALSE),"") ->  | AU66: =IFERROR(VLOOKUP(AU65,'P2'!$B$4:$J$48,9,FALSE),"") ->  | AV66: =SUM(Q66:AU66) -> 0
B67: 24 | AV67: =COUNTA(Q67:AU67) -> 0 | AW67: =AV68 -> 0 | AX67: =IFERROR(ROUNDDOWN(AV68/$AT$3,1),"") -> 
Q68: =IFERROR(VLOOKUP(Q67,'P2'!$B$4:$J$48,9,FALSE),"") ->  | R68: =IFERROR(VLOOKUP(R67,'P2'!$B$4:$J$48,9,FALSE),"") ->  | S68: =IFERROR(VLOOKUP(S67,'P2'!$B$4:$J$48,9,FALSE),"") ->  | T68: =IFERROR(VLOOKUP(T67,'P2'!$B$4:$J$48,9,FALSE),"") ->  | U68: =IFERROR(VLOOKUP(U67,'P2'!$B$4:$J$48,9,FALSE),"") ->  | V68: =IFERROR(VLOOKUP(V67,'P2'!$B$4:$J$48,9,FALSE),"") ->  | W68: =IFERROR(VLOOKUP(W67,'P2'!$B$4:$J$48,9,FALSE),"") ->  | X68: =IFERROR(VLOOKUP(X67,'P2'!$B$4:$J$48,9,FALSE),"") ->  | Y68: =IFERROR(VLOOKUP(Y67,'P2'!$B$4:$J$48,9,FALSE),"") ->  | Z68: =IFERROR(VLOOKUP(Z67,'P2'!$B$4:$J$48,9,FALSE),"") ->  | AA68: =IFERROR(VLOOKUP(AA67,'P2'!$B$4:$J$48,9,FALSE),"") ->  | AB68: =IFERROR(VLOOKUP(AB67,'P2'!$B$4:$J$48,9,FALSE),"") ->  | AC68: =IFERROR(VLOOKUP(AC67,'P2'!$B$4:$J$48,9,FALSE),"") ->  | AD68: =IFERROR(VLOOKUP(AD67,'P2'!$B$4:$J$48,9,FALSE),"") ->  | AE68: =IFERROR(VLOOKUP(AE67,'P2'!$B$4:$J$48,9,FALSE),"") ->  | AF68: =IFERROR(VLOOKUP(AF67,'P2'!$B$4:$J$48,9,FALSE),"") ->  | AG68: =IFERROR(VLOOKUP(AG67,'P2'!$B$4:$J$48,9,FALSE),"") ->  | AH68: =IFERROR(VLOOKUP(AH67,'P2'!$B$4:$J$48,9,FALSE),"") ->  | AI68: =IFERROR(VLOOKUP(AI67,'P2'!$B$4:$J$48,9,FALSE),"") ->  | AJ68: =IFERROR(VLOOKUP(AJ67,'P2'!$B$4:$J$48,9,FALSE),"") ->  | AK68: =IFERROR(VLOOKUP(AK67,'P2'!$B$4:$J$48,9,FALSE),"") ->  | AL68: =IFERROR(VLOOKUP(AL67,'P2'!$B$4:$J$48,9,FALSE),"") ->  | AM68: =IFERROR(VLOOKUP(AM67,'P2'!$B$4:$J$48,9,FALSE),"") ->  | AN68: =IFERROR(VLOOKUP(AN67,'P2'!$B$4:$J$48,9,FALSE),"") ->  | AO68: =IFERROR(VLOOKUP(AO67,'P2'!$B$4:$J$48,9,FALSE),"") ->  | AP68: =IFERROR(VLOOKUP(AP67,'P2'!$B$4:$J$48,9,FALSE),"") ->  | AQ68: =IFERROR(VLOOKUP(AQ67,'P2'!$B$4:$J$48,9,FALSE),"") ->  | AR68: =IFERROR(VLOOKUP(AR67,'P2'!$B$4:$J$48,9,FALSE),"") ->  | AS68: =IFERROR(VLOOKUP(AS67,'P2'!$B$4:$J$48,9,FALSE),"") ->  | AT68: =IFERROR(VLOOKUP(AT67,'P2'!$B$4:$J$48,9,FALSE),"") ->  | AU68: =IFERROR(VLOOKUP(AU67,'P2'!$B$4:$J$48,9,FALSE),"") ->  | AV68: =SUM(Q68:AU68) -> 0
B69: 25 | AV69: =COUNTA(Q69:AU69) -> 0 | AW69: =AV70 -> 0 | AX69: =IFERROR(ROUNDDOWN(AV70/$AT$3,1),"") -> 
Q70: =IFERROR(VLOOKUP(Q69,'P2'!$B$4:$J$48,9,FALSE),"") ->  | R70: =IFERROR(VLOOKUP(R69,'P2'!$B$4:$J$48,9,FALSE),"") ->  | S70: =IFERROR(VLOOKUP(S69,'P2'!$B$4:$J$48,9,FALSE),"") ->  | T70: =IFERROR(VLOOKUP(T69,'P2'!$B$4:$J$48,9,FALSE),"") ->  | U70: =IFERROR(VLOOKUP(U69,'P2'!$B$4:$J$48,9,FALSE),"") ->  | V70: =IFERROR(VLOOKUP(V69,'P2'!$B$4:$J$48,9,FALSE),"") ->  | W70: =IFERROR(VLOOKUP(W69,'P2'!$B$4:$J$48,9,FALSE),"") ->  | X70: =IFERROR(VLOOKUP(X69,'P2'!$B$4:$J$48,9,FALSE),"") ->  | Y70: =IFERROR(VLOOKUP(Y69,'P2'!$B$4:$J$48,9,FALSE),"") ->  | Z70: =IFERROR(VLOOKUP(Z69,'P2'!$B$4:$J$48,9,FALSE),"") ->  | AA70: =IFERROR(VLOOKUP(AA69,'P2'!$B$4:$J$48,9,FALSE),"") ->  | AB70: =IFERROR(VLOOKUP(AB69,'P2'!$B$4:$J$48,9,FALSE),"") ->  | AC70: =IFERROR(VLOOKUP(AC69,'P2'!$B$4:$J$48,9,FALSE),"") ->  | AD70: =IFERROR(VLOOKUP(AD69,'P2'!$B$4:$J$48,9,FALSE),"") ->  | AE70: =IFERROR(VLOOKUP(AE69,'P2'!$B$4:$J$48,9,FALSE),"") ->  | AF70: =IFERROR(VLOOKUP(AF69,'P2'!$B$4:$J$48,9,FALSE),"") ->  | AG70: =IFERROR(VLOOKUP(AG69,'P2'!$B$4:$J$48,9,FALSE),"") ->  | AH70: =IFERROR(VLOOKUP(AH69,'P2'!$B$4:$J$48,9,FALSE),"") ->  | AI70: =IFERROR(VLOOKUP(AI69,'P2'!$B$4:$J$48,9,FALSE),"") ->  | AJ70: =IFERROR(VLOOKUP(AJ69,'P2'!$B$4:$J$48,9,FALSE),"") ->  | AK70: =IFERROR(VLOOKUP(AK69,'P2'!$B$4:$J$48,9,FALSE),"") ->  | AL70: =IFERROR(VLOOKUP(AL69,'P2'!$B$4:$J$48,9,FALSE),"") ->  | AM70: =IFERROR(VLOOKUP(AM69,'P2'!$B$4:$J$48,9,FALSE),"") ->  | AN70: =IFERROR(VLOOKUP(AN69,'P2'!$B$4:$J$48,9,FALSE),"") ->  | AO70: =IFERROR(VLOOKUP(AO69,'P2'!$B$4:$J$48,9,FALSE),"") ->  | AP70: =IFERROR(VLOOKUP(AP69,'P2'!$B$4:$J$48,9,FALSE),"") ->  | AQ70: =IFERROR(VLOOKUP(AQ69,'P2'!$B$4:$J$48,9,FALSE),"") ->  | AR70: =IFERROR(VLOOKUP(AR69,'P2'!$B$4:$J$48,9,FALSE),"") ->  | AS70: =IFERROR(VLOOKUP(AS69,'P2'!$B$4:$J$48,9,FALSE),"") ->  | AT70: =IFERROR(VLOOKUP(AT69,'P2'!$B$4:$J$48,9,FALSE),"") ->  | AU70: =IFERROR(VLOOKUP(AU69,'P2'!$B$4:$J$48,9,FALSE),"") ->  | AV70: =SUM(Q70:AU70) -> 0
B71: 26 | AV71: =COUNTA(Q71:AU71) -> 0 | AW71: =AV72 -> 0 | AX71: =IFERROR(ROUNDDOWN(AV72/$AT$3,1),"") -> 
Q72: =IFERROR(VLOOKUP(Q71,'P2'!$B$4:$J$48,9,FALSE),"") ->  | R72: =IFERROR(VLOOKUP(R71,'P2'!$B$4:$J$48,9,FALSE),"") ->  | S72: =IFERROR(VLOOKUP(S71,'P2'!$B$4:$J$48,9,FALSE),"") ->  | T72: =IFERROR(VLOOKUP(T71,'P2'!$B$4:$J$48,9,FALSE),"") ->  | U72: =IFERROR(VLOOKUP(U71,'P2'!$B$4:$J$48,9,FALSE),"") ->  | V72: =IFERROR(VLOOKUP(V71,'P2'!$B$4:$J$48,9,FALSE),"") ->  | W72: =IFERROR(VLOOKUP(W71,'P2'!$B$4:$J$48,9,FALSE),"") ->  | X72: =IFERROR(VLOOKUP(X71,'P2'!$B$4:$J$48,9,FALSE),"") ->  | Y72: =IFERROR(VLOOKUP(Y71,'P2'!$B$4:$J$48,9,FALSE),"") ->  | Z72: =IFERROR(VLOOKUP(Z71,'P2'!$B$4:$J$48,9,FALSE),"") ->  | AA72: =IFERROR(VLOOKUP(AA71,'P2'!$B$4:$J$48,9,FALSE),"") ->  | AB72: =IFERROR(VLOOKUP(AB71,'P2'!$B$4:$J$48,9,FALSE),"") ->  | AC72: =IFERROR(VLOOKUP(AC71,'P2'!$B$4:$J$48,9,FALSE),"") ->  | AD72: =IFERROR(VLOOKUP(AD71,'P2'!$B$4:$J$48,9,FALSE),"") ->  | AE72: =IFERROR(VLOOKUP(AE71,'P2'!$B$4:$J$48,9,FALSE),"") ->  | AF72: =IFERROR(VLOOKUP(AF71,'P2'!$B$4:$J$48,9,FALSE),"") ->  | AG72: =IFERROR(VLOOKUP(AG71,'P2'!$B$4:$J$48,9,FALSE),"") ->  | AH72: =IFERROR(VLOOKUP(AH71,'P2'!$B$4:$J$48,9,FALSE),"") ->  | AI72: =IFERROR(VLOOKUP(AI71,'P2'!$B$4:$J$48,9,FALSE),"") ->  | AJ72: =IFERROR(VLOOKUP(AJ71,'P2'!$B$4:$J$48,9,FALSE),"") ->  | AK72: =IFERROR(VLOOKUP(AK71,'P2'!$B$4:$J$48,9,FALSE),"") ->  | AL72: =IFERROR(VLOOKUP(AL71,'P2'!$B$4:$J$48,9,FALSE),"") ->  | AM72: =IFERROR(VLOOKUP(AM71,'P2'!$B$4:$J$48,9,FALSE),"") ->  | AN72: =IFERROR(VLOOKUP(AN71,'P2'!$B$4:$J$48,9,FALSE),"") ->  | AO72: =IFERROR(VLOOKUP(AO71,'P2'!$B$4:$J$48,9,FALSE),"") ->  | AP72: =IFERROR(VLOOKUP(AP71,'P2'!$B$4:$J$48,9,FALSE),"") ->  | AQ72: =IFERROR(VLOOKUP(AQ71,'P2'!$B$4:$J$48,9,FALSE),"") ->  | AR72: =IFERROR(VLOOKUP(AR71,'P2'!$B$4:$J$48,9,FALSE),"") ->  | AS72: =IFERROR(VLOOKUP(AS71,'P2'!$B$4:$J$48,9,FALSE),"") ->  | AT72: =IFERROR(VLOOKUP(AT71,'P2'!$B$4:$J$48,9,FALSE),"") ->  | AU72: =IFERROR(VLOOKUP(AU71,'P2'!$B$4:$J$48,9,FALSE),"") ->  | AV72: =SUM(Q72:AU72) -> 0
B73: 27 | AV73: =COUNTA(Q73:AU73) -> 0 | AW73: =AV74 -> 0 | AX73: =IFERROR(ROUNDDOWN(AV74/$AT$3,1),"") -> 
Q74: =IFERROR(VLOOKUP(Q73,'P2'!$B$4:$J$48,9,FALSE),"") ->  | R74: =IFERROR(VLOOKUP(R73,'P2'!$B$4:$J$48,9,FALSE),"") ->  | S74: =IFERROR(VLOOKUP(S73,'P2'!$B$4:$J$48,9,FALSE),"") ->  | T74: =IFERROR(VLOOKUP(T73,'P2'!$B$4:$J$48,9,FALSE),"") ->  | U74: =IFERROR(VLOOKUP(U73,'P2'!$B$4:$J$48,9,FALSE),"") ->  | V74: =IFERROR(VLOOKUP(V73,'P2'!$B$4:$J$48,9,FALSE),"") ->  | W74: =IFERROR(VLOOKUP(W73,'P2'!$B$4:$J$48,9,FALSE),"") ->  | X74: =IFERROR(VLOOKUP(X73,'P2'!$B$4:$J$48,9,FALSE),"") ->  | Y74: =IFERROR(VLOOKUP(Y73,'P2'!$B$4:$J$48,9,FALSE),"") ->  | Z74: =IFERROR(VLOOKUP(Z73,'P2'!$B$4:$J$48,9,FALSE),"") ->  | AA74: =IFERROR(VLOOKUP(AA73,'P2'!$B$4:$J$48,9,FALSE),"") ->  | AB74: =IFERROR(VLOOKUP(AB73,'P2'!$B$4:$J$48,9,FALSE),"") ->  | AC74: =IFERROR(VLOOKUP(AC73,'P2'!$B$4:$J$48,9,FALSE),"") ->  | AD74: =IFERROR(VLOOKUP(AD73,'P2'!$B$4:$J$48,9,FALSE),"") ->  | AE74: =IFERROR(VLOOKUP(AE73,'P2'!$B$4:$J$48,9,FALSE),"") ->  | AF74: =IFERROR(VLOOKUP(AF73,'P2'!$B$4:$J$48,9,FALSE),"") ->  | AG74: =IFERROR(VLOOKUP(AG73,'P2'!$B$4:$J$48,9,FALSE),"") ->  | AH74: =IFERROR(VLOOKUP(AH73,'P2'!$B$4:$J$48,9,FALSE),"") ->  | AI74: =IFERROR(VLOOKUP(AI73,'P2'!$B$4:$J$48,9,FALSE),"") ->  | AJ74: =IFERROR(VLOOKUP(AJ73,'P2'!$B$4:$J$48,9,FALSE),"") ->  | AK74: =IFERROR(VLOOKUP(AK73,'P2'!$B$4:$J$48,9,FALSE),"") ->  | AL74: =IFERROR(VLOOKUP(AL73,'P2'!$B$4:$J$48,9,FALSE),"") ->  | AM74: =IFERROR(VLOOKUP(AM73,'P2'!$B$4:$J$48,9,FALSE),"") ->  | AN74: =IFERROR(VLOOKUP(AN73,'P2'!$B$4:$J$48,9,FALSE),"") ->  | AO74: =IFERROR(VLOOKUP(AO73,'P2'!$B$4:$J$48,9,FALSE),"") ->  | AP74: =IFERROR(VLOOKUP(AP73,'P2'!$B$4:$J$48,9,FALSE),"") ->  | AQ74: =IFERROR(VLOOKUP(AQ73,'P2'!$B$4:$J$48,9,FALSE),"") ->  | AR74: =IFERROR(VLOOKUP(AR73,'P2'!$B$4:$J$48,9,FALSE),"") ->  | AS74: =IFERROR(VLOOKUP(AS73,'P2'!$B$4:$J$48,9,FALSE),"") ->  | AT74: =IFERROR(VLOOKUP(AT73,'P2'!$B$4:$J$48,9,FALSE),"") ->  | AU74: =IFERROR(VLOOKUP(AU73,'P2'!$B$4:$J$48,9,FALSE),"") ->  | AV74: =SUM(Q74:AU74) -> 0
B75: 28 | AV75: =COUNTA(Q75:AU75) -> 0 | AW75: =AV76 -> 0 | AX75: =IFERROR(ROUNDDOWN(AV76/$AT$3,1),"") -> 
Q76: =IFERROR(VLOOKUP(Q75,'P2'!$B$4:$J$48,9,FALSE),"") ->  | R76: =IFERROR(VLOOKUP(R75,'P2'!$B$4:$J$48,9,FALSE),"") ->  | S76: =IFERROR(VLOOKUP(S75,'P2'!$B$4:$J$48,9,FALSE),"") ->  | T76: =IFERROR(VLOOKUP(T75,'P2'!$B$4:$J$48,9,FALSE),"") ->  | U76: =IFERROR(VLOOKUP(U75,'P2'!$B$4:$J$48,9,FALSE),"") ->  | V76: =IFERROR(VLOOKUP(V75,'P2'!$B$4:$J$48,9,FALSE),"") ->  | W76: =IFERROR(VLOOKUP(W75,'P2'!$B$4:$J$48,9,FALSE),"") ->  | X76: =IFERROR(VLOOKUP(X75,'P2'!$B$4:$J$48,9,FALSE),"") ->  | Y76: =IFERROR(VLOOKUP(Y75,'P2'!$B$4:$J$48,9,FALSE),"") ->  | Z76: =IFERROR(VLOOKUP(Z75,'P2'!$B$4:$J$48,9,FALSE),"") ->  | AA76: =IFERROR(VLOOKUP(AA75,'P2'!$B$4:$J$48,9,FALSE),"") ->  | AB76: =IFERROR(VLOOKUP(AB75,'P2'!$B$4:$J$48,9,FALSE),"") ->  | AC76: =IFERROR(VLOOKUP(AC75,'P2'!$B$4:$J$48,9,FALSE),"") ->  | AD76: =IFERROR(VLOOKUP(AD75,'P2'!$B$4:$J$48,9,FALSE),"") ->  | AE76: =IFERROR(VLOOKUP(AE75,'P2'!$B$4:$J$48,9,FALSE),"") ->  | AF76: =IFERROR(VLOOKUP(AF75,'P2'!$B$4:$J$48,9,FALSE),"") ->  | AG76: =IFERROR(VLOOKUP(AG75,'P2'!$B$4:$J$48,9,FALSE),"") ->  | AH76: =IFERROR(VLOOKUP(AH75,'P2'!$B$4:$J$48,9,FALSE),"") ->  | AI76: =IFERROR(VLOOKUP(AI75,'P2'!$B$4:$J$48,9,FALSE),"") ->  | AJ76: =IFERROR(VLOOKUP(AJ75,'P2'!$B$4:$J$48,9,FALSE),"") ->  | AK76: =IFERROR(VLOOKUP(AK75,'P2'!$B$4:$J$48,9,FALSE),"") ->  | AL76: =IFERROR(VLOOKUP(AL75,'P2'!$B$4:$J$48,9,FALSE),"") ->  | AM76: =IFERROR(VLOOKUP(AM75,'P2'!$B$4:$J$48,9,FALSE),"") ->  | AN76: =IFERROR(VLOOKUP(AN75,'P2'!$B$4:$J$48,9,FALSE),"") ->  | AO76: =IFERROR(VLOOKUP(AO75,'P2'!$B$4:$J$48,9,FALSE),"") ->  | AP76: =IFERROR(VLOOKUP(AP75,'P2'!$B$4:$J$48,9,FALSE),"") ->  | AQ76: =IFERROR(VLOOKUP(AQ75,'P2'!$B$4:$J$48,9,FALSE),"") ->  | AR76: =IFERROR(VLOOKUP(AR75,'P2'!$B$4:$J$48,9,FALSE),"") ->  | AS76: =IFERROR(VLOOKUP(AS75,'P2'!$B$4:$J$48,9,FALSE),"") ->  | AT76: =IFERROR(VLOOKUP(AT75,'P2'!$B$4:$J$48,9,FALSE),"") ->  | AU76: =IFERROR(VLOOKUP(AU75,'P2'!$B$4:$J$48,9,FALSE),"") ->  | AV76: =SUM(Q76:AU76) -> 0
B77: 29 | AV77: =COUNTA(Q77:AU77) -> 0 | AW77: =AV78 -> 0 | AX77: =IFERROR(ROUNDDOWN(AV78/$AT$3,1),"") -> 
Q78: =IFERROR(VLOOKUP(Q77,'P2'!$B$4:$J$48,9,FALSE),"") ->  | R78: =IFERROR(VLOOKUP(R77,'P2'!$B$4:$J$48,9,FALSE),"") ->  | S78: =IFERROR(VLOOKUP(S77,'P2'!$B$4:$J$48,9,FALSE),"") ->  | T78: =IFERROR(VLOOKUP(T77,'P2'!$B$4:$J$48,9,FALSE),"") ->  | U78: =IFERROR(VLOOKUP(U77,'P2'!$B$4:$J$48,9,FALSE),"") ->  | V78: =IFERROR(VLOOKUP(V77,'P2'!$B$4:$J$48,9,FALSE),"") ->  | W78: =IFERROR(VLOOKUP(W77,'P2'!$B$4:$J$48,9,FALSE),"") ->  | X78: =IFERROR(VLOOKUP(X77,'P2'!$B$4:$J$48,9,FALSE),"") ->  | Y78: =IFERROR(VLOOKUP(Y77,'P2'!$B$4:$J$48,9,FALSE),"") ->  | Z78: =IFERROR(VLOOKUP(Z77,'P2'!$B$4:$J$48,9,FALSE),"") ->  | AA78: =IFERROR(VLOOKUP(AA77,'P2'!$B$4:$J$48,9,FALSE),"") ->  | AB78: =IFERROR(VLOOKUP(AB77,'P2'!$B$4:$J$48,9,FALSE),"") ->  | AC78: =IFERROR(VLOOKUP(AC77,'P2'!$B$4:$J$48,9,FALSE),"") ->  | AD78: =IFERROR(VLOOKUP(AD77,'P2'!$B$4:$J$48,9,FALSE),"") ->  | AE78: =IFERROR(VLOOKUP(AE77,'P2'!$B$4:$J$48,9,FALSE),"") ->  | AF78: =IFERROR(VLOOKUP(AF77,'P2'!$B$4:$J$48,9,FALSE),"") ->  | AG78: =IFERROR(VLOOKUP(AG77,'P2'!$B$4:$J$48,9,FALSE),"") ->  | AH78: =IFERROR(VLOOKUP(AH77,'P2'!$B$4:$J$48,9,FALSE),"") ->  | AI78: =IFERROR(VLOOKUP(AI77,'P2'!$B$4:$J$48,9,FALSE),"") ->  | AJ78: =IFERROR(VLOOKUP(AJ77,'P2'!$B$4:$J$48,9,FALSE),"") ->  | AK78: =IFERROR(VLOOKUP(AK77,'P2'!$B$4:$J$48,9,FALSE),"") ->  | AL78: =IFERROR(VLOOKUP(AL77,'P2'!$B$4:$J$48,9,FALSE),"") ->  | AM78: =IFERROR(VLOOKUP(AM77,'P2'!$B$4:$J$48,9,FALSE),"") ->  | AN78: =IFERROR(VLOOKUP(AN77,'P2'!$B$4:$J$48,9,FALSE),"") ->  | AO78: =IFERROR(VLOOKUP(AO77,'P2'!$B$4:$J$48,9,FALSE),"") ->  | AP78: =IFERROR(VLOOKUP(AP77,'P2'!$B$4:$J$48,9,FALSE),"") ->  | AQ78: =IFERROR(VLOOKUP(AQ77,'P2'!$B$4:$J$48,9,FALSE),"") ->  | AR78: =IFERROR(VLOOKUP(AR77,'P2'!$B$4:$J$48,9,FALSE),"") ->  | AS78: =IFERROR(VLOOKUP(AS77,'P2'!$B$4:$J$48,9,FALSE),"") ->  | AT78: =IFERROR(VLOOKUP(AT77,'P2'!$B$4:$J$48,9,FALSE),"") ->  | AU78: =IFERROR(VLOOKUP(AU77,'P2'!$B$4:$J$48,9,FALSE),"") ->  | AV78: =SUM(Q78:AU78) -> 0
B79: 30 | AV79: =COUNTA(Q79:AU79) -> 0 | AW79: =AV80 -> 0 | AX79: =IFERROR(ROUNDDOWN(AV80/$AT$3,1),"") -> 
Q80: =IFERROR(VLOOKUP(Q79,'P2'!$B$4:$J$48,9,FALSE),"") ->  | R80: =IFERROR(VLOOKUP(R79,'P2'!$B$4:$J$48,9,FALSE),"") ->  | S80: =IFERROR(VLOOKUP(S79,'P2'!$B$4:$J$48,9,FALSE),"") ->  | T80: =IFERROR(VLOOKUP(T79,'P2'!$B$4:$J$48,9,FALSE),"") ->  | U80: =IFERROR(VLOOKUP(U79,'P2'!$B$4:$J$48,9,FALSE),"") ->  | V80: =IFERROR(VLOOKUP(V79,'P2'!$B$4:$J$48,9,FALSE),"") ->  | W80: =IFERROR(VLOOKUP(W79,'P2'!$B$4:$J$48,9,FALSE),"") ->  | X80: =IFERROR(VLOOKUP(X79,'P2'!$B$4:$J$48,9,FALSE),"") ->  | Y80: =IFERROR(VLOOKUP(Y79,'P2'!$B$4:$J$48,9,FALSE),"") ->  | Z80: =IFERROR(VLOOKUP(Z79,'P2'!$B$4:$J$48,9,FALSE),"") ->  | AA80: =IFERROR(VLOOKUP(AA79,'P2'!$B$4:$J$48,9,FALSE),"") ->  | AB80: =IFERROR(VLOOKUP(AB79,'P2'!$B$4:$J$48,9,FALSE),"") ->  | AC80: =IFERROR(VLOOKUP(AC79,'P2'!$B$4:$J$48,9,FALSE),"") ->  | AD80: =IFERROR(VLOOKUP(AD79,'P2'!$B$4:$J$48,9,FALSE),"") ->  | AE80: =IFERROR(VLOOKUP(AE79,'P2'!$B$4:$J$48,9,FALSE),"") ->  | AF80: =IFERROR(VLOOKUP(AF79,'P2'!$B$4:$J$48,9,FALSE),"") ->  | AG80: =IFERROR(VLOOKUP(AG79,'P2'!$B$4:$J$48,9,FALSE),"") ->  | AH80: =IFERROR(VLOOKUP(AH79,'P2'!$B$4:$J$48,9,FALSE),"") ->  | AI80: =IFERROR(VLOOKUP(AI79,'P2'!$B$4:$J$48,9,FALSE),"") ->  | AJ80: =IFERROR(VLOOKUP(AJ79,'P2'!$B$4:$J$48,9,FALSE),"") ->  | AK80: =IFERROR(VLOOKUP(AK79,'P2'!$B$4:$J$48,9,FALSE),"") ->  | AL80: =IFERROR(VLOOKUP(AL79,'P2'!$B$4:$J$48,9,FALSE),"") ->  | AM80: =IFERROR(VLOOKUP(AM79,'P2'!$B$4:$J$48,9,FALSE),"") ->  | AN80: =IFERROR(VLOOKUP(AN79,'P2'!$B$4:$J$48,9,FALSE),"") ->  | AO80: =IFERROR(VLOOKUP(AO79,'P2'!$B$4:$J$48,9,FALSE),"") ->  | AP80: =IFERROR(VLOOKUP(AP79,'P2'!$B$4:$J$48,9,FALSE),"") ->  | AQ80: =IFERROR(VLOOKUP(AQ79,'P2'!$B$4:$J$48,9,FALSE),"") ->  | AR80: =IFERROR(VLOOKUP(AR79,'P2'!$B$4:$J$48,9,FALSE),"") ->  | AS80: =IFERROR(VLOOKUP(AS79,'P2'!$B$4:$J$48,9,FALSE),"") ->  | AT80: =IFERROR(VLOOKUP(AT79,'P2'!$B$4:$J$48,9,FALSE),"") ->  | AU80: =IFERROR(VLOOKUP(AU79,'P2'!$B$4:$J$48,9,FALSE),"") ->  | AV80: =SUM(Q80:AU80) -> 0
B81: 31 | AV81: =COUNTA(Q81:AU81) -> 0 | AW81: =AV82 -> 0 | AX81: =IFERROR(ROUNDDOWN(AV82/$AT$3,1),"") -> 
Q82: =IFERROR(VLOOKUP(Q81,'P2'!$B$4:$J$48,9,FALSE),"") ->  | R82: =IFERROR(VLOOKUP(R81,'P2'!$B$4:$J$48,9,FALSE),"") ->  | S82: =IFERROR(VLOOKUP(S81,'P2'!$B$4:$J$48,9,FALSE),"") ->  | T82: =IFERROR(VLOOKUP(T81,'P2'!$B$4:$J$48,9,FALSE),"") ->  | U82: =IFERROR(VLOOKUP(U81,'P2'!$B$4:$J$48,9,FALSE),"") ->  | V82: =IFERROR(VLOOKUP(V81,'P2'!$B$4:$J$48,9,FALSE),"") ->  | W82: =IFERROR(VLOOKUP(W81,'P2'!$B$4:$J$48,9,FALSE),"") ->  | X82: =IFERROR(VLOOKUP(X81,'P2'!$B$4:$J$48,9,FALSE),"") ->  | Y82: =IFERROR(VLOOKUP(Y81,'P2'!$B$4:$J$48,9,FALSE),"") ->  | Z82: =IFERROR(VLOOKUP(Z81,'P2'!$B$4:$J$48,9,FALSE),"") ->  | AA82: =IFERROR(VLOOKUP(AA81,'P2'!$B$4:$J$48,9,FALSE),"") ->  | AB82: =IFERROR(VLOOKUP(AB81,'P2'!$B$4:$J$48,9,FALSE),"") ->  | AC82: =IFERROR(VLOOKUP(AC81,'P2'!$B$4:$J$48,9,FALSE),"") ->  | AD82: =IFERROR(VLOOKUP(AD81,'P2'!$B$4:$J$48,9,FALSE),"") ->  | AE82: =IFERROR(VLOOKUP(AE81,'P2'!$B$4:$J$48,9,FALSE),"") ->  | AF82: =IFERROR(VLOOKUP(AF81,'P2'!$B$4:$J$48,9,FALSE),"") ->  | AG82: =IFERROR(VLOOKUP(AG81,'P2'!$B$4:$J$48,9,FALSE),"") ->  | AH82: =IFERROR(VLOOKUP(AH81,'P2'!$B$4:$J$48,9,FALSE),"") ->  | AI82: =IFERROR(VLOOKUP(AI81,'P2'!$B$4:$J$48,9,FALSE),"") ->  | AJ82: =IFERROR(VLOOKUP(AJ81,'P2'!$B$4:$J$48,9,FALSE),"") ->  | AK82: =IFERROR(VLOOKUP(AK81,'P2'!$B$4:$J$48,9,FALSE),"") ->  | AL82: =IFERROR(VLOOKUP(AL81,'P2'!$B$4:$J$48,9,FALSE),"") ->  | AM82: =IFERROR(VLOOKUP(AM81,'P2'!$B$4:$J$48,9,FALSE),"") ->  | AN82: =IFERROR(VLOOKUP(AN81,'P2'!$B$4:$J$48,9,FALSE),"") ->  | AO82: =IFERROR(VLOOKUP(AO81,'P2'!$B$4:$J$48,9,FALSE),"") ->  | AP82: =IFERROR(VLOOKUP(AP81,'P2'!$B$4:$J$48,9,FALSE),"") ->  | AQ82: =IFERROR(VLOOKUP(AQ81,'P2'!$B$4:$J$48,9,FALSE),"") ->  | AR82: =IFERROR(VLOOKUP(AR81,'P2'!$B$4:$J$48,9,FALSE),"") ->  | AS82: =IFERROR(VLOOKUP(AS81,'P2'!$B$4:$J$48,9,FALSE),"") ->  | AT82: =IFERROR(VLOOKUP(AT81,'P2'!$B$4:$J$48,9,FALSE),"") ->  | AU82: =IFERROR(VLOOKUP(AU81,'P2'!$B$4:$J$48,9,FALSE),"") ->  | AV82: =SUM(Q82:AU82) -> 0
B83: 32 | AV83: =COUNTA(Q83:AU83) -> 0 | AW83: =AV84 -> 0 | AX83: =IFERROR(ROUNDDOWN(AV84/$AT$3,1),"") -> 
Q84: =IFERROR(VLOOKUP(Q83,'P2'!$B$4:$J$48,9,FALSE),"") ->  | R84: =IFERROR(VLOOKUP(R83,'P2'!$B$4:$J$48,9,FALSE),"") ->  | S84: =IFERROR(VLOOKUP(S83,'P2'!$B$4:$J$48,9,FALSE),"") ->  | T84: =IFERROR(VLOOKUP(T83,'P2'!$B$4:$J$48,9,FALSE),"") ->  | U84: =IFERROR(VLOOKUP(U83,'P2'!$B$4:$J$48,9,FALSE),"") ->  | V84: =IFERROR(VLOOKUP(V83,'P2'!$B$4:$J$48,9,FALSE),"") ->  | W84: =IFERROR(VLOOKUP(W83,'P2'!$B$4:$J$48,9,FALSE),"") ->  | X84: =IFERROR(VLOOKUP(X83,'P2'!$B$4:$J$48,9,FALSE),"") ->  | Y84: =IFERROR(VLOOKUP(Y83,'P2'!$B$4:$J$48,9,FALSE),"") ->  | Z84: =IFERROR(VLOOKUP(Z83,'P2'!$B$4:$J$48,9,FALSE),"") ->  | AA84: =IFERROR(VLOOKUP(AA83,'P2'!$B$4:$J$48,9,FALSE),"") ->  | AB84: =IFERROR(VLOOKUP(AB83,'P2'!$B$4:$J$48,9,FALSE),"") ->  | AC84: =IFERROR(VLOOKUP(AC83,'P2'!$B$4:$J$48,9,FALSE),"") ->  | AD84: =IFERROR(VLOOKUP(AD83,'P2'!$B$4:$J$48,9,FALSE),"") ->  | AE84: =IFERROR(VLOOKUP(AE83,'P2'!$B$4:$J$48,9,FALSE),"") ->  | AF84: =IFERROR(VLOOKUP(AF83,'P2'!$B$4:$J$48,9,FALSE),"") ->  | AG84: =IFERROR(VLOOKUP(AG83,'P2'!$B$4:$J$48,9,FALSE),"") ->  | AH84: =IFERROR(VLOOKUP(AH83,'P2'!$B$4:$J$48,9,FALSE),"") ->  | AI84: =IFERROR(VLOOKUP(AI83,'P2'!$B$4:$J$48,9,FALSE),"") ->  | AJ84: =IFERROR(VLOOKUP(AJ83,'P2'!$B$4:$J$48,9,FALSE),"") ->  | AK84: =IFERROR(VLOOKUP(AK83,'P2'!$B$4:$J$48,9,FALSE),"") ->  | AL84: =IFERROR(VLOOKUP(AL83,'P2'!$B$4:$J$48,9,FALSE),"") ->  | AM84: =IFERROR(VLOOKUP(AM83,'P2'!$B$4:$J$48,9,FALSE),"") ->  | AN84: =IFERROR(VLOOKUP(AN83,'P2'!$B$4:$J$48,9,FALSE),"") ->  | AO84: =IFERROR(VLOOKUP(AO83,'P2'!$B$4:$J$48,9,FALSE),"") ->  | AP84: =IFERROR(VLOOKUP(AP83,'P2'!$B$4:$J$48,9,FALSE),"") ->  | AQ84: =IFERROR(VLOOKUP(AQ83,'P2'!$B$4:$J$48,9,FALSE),"") ->  | AR84: =IFERROR(VLOOKUP(AR83,'P2'!$B$4:$J$48,9,FALSE),"") ->  | AS84: =IFERROR(VLOOKUP(AS83,'P2'!$B$4:$J$48,9,FALSE),"") ->  | AT84: =IFERROR(VLOOKUP(AT83,'P2'!$B$4:$J$48,9,FALSE),"") ->  | AU84: =IFERROR(VLOOKUP(AU83,'P2'!$B$4:$J$48,9,FALSE),"") ->  | AV84: =SUM(Q84:AU84) -> 0
B85: 33 | AV85: =COUNTA(Q85:AU85) -> 0 | AW85: =AV86 -> 0 | AX85: =IFERROR(ROUNDDOWN(AV86/$AT$3,1),"") -> 
Q86: =IFERROR(VLOOKUP(Q85,'P2'!$B$4:$J$48,9,FALSE),"") ->  | R86: =IFERROR(VLOOKUP(R85,'P2'!$B$4:$J$48,9,FALSE),"") ->  | S86: =IFERROR(VLOOKUP(S85,'P2'!$B$4:$J$48,9,FALSE),"") ->  | T86: =IFERROR(VLOOKUP(T85,'P2'!$B$4:$J$48,9,FALSE),"") ->  | U86: =IFERROR(VLOOKUP(U85,'P2'!$B$4:$J$48,9,FALSE),"") ->  | V86: =IFERROR(VLOOKUP(V85,'P2'!$B$4:$J$48,9,FALSE),"") ->  | W86: =IFERROR(VLOOKUP(W85,'P2'!$B$4:$J$48,9,FALSE),"") ->  | X86: =IFERROR(VLOOKUP(X85,'P2'!$B$4:$J$48,9,FALSE),"") ->  | Y86: =IFERROR(VLOOKUP(Y85,'P2'!$B$4:$J$48,9,FALSE),"") ->  | Z86: =IFERROR(VLOOKUP(Z85,'P2'!$B$4:$J$48,9,FALSE),"") ->  | AA86: =IFERROR(VLOOKUP(AA85,'P2'!$B$4:$J$48,9,FALSE),"") ->  | AB86: =IFERROR(VLOOKUP(AB85,'P2'!$B$4:$J$48,9,FALSE),"") ->  | AC86: =IFERROR(VLOOKUP(AC85,'P2'!$B$4:$J$48,9,FALSE),"") ->  | AD86: =IFERROR(VLOOKUP(AD85,'P2'!$B$4:$J$48,9,FALSE),"") ->  | AE86: =IFERROR(VLOOKUP(AE85,'P2'!$B$4:$J$48,9,FALSE),"") ->  | AF86: =IFERROR(VLOOKUP(AF85,'P2'!$B$4:$J$48,9,FALSE),"") ->  | AG86: =IFERROR(VLOOKUP(AG85,'P2'!$B$4:$J$48,9,FALSE),"") ->  | AH86: =IFERROR(VLOOKUP(AH85,'P2'!$B$4:$J$48,9,FALSE),"") ->  | AI86: =IFERROR(VLOOKUP(AI85,'P2'!$B$4:$J$48,9,FALSE),"") ->  | AJ86: =IFERROR(VLOOKUP(AJ85,'P2'!$B$4:$J$48,9,FALSE),"") ->  | AK86: =IFERROR(VLOOKUP(AK85,'P2'!$B$4:$J$48,9,FALSE),"") ->  | AL86: =IFERROR(VLOOKUP(AL85,'P2'!$B$4:$J$48,9,FALSE),"") ->  | AM86: =IFERROR(VLOOKUP(AM85,'P2'!$B$4:$J$48,9,FALSE),"") ->  | AN86: =IFERROR(VLOOKUP(AN85,'P2'!$B$4:$J$48,9,FALSE),"") ->  | AO86: =IFERROR(VLOOKUP(AO85,'P2'!$B$4:$J$48,9,FALSE),"") ->  | AP86: =IFERROR(VLOOKUP(AP85,'P2'!$B$4:$J$48,9,FALSE),"") ->  | AQ86: =IFERROR(VLOOKUP(AQ85,'P2'!$B$4:$J$48,9,FALSE),"") ->  | AR86: =IFERROR(VLOOKUP(AR85,'P2'!$B$4:$J$48,9,FALSE),"") ->  | AS86: =IFERROR(VLOOKUP(AS85,'P2'!$B$4:$J$48,9,FALSE),"") ->  | AT86: =IFERROR(VLOOKUP(AT85,'P2'!$B$4:$J$48,9,FALSE),"") ->  | AU86: =IFERROR(VLOOKUP(AU85,'P2'!$B$4:$J$48,9,FALSE),"") ->  | AV86: =SUM(Q86:AU86) -> 0
B87: 34 | AV87: =COUNTA(Q87:AU87) -> 0 | AW87: =AV88 -> 0 | AX87: =IFERROR(ROUNDDOWN(AV88/$AT$3,1),"") -> 
Q88: =IFERROR(VLOOKUP(Q87,'P2'!$B$4:$J$48,9,FALSE),"") ->  | R88: =IFERROR(VLOOKUP(R87,'P2'!$B$4:$J$48,9,FALSE),"") ->  | S88: =IFERROR(VLOOKUP(S87,'P2'!$B$4:$J$48,9,FALSE),"") ->  | T88: =IFERROR(VLOOKUP(T87,'P2'!$B$4:$J$48,9,FALSE),"") ->  | U88: =IFERROR(VLOOKUP(U87,'P2'!$B$4:$J$48,9,FALSE),"") ->  | V88: =IFERROR(VLOOKUP(V87,'P2'!$B$4:$J$48,9,FALSE),"") ->  | W88: =IFERROR(VLOOKUP(W87,'P2'!$B$4:$J$48,9,FALSE),"") ->  | X88: =IFERROR(VLOOKUP(X87,'P2'!$B$4:$J$48,9,FALSE),"") ->  | Y88: =IFERROR(VLOOKUP(Y87,'P2'!$B$4:$J$48,9,FALSE),"") ->  | Z88: =IFERROR(VLOOKUP(Z87,'P2'!$B$4:$J$48,9,FALSE),"") ->  | AA88: =IFERROR(VLOOKUP(AA87,'P2'!$B$4:$J$48,9,FALSE),"") ->  | AB88: =IFERROR(VLOOKUP(AB87,'P2'!$B$4:$J$48,9,FALSE),"") ->  | AC88: =IFERROR(VLOOKUP(AC87,'P2'!$B$4:$J$48,9,FALSE),"") ->  | AD88: =IFERROR(VLOOKUP(AD87,'P2'!$B$4:$J$48,9,FALSE),"") ->  | AE88: =IFERROR(VLOOKUP(AE87,'P2'!$B$4:$J$48,9,FALSE),"") ->  | AF88: =IFERROR(VLOOKUP(AF87,'P2'!$B$4:$J$48,9,FALSE),"") ->  | AG88: =IFERROR(VLOOKUP(AG87,'P2'!$B$4:$J$48,9,FALSE),"") ->  | AH88: =IFERROR(VLOOKUP(AH87,'P2'!$B$4:$J$48,9,FALSE),"") ->  | AI88: =IFERROR(VLOOKUP(AI87,'P2'!$B$4:$J$48,9,FALSE),"") ->  | AJ88: =IFERROR(VLOOKUP(AJ87,'P2'!$B$4:$J$48,9,FALSE),"") ->  | AK88: =IFERROR(VLOOKUP(AK87,'P2'!$B$4:$J$48,9,FALSE),"") ->  | AL88: =IFERROR(VLOOKUP(AL87,'P2'!$B$4:$J$48,9,FALSE),"") ->  | AM88: =IFERROR(VLOOKUP(AM87,'P2'!$B$4:$J$48,9,FALSE),"") ->  | AN88: =IFERROR(VLOOKUP(AN87,'P2'!$B$4:$J$48,9,FALSE),"") ->  | AO88: =IFERROR(VLOOKUP(AO87,'P2'!$B$4:$J$48,9,FALSE),"") ->  | AP88: =IFERROR(VLOOKUP(AP87,'P2'!$B$4:$J$48,9,FALSE),"") ->  | AQ88: =IFERROR(VLOOKUP(AQ87,'P2'!$B$4:$J$48,9,FALSE),"") ->  | AR88: =IFERROR(VLOOKUP(AR87,'P2'!$B$4:$J$48,9,FALSE),"") ->  | AS88: =IFERROR(VLOOKUP(AS87,'P2'!$B$4:$J$48,9,FALSE),"") ->  | AT88: =IFERROR(VLOOKUP(AT87,'P2'!$B$4:$J$48,9,FALSE),"") ->  | AU88: =IFERROR(VLOOKUP(AU87,'P2'!$B$4:$J$48,9,FALSE),"") ->  | AV88: =SUM(Q88:AU88) -> 0
B89: 35 | AV89: =COUNTA(Q89:AU89) -> 0 | AW89: =AV90 -> 0 | AX89: =IFERROR(ROUNDDOWN(AV90/$AT$3,1),"") -> 
Q90: =IFERROR(VLOOKUP(Q89,'P2'!$B$4:$J$48,9,FALSE),"") ->  | R90: =IFERROR(VLOOKUP(R89,'P2'!$B$4:$J$48,9,FALSE),"") ->  | S90: =IFERROR(VLOOKUP(S89,'P2'!$B$4:$J$48,9,FALSE),"") ->  | T90: =IFERROR(VLOOKUP(T89,'P2'!$B$4:$J$48,9,FALSE),"") ->  | U90: =IFERROR(VLOOKUP(U89,'P2'!$B$4:$J$48,9,FALSE),"") ->  | V90: =IFERROR(VLOOKUP(V89,'P2'!$B$4:$J$48,9,FALSE),"") ->  | W90: =IFERROR(VLOOKUP(W89,'P2'!$B$4:$J$48,9,FALSE),"") ->  | X90: =IFERROR(VLOOKUP(X89,'P2'!$B$4:$J$48,9,FALSE),"") ->  | Y90: =IFERROR(VLOOKUP(Y89,'P2'!$B$4:$J$48,9,FALSE),"") ->  | Z90: =IFERROR(VLOOKUP(Z89,'P2'!$B$4:$J$48,9,FALSE),"") ->  | AA90: =IFERROR(VLOOKUP(AA89,'P2'!$B$4:$J$48,9,FALSE),"") ->  | AB90: =IFERROR(VLOOKUP(AB89,'P2'!$B$4:$J$48,9,FALSE),"") ->  | AC90: =IFERROR(VLOOKUP(AC89,'P2'!$B$4:$J$48,9,FALSE),"") ->  | AD90: =IFERROR(VLOOKUP(AD89,'P2'!$B$4:$J$48,9,FALSE),"") ->  | AE90: =IFERROR(VLOOKUP(AE89,'P2'!$B$4:$J$48,9,FALSE),"") ->  | AF90: =IFERROR(VLOOKUP(AF89,'P2'!$B$4:$J$48,9,FALSE),"") ->  | AG90: =IFERROR(VLOOKUP(AG89,'P2'!$B$4:$J$48,9,FALSE),"") ->  | AH90: =IFERROR(VLOOKUP(AH89,'P2'!$B$4:$J$48,9,FALSE),"") ->  | AI90: =IFERROR(VLOOKUP(AI89,'P2'!$B$4:$J$48,9,FALSE),"") ->  | AJ90: =IFERROR(VLOOKUP(AJ89,'P2'!$B$4:$J$48,9,FALSE),"") ->  | AK90: =IFERROR(VLOOKUP(AK89,'P2'!$B$4:$J$48,9,FALSE),"") ->  | AL90: =IFERROR(VLOOKUP(AL89,'P2'!$B$4:$J$48,9,FALSE),"") ->  | AM90: =IFERROR(VLOOKUP(AM89,'P2'!$B$4:$J$48,9,FALSE),"") ->  | AN90: =IFERROR(VLOOKUP(AN89,'P2'!$B$4:$J$48,9,FALSE),"") ->  | AO90: =IFERROR(VLOOKUP(AO89,'P2'!$B$4:$J$48,9,FALSE),"") ->  | AP90: =IFERROR(VLOOKUP(AP89,'P2'!$B$4:$J$48,9,FALSE),"") ->  | AQ90: =IFERROR(VLOOKUP(AQ89,'P2'!$B$4:$J$48,9,FALSE),"") ->  | AR90: =IFERROR(VLOOKUP(AR89,'P2'!$B$4:$J$48,9,FALSE),"") ->  | AS90: =IFERROR(VLOOKUP(AS89,'P2'!$B$4:$J$48,9,FALSE),"") ->  | AT90: =IFERROR(VLOOKUP(AT89,'P2'!$B$4:$J$48,9,FALSE),"") ->  | AU90: =IFERROR(VLOOKUP(AU89,'P2'!$B$4:$J$48,9,FALSE),"") ->  | AV90: =SUM(Q90:AU90) -> 0
B91: 36 | AV91: =COUNTA(Q91:AU91) -> 0 | AW91: =AV92 -> 0 | AX91: =IFERROR(ROUNDDOWN(AV92/$AT$3,1),"") -> 
Q92: =IFERROR(VLOOKUP(Q91,'P2'!$B$4:$J$48,9,FALSE),"") ->  | R92: =IFERROR(VLOOKUP(R91,'P2'!$B$4:$J$48,9,FALSE),"") ->  | S92: =IFERROR(VLOOKUP(S91,'P2'!$B$4:$J$48,9,FALSE),"") ->  | T92: =IFERROR(VLOOKUP(T91,'P2'!$B$4:$J$48,9,FALSE),"") ->  | U92: =IFERROR(VLOOKUP(U91,'P2'!$B$4:$J$48,9,FALSE),"") ->  | V92: =IFERROR(VLOOKUP(V91,'P2'!$B$4:$J$48,9,FALSE),"") ->  | W92: =IFERROR(VLOOKUP(W91,'P2'!$B$4:$J$48,9,FALSE),"") ->  | X92: =IFERROR(VLOOKUP(X91,'P2'!$B$4:$J$48,9,FALSE),"") ->  | Y92: =IFERROR(VLOOKUP(Y91,'P2'!$B$4:$J$48,9,FALSE),"") ->  | Z92: =IFERROR(VLOOKUP(Z91,'P2'!$B$4:$J$48,9,FALSE),"") ->  | AA92: =IFERROR(VLOOKUP(AA91,'P2'!$B$4:$J$48,9,FALSE),"") ->  | AB92: =IFERROR(VLOOKUP(AB91,'P2'!$B$4:$J$48,9,FALSE),"") ->  | AC92: =IFERROR(VLOOKUP(AC91,'P2'!$B$4:$J$48,9,FALSE),"") ->  | AD92: =IFERROR(VLOOKUP(AD91,'P2'!$B$4:$J$48,9,FALSE),"") ->  | AE92: =IFERROR(VLOOKUP(AE91,'P2'!$B$4:$J$48,9,FALSE),"") ->  | AF92: =IFERROR(VLOOKUP(AF91,'P2'!$B$4:$J$48,9,FALSE),"") ->  | AG92: =IFERROR(VLOOKUP(AG91,'P2'!$B$4:$J$48,9,FALSE),"") ->  | AH92: =IFERROR(VLOOKUP(AH91,'P2'!$B$4:$J$48,9,FALSE),"") ->  | AI92: =IFERROR(VLOOKUP(AI91,'P2'!$B$4:$J$48,9,FALSE),"") ->  | AJ92: =IFERROR(VLOOKUP(AJ91,'P2'!$B$4:$J$48,9,FALSE),"") ->  | AK92: =IFERROR(VLOOKUP(AK91,'P2'!$B$4:$J$48,9,FALSE),"") ->  | AL92: =IFERROR(VLOOKUP(AL91,'P2'!$B$4:$J$48,9,FALSE),"") ->  | AM92: =IFERROR(VLOOKUP(AM91,'P2'!$B$4:$J$48,9,FALSE),"") ->  | AN92: =IFERROR(VLOOKUP(AN91,'P2'!$B$4:$J$48,9,FALSE),"") ->  | AO92: =IFERROR(VLOOKUP(AO91,'P2'!$B$4:$J$48,9,FALSE),"") ->  | AP92: =IFERROR(VLOOKUP(AP91,'P2'!$B$4:$J$48,9,FALSE),"") ->  | AQ92: =IFERROR(VLOOKUP(AQ91,'P2'!$B$4:$J$48,9,FALSE),"") ->  | AR92: =IFERROR(VLOOKUP(AR91,'P2'!$B$4:$J$48,9,FALSE),"") ->  | AS92: =IFERROR(VLOOKUP(AS91,'P2'!$B$4:$J$48,9,FALSE),"") ->  | AT92: =IFERROR(VLOOKUP(AT91,'P2'!$B$4:$J$48,9,FALSE),"") ->  | AU92: =IFERROR(VLOOKUP(AU91,'P2'!$B$4:$J$48,9,FALSE),"") ->  | AV92: =SUM(Q92:AU92) -> 0
B93: 37 | AV93: =COUNTA(Q93:AU93) -> 0 | AW93: =AV94 -> 0 | AX93: =IFERROR(ROUNDDOWN(AV94/$AT$3,1),"") -> 
Q94: =IFERROR(VLOOKUP(Q93,'P2'!$B$4:$J$48,9,FALSE),"") ->  | R94: =IFERROR(VLOOKUP(R93,'P2'!$B$4:$J$48,9,FALSE),"") ->  | S94: =IFERROR(VLOOKUP(S93,'P2'!$B$4:$J$48,9,FALSE),"") ->  | T94: =IFERROR(VLOOKUP(T93,'P2'!$B$4:$J$48,9,FALSE),"") ->  | U94: =IFERROR(VLOOKUP(U93,'P2'!$B$4:$J$48,9,FALSE),"") ->  | V94: =IFERROR(VLOOKUP(V93,'P2'!$B$4:$J$48,9,FALSE),"") ->  | W94: =IFERROR(VLOOKUP(W93,'P2'!$B$4:$J$48,9,FALSE),"") ->  | X94: =IFERROR(VLOOKUP(X93,'P2'!$B$4:$J$48,9,FALSE),"") ->  | Y94: =IFERROR(VLOOKUP(Y93,'P2'!$B$4:$J$48,9,FALSE),"") ->  | Z94: =IFERROR(VLOOKUP(Z93,'P2'!$B$4:$J$48,9,FALSE),"") ->  | AA94: =IFERROR(VLOOKUP(AA93,'P2'!$B$4:$J$48,9,FALSE),"") ->  | AB94: =IFERROR(VLOOKUP(AB93,'P2'!$B$4:$J$48,9,FALSE),"") ->  | AC94: =IFERROR(VLOOKUP(AC93,'P2'!$B$4:$J$48,9,FALSE),"") ->  | AD94: =IFERROR(VLOOKUP(AD93,'P2'!$B$4:$J$48,9,FALSE),"") ->  | AE94: =IFERROR(VLOOKUP(AE93,'P2'!$B$4:$J$48,9,FALSE),"") ->  | AF94: =IFERROR(VLOOKUP(AF93,'P2'!$B$4:$J$48,9,FALSE),"") ->  | AG94: =IFERROR(VLOOKUP(AG93,'P2'!$B$4:$J$48,9,FALSE),"") ->  | AH94: =IFERROR(VLOOKUP(AH93,'P2'!$B$4:$J$48,9,FALSE),"") ->  | AI94: =IFERROR(VLOOKUP(AI93,'P2'!$B$4:$J$48,9,FALSE),"") ->  | AJ94: =IFERROR(VLOOKUP(AJ93,'P2'!$B$4:$J$48,9,FALSE),"") ->  | AK94: =IFERROR(VLOOKUP(AK93,'P2'!$B$4:$J$48,9,FALSE),"") ->  | AL94: =IFERROR(VLOOKUP(AL93,'P2'!$B$4:$J$48,9,FALSE),"") ->  | AM94: =IFERROR(VLOOKUP(AM93,'P2'!$B$4:$J$48,9,FALSE),"") ->  | AN94: =IFERROR(VLOOKUP(AN93,'P2'!$B$4:$J$48,9,FALSE),"") ->  | AO94: =IFERROR(VLOOKUP(AO93,'P2'!$B$4:$J$48,9,FALSE),"") ->  | AP94: =IFERROR(VLOOKUP(AP93,'P2'!$B$4:$J$48,9,FALSE),"") ->  | AQ94: =IFERROR(VLOOKUP(AQ93,'P2'!$B$4:$J$48,9,FALSE),"") ->  | AR94: =IFERROR(VLOOKUP(AR93,'P2'!$B$4:$J$48,9,FALSE),"") ->  | AS94: =IFERROR(VLOOKUP(AS93,'P2'!$B$4:$J$48,9,FALSE),"") ->  | AT94: =IFERROR(VLOOKUP(AT93,'P2'!$B$4:$J$48,9,FALSE),"") ->  | AU94: =IFERROR(VLOOKUP(AU93,'P2'!$B$4:$J$48,9,FALSE),"") ->  | AV94: =SUM(Q94:AU94) -> 0
B95: =B93+1 -> 38 | AV95: =COUNTA(Q95:AU95) -> 0 | AW95: =AV96 -> 0 | AX95: =IFERROR(ROUNDDOWN(AV96/$AT$3,1),"") -> 
Q96: =IFERROR(VLOOKUP(Q95,'P2'!$B$4:$J$48,9,FALSE),"") ->  | R96: =IFERROR(VLOOKUP(R95,'P2'!$B$4:$J$48,9,FALSE),"") ->  | S96: =IFERROR(VLOOKUP(S95,'P2'!$B$4:$J$48,9,FALSE),"") ->  | T96: =IFERROR(VLOOKUP(T95,'P2'!$B$4:$J$48,9,FALSE),"") ->  | U96: =IFERROR(VLOOKUP(U95,'P2'!$B$4:$J$48,9,FALSE),"") ->  | V96: =IFERROR(VLOOKUP(V95,'P2'!$B$4:$J$48,9,FALSE),"") ->  | W96: =IFERROR(VLOOKUP(W95,'P2'!$B$4:$J$48,9,FALSE),"") ->  | X96: =IFERROR(VLOOKUP(X95,'P2'!$B$4:$J$48,9,FALSE),"") ->  | Y96: =IFERROR(VLOOKUP(Y95,'P2'!$B$4:$J$48,9,FALSE),"") ->  | Z96: =IFERROR(VLOOKUP(Z95,'P2'!$B$4:$J$48,9,FALSE),"") ->  | AA96: =IFERROR(VLOOKUP(AA95,'P2'!$B$4:$J$48,9,FALSE),"") ->  | AB96: =IFERROR(VLOOKUP(AB95,'P2'!$B$4:$J$48,9,FALSE),"") ->  | AC96: =IFERROR(VLOOKUP(AC95,'P2'!$B$4:$J$48,9,FALSE),"") ->  | AD96: =IFERROR(VLOOKUP(AD95,'P2'!$B$4:$J$48,9,FALSE),"") ->  | AE96: =IFERROR(VLOOKUP(AE95,'P2'!$B$4:$J$48,9,FALSE),"") ->  | AF96: =IFERROR(VLOOKUP(AF95,'P2'!$B$4:$J$48,9,FALSE),"") ->  | AG96: =IFERROR(VLOOKUP(AG95,'P2'!$B$4:$J$48,9,FALSE),"") ->  | AH96: =IFERROR(VLOOKUP(AH95,'P2'!$B$4:$J$48,9,FALSE),"") ->  | AI96: =IFERROR(VLOOKUP(AI95,'P2'!$B$4:$J$48,9,FALSE),"") ->  | AJ96: =IFERROR(VLOOKUP(AJ95,'P2'!$B$4:$J$48,9,FALSE),"") ->  | AK96: =IFERROR(VLOOKUP(AK95,'P2'!$B$4:$J$48,9,FALSE),"") ->  | AL96: =IFERROR(VLOOKUP(AL95,'P2'!$B$4:$J$48,9,FALSE),"") ->  | AM96: =IFERROR(VLOOKUP(AM95,'P2'!$B$4:$J$48,9,FALSE),"") ->  | AN96: =IFERROR(VLOOKUP(AN95,'P2'!$B$4:$J$48,9,FALSE),"") ->  | AO96: =IFERROR(VLOOKUP(AO95,'P2'!$B$4:$J$48,9,FALSE),"") ->  | AP96: =IFERROR(VLOOKUP(AP95,'P2'!$B$4:$J$48,9,FALSE),"") ->  | AQ96: =IFERROR(VLOOKUP(AQ95,'P2'!$B$4:$J$48,9,FALSE),"") ->  | AR96: =IFERROR(VLOOKUP(AR95,'P2'!$B$4:$J$48,9,FALSE),"") ->  | AS96: =IFERROR(VLOOKUP(AS95,'P2'!$B$4:$J$48,9,FALSE),"") ->  | AT96: =IFERROR(VLOOKUP(AT95,'P2'!$B$4:$J$48,9,FALSE),"") ->  | AU96: =IFERROR(VLOOKUP(AU95,'P2'!$B$4:$J$48,9,FALSE),"") ->  | AV96: =SUM(Q96:AU96) -> 0
B97: 39 | AV97: =COUNTA(Q97:AU97) -> 0 | AW97: =AV98 -> 0 | AX97: =IFERROR(ROUNDDOWN(AV98/$AT$3,1),"") -> 
Q98: =IFERROR(VLOOKUP(Q97,'P2'!$B$4:$J$48,9,FALSE),"") ->  | R98: =IFERROR(VLOOKUP(R97,'P2'!$B$4:$J$48,9,FALSE),"") ->  | S98: =IFERROR(VLOOKUP(S97,'P2'!$B$4:$J$48,9,FALSE),"") ->  | T98: =IFERROR(VLOOKUP(T97,'P2'!$B$4:$J$48,9,FALSE),"") ->  | U98: =IFERROR(VLOOKUP(U97,'P2'!$B$4:$J$48,9,FALSE),"") ->  | V98: =IFERROR(VLOOKUP(V97,'P2'!$B$4:$J$48,9,FALSE),"") ->  | W98: =IFERROR(VLOOKUP(W97,'P2'!$B$4:$J$48,9,FALSE),"") ->  | X98: =IFERROR(VLOOKUP(X97,'P2'!$B$4:$J$48,9,FALSE),"") ->  | Y98: =IFERROR(VLOOKUP(Y97,'P2'!$B$4:$J$48,9,FALSE),"") ->  | Z98: =IFERROR(VLOOKUP(Z97,'P2'!$B$4:$J$48,9,FALSE),"") ->  | AA98: =IFERROR(VLOOKUP(AA97,'P2'!$B$4:$J$48,9,FALSE),"") ->  | AB98: =IFERROR(VLOOKUP(AB97,'P2'!$B$4:$J$48,9,FALSE),"") ->  | AC98: =IFERROR(VLOOKUP(AC97,'P2'!$B$4:$J$48,9,FALSE),"") ->  | AD98: =IFERROR(VLOOKUP(AD97,'P2'!$B$4:$J$48,9,FALSE),"") ->  | AE98: =IFERROR(VLOOKUP(AE97,'P2'!$B$4:$J$48,9,FALSE),"") ->  | AF98: =IFERROR(VLOOKUP(AF97,'P2'!$B$4:$J$48,9,FALSE),"") ->  | AG98: =IFERROR(VLOOKUP(AG97,'P2'!$B$4:$J$48,9,FALSE),"") ->  | AH98: =IFERROR(VLOOKUP(AH97,'P2'!$B$4:$J$48,9,FALSE),"") ->  | AI98: =IFERROR(VLOOKUP(AI97,'P2'!$B$4:$J$48,9,FALSE),"") ->  | AJ98: =IFERROR(VLOOKUP(AJ97,'P2'!$B$4:$J$48,9,FALSE),"") ->  | AK98: =IFERROR(VLOOKUP(AK97,'P2'!$B$4:$J$48,9,FALSE),"") ->  | AL98: =IFERROR(VLOOKUP(AL97,'P2'!$B$4:$J$48,9,FALSE),"") ->  | AM98: =IFERROR(VLOOKUP(AM97,'P2'!$B$4:$J$48,9,FALSE),"") ->  | AN98: =IFERROR(VLOOKUP(AN97,'P2'!$B$4:$J$48,9,FALSE),"") ->  | AO98: =IFERROR(VLOOKUP(AO97,'P2'!$B$4:$J$48,9,FALSE),"") ->  | AP98: =IFERROR(VLOOKUP(AP97,'P2'!$B$4:$J$48,9,FALSE),"") ->  | AQ98: =IFERROR(VLOOKUP(AQ97,'P2'!$B$4:$J$48,9,FALSE),"") ->  | AR98: =IFERROR(VLOOKUP(AR97,'P2'!$B$4:$J$48,9,FALSE),"") ->  | AS98: =IFERROR(VLOOKUP(AS97,'P2'!$B$4:$J$48,9,FALSE),"") ->  | AT98: =IFERROR(VLOOKUP(AT97,'P2'!$B$4:$J$48,9,FALSE),"") ->  | AU98: =IFERROR(VLOOKUP(AU97,'P2'!$B$4:$J$48,9,FALSE),"") ->  | AV98: =SUM(Q98:AU98) -> 0
B99: 40 | AV99: =COUNTA(Q99:AU99) -> 0 | AW99: =AV100 -> 0 | AX99: =IFERROR(ROUNDDOWN(AV100/$AT$3,1),"") -> 
Q100: =IFERROR(VLOOKUP(Q99,'P2'!$B$4:$J$48,9,FALSE),"") ->  | R100: =IFERROR(VLOOKUP(R99,'P2'!$B$4:$J$48,9,FALSE),"") ->  | S100: =IFERROR(VLOOKUP(S99,'P2'!$B$4:$J$48,9,FALSE),"") ->  | T100: =IFERROR(VLOOKUP(T99,'P2'!$B$4:$J$48,9,FALSE),"") ->  | U100: =IFERROR(VLOOKUP(U99,'P2'!$B$4:$J$48,9,FALSE),"") ->  | V100: =IFERROR(VLOOKUP(V99,'P2'!$B$4:$J$48,9,FALSE),"") ->  | W100: =IFERROR(VLOOKUP(W99,'P2'!$B$4:$J$48,9,FALSE),"") ->  | X100: =IFERROR(VLOOKUP(X99,'P2'!$B$4:$J$48,9,FALSE),"") ->  | Y100: =IFERROR(VLOOKUP(Y99,'P2'!$B$4:$J$48,9,FALSE),"") ->  | Z100: =IFERROR(VLOOKUP(Z99,'P2'!$B$4:$J$48,9,FALSE),"") ->  | AA100: =IFERROR(VLOOKUP(AA99,'P2'!$B$4:$J$48,9,FALSE),"") ->  | AB100: =IFERROR(VLOOKUP(AB99,'P2'!$B$4:$J$48,9,FALSE),"") ->  | AC100: =IFERROR(VLOOKUP(AC99,'P2'!$B$4:$J$48,9,FALSE),"") ->  | AD100: =IFERROR(VLOOKUP(AD99,'P2'!$B$4:$J$48,9,FALSE),"") ->  | AE100: =IFERROR(VLOOKUP(AE99,'P2'!$B$4:$J$48,9,FALSE),"") ->  | AF100: =IFERROR(VLOOKUP(AF99,'P2'!$B$4:$J$48,9,FALSE),"") ->  | AG100: =IFERROR(VLOOKUP(AG99,'P2'!$B$4:$J$48,9,FALSE),"") ->  | AH100: =IFERROR(VLOOKUP(AH99,'P2'!$B$4:$J$48,9,FALSE),"") ->  | AI100: =IFERROR(VLOOKUP(AI99,'P2'!$B$4:$J$48,9,FALSE),"") ->  | AJ100: =IFERROR(VLOOKUP(AJ99,'P2'!$B$4:$J$48,9,FALSE),"") ->  | AK100: =IFERROR(VLOOKUP(AK99,'P2'!$B$4:$J$48,9,FALSE),"") ->  | AL100: =IFERROR(VLOOKUP(AL99,'P2'!$B$4:$J$48,9,FALSE),"") ->  | AM100: =IFERROR(VLOOKUP(AM99,'P2'!$B$4:$J$48,9,FALSE),"") ->  | AN100: =IFERROR(VLOOKUP(AN99,'P2'!$B$4:$J$48,9,FALSE),"") ->  | AO100: =IFERROR(VLOOKUP(AO99,'P2'!$B$4:$J$48,9,FALSE),"") ->  | AP100: =IFERROR(VLOOKUP(AP99,'P2'!$B$4:$J$48,9,FALSE),"") ->  | AQ100: =IFERROR(VLOOKUP(AQ99,'P2'!$B$4:$J$48,9,FALSE),"") ->  | AR100: =IFERROR(VLOOKUP(AR99,'P2'!$B$4:$J$48,9,FALSE),"") ->  | AS100: =IFERROR(VLOOKUP(AS99,'P2'!$B$4:$J$48,9,FALSE),"") ->  | AT100: =IFERROR(VLOOKUP(AT99,'P2'!$B$4:$J$48,9,FALSE),"") ->  | AU100: =IFERROR(VLOOKUP(AU99,'P2'!$B$4:$J$48,9,FALSE),"") ->  | AV100: =SUM(Q100:AU100) -> 0
B103: (2) 勤務実績 （直近3か月分の実績） | S103: （ | T103: =$T$3 -> 令和 7 | V103: 年 | W103: =$W$3 -> 5 | X103: 月分実績 | Z103: ） | AX103: ="3 / "&COUNTA(C$7,C$57,C$106,C$155,C$204) -> 3 / 1
C104: 職 種 | I104: 氏 名 | N104: 勤務 形態 | Q104: =Q$5 -> 2025-05-01 | R104: =R$5 -> 2025-05-02 | S104: 2025-05-03 | T104: 2025-05-04 | U104: 2025-05-05 | V104: 2025-05-06 | W104: 2025-05-07 | X104: 2025-05-08 | Y104: 2025-05-09 | Z104: 2025-05-10 | AA104: 2025-05-11 | AB104: 2025-05-12 | AC104: 2025-05-13 | AD104: 2025-05-14 | AE104: 2025-05-15 | AF104: 2025-05-16 | AG104: 2025-05-17 | AH104: 2025-05-18 | AI104: 2025-05-19 | AJ104: 2025-05-20 | AK104: 2025-05-21 | AL104: 2025-05-22 | AM104: 2025-05-23 | AN104: 2025-05-24 | AO104: 2025-05-25 | AP104: 2025-05-26 | AQ104: 2025-05-27 | AR104: 2025-05-28 | AS104: 2025-05-29 | AT104: 2025-05-30 | AU104: 2025-05-31 | AV104: 勤務日数 | AX104: 常勤換算
Q105: =Q$6 -> 木 | R105: =R$6 -> 金 | S105: 土 | T105: 日 | U105: 月 | V105: 火 | W105: 水 | X105: 木 | Y105: 金 | Z105: 土 | AA105: 日 | AB105: 月 | AC105: 火 | AD105: 水 | AE105: 木 | AF105: 金 | AG105: 土 | AH105: 日 | AI105: 月 | AJ105: 火 | AK105: 水 | AL105: 木 | AM105: 金 | AN105: 土 | AO105: 日 | AP105: 月 | AQ105: 火 | AR105: 水 | AS105: 木 | AT105: 金 | AU105: 土 | AV105: 勤務時間
B106: =B99+1 -> 41 | AV106: =COUNTA(Q106:AU106) -> 0 | AW106: =AV107 -> 0 | AX106: =IFERROR(ROUNDDOWN(AV107/$AT$3,1),"") -> 
Q107: =IFERROR(VLOOKUP(Q106,'P2'!$B$4:$J$48,9,FALSE),"") ->  | R107: =IFERROR(VLOOKUP(R106,'P2'!$B$4:$J$48,9,FALSE),"") ->  | S107: =IFERROR(VLOOKUP(S106,'P2'!$B$4:$J$48,9,FALSE),"") ->  | T107: =IFERROR(VLOOKUP(T106,'P2'!$B$4:$J$48,9,FALSE),"") ->  | U107: =IFERROR(VLOOKUP(U106,'P2'!$B$4:$J$48,9,FALSE),"") ->  | V107: =IFERROR(VLOOKUP(V106,'P2'!$B$4:$J$48,9,FALSE),"") ->  | W107: =IFERROR(VLOOKUP(W106,'P2'!$B$4:$J$48,9,FALSE),"") ->  | X107: =IFERROR(VLOOKUP(X106,'P2'!$B$4:$J$48,9,FALSE),"") ->  | Y107: =IFERROR(VLOOKUP(Y106,'P2'!$B$4:$J$48,9,FALSE),"") ->  | Z107: =IFERROR(VLOOKUP(Z106,'P2'!$B$4:$J$48,9,FALSE),"") ->  | AA107: =IFERROR(VLOOKUP(AA106,'P2'!$B$4:$J$48,9,FALSE),"") ->  | AB107: =IFERROR(VLOOKUP(AB106,'P2'!$B$4:$J$48,9,FALSE),"") ->  | AC107: =IFERROR(VLOOKUP(AC106,'P2'!$B$4:$J$48,9,FALSE),"") ->  | AD107: =IFERROR(VLOOKUP(AD106,'P2'!$B$4:$J$48,9,FALSE),"") ->  | AE107: =IFERROR(VLOOKUP(AE106,'P2'!$B$4:$J$48,9,FALSE),"") ->  | AF107: =IFERROR(VLOOKUP(AF106,'P2'!$B$4:$J$48,9,FALSE),"") ->  | AG107: =IFERROR(VLOOKUP(AG106,'P2'!$B$4:$J$48,9,FALSE),"") ->  | AH107: =IFERROR(VLOOKUP(AH106,'P2'!$B$4:$J$48,9,FALSE),"") ->  | AI107: =IFERROR(VLOOKUP(AI106,'P2'!$B$4:$J$48,9,FALSE),"") ->  | AJ107: =IFERROR(VLOOKUP(AJ106,'P2'!$B$4:$J$48,9,FALSE),"") ->  | AK107: =IFERROR(VLOOKUP(AK106,'P2'!$B$4:$J$48,9,FALSE),"") ->  | AL107: =IFERROR(VLOOKUP(AL106,'P2'!$B$4:$J$48,9,FALSE),"") ->  | AM107: =IFERROR(VLOOKUP(AM106,'P2'!$B$4:$J$48,9,FALSE),"") ->  | AN107: =IFERROR(VLOOKUP(AN106,'P2'!$B$4:$J$48,9,FALSE),"") ->  | AO107: =IFERROR(VLOOKUP(AO106,'P2'!$B$4:$J$48,9,FALSE),"") ->  | AP107: =IFERROR(VLOOKUP(AP106,'P2'!$B$4:$J$48,9,FALSE),"") ->  | AQ107: =IFERROR(VLOOKUP(AQ106,'P2'!$B$4:$J$48,9,FALSE),"") ->  | AR107: =IFERROR(VLOOKUP(AR106,'P2'!$B$4:$J$48,9,FALSE),"") ->  | AS107: =IFERROR(VLOOKUP(AS106,'P2'!$B$4:$J$48,9,FALSE),"") ->  | AT107: =IFERROR(VLOOKUP(AT106,'P2'!$B$4:$J$48,9,FALSE),"") ->  | AU107: =IFERROR(VLOOKUP(AU106,'P2'!$B$4:$J$48,9,FALSE),"") ->  | AV107: =SUM(Q107:AU107) -> 0
B108: =B106+1 -> 42 | AV108: =COUNTA(Q108:AU108) -> 0 | AW108: =AV109 -> 0 | AX108: =IFERROR(ROUNDDOWN(AV109/$AT$3,1),"") -> 
Q109: =IFERROR(VLOOKUP(Q108,'P2'!$B$4:$J$48,9,FALSE),"") ->  | R109: =IFERROR(VLOOKUP(R108,'P2'!$B$4:$J$48,9,FALSE),"") ->  | S109: =IFERROR(VLOOKUP(S108,'P2'!$B$4:$J$48,9,FALSE),"") ->  | T109: =IFERROR(VLOOKUP(T108,'P2'!$B$4:$J$48,9,FALSE),"") ->  | U109: =IFERROR(VLOOKUP(U108,'P2'!$B$4:$J$48,9,FALSE),"") ->  | V109: =IFERROR(VLOOKUP(V108,'P2'!$B$4:$J$48,9,FALSE),"") ->  | W109: =IFERROR(VLOOKUP(W108,'P2'!$B$4:$J$48,9,FALSE),"") ->  | X109: =IFERROR(VLOOKUP(X108,'P2'!$B$4:$J$48,9,FALSE),"") ->  | Y109: =IFERROR(VLOOKUP(Y108,'P2'!$B$4:$J$48,9,FALSE),"") ->  | Z109: =IFERROR(VLOOKUP(Z108,'P2'!$B$4:$J$48,9,FALSE),"") ->  | AA109: =IFERROR(VLOOKUP(AA108,'P2'!$B$4:$J$48,9,FALSE),"") ->  | AB109: =IFERROR(VLOOKUP(AB108,'P2'!$B$4:$J$48,9,FALSE),"") ->  | AC109: =IFERROR(VLOOKUP(AC108,'P2'!$B$4:$J$48,9,FALSE),"") ->  | AD109: =IFERROR(VLOOKUP(AD108,'P2'!$B$4:$J$48,9,FALSE),"") ->  | AE109: =IFERROR(VLOOKUP(AE108,'P2'!$B$4:$J$48,9,FALSE),"") ->  | AF109: =IFERROR(VLOOKUP(AF108,'P2'!$B$4:$J$48,9,FALSE),"") ->  | AG109: =IFERROR(VLOOKUP(AG108,'P2'!$B$4:$J$48,9,FALSE),"") ->  | AH109: =IFERROR(VLOOKUP(AH108,'P2'!$B$4:$J$48,9,FALSE),"") ->  | AI109: =IFERROR(VLOOKUP(AI108,'P2'!$B$4:$J$48,9,FALSE),"") ->  | AJ109: =IFERROR(VLOOKUP(AJ108,'P2'!$B$4:$J$48,9,FALSE),"") ->  | AK109: =IFERROR(VLOOKUP(AK108,'P2'!$B$4:$J$48,9,FALSE),"") ->  | AL109: =IFERROR(VLOOKUP(AL108,'P2'!$B$4:$J$48,9,FALSE),"") ->  | AM109: =IFERROR(VLOOKUP(AM108,'P2'!$B$4:$J$48,9,FALSE),"") ->  | AN109: =IFERROR(VLOOKUP(AN108,'P2'!$B$4:$J$48,9,FALSE),"") ->  | AO109: =IFERROR(VLOOKUP(AO108,'P2'!$B$4:$J$48,9,FALSE),"") ->  | AP109: =IFERROR(VLOOKUP(AP108,'P2'!$B$4:$J$48,9,FALSE),"") ->  | AQ109: =IFERROR(VLOOKUP(AQ108,'P2'!$B$4:$J$48,9,FALSE),"") ->  | AR109: =IFERROR(VLOOKUP(AR108,'P2'!$B$4:$J$48,9,FALSE),"") ->  | AS109: =IFERROR(VLOOKUP(AS108,'P2'!$B$4:$J$48,9,FALSE),"") ->  | AT109: =IFERROR(VLOOKUP(AT108,'P2'!$B$4:$J$48,9,FALSE),"") ->  | AU109: =IFERROR(VLOOKUP(AU108,'P2'!$B$4:$J$48,9,FALSE),"") ->  | AV109: =SUM(Q109:AU109) -> 0
B110: 43 | AV110: =COUNTA(Q110:AU110) -> 0 | AW110: =AV111 -> 0 | AX110: =IFERROR(ROUNDDOWN(AV111/$AT$3,1),"") -> 
Q111: =IFERROR(VLOOKUP(Q110,'P2'!$B$4:$J$48,9,FALSE),"") ->  | R111: =IFERROR(VLOOKUP(R110,'P2'!$B$4:$J$48,9,FALSE),"") ->  | S111: =IFERROR(VLOOKUP(S110,'P2'!$B$4:$J$48,9,FALSE),"") ->  | T111: =IFERROR(VLOOKUP(T110,'P2'!$B$4:$J$48,9,FALSE),"") ->  | U111: =IFERROR(VLOOKUP(U110,'P2'!$B$4:$J$48,9,FALSE),"") ->  | V111: =IFERROR(VLOOKUP(V110,'P2'!$B$4:$J$48,9,FALSE),"") ->  | W111: =IFERROR(VLOOKUP(W110,'P2'!$B$4:$J$48,9,FALSE),"") ->  | X111: =IFERROR(VLOOKUP(X110,'P2'!$B$4:$J$48,9,FALSE),"") ->  | Y111: =IFERROR(VLOOKUP(Y110,'P2'!$B$4:$J$48,9,FALSE),"") ->  | Z111: =IFERROR(VLOOKUP(Z110,'P2'!$B$4:$J$48,9,FALSE),"") ->  | AA111: =IFERROR(VLOOKUP(AA110,'P2'!$B$4:$J$48,9,FALSE),"") ->  | AB111: =IFERROR(VLOOKUP(AB110,'P2'!$B$4:$J$48,9,FALSE),"") ->  | AC111: =IFERROR(VLOOKUP(AC110,'P2'!$B$4:$J$48,9,FALSE),"") ->  | AD111: =IFERROR(VLOOKUP(AD110,'P2'!$B$4:$J$48,9,FALSE),"") ->  | AE111: =IFERROR(VLOOKUP(AE110,'P2'!$B$4:$J$48,9,FALSE),"") ->  | AF111: =IFERROR(VLOOKUP(AF110,'P2'!$B$4:$J$48,9,FALSE),"") ->  | AG111: =IFERROR(VLOOKUP(AG110,'P2'!$B$4:$J$48,9,FALSE),"") ->  | AH111: =IFERROR(VLOOKUP(AH110,'P2'!$B$4:$J$48,9,FALSE),"") ->  | AI111: =IFERROR(VLOOKUP(AI110,'P2'!$B$4:$J$48,9,FALSE),"") ->  | AJ111: =IFERROR(VLOOKUP(AJ110,'P2'!$B$4:$J$48,9,FALSE),"") ->  | AK111: =IFERROR(VLOOKUP(AK110,'P2'!$B$4:$J$48,9,FALSE),"") ->  | AL111: =IFERROR(VLOOKUP(AL110,'P2'!$B$4:$J$48,9,FALSE),"") ->  | AM111: =IFERROR(VLOOKUP(AM110,'P2'!$B$4:$J$48,9,FALSE),"") ->  | AN111: =IFERROR(VLOOKUP(AN110,'P2'!$B$4:$J$48,9,FALSE),"") ->  | AO111: =IFERROR(VLOOKUP(AO110,'P2'!$B$4:$J$48,9,FALSE),"") ->  | AP111: =IFERROR(VLOOKUP(AP110,'P2'!$B$4:$J$48,9,FALSE),"") ->  | AQ111: =IFERROR(VLOOKUP(AQ110,'P2'!$B$4:$J$48,9,FALSE),"") ->  | AR111: =IFERROR(VLOOKUP(AR110,'P2'!$B$4:$J$48,9,FALSE),"") ->  | AS111: =IFERROR(VLOOKUP(AS110,'P2'!$B$4:$J$48,9,FALSE),"") ->  | AT111: =IFERROR(VLOOKUP(AT110,'P2'!$B$4:$J$48,9,FALSE),"") ->  | AU111: =IFERROR(VLOOKUP(AU110,'P2'!$B$4:$J$48,9,FALSE),"") ->  | AV111: =SUM(Q111:AU111) -> 0
B112: 44 | AV112: =COUNTA(Q112:AU112) -> 0 | AW112: =AV113 -> 0 | AX112: =IFERROR(ROUNDDOWN(AV113/$AT$3,1),"") -> 
Q113: =IFERROR(VLOOKUP(Q112,'P2'!$B$4:$J$48,9,FALSE),"") ->  | R113: =IFERROR(VLOOKUP(R112,'P2'!$B$4:$J$48,9,FALSE),"") ->  | S113: =IFERROR(VLOOKUP(S112,'P2'!$B$4:$J$48,9,FALSE),"") ->  | T113: =IFERROR(VLOOKUP(T112,'P2'!$B$4:$J$48,9,FALSE),"") ->  | U113: =IFERROR(VLOOKUP(U112,'P2'!$B$4:$J$48,9,FALSE),"") ->  | V113: =IFERROR(VLOOKUP(V112,'P2'!$B$4:$J$48,9,FALSE),"") ->  | W113: =IFERROR(VLOOKUP(W112,'P2'!$B$4:$J$48,9,FALSE),"") ->  | X113: =IFERROR(VLOOKUP(X112,'P2'!$B$4:$J$48,9,FALSE),"") ->  | Y113: =IFERROR(VLOOKUP(Y112,'P2'!$B$4:$J$48,9,FALSE),"") ->  | Z113: =IFERROR(VLOOKUP(Z112,'P2'!$B$4:$J$48,9,FALSE),"") ->  | AA113: =IFERROR(VLOOKUP(AA112,'P2'!$B$4:$J$48,9,FALSE),"") ->  | AB113: =IFERROR(VLOOKUP(AB112,'P2'!$B$4:$J$48,9,FALSE),"") ->  | AC113: =IFERROR(VLOOKUP(AC112,'P2'!$B$4:$J$48,9,FALSE),"") ->  | AD113: =IFERROR(VLOOKUP(AD112,'P2'!$B$4:$J$48,9,FALSE),"") ->  | AE113: =IFERROR(VLOOKUP(AE112,'P2'!$B$4:$J$48,9,FALSE),"") ->  | AF113: =IFERROR(VLOOKUP(AF112,'P2'!$B$4:$J$48,9,FALSE),"") ->  | AG113: =IFERROR(VLOOKUP(AG112,'P2'!$B$4:$J$48,9,FALSE),"") ->  | AH113: =IFERROR(VLOOKUP(AH112,'P2'!$B$4:$J$48,9,FALSE),"") ->  | AI113: =IFERROR(VLOOKUP(AI112,'P2'!$B$4:$J$48,9,FALSE),"") ->  | AJ113: =IFERROR(VLOOKUP(AJ112,'P2'!$B$4:$J$48,9,FALSE),"") ->  | AK113: =IFERROR(VLOOKUP(AK112,'P2'!$B$4:$J$48,9,FALSE),"") ->  | AL113: =IFERROR(VLOOKUP(AL112,'P2'!$B$4:$J$48,9,FALSE),"") ->  | AM113: =IFERROR(VLOOKUP(AM112,'P2'!$B$4:$J$48,9,FALSE),"") ->  | AN113: =IFERROR(VLOOKUP(AN112,'P2'!$B$4:$J$48,9,FALSE),"") ->  | AO113: =IFERROR(VLOOKUP(AO112,'P2'!$B$4:$J$48,9,FALSE),"") ->  | AP113: =IFERROR(VLOOKUP(AP112,'P2'!$B$4:$J$48,9,FALSE),"") ->  | AQ113: =IFERROR(VLOOKUP(AQ112,'P2'!$B$4:$J$48,9,FALSE),"") ->  | AR113: =IFERROR(VLOOKUP(AR112,'P2'!$B$4:$J$48,9,FALSE),"") ->  | AS113: =IFERROR(VLOOKUP(AS112,'P2'!$B$4:$J$48,9,FALSE),"") ->  | AT113: =IFERROR(VLOOKUP(AT112,'P2'!$B$4:$J$48,9,FALSE),"") ->  | AU113: =IFERROR(VLOOKUP(AU112,'P2'!$B$4:$J$48,9,FALSE),"") ->  | AV113: =SUM(Q113:AU113) -> 0
B114: 45 | AV114: =COUNTA(Q114:AU114) -> 0 | AW114: =AV115 -> 0 | AX114: =IFERROR(ROUNDDOWN(AV115/$AT$3,1),"") -> 
Q115: =IFERROR(VLOOKUP(Q114,'P2'!$B$4:$J$48,9,FALSE),"") ->  | R115: =IFERROR(VLOOKUP(R114,'P2'!$B$4:$J$48,9,FALSE),"") ->  | S115: =IFERROR(VLOOKUP(S114,'P2'!$B$4:$J$48,9,FALSE),"") ->  | T115: =IFERROR(VLOOKUP(T114,'P2'!$B$4:$J$48,9,FALSE),"") ->  | U115: =IFERROR(VLOOKUP(U114,'P2'!$B$4:$J$48,9,FALSE),"") ->  | V115: =IFERROR(VLOOKUP(V114,'P2'!$B$4:$J$48,9,FALSE),"") ->  | W115: =IFERROR(VLOOKUP(W114,'P2'!$B$4:$J$48,9,FALSE),"") ->  | X115: =IFERROR(VLOOKUP(X114,'P2'!$B$4:$J$48,9,FALSE),"") ->  | Y115: =IFERROR(VLOOKUP(Y114,'P2'!$B$4:$J$48,9,FALSE),"") ->  | Z115: =IFERROR(VLOOKUP(Z114,'P2'!$B$4:$J$48,9,FALSE),"") ->  | AA115: =IFERROR(VLOOKUP(AA114,'P2'!$B$4:$J$48,9,FALSE),"") ->  | AB115: =IFERROR(VLOOKUP(AB114,'P2'!$B$4:$J$48,9,FALSE),"") ->  | AC115: =IFERROR(VLOOKUP(AC114,'P2'!$B$4:$J$48,9,FALSE),"") ->  | AD115: =IFERROR(VLOOKUP(AD114,'P2'!$B$4:$J$48,9,FALSE),"") ->  | AE115: =IFERROR(VLOOKUP(AE114,'P2'!$B$4:$J$48,9,FALSE),"") ->  | AF115: =IFERROR(VLOOKUP(AF114,'P2'!$B$4:$J$48,9,FALSE),"") ->  | AG115: =IFERROR(VLOOKUP(AG114,'P2'!$B$4:$J$48,9,FALSE),"") ->  | AH115: =IFERROR(VLOOKUP(AH114,'P2'!$B$4:$J$48,9,FALSE),"") ->  | AI115: =IFERROR(VLOOKUP(AI114,'P2'!$B$4:$J$48,9,FALSE),"") ->  | AJ115: =IFERROR(VLOOKUP(AJ114,'P2'!$B$4:$J$48,9,FALSE),"") ->  | AK115: =IFERROR(VLOOKUP(AK114,'P2'!$B$4:$J$48,9,FALSE),"") ->  | AL115: =IFERROR(VLOOKUP(AL114,'P2'!$B$4:$J$48,9,FALSE),"") ->  | AM115: =IFERROR(VLOOKUP(AM114,'P2'!$B$4:$J$48,9,FALSE),"") ->  | AN115: =IFERROR(VLOOKUP(AN114,'P2'!$B$4:$J$48,9,FALSE),"") ->  | AO115: =IFERROR(VLOOKUP(AO114,'P2'!$B$4:$J$48,9,FALSE),"") ->  | AP115: =IFERROR(VLOOKUP(AP114,'P2'!$B$4:$J$48,9,FALSE),"") ->  | AQ115: =IFERROR(VLOOKUP(AQ114,'P2'!$B$4:$J$48,9,FALSE),"") ->  | AR115: =IFERROR(VLOOKUP(AR114,'P2'!$B$4:$J$48,9,FALSE),"") ->  | AS115: =IFERROR(VLOOKUP(AS114,'P2'!$B$4:$J$48,9,FALSE),"") ->  | AT115: =IFERROR(VLOOKUP(AT114,'P2'!$B$4:$J$48,9,FALSE),"") ->  | AU115: =IFERROR(VLOOKUP(AU114,'P2'!$B$4:$J$48,9,FALSE),"") ->  | AV115: =SUM(Q115:AU115) -> 0
B116: 46 | AV116: =COUNTA(Q116:AU116) -> 0 | AW116: =AV117 -> 0 | AX116: =IFERROR(ROUNDDOWN(AV117/$AT$3,1),"") -> 
Q117: =IFERROR(VLOOKUP(Q116,'P2'!$B$4:$J$48,9,FALSE),"") ->  | R117: =IFERROR(VLOOKUP(R116,'P2'!$B$4:$J$48,9,FALSE),"") ->  | S117: =IFERROR(VLOOKUP(S116,'P2'!$B$4:$J$48,9,FALSE),"") ->  | T117: =IFERROR(VLOOKUP(T116,'P2'!$B$4:$J$48,9,FALSE),"") ->  | U117: =IFERROR(VLOOKUP(U116,'P2'!$B$4:$J$48,9,FALSE),"") ->  | V117: =IFERROR(VLOOKUP(V116,'P2'!$B$4:$J$48,9,FALSE),"") ->  | W117: =IFERROR(VLOOKUP(W116,'P2'!$B$4:$J$48,9,FALSE),"") ->  | X117: =IFERROR(VLOOKUP(X116,'P2'!$B$4:$J$48,9,FALSE),"") ->  | Y117: =IFERROR(VLOOKUP(Y116,'P2'!$B$4:$J$48,9,FALSE),"") ->  | Z117: =IFERROR(VLOOKUP(Z116,'P2'!$B$4:$J$48,9,FALSE),"") ->  | AA117: =IFERROR(VLOOKUP(AA116,'P2'!$B$4:$J$48,9,FALSE),"") ->  | AB117: =IFERROR(VLOOKUP(AB116,'P2'!$B$4:$J$48,9,FALSE),"") ->  | AC117: =IFERROR(VLOOKUP(AC116,'P2'!$B$4:$J$48,9,FALSE),"") ->  | AD117: =IFERROR(VLOOKUP(AD116,'P2'!$B$4:$J$48,9,FALSE),"") ->  | AE117: =IFERROR(VLOOKUP(AE116,'P2'!$B$4:$J$48,9,FALSE),"") ->  | AF117: =IFERROR(VLOOKUP(AF116,'P2'!$B$4:$J$48,9,FALSE),"") ->  | AG117: =IFERROR(VLOOKUP(AG116,'P2'!$B$4:$J$48,9,FALSE),"") ->  | AH117: =IFERROR(VLOOKUP(AH116,'P2'!$B$4:$J$48,9,FALSE),"") ->  | AI117: =IFERROR(VLOOKUP(AI116,'P2'!$B$4:$J$48,9,FALSE),"") ->  | AJ117: =IFERROR(VLOOKUP(AJ116,'P2'!$B$4:$J$48,9,FALSE),"") ->  | AK117: =IFERROR(VLOOKUP(AK116,'P2'!$B$4:$J$48,9,FALSE),"") ->  | AL117: =IFERROR(VLOOKUP(AL116,'P2'!$B$4:$J$48,9,FALSE),"") ->  | AM117: =IFERROR(VLOOKUP(AM116,'P2'!$B$4:$J$48,9,FALSE),"") ->  | AN117: =IFERROR(VLOOKUP(AN116,'P2'!$B$4:$J$48,9,FALSE),"") ->  | AO117: =IFERROR(VLOOKUP(AO116,'P2'!$B$4:$J$48,9,FALSE),"") ->  | AP117: =IFERROR(VLOOKUP(AP116,'P2'!$B$4:$J$48,9,FALSE),"") ->  | AQ117: =IFERROR(VLOOKUP(AQ116,'P2'!$B$4:$J$48,9,FALSE),"") ->  | AR117: =IFERROR(VLOOKUP(AR116,'P2'!$B$4:$J$48,9,FALSE),"") ->  | AS117: =IFERROR(VLOOKUP(AS116,'P2'!$B$4:$J$48,9,FALSE),"") ->  | AT117: =IFERROR(VLOOKUP(AT116,'P2'!$B$4:$J$48,9,FALSE),"") ->  | AU117: =IFERROR(VLOOKUP(AU116,'P2'!$B$4:$J$48,9,FALSE),"") ->  | AV117: =SUM(Q117:AU117) -> 0
B118: 47 | AV118: =COUNTA(Q118:AU118) -> 0 | AW118: =AV119 -> 0 | AX118: =IFERROR(ROUNDDOWN(AV119/$AT$3,1),"") -> 
Q119: =IFERROR(VLOOKUP(Q118,'P2'!$B$4:$J$48,9,FALSE),"") ->  | R119: =IFERROR(VLOOKUP(R118,'P2'!$B$4:$J$48,9,FALSE),"") ->  | S119: =IFERROR(VLOOKUP(S118,'P2'!$B$4:$J$48,9,FALSE),"") ->  | T119: =IFERROR(VLOOKUP(T118,'P2'!$B$4:$J$48,9,FALSE),"") ->  | U119: =IFERROR(VLOOKUP(U118,'P2'!$B$4:$J$48,9,FALSE),"") ->  | V119: =IFERROR(VLOOKUP(V118,'P2'!$B$4:$J$48,9,FALSE),"") ->  | W119: =IFERROR(VLOOKUP(W118,'P2'!$B$4:$J$48,9,FALSE),"") ->  | X119: =IFERROR(VLOOKUP(X118,'P2'!$B$4:$J$48,9,FALSE),"") ->  | Y119: =IFERROR(VLOOKUP(Y118,'P2'!$B$4:$J$48,9,FALSE),"") ->  | Z119: =IFERROR(VLOOKUP(Z118,'P2'!$B$4:$J$48,9,FALSE),"") ->  | AA119: =IFERROR(VLOOKUP(AA118,'P2'!$B$4:$J$48,9,FALSE),"") ->  | AB119: =IFERROR(VLOOKUP(AB118,'P2'!$B$4:$J$48,9,FALSE),"") ->  | AC119: =IFERROR(VLOOKUP(AC118,'P2'!$B$4:$J$48,9,FALSE),"") ->  | AD119: =IFERROR(VLOOKUP(AD118,'P2'!$B$4:$J$48,9,FALSE),"") ->  | AE119: =IFERROR(VLOOKUP(AE118,'P2'!$B$4:$J$48,9,FALSE),"") ->  | AF119: =IFERROR(VLOOKUP(AF118,'P2'!$B$4:$J$48,9,FALSE),"") ->  | AG119: =IFERROR(VLOOKUP(AG118,'P2'!$B$4:$J$48,9,FALSE),"") ->  | AH119: =IFERROR(VLOOKUP(AH118,'P2'!$B$4:$J$48,9,FALSE),"") ->  | AI119: =IFERROR(VLOOKUP(AI118,'P2'!$B$4:$J$48,9,FALSE),"") ->  | AJ119: =IFERROR(VLOOKUP(AJ118,'P2'!$B$4:$J$48,9,FALSE),"") ->  | AK119: =IFERROR(VLOOKUP(AK118,'P2'!$B$4:$J$48,9,FALSE),"") ->  | AL119: =IFERROR(VLOOKUP(AL118,'P2'!$B$4:$J$48,9,FALSE),"") ->  | AM119: =IFERROR(VLOOKUP(AM118,'P2'!$B$4:$J$48,9,FALSE),"") ->  | AN119: =IFERROR(VLOOKUP(AN118,'P2'!$B$4:$J$48,9,FALSE),"") ->  | AO119: =IFERROR(VLOOKUP(AO118,'P2'!$B$4:$J$48,9,FALSE),"") ->  | AP119: =IFERROR(VLOOKUP(AP118,'P2'!$B$4:$J$48,9,FALSE),"") ->  | AQ119: =IFERROR(VLOOKUP(AQ118,'P2'!$B$4:$J$48,9,FALSE),"") ->  | AR119: =IFERROR(VLOOKUP(AR118,'P2'!$B$4:$J$48,9,FALSE),"") ->  | AS119: =IFERROR(VLOOKUP(AS118,'P2'!$B$4:$J$48,9,FALSE),"") ->  | AT119: =IFERROR(VLOOKUP(AT118,'P2'!$B$4:$J$48,9,FALSE),"") ->  | AU119: =IFERROR(VLOOKUP(AU118,'P2'!$B$4:$J$48,9,FALSE),"") ->  | AV119: =SUM(Q119:AU119) -> 0
B120: 48 | AV120: =COUNTA(Q120:AU120) -> 0 | AW120: =AV121 -> 0 | AX120: =IFERROR(ROUNDDOWN(AV121/$AT$3,1),"") -> 
Q121: =IFERROR(VLOOKUP(Q120,'P2'!$B$4:$J$48,9,FALSE),"") ->  | R121: =IFERROR(VLOOKUP(R120,'P2'!$B$4:$J$48,9,FALSE),"") ->  | S121: =IFERROR(VLOOKUP(S120,'P2'!$B$4:$J$48,9,FALSE),"") ->  | T121: =IFERROR(VLOOKUP(T120,'P2'!$B$4:$J$48,9,FALSE),"") ->  | U121: =IFERROR(VLOOKUP(U120,'P2'!$B$4:$J$48,9,FALSE),"") ->  | V121: =IFERROR(VLOOKUP(V120,'P2'!$B$4:$J$48,9,FALSE),"") ->  | W121: =IFERROR(VLOOKUP(W120,'P2'!$B$4:$J$48,9,FALSE),"") ->  | X121: =IFERROR(VLOOKUP(X120,'P2'!$B$4:$J$48,9,FALSE),"") ->  | Y121: =IFERROR(VLOOKUP(Y120,'P2'!$B$4:$J$48,9,FALSE),"") ->  | Z121: =IFERROR(VLOOKUP(Z120,'P2'!$B$4:$J$48,9,FALSE),"") ->  | AA121: =IFERROR(VLOOKUP(AA120,'P2'!$B$4:$J$48,9,FALSE),"") ->  | AB121: =IFERROR(VLOOKUP(AB120,'P2'!$B$4:$J$48,9,FALSE),"") ->  | AC121: =IFERROR(VLOOKUP(AC120,'P2'!$B$4:$J$48,9,FALSE),"") ->  | AD121: =IFERROR(VLOOKUP(AD120,'P2'!$B$4:$J$48,9,FALSE),"") ->  | AE121: =IFERROR(VLOOKUP(AE120,'P2'!$B$4:$J$48,9,FALSE),"") ->  | AF121: =IFERROR(VLOOKUP(AF120,'P2'!$B$4:$J$48,9,FALSE),"") ->  | AG121: =IFERROR(VLOOKUP(AG120,'P2'!$B$4:$J$48,9,FALSE),"") ->  | AH121: =IFERROR(VLOOKUP(AH120,'P2'!$B$4:$J$48,9,FALSE),"") ->  | AI121: =IFERROR(VLOOKUP(AI120,'P2'!$B$4:$J$48,9,FALSE),"") ->  | AJ121: =IFERROR(VLOOKUP(AJ120,'P2'!$B$4:$J$48,9,FALSE),"") ->  | AK121: =IFERROR(VLOOKUP(AK120,'P2'!$B$4:$J$48,9,FALSE),"") ->  | AL121: =IFERROR(VLOOKUP(AL120,'P2'!$B$4:$J$48,9,FALSE),"") ->  | AM121: =IFERROR(VLOOKUP(AM120,'P2'!$B$4:$J$48,9,FALSE),"") ->  | AN121: =IFERROR(VLOOKUP(AN120,'P2'!$B$4:$J$48,9,FALSE),"") ->  | AO121: =IFERROR(VLOOKUP(AO120,'P2'!$B$4:$J$48,9,FALSE),"") ->  | AP121: =IFERROR(VLOOKUP(AP120,'P2'!$B$4:$J$48,9,FALSE),"") ->  | AQ121: =IFERROR(VLOOKUP(AQ120,'P2'!$B$4:$J$48,9,FALSE),"") ->  | AR121: =IFERROR(VLOOKUP(AR120,'P2'!$B$4:$J$48,9,FALSE),"") ->  | AS121: =IFERROR(VLOOKUP(AS120,'P2'!$B$4:$J$48,9,FALSE),"") ->  | AT121: =IFERROR(VLOOKUP(AT120,'P2'!$B$4:$J$48,9,FALSE),"") ->  | AU121: =IFERROR(VLOOKUP(AU120,'P2'!$B$4:$J$48,9,FALSE),"") ->  | AV121: =SUM(Q121:AU121) -> 0
B122: 49 | AV122: =COUNTA(Q122:AU122) -> 0 | AW122: =AV123 -> 0 | AX122: =IFERROR(ROUNDDOWN(AV123/$AT$3,1),"") -> 
Q123: =IFERROR(VLOOKUP(Q122,'P2'!$B$4:$J$48,9,FALSE),"") ->  | R123: =IFERROR(VLOOKUP(R122,'P2'!$B$4:$J$48,9,FALSE),"") ->  | S123: =IFERROR(VLOOKUP(S122,'P2'!$B$4:$J$48,9,FALSE),"") ->  | T123: =IFERROR(VLOOKUP(T122,'P2'!$B$4:$J$48,9,FALSE),"") ->  | U123: =IFERROR(VLOOKUP(U122,'P2'!$B$4:$J$48,9,FALSE),"") ->  | V123: =IFERROR(VLOOKUP(V122,'P2'!$B$4:$J$48,9,FALSE),"") ->  | W123: =IFERROR(VLOOKUP(W122,'P2'!$B$4:$J$48,9,FALSE),"") ->  | X123: =IFERROR(VLOOKUP(X122,'P2'!$B$4:$J$48,9,FALSE),"") ->  | Y123: =IFERROR(VLOOKUP(Y122,'P2'!$B$4:$J$48,9,FALSE),"") ->  | Z123: =IFERROR(VLOOKUP(Z122,'P2'!$B$4:$J$48,9,FALSE),"") ->  | AA123: =IFERROR(VLOOKUP(AA122,'P2'!$B$4:$J$48,9,FALSE),"") ->  | AB123: =IFERROR(VLOOKUP(AB122,'P2'!$B$4:$J$48,9,FALSE),"") ->  | AC123: =IFERROR(VLOOKUP(AC122,'P2'!$B$4:$J$48,9,FALSE),"") ->  | AD123: =IFERROR(VLOOKUP(AD122,'P2'!$B$4:$J$48,9,FALSE),"") ->  | AE123: =IFERROR(VLOOKUP(AE122,'P2'!$B$4:$J$48,9,FALSE),"") ->  | AF123: =IFERROR(VLOOKUP(AF122,'P2'!$B$4:$J$48,9,FALSE),"") ->  | AG123: =IFERROR(VLOOKUP(AG122,'P2'!$B$4:$J$48,9,FALSE),"") ->  | AH123: =IFERROR(VLOOKUP(AH122,'P2'!$B$4:$J$48,9,FALSE),"") ->  | AI123: =IFERROR(VLOOKUP(AI122,'P2'!$B$4:$J$48,9,FALSE),"") ->  | AJ123: =IFERROR(VLOOKUP(AJ122,'P2'!$B$4:$J$48,9,FALSE),"") ->  | AK123: =IFERROR(VLOOKUP(AK122,'P2'!$B$4:$J$48,9,FALSE),"") ->  | AL123: =IFERROR(VLOOKUP(AL122,'P2'!$B$4:$J$48,9,FALSE),"") ->  | AM123: =IFERROR(VLOOKUP(AM122,'P2'!$B$4:$J$48,9,FALSE),"") ->  | AN123: =IFERROR(VLOOKUP(AN122,'P2'!$B$4:$J$48,9,FALSE),"") ->  | AO123: =IFERROR(VLOOKUP(AO122,'P2'!$B$4:$J$48,9,FALSE),"") ->  | AP123: =IFERROR(VLOOKUP(AP122,'P2'!$B$4:$J$48,9,FALSE),"") ->  | AQ123: =IFERROR(VLOOKUP(AQ122,'P2'!$B$4:$J$48,9,FALSE),"") ->  | AR123: =IFERROR(VLOOKUP(AR122,'P2'!$B$4:$J$48,9,FALSE),"") ->  | AS123: =IFERROR(VLOOKUP(AS122,'P2'!$B$4:$J$48,9,FALSE),"") ->  | AT123: =IFERROR(VLOOKUP(AT122,'P2'!$B$4:$J$48,9,FALSE),"") ->  | AU123: =IFERROR(VLOOKUP(AU122,'P2'!$B$4:$J$48,9,FALSE),"") ->  | AV123: =SUM(Q123:AU123) -> 0
B124: 50 | AV124: =COUNTA(Q124:AU124) -> 0 | AW124: =AV125 -> 0 | AX124: =IFERROR(ROUNDDOWN(AV125/$AT$3,1),"") -> 
Q125: =IFERROR(VLOOKUP(Q124,'P2'!$B$4:$J$48,9,FALSE),"") ->  | R125: =IFERROR(VLOOKUP(R124,'P2'!$B$4:$J$48,9,FALSE),"") ->  | S125: =IFERROR(VLOOKUP(S124,'P2'!$B$4:$J$48,9,FALSE),"") ->  | T125: =IFERROR(VLOOKUP(T124,'P2'!$B$4:$J$48,9,FALSE),"") ->  | U125: =IFERROR(VLOOKUP(U124,'P2'!$B$4:$J$48,9,FALSE),"") ->  | V125: =IFERROR(VLOOKUP(V124,'P2'!$B$4:$J$48,9,FALSE),"") ->  | W125: =IFERROR(VLOOKUP(W124,'P2'!$B$4:$J$48,9,FALSE),"") ->  | X125: =IFERROR(VLOOKUP(X124,'P2'!$B$4:$J$48,9,FALSE),"") ->  | Y125: =IFERROR(VLOOKUP(Y124,'P2'!$B$4:$J$48,9,FALSE),"") ->  | Z125: =IFERROR(VLOOKUP(Z124,'P2'!$B$4:$J$48,9,FALSE),"") ->  | AA125: =IFERROR(VLOOKUP(AA124,'P2'!$B$4:$J$48,9,FALSE),"") ->  | AB125: =IFERROR(VLOOKUP(AB124,'P2'!$B$4:$J$48,9,FALSE),"") ->  | AC125: =IFERROR(VLOOKUP(AC124,'P2'!$B$4:$J$48,9,FALSE),"") ->  | AD125: =IFERROR(VLOOKUP(AD124,'P2'!$B$4:$J$48,9,FALSE),"") ->  | AE125: =IFERROR(VLOOKUP(AE124,'P2'!$B$4:$J$48,9,FALSE),"") ->  | AF125: =IFERROR(VLOOKUP(AF124,'P2'!$B$4:$J$48,9,FALSE),"") ->  | AG125: =IFERROR(VLOOKUP(AG124,'P2'!$B$4:$J$48,9,FALSE),"") ->  | AH125: =IFERROR(VLOOKUP(AH124,'P2'!$B$4:$J$48,9,FALSE),"") ->  | AI125: =IFERROR(VLOOKUP(AI124,'P2'!$B$4:$J$48,9,FALSE),"") ->  | AJ125: =IFERROR(VLOOKUP(AJ124,'P2'!$B$4:$J$48,9,FALSE),"") ->  | AK125: =IFERROR(VLOOKUP(AK124,'P2'!$B$4:$J$48,9,FALSE),"") ->  | AL125: =IFERROR(VLOOKUP(AL124,'P2'!$B$4:$J$48,9,FALSE),"") ->  | AM125: =IFERROR(VLOOKUP(AM124,'P2'!$B$4:$J$48,9,FALSE),"") ->  | AN125: =IFERROR(VLOOKUP(AN124,'P2'!$B$4:$J$48,9,FALSE),"") ->  | AO125: =IFERROR(VLOOKUP(AO124,'P2'!$B$4:$J$48,9,FALSE),"") ->  | AP125: =IFERROR(VLOOKUP(AP124,'P2'!$B$4:$J$48,9,FALSE),"") ->  | AQ125: =IFERROR(VLOOKUP(AQ124,'P2'!$B$4:$J$48,9,FALSE),"") ->  | AR125: =IFERROR(VLOOKUP(AR124,'P2'!$B$4:$J$48,9,FALSE),"") ->  | AS125: =IFERROR(VLOOKUP(AS124,'P2'!$B$4:$J$48,9,FALSE),"") ->  | AT125: =IFERROR(VLOOKUP(AT124,'P2'!$B$4:$J$48,9,FALSE),"") ->  | AU125: =IFERROR(VLOOKUP(AU124,'P2'!$B$4:$J$48,9,FALSE),"") ->  | AV125: =SUM(Q125:AU125) -> 0
B126: 51 | AV126: =COUNTA(Q126:AU126) -> 0 | AW126: =AV127 -> 0 | AX126: =IFERROR(ROUNDDOWN(AV127/$AT$3,1),"") -> 
Q127: =IFERROR(VLOOKUP(Q126,'P2'!$B$4:$J$48,9,FALSE),"") ->  | R127: =IFERROR(VLOOKUP(R126,'P2'!$B$4:$J$48,9,FALSE),"") ->  | S127: =IFERROR(VLOOKUP(S126,'P2'!$B$4:$J$48,9,FALSE),"") ->  | T127: =IFERROR(VLOOKUP(T126,'P2'!$B$4:$J$48,9,FALSE),"") ->  | U127: =IFERROR(VLOOKUP(U126,'P2'!$B$4:$J$48,9,FALSE),"") ->  | V127: =IFERROR(VLOOKUP(V126,'P2'!$B$4:$J$48,9,FALSE),"") ->  | W127: =IFERROR(VLOOKUP(W126,'P2'!$B$4:$J$48,9,FALSE),"") ->  | X127: =IFERROR(VLOOKUP(X126,'P2'!$B$4:$J$48,9,FALSE),"") ->  | Y127: =IFERROR(VLOOKUP(Y126,'P2'!$B$4:$J$48,9,FALSE),"") ->  | Z127: =IFERROR(VLOOKUP(Z126,'P2'!$B$4:$J$48,9,FALSE),"") ->  | AA127: =IFERROR(VLOOKUP(AA126,'P2'!$B$4:$J$48,9,FALSE),"") ->  | AB127: =IFERROR(VLOOKUP(AB126,'P2'!$B$4:$J$48,9,FALSE),"") ->  | AC127: =IFERROR(VLOOKUP(AC126,'P2'!$B$4:$J$48,9,FALSE),"") ->  | AD127: =IFERROR(VLOOKUP(AD126,'P2'!$B$4:$J$48,9,FALSE),"") ->  | AE127: =IFERROR(VLOOKUP(AE126,'P2'!$B$4:$J$48,9,FALSE),"") ->  | AF127: =IFERROR(VLOOKUP(AF126,'P2'!$B$4:$J$48,9,FALSE),"") ->  | AG127: =IFERROR(VLOOKUP(AG126,'P2'!$B$4:$J$48,9,FALSE),"") ->  | AH127: =IFERROR(VLOOKUP(AH126,'P2'!$B$4:$J$48,9,FALSE),"") ->  | AI127: =IFERROR(VLOOKUP(AI126,'P2'!$B$4:$J$48,9,FALSE),"") ->  | AJ127: =IFERROR(VLOOKUP(AJ126,'P2'!$B$4:$J$48,9,FALSE),"") ->  | AK127: =IFERROR(VLOOKUP(AK126,'P2'!$B$4:$J$48,9,FALSE),"") ->  | AL127: =IFERROR(VLOOKUP(AL126,'P2'!$B$4:$J$48,9,FALSE),"") ->  | AM127: =IFERROR(VLOOKUP(AM126,'P2'!$B$4:$J$48,9,FALSE),"") ->  | AN127: =IFERROR(VLOOKUP(AN126,'P2'!$B$4:$J$48,9,FALSE),"") ->  | AO127: =IFERROR(VLOOKUP(AO126,'P2'!$B$4:$J$48,9,FALSE),"") ->  | AP127: =IFERROR(VLOOKUP(AP126,'P2'!$B$4:$J$48,9,FALSE),"") ->  | AQ127: =IFERROR(VLOOKUP(AQ126,'P2'!$B$4:$J$48,9,FALSE),"") ->  | AR127: =IFERROR(VLOOKUP(AR126,'P2'!$B$4:$J$48,9,FALSE),"") ->  | AS127: =IFERROR(VLOOKUP(AS126,'P2'!$B$4:$J$48,9,FALSE),"") ->  | AT127: =IFERROR(VLOOKUP(AT126,'P2'!$B$4:$J$48,9,FALSE),"") ->  | AU127: =IFERROR(VLOOKUP(AU126,'P2'!$B$4:$J$48,9,FALSE),"") ->  | AV127: =SUM(Q127:AU127) -> 0
B128: 52 | AV128: =COUNTA(Q128:AU128) -> 0 | AW128: =AV129 -> 0 | AX128: =IFERROR(ROUNDDOWN(AV129/$AT$3,1),"") -> 
Q129: =IFERROR(VLOOKUP(Q128,'P2'!$B$4:$J$48,9,FALSE),"") ->  | R129: =IFERROR(VLOOKUP(R128,'P2'!$B$4:$J$48,9,FALSE),"") ->  | S129: =IFERROR(VLOOKUP(S128,'P2'!$B$4:$J$48,9,FALSE),"") ->  | T129: =IFERROR(VLOOKUP(T128,'P2'!$B$4:$J$48,9,FALSE),"") ->  | U129: =IFERROR(VLOOKUP(U128,'P2'!$B$4:$J$48,9,FALSE),"") ->  | V129: =IFERROR(VLOOKUP(V128,'P2'!$B$4:$J$48,9,FALSE),"") ->  | W129: =IFERROR(VLOOKUP(W128,'P2'!$B$4:$J$48,9,FALSE),"") ->  | X129: =IFERROR(VLOOKUP(X128,'P2'!$B$4:$J$48,9,FALSE),"") ->  | Y129: =IFERROR(VLOOKUP(Y128,'P2'!$B$4:$J$48,9,FALSE),"") ->  | Z129: =IFERROR(VLOOKUP(Z128,'P2'!$B$4:$J$48,9,FALSE),"") ->  | AA129: =IFERROR(VLOOKUP(AA128,'P2'!$B$4:$J$48,9,FALSE),"") ->  | AB129: =IFERROR(VLOOKUP(AB128,'P2'!$B$4:$J$48,9,FALSE),"") ->  | AC129: =IFERROR(VLOOKUP(AC128,'P2'!$B$4:$J$48,9,FALSE),"") ->  | AD129: =IFERROR(VLOOKUP(AD128,'P2'!$B$4:$J$48,9,FALSE),"") ->  | AE129: =IFERROR(VLOOKUP(AE128,'P2'!$B$4:$J$48,9,FALSE),"") ->  | AF129: =IFERROR(VLOOKUP(AF128,'P2'!$B$4:$J$48,9,FALSE),"") ->  | AG129: =IFERROR(VLOOKUP(AG128,'P2'!$B$4:$J$48,9,FALSE),"") ->  | AH129: =IFERROR(VLOOKUP(AH128,'P2'!$B$4:$J$48,9,FALSE),"") ->  | AI129: =IFERROR(VLOOKUP(AI128,'P2'!$B$4:$J$48,9,FALSE),"") ->  | AJ129: =IFERROR(VLOOKUP(AJ128,'P2'!$B$4:$J$48,9,FALSE),"") ->  | AK129: =IFERROR(VLOOKUP(AK128,'P2'!$B$4:$J$48,9,FALSE),"") ->  | AL129: =IFERROR(VLOOKUP(AL128,'P2'!$B$4:$J$48,9,FALSE),"") ->  | AM129: =IFERROR(VLOOKUP(AM128,'P2'!$B$4:$J$48,9,FALSE),"") ->  | AN129: =IFERROR(VLOOKUP(AN128,'P2'!$B$4:$J$48,9,FALSE),"") ->  | AO129: =IFERROR(VLOOKUP(AO128,'P2'!$B$4:$J$48,9,FALSE),"") ->  | AP129: =IFERROR(VLOOKUP(AP128,'P2'!$B$4:$J$48,9,FALSE),"") ->  | AQ129: =IFERROR(VLOOKUP(AQ128,'P2'!$B$4:$J$48,9,FALSE),"") ->  | AR129: =IFERROR(VLOOKUP(AR128,'P2'!$B$4:$J$48,9,FALSE),"") ->  | AS129: =IFERROR(VLOOKUP(AS128,'P2'!$B$4:$J$48,9,FALSE),"") ->  | AT129: =IFERROR(VLOOKUP(AT128,'P2'!$B$4:$J$48,9,FALSE),"") ->  | AU129: =IFERROR(VLOOKUP(AU128,'P2'!$B$4:$J$48,9,FALSE),"") ->  | AV129: =SUM(Q129:AU129) -> 0
B130: 53 | AV130: =COUNTA(Q130:AU130) -> 0 | AW130: =AV131 -> 0 | AX130: =IFERROR(ROUNDDOWN(AV131/$AT$3,1),"") -> 
Q131: =IFERROR(VLOOKUP(Q130,'P2'!$B$4:$J$48,9,FALSE),"") ->  | R131: =IFERROR(VLOOKUP(R130,'P2'!$B$4:$J$48,9,FALSE),"") ->  | S131: =IFERROR(VLOOKUP(S130,'P2'!$B$4:$J$48,9,FALSE),"") ->  | T131: =IFERROR(VLOOKUP(T130,'P2'!$B$4:$J$48,9,FALSE),"") ->  | U131: =IFERROR(VLOOKUP(U130,'P2'!$B$4:$J$48,9,FALSE),"") ->  | V131: =IFERROR(VLOOKUP(V130,'P2'!$B$4:$J$48,9,FALSE),"") ->  | W131: =IFERROR(VLOOKUP(W130,'P2'!$B$4:$J$48,9,FALSE),"") ->  | X131: =IFERROR(VLOOKUP(X130,'P2'!$B$4:$J$48,9,FALSE),"") ->  | Y131: =IFERROR(VLOOKUP(Y130,'P2'!$B$4:$J$48,9,FALSE),"") ->  | Z131: =IFERROR(VLOOKUP(Z130,'P2'!$B$4:$J$48,9,FALSE),"") ->  | AA131: =IFERROR(VLOOKUP(AA130,'P2'!$B$4:$J$48,9,FALSE),"") ->  | AB131: =IFERROR(VLOOKUP(AB130,'P2'!$B$4:$J$48,9,FALSE),"") ->  | AC131: =IFERROR(VLOOKUP(AC130,'P2'!$B$4:$J$48,9,FALSE),"") ->  | AD131: =IFERROR(VLOOKUP(AD130,'P2'!$B$4:$J$48,9,FALSE),"") ->  | AE131: =IFERROR(VLOOKUP(AE130,'P2'!$B$4:$J$48,9,FALSE),"") ->  | AF131: =IFERROR(VLOOKUP(AF130,'P2'!$B$4:$J$48,9,FALSE),"") ->  | AG131: =IFERROR(VLOOKUP(AG130,'P2'!$B$4:$J$48,9,FALSE),"") ->  | AH131: =IFERROR(VLOOKUP(AH130,'P2'!$B$4:$J$48,9,FALSE),"") ->  | AI131: =IFERROR(VLOOKUP(AI130,'P2'!$B$4:$J$48,9,FALSE),"") ->  | AJ131: =IFERROR(VLOOKUP(AJ130,'P2'!$B$4:$J$48,9,FALSE),"") ->  | AK131: =IFERROR(VLOOKUP(AK130,'P2'!$B$4:$J$48,9,FALSE),"") ->  | AL131: =IFERROR(VLOOKUP(AL130,'P2'!$B$4:$J$48,9,FALSE),"") ->  | AM131: =IFERROR(VLOOKUP(AM130,'P2'!$B$4:$J$48,9,FALSE),"") ->  | AN131: =IFERROR(VLOOKUP(AN130,'P2'!$B$4:$J$48,9,FALSE),"") ->  | AO131: =IFERROR(VLOOKUP(AO130,'P2'!$B$4:$J$48,9,FALSE),"") ->  | AP131: =IFERROR(VLOOKUP(AP130,'P2'!$B$4:$J$48,9,FALSE),"") ->  | AQ131: =IFERROR(VLOOKUP(AQ130,'P2'!$B$4:$J$48,9,FALSE),"") ->  | AR131: =IFERROR(VLOOKUP(AR130,'P2'!$B$4:$J$48,9,FALSE),"") ->  | AS131: =IFERROR(VLOOKUP(AS130,'P2'!$B$4:$J$48,9,FALSE),"") ->  | AT131: =IFERROR(VLOOKUP(AT130,'P2'!$B$4:$J$48,9,FALSE),"") ->  | AU131: =IFERROR(VLOOKUP(AU130,'P2'!$B$4:$J$48,9,FALSE),"") ->  | AV131: =SUM(Q131:AU131) -> 0
B132: 54 | AV132: =COUNTA(Q132:AU132) -> 0 | AW132: =AV133 -> 0 | AX132: =IFERROR(ROUNDDOWN(AV133/$AT$3,1),"") -> 
Q133: =IFERROR(VLOOKUP(Q132,'P2'!$B$4:$J$48,9,FALSE),"") ->  | R133: =IFERROR(VLOOKUP(R132,'P2'!$B$4:$J$48,9,FALSE),"") ->  | S133: =IFERROR(VLOOKUP(S132,'P2'!$B$4:$J$48,9,FALSE),"") ->  | T133: =IFERROR(VLOOKUP(T132,'P2'!$B$4:$J$48,9,FALSE),"") ->  | U133: =IFERROR(VLOOKUP(U132,'P2'!$B$4:$J$48,9,FALSE),"") ->  | V133: =IFERROR(VLOOKUP(V132,'P2'!$B$4:$J$48,9,FALSE),"") ->  | W133: =IFERROR(VLOOKUP(W132,'P2'!$B$4:$J$48,9,FALSE),"") ->  | X133: =IFERROR(VLOOKUP(X132,'P2'!$B$4:$J$48,9,FALSE),"") ->  | Y133: =IFERROR(VLOOKUP(Y132,'P2'!$B$4:$J$48,9,FALSE),"") ->  | Z133: =IFERROR(VLOOKUP(Z132,'P2'!$B$4:$J$48,9,FALSE),"") ->  | AA133: =IFERROR(VLOOKUP(AA132,'P2'!$B$4:$J$48,9,FALSE),"") ->  | AB133: =IFERROR(VLOOKUP(AB132,'P2'!$B$4:$J$48,9,FALSE),"") ->  | AC133: =IFERROR(VLOOKUP(AC132,'P2'!$B$4:$J$48,9,FALSE),"") ->  | AD133: =IFERROR(VLOOKUP(AD132,'P2'!$B$4:$J$48,9,FALSE),"") ->  | AE133: =IFERROR(VLOOKUP(AE132,'P2'!$B$4:$J$48,9,FALSE),"") ->  | AF133: =IFERROR(VLOOKUP(AF132,'P2'!$B$4:$J$48,9,FALSE),"") ->  | AG133: =IFERROR(VLOOKUP(AG132,'P2'!$B$4:$J$48,9,FALSE),"") ->  | AH133: =IFERROR(VLOOKUP(AH132,'P2'!$B$4:$J$48,9,FALSE),"") ->  | AI133: =IFERROR(VLOOKUP(AI132,'P2'!$B$4:$J$48,9,FALSE),"") ->  | AJ133: =IFERROR(VLOOKUP(AJ132,'P2'!$B$4:$J$48,9,FALSE),"") ->  | AK133: =IFERROR(VLOOKUP(AK132,'P2'!$B$4:$J$48,9,FALSE),"") ->  | AL133: =IFERROR(VLOOKUP(AL132,'P2'!$B$4:$J$48,9,FALSE),"") ->  | AM133: =IFERROR(VLOOKUP(AM132,'P2'!$B$4:$J$48,9,FALSE),"") ->  | AN133: =IFERROR(VLOOKUP(AN132,'P2'!$B$4:$J$48,9,FALSE),"") ->  | AO133: =IFERROR(VLOOKUP(AO132,'P2'!$B$4:$J$48,9,FALSE),"") ->  | AP133: =IFERROR(VLOOKUP(AP132,'P2'!$B$4:$J$48,9,FALSE),"") ->  | AQ133: =IFERROR(VLOOKUP(AQ132,'P2'!$B$4:$J$48,9,FALSE),"") ->  | AR133: =IFERROR(VLOOKUP(AR132,'P2'!$B$4:$J$48,9,FALSE),"") ->  | AS133: =IFERROR(VLOOKUP(AS132,'P2'!$B$4:$J$48,9,FALSE),"") ->  | AT133: =IFERROR(VLOOKUP(AT132,'P2'!$B$4:$J$48,9,FALSE),"") ->  | AU133: =IFERROR(VLOOKUP(AU132,'P2'!$B$4:$J$48,9,FALSE),"") ->  | AV133: =SUM(Q133:AU133) -> 0
B134: 55 | AV134: =COUNTA(Q134:AU134) -> 0 | AW134: =AV135 -> 0 | AX134: =IFERROR(ROUNDDOWN(AV135/$AT$3,1),"") -> 
Q135: =IFERROR(VLOOKUP(Q134,'P2'!$B$4:$J$48,9,FALSE),"") ->  | R135: =IFERROR(VLOOKUP(R134,'P2'!$B$4:$J$48,9,FALSE),"") ->  | S135: =IFERROR(VLOOKUP(S134,'P2'!$B$4:$J$48,9,FALSE),"") ->  | T135: =IFERROR(VLOOKUP(T134,'P2'!$B$4:$J$48,9,FALSE),"") ->  | U135: =IFERROR(VLOOKUP(U134,'P2'!$B$4:$J$48,9,FALSE),"") ->  | V135: =IFERROR(VLOOKUP(V134,'P2'!$B$4:$J$48,9,FALSE),"") ->  | W135: =IFERROR(VLOOKUP(W134,'P2'!$B$4:$J$48,9,FALSE),"") ->  | X135: =IFERROR(VLOOKUP(X134,'P2'!$B$4:$J$48,9,FALSE),"") ->  | Y135: =IFERROR(VLOOKUP(Y134,'P2'!$B$4:$J$48,9,FALSE),"") ->  | Z135: =IFERROR(VLOOKUP(Z134,'P2'!$B$4:$J$48,9,FALSE),"") ->  | AA135: =IFERROR(VLOOKUP(AA134,'P2'!$B$4:$J$48,9,FALSE),"") ->  | AB135: =IFERROR(VLOOKUP(AB134,'P2'!$B$4:$J$48,9,FALSE),"") ->  | AC135: =IFERROR(VLOOKUP(AC134,'P2'!$B$4:$J$48,9,FALSE),"") ->  | AD135: =IFERROR(VLOOKUP(AD134,'P2'!$B$4:$J$48,9,FALSE),"") ->  | AE135: =IFERROR(VLOOKUP(AE134,'P2'!$B$4:$J$48,9,FALSE),"") ->  | AF135: =IFERROR(VLOOKUP(AF134,'P2'!$B$4:$J$48,9,FALSE),"") ->  | AG135: =IFERROR(VLOOKUP(AG134,'P2'!$B$4:$J$48,9,FALSE),"") ->  | AH135: =IFERROR(VLOOKUP(AH134,'P2'!$B$4:$J$48,9,FALSE),"") ->  | AI135: =IFERROR(VLOOKUP(AI134,'P2'!$B$4:$J$48,9,FALSE),"") ->  | AJ135: =IFERROR(VLOOKUP(AJ134,'P2'!$B$4:$J$48,9,FALSE),"") ->  | AK135: =IFERROR(VLOOKUP(AK134,'P2'!$B$4:$J$48,9,FALSE),"") ->  | AL135: =IFERROR(VLOOKUP(AL134,'P2'!$B$4:$J$48,9,FALSE),"") ->  | AM135: =IFERROR(VLOOKUP(AM134,'P2'!$B$4:$J$48,9,FALSE),"") ->  | AN135: =IFERROR(VLOOKUP(AN134,'P2'!$B$4:$J$48,9,FALSE),"") ->  | AO135: =IFERROR(VLOOKUP(AO134,'P2'!$B$4:$J$48,9,FALSE),"") ->  | AP135: =IFERROR(VLOOKUP(AP134,'P2'!$B$4:$J$48,9,FALSE),"") ->  | AQ135: =IFERROR(VLOOKUP(AQ134,'P2'!$B$4:$J$48,9,FALSE),"") ->  | AR135: =IFERROR(VLOOKUP(AR134,'P2'!$B$4:$J$48,9,FALSE),"") ->  | AS135: =IFERROR(VLOOKUP(AS134,'P2'!$B$4:$J$48,9,FALSE),"") ->  | AT135: =IFERROR(VLOOKUP(AT134,'P2'!$B$4:$J$48,9,FALSE),"") ->  | AU135: =IFERROR(VLOOKUP(AU134,'P2'!$B$4:$J$48,9,FALSE),"") ->  | AV135: =SUM(Q135:AU135) -> 0
B136: 56 | AV136: =COUNTA(Q136:AU136) -> 0 | AW136: =AV137 -> 0 | AX136: =IFERROR(ROUNDDOWN(AV137/$AT$3,1),"") -> 
Q137: =IFERROR(VLOOKUP(Q136,'P2'!$B$4:$J$48,9,FALSE),"") ->  | R137: =IFERROR(VLOOKUP(R136,'P2'!$B$4:$J$48,9,FALSE),"") ->  | S137: =IFERROR(VLOOKUP(S136,'P2'!$B$4:$J$48,9,FALSE),"") ->  | T137: =IFERROR(VLOOKUP(T136,'P2'!$B$4:$J$48,9,FALSE),"") ->  | U137: =IFERROR(VLOOKUP(U136,'P2'!$B$4:$J$48,9,FALSE),"") ->  | V137: =IFERROR(VLOOKUP(V136,'P2'!$B$4:$J$48,9,FALSE),"") ->  | W137: =IFERROR(VLOOKUP(W136,'P2'!$B$4:$J$48,9,FALSE),"") ->  | X137: =IFERROR(VLOOKUP(X136,'P2'!$B$4:$J$48,9,FALSE),"") ->  | Y137: =IFERROR(VLOOKUP(Y136,'P2'!$B$4:$J$48,9,FALSE),"") ->  | Z137: =IFERROR(VLOOKUP(Z136,'P2'!$B$4:$J$48,9,FALSE),"") ->  | AA137: =IFERROR(VLOOKUP(AA136,'P2'!$B$4:$J$48,9,FALSE),"") ->  | AB137: =IFERROR(VLOOKUP(AB136,'P2'!$B$4:$J$48,9,FALSE),"") ->  | AC137: =IFERROR(VLOOKUP(AC136,'P2'!$B$4:$J$48,9,FALSE),"") ->  | AD137: =IFERROR(VLOOKUP(AD136,'P2'!$B$4:$J$48,9,FALSE),"") ->  | AE137: =IFERROR(VLOOKUP(AE136,'P2'!$B$4:$J$48,9,FALSE),"") ->  | AF137: =IFERROR(VLOOKUP(AF136,'P2'!$B$4:$J$48,9,FALSE),"") ->  | AG137: =IFERROR(VLOOKUP(AG136,'P2'!$B$4:$J$48,9,FALSE),"") ->  | AH137: =IFERROR(VLOOKUP(AH136,'P2'!$B$4:$J$48,9,FALSE),"") ->  | AI137: =IFERROR(VLOOKUP(AI136,'P2'!$B$4:$J$48,9,FALSE),"") ->  | AJ137: =IFERROR(VLOOKUP(AJ136,'P2'!$B$4:$J$48,9,FALSE),"") ->  | AK137: =IFERROR(VLOOKUP(AK136,'P2'!$B$4:$J$48,9,FALSE),"") ->  | AL137: =IFERROR(VLOOKUP(AL136,'P2'!$B$4:$J$48,9,FALSE),"") ->  | AM137: =IFERROR(VLOOKUP(AM136,'P2'!$B$4:$J$48,9,FALSE),"") ->  | AN137: =IFERROR(VLOOKUP(AN136,'P2'!$B$4:$J$48,9,FALSE),"") ->  | AO137: =IFERROR(VLOOKUP(AO136,'P2'!$B$4:$J$48,9,FALSE),"") ->  | AP137: =IFERROR(VLOOKUP(AP136,'P2'!$B$4:$J$48,9,FALSE),"") ->  | AQ137: =IFERROR(VLOOKUP(AQ136,'P2'!$B$4:$J$48,9,FALSE),"") ->  | AR137: =IFERROR(VLOOKUP(AR136,'P2'!$B$4:$J$48,9,FALSE),"") ->  | AS137: =IFERROR(VLOOKUP(AS136,'P2'!$B$4:$J$48,9,FALSE),"") ->  | AT137: =IFERROR(VLOOKUP(AT136,'P2'!$B$4:$J$48,9,FALSE),"") ->  | AU137: =IFERROR(VLOOKUP(AU136,'P2'!$B$4:$J$48,9,FALSE),"") ->  | AV137: =SUM(Q137:AU137) -> 0
B138: 57 | AV138: =COUNTA(Q138:AU138) -> 0 | AW138: =AV139 -> 0 | AX138: =IFERROR(ROUNDDOWN(AV139/$AT$3,1),"") -> 
Q139: =IFERROR(VLOOKUP(Q138,'P2'!$B$4:$J$48,9,FALSE),"") ->  | R139: =IFERROR(VLOOKUP(R138,'P2'!$B$4:$J$48,9,FALSE),"") ->  | S139: =IFERROR(VLOOKUP(S138,'P2'!$B$4:$J$48,9,FALSE),"") ->  | T139: =IFERROR(VLOOKUP(T138,'P2'!$B$4:$J$48,9,FALSE),"") ->  | U139: =IFERROR(VLOOKUP(U138,'P2'!$B$4:$J$48,9,FALSE),"") ->  | V139: =IFERROR(VLOOKUP(V138,'P2'!$B$4:$J$48,9,FALSE),"") ->  | W139: =IFERROR(VLOOKUP(W138,'P2'!$B$4:$J$48,9,FALSE),"") ->  | X139: =IFERROR(VLOOKUP(X138,'P2'!$B$4:$J$48,9,FALSE),"") ->  | Y139: =IFERROR(VLOOKUP(Y138,'P2'!$B$4:$J$48,9,FALSE),"") ->  | Z139: =IFERROR(VLOOKUP(Z138,'P2'!$B$4:$J$48,9,FALSE),"") ->  | AA139: =IFERROR(VLOOKUP(AA138,'P2'!$B$4:$J$48,9,FALSE),"") ->  | AB139: =IFERROR(VLOOKUP(AB138,'P2'!$B$4:$J$48,9,FALSE),"") ->  | AC139: =IFERROR(VLOOKUP(AC138,'P2'!$B$4:$J$48,9,FALSE),"") ->  | AD139: =IFERROR(VLOOKUP(AD138,'P2'!$B$4:$J$48,9,FALSE),"") ->  | AE139: =IFERROR(VLOOKUP(AE138,'P2'!$B$4:$J$48,9,FALSE),"") ->  | AF139: =IFERROR(VLOOKUP(AF138,'P2'!$B$4:$J$48,9,FALSE),"") ->  | AG139: =IFERROR(VLOOKUP(AG138,'P2'!$B$4:$J$48,9,FALSE),"") ->  | AH139: =IFERROR(VLOOKUP(AH138,'P2'!$B$4:$J$48,9,FALSE),"") ->  | AI139: =IFERROR(VLOOKUP(AI138,'P2'!$B$4:$J$48,9,FALSE),"") ->  | AJ139: =IFERROR(VLOOKUP(AJ138,'P2'!$B$4:$J$48,9,FALSE),"") ->  | AK139: =IFERROR(VLOOKUP(AK138,'P2'!$B$4:$J$48,9,FALSE),"") ->  | AL139: =IFERROR(VLOOKUP(AL138,'P2'!$B$4:$J$48,9,FALSE),"") ->  | AM139: =IFERROR(VLOOKUP(AM138,'P2'!$B$4:$J$48,9,FALSE),"") ->  | AN139: =IFERROR(VLOOKUP(AN138,'P2'!$B$4:$J$48,9,FALSE),"") ->  | AO139: =IFERROR(VLOOKUP(AO138,'P2'!$B$4:$J$48,9,FALSE),"") ->  | AP139: =IFERROR(VLOOKUP(AP138,'P2'!$B$4:$J$48,9,FALSE),"") ->  | AQ139: =IFERROR(VLOOKUP(AQ138,'P2'!$B$4:$J$48,9,FALSE),"") ->  | AR139: =IFERROR(VLOOKUP(AR138,'P2'!$B$4:$J$48,9,FALSE),"") ->  | AS139: =IFERROR(VLOOKUP(AS138,'P2'!$B$4:$J$48,9,FALSE),"") ->  | AT139: =IFERROR(VLOOKUP(AT138,'P2'!$B$4:$J$48,9,FALSE),"") ->  | AU139: =IFERROR(VLOOKUP(AU138,'P2'!$B$4:$J$48,9,FALSE),"") ->  | AV139: =SUM(Q139:AU139) -> 0
B140: 58 | AV140: =COUNTA(Q140:AU140) -> 0 | AW140: =AV141 -> 0 | AX140: =IFERROR(ROUNDDOWN(AV141/$AT$3,1),"") -> 
Q141: =IFERROR(VLOOKUP(Q140,'P2'!$B$4:$J$48,9,FALSE),"") ->  | R141: =IFERROR(VLOOKUP(R140,'P2'!$B$4:$J$48,9,FALSE),"") ->  | S141: =IFERROR(VLOOKUP(S140,'P2'!$B$4:$J$48,9,FALSE),"") ->  | T141: =IFERROR(VLOOKUP(T140,'P2'!$B$4:$J$48,9,FALSE),"") ->  | U141: =IFERROR(VLOOKUP(U140,'P2'!$B$4:$J$48,9,FALSE),"") ->  | V141: =IFERROR(VLOOKUP(V140,'P2'!$B$4:$J$48,9,FALSE),"") ->  | W141: =IFERROR(VLOOKUP(W140,'P2'!$B$4:$J$48,9,FALSE),"") ->  | X141: =IFERROR(VLOOKUP(X140,'P2'!$B$4:$J$48,9,FALSE),"") ->  | Y141: =IFERROR(VLOOKUP(Y140,'P2'!$B$4:$J$48,9,FALSE),"") ->  | Z141: =IFERROR(VLOOKUP(Z140,'P2'!$B$4:$J$48,9,FALSE),"") ->  | AA141: =IFERROR(VLOOKUP(AA140,'P2'!$B$4:$J$48,9,FALSE),"") ->  | AB141: =IFERROR(VLOOKUP(AB140,'P2'!$B$4:$J$48,9,FALSE),"") ->  | AC141: =IFERROR(VLOOKUP(AC140,'P2'!$B$4:$J$48,9,FALSE),"") ->  | AD141: =IFERROR(VLOOKUP(AD140,'P2'!$B$4:$J$48,9,FALSE),"") ->  | AE141: =IFERROR(VLOOKUP(AE140,'P2'!$B$4:$J$48,9,FALSE),"") ->  | AF141: =IFERROR(VLOOKUP(AF140,'P2'!$B$4:$J$48,9,FALSE),"") ->  | AG141: =IFERROR(VLOOKUP(AG140,'P2'!$B$4:$J$48,9,FALSE),"") ->  | AH141: =IFERROR(VLOOKUP(AH140,'P2'!$B$4:$J$48,9,FALSE),"") ->  | AI141: =IFERROR(VLOOKUP(AI140,'P2'!$B$4:$J$48,9,FALSE),"") ->  | AJ141: =IFERROR(VLOOKUP(AJ140,'P2'!$B$4:$J$48,9,FALSE),"") ->  | AK141: =IFERROR(VLOOKUP(AK140,'P2'!$B$4:$J$48,9,FALSE),"") ->  | AL141: =IFERROR(VLOOKUP(AL140,'P2'!$B$4:$J$48,9,FALSE),"") ->  | AM141: =IFERROR(VLOOKUP(AM140,'P2'!$B$4:$J$48,9,FALSE),"") ->  | AN141: =IFERROR(VLOOKUP(AN140,'P2'!$B$4:$J$48,9,FALSE),"") ->  | AO141: =IFERROR(VLOOKUP(AO140,'P2'!$B$4:$J$48,9,FALSE),"") ->  | AP141: =IFERROR(VLOOKUP(AP140,'P2'!$B$4:$J$48,9,FALSE),"") ->  | AQ141: =IFERROR(VLOOKUP(AQ140,'P2'!$B$4:$J$48,9,FALSE),"") ->  | AR141: =IFERROR(VLOOKUP(AR140,'P2'!$B$4:$J$48,9,FALSE),"") ->  | AS141: =IFERROR(VLOOKUP(AS140,'P2'!$B$4:$J$48,9,FALSE),"") ->  | AT141: =IFERROR(VLOOKUP(AT140,'P2'!$B$4:$J$48,9,FALSE),"") ->  | AU141: =IFERROR(VLOOKUP(AU140,'P2'!$B$4:$J$48,9,FALSE),"") ->  | AV141: =SUM(Q141:AU141) -> 0
B142: 59 | AV142: =COUNTA(Q142:AU142) -> 0 | AW142: =AV143 -> 0 | AX142: =IFERROR(ROUNDDOWN(AV143/$AT$3,1),"") -> 
Q143: =IFERROR(VLOOKUP(Q142,'P2'!$B$4:$J$48,9,FALSE),"") ->  | R143: =IFERROR(VLOOKUP(R142,'P2'!$B$4:$J$48,9,FALSE),"") ->  | S143: =IFERROR(VLOOKUP(S142,'P2'!$B$4:$J$48,9,FALSE),"") ->  | T143: =IFERROR(VLOOKUP(T142,'P2'!$B$4:$J$48,9,FALSE),"") ->  | U143: =IFERROR(VLOOKUP(U142,'P2'!$B$4:$J$48,9,FALSE),"") ->  | V143: =IFERROR(VLOOKUP(V142,'P2'!$B$4:$J$48,9,FALSE),"") ->  | W143: =IFERROR(VLOOKUP(W142,'P2'!$B$4:$J$48,9,FALSE),"") ->  | X143: =IFERROR(VLOOKUP(X142,'P2'!$B$4:$J$48,9,FALSE),"") ->  | Y143: =IFERROR(VLOOKUP(Y142,'P2'!$B$4:$J$48,9,FALSE),"") ->  | Z143: =IFERROR(VLOOKUP(Z142,'P2'!$B$4:$J$48,9,FALSE),"") ->  | AA143: =IFERROR(VLOOKUP(AA142,'P2'!$B$4:$J$48,9,FALSE),"") ->  | AB143: =IFERROR(VLOOKUP(AB142,'P2'!$B$4:$J$48,9,FALSE),"") ->  | AC143: =IFERROR(VLOOKUP(AC142,'P2'!$B$4:$J$48,9,FALSE),"") ->  | AD143: =IFERROR(VLOOKUP(AD142,'P2'!$B$4:$J$48,9,FALSE),"") ->  | AE143: =IFERROR(VLOOKUP(AE142,'P2'!$B$4:$J$48,9,FALSE),"") ->  | AF143: =IFERROR(VLOOKUP(AF142,'P2'!$B$4:$J$48,9,FALSE),"") ->  | AG143: =IFERROR(VLOOKUP(AG142,'P2'!$B$4:$J$48,9,FALSE),"") ->  | AH143: =IFERROR(VLOOKUP(AH142,'P2'!$B$4:$J$48,9,FALSE),"") ->  | AI143: =IFERROR(VLOOKUP(AI142,'P2'!$B$4:$J$48,9,FALSE),"") ->  | AJ143: =IFERROR(VLOOKUP(AJ142,'P2'!$B$4:$J$48,9,FALSE),"") ->  | AK143: =IFERROR(VLOOKUP(AK142,'P2'!$B$4:$J$48,9,FALSE),"") ->  | AL143: =IFERROR(VLOOKUP(AL142,'P2'!$B$4:$J$48,9,FALSE),"") ->  | AM143: =IFERROR(VLOOKUP(AM142,'P2'!$B$4:$J$48,9,FALSE),"") ->  | AN143: =IFERROR(VLOOKUP(AN142,'P2'!$B$4:$J$48,9,FALSE),"") ->  | AO143: =IFERROR(VLOOKUP(AO142,'P2'!$B$4:$J$48,9,FALSE),"") ->  | AP143: =IFERROR(VLOOKUP(AP142,'P2'!$B$4:$J$48,9,FALSE),"") ->  | AQ143: =IFERROR(VLOOKUP(AQ142,'P2'!$B$4:$J$48,9,FALSE),"") ->  | AR143: =IFERROR(VLOOKUP(AR142,'P2'!$B$4:$J$48,9,FALSE),"") ->  | AS143: =IFERROR(VLOOKUP(AS142,'P2'!$B$4:$J$48,9,FALSE),"") ->  | AT143: =IFERROR(VLOOKUP(AT142,'P2'!$B$4:$J$48,9,FALSE),"") ->  | AU143: =IFERROR(VLOOKUP(AU142,'P2'!$B$4:$J$48,9,FALSE),"") ->  | AV143: =SUM(Q143:AU143) -> 0
B144: 60 | AV144: =COUNTA(Q144:AU144) -> 0 | AW144: =AV145 -> 0 | AX144: =IFERROR(ROUNDDOWN(AV145/$AT$3,1),"") -> 
Q145: =IFERROR(VLOOKUP(Q144,'P2'!$B$4:$J$48,9,FALSE),"") ->  | R145: =IFERROR(VLOOKUP(R144,'P2'!$B$4:$J$48,9,FALSE),"") ->  | S145: =IFERROR(VLOOKUP(S144,'P2'!$B$4:$J$48,9,FALSE),"") ->  | T145: =IFERROR(VLOOKUP(T144,'P2'!$B$4:$J$48,9,FALSE),"") ->  | U145: =IFERROR(VLOOKUP(U144,'P2'!$B$4:$J$48,9,FALSE),"") ->  | V145: =IFERROR(VLOOKUP(V144,'P2'!$B$4:$J$48,9,FALSE),"") ->  | W145: =IFERROR(VLOOKUP(W144,'P2'!$B$4:$J$48,9,FALSE),"") ->  | X145: =IFERROR(VLOOKUP(X144,'P2'!$B$4:$J$48,9,FALSE),"") ->  | Y145: =IFERROR(VLOOKUP(Y144,'P2'!$B$4:$J$48,9,FALSE),"") ->  | Z145: =IFERROR(VLOOKUP(Z144,'P2'!$B$4:$J$48,9,FALSE),"") ->  | AA145: =IFERROR(VLOOKUP(AA144,'P2'!$B$4:$J$48,9,FALSE),"") ->  | AB145: =IFERROR(VLOOKUP(AB144,'P2'!$B$4:$J$48,9,FALSE),"") ->  | AC145: =IFERROR(VLOOKUP(AC144,'P2'!$B$4:$J$48,9,FALSE),"") ->  | AD145: =IFERROR(VLOOKUP(AD144,'P2'!$B$4:$J$48,9,FALSE),"") ->  | AE145: =IFERROR(VLOOKUP(AE144,'P2'!$B$4:$J$48,9,FALSE),"") ->  | AF145: =IFERROR(VLOOKUP(AF144,'P2'!$B$4:$J$48,9,FALSE),"") ->  | AG145: =IFERROR(VLOOKUP(AG144,'P2'!$B$4:$J$48,9,FALSE),"") ->  | AH145: =IFERROR(VLOOKUP(AH144,'P2'!$B$4:$J$48,9,FALSE),"") ->  | AI145: =IFERROR(VLOOKUP(AI144,'P2'!$B$4:$J$48,9,FALSE),"") ->  | AJ145: =IFERROR(VLOOKUP(AJ144,'P2'!$B$4:$J$48,9,FALSE),"") ->  | AK145: =IFERROR(VLOOKUP(AK144,'P2'!$B$4:$J$48,9,FALSE),"") ->  | AL145: =IFERROR(VLOOKUP(AL144,'P2'!$B$4:$J$48,9,FALSE),"") ->  | AM145: =IFERROR(VLOOKUP(AM144,'P2'!$B$4:$J$48,9,FALSE),"") ->  | AN145: =IFERROR(VLOOKUP(AN144,'P2'!$B$4:$J$48,9,FALSE),"") ->  | AO145: =IFERROR(VLOOKUP(AO144,'P2'!$B$4:$J$48,9,FALSE),"") ->  | AP145: =IFERROR(VLOOKUP(AP144,'P2'!$B$4:$J$48,9,FALSE),"") ->  | AQ145: =IFERROR(VLOOKUP(AQ144,'P2'!$B$4:$J$48,9,FALSE),"") ->  | AR145: =IFERROR(VLOOKUP(AR144,'P2'!$B$4:$J$48,9,FALSE),"") ->  | AS145: =IFERROR(VLOOKUP(AS144,'P2'!$B$4:$J$48,9,FALSE),"") ->  | AT145: =IFERROR(VLOOKUP(AT144,'P2'!$B$4:$J$48,9,FALSE),"") ->  | AU145: =IFERROR(VLOOKUP(AU144,'P2'!$B$4:$J$48,9,FALSE),"") ->  | AV145: =SUM(Q145:AU145) -> 0
B146: 61 | AV146: =COUNTA(Q146:AU146) -> 0 | AW146: =AV147 -> 0 | AX146: =IFERROR(ROUNDDOWN(AV147/$AT$3,1),"") -> 
Q147: =IFERROR(VLOOKUP(Q146,'P2'!$B$4:$J$48,9,FALSE),"") ->  | R147: =IFERROR(VLOOKUP(R146,'P2'!$B$4:$J$48,9,FALSE),"") ->  | S147: =IFERROR(VLOOKUP(S146,'P2'!$B$4:$J$48,9,FALSE),"") ->  | T147: =IFERROR(VLOOKUP(T146,'P2'!$B$4:$J$48,9,FALSE),"") ->  | U147: =IFERROR(VLOOKUP(U146,'P2'!$B$4:$J$48,9,FALSE),"") ->  | V147: =IFERROR(VLOOKUP(V146,'P2'!$B$4:$J$48,9,FALSE),"") ->  | W147: =IFERROR(VLOOKUP(W146,'P2'!$B$4:$J$48,9,FALSE),"") ->  | X147: =IFERROR(VLOOKUP(X146,'P2'!$B$4:$J$48,9,FALSE),"") ->  | Y147: =IFERROR(VLOOKUP(Y146,'P2'!$B$4:$J$48,9,FALSE),"") ->  | Z147: =IFERROR(VLOOKUP(Z146,'P2'!$B$4:$J$48,9,FALSE),"") ->  | AA147: =IFERROR(VLOOKUP(AA146,'P2'!$B$4:$J$48,9,FALSE),"") ->  | AB147: =IFERROR(VLOOKUP(AB146,'P2'!$B$4:$J$48,9,FALSE),"") ->  | AC147: =IFERROR(VLOOKUP(AC146,'P2'!$B$4:$J$48,9,FALSE),"") ->  | AD147: =IFERROR(VLOOKUP(AD146,'P2'!$B$4:$J$48,9,FALSE),"") ->  | AE147: =IFERROR(VLOOKUP(AE146,'P2'!$B$4:$J$48,9,FALSE),"") ->  | AF147: =IFERROR(VLOOKUP(AF146,'P2'!$B$4:$J$48,9,FALSE),"") ->  | AG147: =IFERROR(VLOOKUP(AG146,'P2'!$B$4:$J$48,9,FALSE),"") ->  | AH147: =IFERROR(VLOOKUP(AH146,'P2'!$B$4:$J$48,9,FALSE),"") ->  | AI147: =IFERROR(VLOOKUP(AI146,'P2'!$B$4:$J$48,9,FALSE),"") ->  | AJ147: =IFERROR(VLOOKUP(AJ146,'P2'!$B$4:$J$48,9,FALSE),"") ->  | AK147: =IFERROR(VLOOKUP(AK146,'P2'!$B$4:$J$48,9,FALSE),"") ->  | AL147: =IFERROR(VLOOKUP(AL146,'P2'!$B$4:$J$48,9,FALSE),"") ->  | AM147: =IFERROR(VLOOKUP(AM146,'P2'!$B$4:$J$48,9,FALSE),"") ->  | AN147: =IFERROR(VLOOKUP(AN146,'P2'!$B$4:$J$48,9,FALSE),"") ->  | AO147: =IFERROR(VLOOKUP(AO146,'P2'!$B$4:$J$48,9,FALSE),"") ->  | AP147: =IFERROR(VLOOKUP(AP146,'P2'!$B$4:$J$48,9,FALSE),"") ->  | AQ147: =IFERROR(VLOOKUP(AQ146,'P2'!$B$4:$J$48,9,FALSE),"") ->  | AR147: =IFERROR(VLOOKUP(AR146,'P2'!$B$4:$J$48,9,FALSE),"") ->  | AS147: =IFERROR(VLOOKUP(AS146,'P2'!$B$4:$J$48,9,FALSE),"") ->  | AT147: =IFERROR(VLOOKUP(AT146,'P2'!$B$4:$J$48,9,FALSE),"") ->  | AU147: =IFERROR(VLOOKUP(AU146,'P2'!$B$4:$J$48,9,FALSE),"") ->  | AV147: =SUM(Q147:AU147) -> 0
B148: 62 | AV148: =COUNTA(Q148:AU148) -> 0 | AW148: =AV149 -> 0 | AX148: =IFERROR(ROUNDDOWN(AV149/$AT$3,1),"") -> 
Q149: =IFERROR(VLOOKUP(Q148,'P2'!$B$4:$J$48,9,FALSE),"") ->  | R149: =IFERROR(VLOOKUP(R148,'P2'!$B$4:$J$48,9,FALSE),"") ->  | S149: =IFERROR(VLOOKUP(S148,'P2'!$B$4:$J$48,9,FALSE),"") ->  | T149: =IFERROR(VLOOKUP(T148,'P2'!$B$4:$J$48,9,FALSE),"") ->  | U149: =IFERROR(VLOOKUP(U148,'P2'!$B$4:$J$48,9,FALSE),"") ->  | V149: =IFERROR(VLOOKUP(V148,'P2'!$B$4:$J$48,9,FALSE),"") ->  | W149: =IFERROR(VLOOKUP(W148,'P2'!$B$4:$J$48,9,FALSE),"") ->  | X149: =IFERROR(VLOOKUP(X148,'P2'!$B$4:$J$48,9,FALSE),"") ->  | Y149: =IFERROR(VLOOKUP(Y148,'P2'!$B$4:$J$48,9,FALSE),"") ->  | Z149: =IFERROR(VLOOKUP(Z148,'P2'!$B$4:$J$48,9,FALSE),"") ->  | AA149: =IFERROR(VLOOKUP(AA148,'P2'!$B$4:$J$48,9,FALSE),"") ->  | AB149: =IFERROR(VLOOKUP(AB148,'P2'!$B$4:$J$48,9,FALSE),"") ->  | AC149: =IFERROR(VLOOKUP(AC148,'P2'!$B$4:$J$48,9,FALSE),"") ->  | AD149: =IFERROR(VLOOKUP(AD148,'P2'!$B$4:$J$48,9,FALSE),"") ->  | AE149: =IFERROR(VLOOKUP(AE148,'P2'!$B$4:$J$48,9,FALSE),"") ->  | AF149: =IFERROR(VLOOKUP(AF148,'P2'!$B$4:$J$48,9,FALSE),"") ->  | AG149: =IFERROR(VLOOKUP(AG148,'P2'!$B$4:$J$48,9,FALSE),"") ->  | AH149: =IFERROR(VLOOKUP(AH148,'P2'!$B$4:$J$48,9,FALSE),"") ->  | AI149: =IFERROR(VLOOKUP(AI148,'P2'!$B$4:$J$48,9,FALSE),"") ->  | AJ149: =IFERROR(VLOOKUP(AJ148,'P2'!$B$4:$J$48,9,FALSE),"") ->  | AK149: =IFERROR(VLOOKUP(AK148,'P2'!$B$4:$J$48,9,FALSE),"") ->  | AL149: =IFERROR(VLOOKUP(AL148,'P2'!$B$4:$J$48,9,FALSE),"") ->  | AM149: =IFERROR(VLOOKUP(AM148,'P2'!$B$4:$J$48,9,FALSE),"") ->  | AN149: =IFERROR(VLOOKUP(AN148,'P2'!$B$4:$J$48,9,FALSE),"") ->  | AO149: =IFERROR(VLOOKUP(AO148,'P2'!$B$4:$J$48,9,FALSE),"") ->  | AP149: =IFERROR(VLOOKUP(AP148,'P2'!$B$4:$J$48,9,FALSE),"") ->  | AQ149: =IFERROR(VLOOKUP(AQ148,'P2'!$B$4:$J$48,9,FALSE),"") ->  | AR149: =IFERROR(VLOOKUP(AR148,'P2'!$B$4:$J$48,9,FALSE),"") ->  | AS149: =IFERROR(VLOOKUP(AS148,'P2'!$B$4:$J$48,9,FALSE),"") ->  | AT149: =IFERROR(VLOOKUP(AT148,'P2'!$B$4:$J$48,9,FALSE),"") ->  | AU149: =IFERROR(VLOOKUP(AU148,'P2'!$B$4:$J$48,9,FALSE),"") ->  | AV149: =SUM(Q149:AU149) -> 0
B152: (2) 勤務実績 （直近3か月分の実績） | S152: （ | T152: =$T$3 -> 令和 7 | V152: 年 | W152: =$W$3 -> 5 | X152: 月分実績 | Z152: ） | AX152: ="4 / "&COUNTA(C$7,C$57,C$106,C$155,C$204) -> 4 / 1
C153: 職 種 | I153: 氏 名 | N153: 勤務 形態 | Q153: =Q$5 -> 2025-05-01 | R153: =R$5 -> 2025-05-02 | S153: 2025-05-03 | T153: 2025-05-04 | U153: 2025-05-05 | V153: 2025-05-06 | W153: 2025-05-07 | X153: 2025-05-08 | Y153: 2025-05-09 | Z153: 2025-05-10 | AA153: 2025-05-11 | AB153: 2025-05-12 | AC153: 2025-05-13 | AD153: 2025-05-14 | AE153: 2025-05-15 | AF153: 2025-05-16 | AG153: 2025-05-17 | AH153: 2025-05-18 | AI153: 2025-05-19 | AJ153: 2025-05-20 | AK153: 2025-05-21 | AL153: 2025-05-22 | AM153: 2025-05-23 | AN153: 2025-05-24 | AO153: 2025-05-25 | AP153: 2025-05-26 | AQ153: 2025-05-27 | AR153: 2025-05-28 | AS153: 2025-05-29 | AT153: 2025-05-30 | AU153: 2025-05-31 | AV153: 勤務日数 | AX153: 常勤換算
Q154: =Q$6 -> 木 | R154: =R$6 -> 金 | S154: 土 | T154: 日 | U154: 月 | V154: 火 | W154: 水 | X154: 木 | Y154: 金 | Z154: 土 | AA154: 日 | AB154: 月 | AC154: 火 | AD154: 水 | AE154: 木 | AF154: 金 | AG154: 土 | AH154: 日 | AI154: 月 | AJ154: 火 | AK154: 水 | AL154: 木 | AM154: 金 | AN154: 土 | AO154: 日 | AP154: 月 | AQ154: 火 | AR154: 水 | AS154: 木 | AT154: 金 | AU154: 土 | AV154: 勤務時間
B155: =B148+1 -> 63 | AV155: =COUNTA(Q155:AU155) -> 0 | AW155: =AV156 -> 0 | AX155: =IFERROR(ROUNDDOWN(AV156/$AT$3,1),"") -> 
Q156: =IFERROR(VLOOKUP(Q155,'P2'!$B$4:$J$48,9,FALSE),"") ->  | R156: =IFERROR(VLOOKUP(R155,'P2'!$B$4:$J$48,9,FALSE),"") ->  | S156: =IFERROR(VLOOKUP(S155,'P2'!$B$4:$J$48,9,FALSE),"") ->  | T156: =IFERROR(VLOOKUP(T155,'P2'!$B$4:$J$48,9,FALSE),"") ->  | U156: =IFERROR(VLOOKUP(U155,'P2'!$B$4:$J$48,9,FALSE),"") ->  | V156: =IFERROR(VLOOKUP(V155,'P2'!$B$4:$J$48,9,FALSE),"") ->  | W156: =IFERROR(VLOOKUP(W155,'P2'!$B$4:$J$48,9,FALSE),"") ->  | X156: =IFERROR(VLOOKUP(X155,'P2'!$B$4:$J$48,9,FALSE),"") ->  | Y156: =IFERROR(VLOOKUP(Y155,'P2'!$B$4:$J$48,9,FALSE),"") ->  | Z156: =IFERROR(VLOOKUP(Z155,'P2'!$B$4:$J$48,9,FALSE),"") ->  | AA156: =IFERROR(VLOOKUP(AA155,'P2'!$B$4:$J$48,9,FALSE),"") ->  | AB156: =IFERROR(VLOOKUP(AB155,'P2'!$B$4:$J$48,9,FALSE),"") ->  | AC156: =IFERROR(VLOOKUP(AC155,'P2'!$B$4:$J$48,9,FALSE),"") ->  | AD156: =IFERROR(VLOOKUP(AD155,'P2'!$B$4:$J$48,9,FALSE),"") ->  | AE156: =IFERROR(VLOOKUP(AE155,'P2'!$B$4:$J$48,9,FALSE),"") ->  | AF156: =IFERROR(VLOOKUP(AF155,'P2'!$B$4:$J$48,9,FALSE),"") ->  | AG156: =IFERROR(VLOOKUP(AG155,'P2'!$B$4:$J$48,9,FALSE),"") ->  | AH156: =IFERROR(VLOOKUP(AH155,'P2'!$B$4:$J$48,9,FALSE),"") ->  | AI156: =IFERROR(VLOOKUP(AI155,'P2'!$B$4:$J$48,9,FALSE),"") ->  | AJ156: =IFERROR(VLOOKUP(AJ155,'P2'!$B$4:$J$48,9,FALSE),"") ->  | AK156: =IFERROR(VLOOKUP(AK155,'P2'!$B$4:$J$48,9,FALSE),"") ->  | AL156: =IFERROR(VLOOKUP(AL155,'P2'!$B$4:$J$48,9,FALSE),"") ->  | AM156: =IFERROR(VLOOKUP(AM155,'P2'!$B$4:$J$48,9,FALSE),"") ->  | AN156: =IFERROR(VLOOKUP(AN155,'P2'!$B$4:$J$48,9,FALSE),"") ->  | AO156: =IFERROR(VLOOKUP(AO155,'P2'!$B$4:$J$48,9,FALSE),"") ->  | AP156: =IFERROR(VLOOKUP(AP155,'P2'!$B$4:$J$48,9,FALSE),"") ->  | AQ156: =IFERROR(VLOOKUP(AQ155,'P2'!$B$4:$J$48,9,FALSE),"") ->  | AR156: =IFERROR(VLOOKUP(AR155,'P2'!$B$4:$J$48,9,FALSE),"") ->  | AS156: =IFERROR(VLOOKUP(AS155,'P2'!$B$4:$J$48,9,FALSE),"") ->  | AT156: =IFERROR(VLOOKUP(AT155,'P2'!$B$4:$J$48,9,FALSE),"") ->  | AU156: =IFERROR(VLOOKUP(AU155,'P2'!$B$4:$J$48,9,FALSE),"") ->  | AV156: =SUM(Q156:AU156) -> 0
B157: =B155+1 -> 64 | AV157: =COUNTA(Q157:AU157) -> 0 | AW157: =AV158 -> 0 | AX157: =IFERROR(ROUNDDOWN(AV158/$AT$3,1),"") -> 
Q158: =IFERROR(VLOOKUP(Q157,'P2'!$B$4:$J$48,9,FALSE),"") ->  | R158: =IFERROR(VLOOKUP(R157,'P2'!$B$4:$J$48,9,FALSE),"") ->  | S158: =IFERROR(VLOOKUP(S157,'P2'!$B$4:$J$48,9,FALSE),"") ->  | T158: =IFERROR(VLOOKUP(T157,'P2'!$B$4:$J$48,9,FALSE),"") ->  | U158: =IFERROR(VLOOKUP(U157,'P2'!$B$4:$J$48,9,FALSE),"") ->  | V158: =IFERROR(VLOOKUP(V157,'P2'!$B$4:$J$48,9,FALSE),"") ->  | W158: =IFERROR(VLOOKUP(W157,'P2'!$B$4:$J$48,9,FALSE),"") ->  | X158: =IFERROR(VLOOKUP(X157,'P2'!$B$4:$J$48,9,FALSE),"") ->  | Y158: =IFERROR(VLOOKUP(Y157,'P2'!$B$4:$J$48,9,FALSE),"") ->  | Z158: =IFERROR(VLOOKUP(Z157,'P2'!$B$4:$J$48,9,FALSE),"") ->  | AA158: =IFERROR(VLOOKUP(AA157,'P2'!$B$4:$J$48,9,FALSE),"") ->  | AB158: =IFERROR(VLOOKUP(AB157,'P2'!$B$4:$J$48,9,FALSE),"") ->  | AC158: =IFERROR(VLOOKUP(AC157,'P2'!$B$4:$J$48,9,FALSE),"") ->  | AD158: =IFERROR(VLOOKUP(AD157,'P2'!$B$4:$J$48,9,FALSE),"") ->  | AE158: =IFERROR(VLOOKUP(AE157,'P2'!$B$4:$J$48,9,FALSE),"") ->  | AF158: =IFERROR(VLOOKUP(AF157,'P2'!$B$4:$J$48,9,FALSE),"") ->  | AG158: =IFERROR(VLOOKUP(AG157,'P2'!$B$4:$J$48,9,FALSE),"") ->  | AH158: =IFERROR(VLOOKUP(AH157,'P2'!$B$4:$J$48,9,FALSE),"") ->  | AI158: =IFERROR(VLOOKUP(AI157,'P2'!$B$4:$J$48,9,FALSE),"") ->  | AJ158: =IFERROR(VLOOKUP(AJ157,'P2'!$B$4:$J$48,9,FALSE),"") ->  | AK158: =IFERROR(VLOOKUP(AK157,'P2'!$B$4:$J$48,9,FALSE),"") ->  | AL158: =IFERROR(VLOOKUP(AL157,'P2'!$B$4:$J$48,9,FALSE),"") ->  | AM158: =IFERROR(VLOOKUP(AM157,'P2'!$B$4:$J$48,9,FALSE),"") ->  | AN158: =IFERROR(VLOOKUP(AN157,'P2'!$B$4:$J$48,9,FALSE),"") ->  | AO158: =IFERROR(VLOOKUP(AO157,'P2'!$B$4:$J$48,9,FALSE),"") ->  | AP158: =IFERROR(VLOOKUP(AP157,'P2'!$B$4:$J$48,9,FALSE),"") ->  | AQ158: =IFERROR(VLOOKUP(AQ157,'P2'!$B$4:$J$48,9,FALSE),"") ->  | AR158: =IFERROR(VLOOKUP(AR157,'P2'!$B$4:$J$48,9,FALSE),"") ->  | AS158: =IFERROR(VLOOKUP(AS157,'P2'!$B$4:$J$48,9,FALSE),"") ->  | AT158: =IFERROR(VLOOKUP(AT157,'P2'!$B$4:$J$48,9,FALSE),"") ->  | AU158: =IFERROR(VLOOKUP(AU157,'P2'!$B$4:$J$48,9,FALSE),"") ->  | AV158: =SUM(Q158:AU158) -> 0
B159: 65 | AV159: =COUNTA(Q159:AU159) -> 0 | AW159: =AV160 -> 0 | AX159: =IFERROR(ROUNDDOWN(AV160/$AT$3,1),"") -> 
Q160: =IFERROR(VLOOKUP(Q159,'P2'!$B$4:$J$48,9,FALSE),"") ->  | R160: =IFERROR(VLOOKUP(R159,'P2'!$B$4:$J$48,9,FALSE),"") ->  | S160: =IFERROR(VLOOKUP(S159,'P2'!$B$4:$J$48,9,FALSE),"") ->  | T160: =IFERROR(VLOOKUP(T159,'P2'!$B$4:$J$48,9,FALSE),"") ->  | U160: =IFERROR(VLOOKUP(U159,'P2'!$B$4:$J$48,9,FALSE),"") ->  | V160: =IFERROR(VLOOKUP(V159,'P2'!$B$4:$J$48,9,FALSE),"") ->  | W160: =IFERROR(VLOOKUP(W159,'P2'!$B$4:$J$48,9,FALSE),"") ->  | X160: =IFERROR(VLOOKUP(X159,'P2'!$B$4:$J$48,9,FALSE),"") ->  | Y160: =IFERROR(VLOOKUP(Y159,'P2'!$B$4:$J$48,9,FALSE),"") ->  | Z160: =IFERROR(VLOOKUP(Z159,'P2'!$B$4:$J$48,9,FALSE),"") ->  | AA160: =IFERROR(VLOOKUP(AA159,'P2'!$B$4:$J$48,9,FALSE),"") ->  | AB160: =IFERROR(VLOOKUP(AB159,'P2'!$B$4:$J$48,9,FALSE),"") ->  | AC160: =IFERROR(VLOOKUP(AC159,'P2'!$B$4:$J$48,9,FALSE),"") ->  | AD160: =IFERROR(VLOOKUP(AD159,'P2'!$B$4:$J$48,9,FALSE),"") ->  | AE160: =IFERROR(VLOOKUP(AE159,'P2'!$B$4:$J$48,9,FALSE),"") ->  | AF160: =IFERROR(VLOOKUP(AF159,'P2'!$B$4:$J$48,9,FALSE),"") ->  | AG160: =IFERROR(VLOOKUP(AG159,'P2'!$B$4:$J$48,9,FALSE),"") ->  | AH160: =IFERROR(VLOOKUP(AH159,'P2'!$B$4:$J$48,9,FALSE),"") ->  | AI160: =IFERROR(VLOOKUP(AI159,'P2'!$B$4:$J$48,9,FALSE),"") ->  | AJ160: =IFERROR(VLOOKUP(AJ159,'P2'!$B$4:$J$48,9,FALSE),"") ->  | AK160: =IFERROR(VLOOKUP(AK159,'P2'!$B$4:$J$48,9,FALSE),"") ->  | AL160: =IFERROR(VLOOKUP(AL159,'P2'!$B$4:$J$48,9,FALSE),"") ->  | AM160: =IFERROR(VLOOKUP(AM159,'P2'!$B$4:$J$48,9,FALSE),"") ->  | AN160: =IFERROR(VLOOKUP(AN159,'P2'!$B$4:$J$48,9,FALSE),"") ->  | AO160: =IFERROR(VLOOKUP(AO159,'P2'!$B$4:$J$48,9,FALSE),"") ->  | AP160: =IFERROR(VLOOKUP(AP159,'P2'!$B$4:$J$48,9,FALSE),"") ->  | AQ160: =IFERROR(VLOOKUP(AQ159,'P2'!$B$4:$J$48,9,FALSE),"") ->  | AR160: =IFERROR(VLOOKUP(AR159,'P2'!$B$4:$J$48,9,FALSE),"") ->  | AS160: =IFERROR(VLOOKUP(AS159,'P2'!$B$4:$J$48,9,FALSE),"") ->  | AT160: =IFERROR(VLOOKUP(AT159,'P2'!$B$4:$J$48,9,FALSE),"") ->  | AU160: =IFERROR(VLOOKUP(AU159,'P2'!$B$4:$J$48,9,FALSE),"") ->  | AV160: =SUM(Q160:AU160) -> 0
B161: 66 | AV161: =COUNTA(Q161:AU161) -> 0 | AW161: =AV162 -> 0 | AX161: =IFERROR(ROUNDDOWN(AV162/$AT$3,1),"") -> 
Q162: =IFERROR(VLOOKUP(Q161,'P2'!$B$4:$J$48,9,FALSE),"") ->  | R162: =IFERROR(VLOOKUP(R161,'P2'!$B$4:$J$48,9,FALSE),"") ->  | S162: =IFERROR(VLOOKUP(S161,'P2'!$B$4:$J$48,9,FALSE),"") ->  | T162: =IFERROR(VLOOKUP(T161,'P2'!$B$4:$J$48,9,FALSE),"") ->  | U162: =IFERROR(VLOOKUP(U161,'P2'!$B$4:$J$48,9,FALSE),"") ->  | V162: =IFERROR(VLOOKUP(V161,'P2'!$B$4:$J$48,9,FALSE),"") ->  | W162: =IFERROR(VLOOKUP(W161,'P2'!$B$4:$J$48,9,FALSE),"") ->  | X162: =IFERROR(VLOOKUP(X161,'P2'!$B$4:$J$48,9,FALSE),"") ->  | Y162: =IFERROR(VLOOKUP(Y161,'P2'!$B$4:$J$48,9,FALSE),"") ->  | Z162: =IFERROR(VLOOKUP(Z161,'P2'!$B$4:$J$48,9,FALSE),"") ->  | AA162: =IFERROR(VLOOKUP(AA161,'P2'!$B$4:$J$48,9,FALSE),"") ->  | AB162: =IFERROR(VLOOKUP(AB161,'P2'!$B$4:$J$48,9,FALSE),"") ->  | AC162: =IFERROR(VLOOKUP(AC161,'P2'!$B$4:$J$48,9,FALSE),"") ->  | AD162: =IFERROR(VLOOKUP(AD161,'P2'!$B$4:$J$48,9,FALSE),"") ->  | AE162: =IFERROR(VLOOKUP(AE161,'P2'!$B$4:$J$48,9,FALSE),"") ->  | AF162: =IFERROR(VLOOKUP(AF161,'P2'!$B$4:$J$48,9,FALSE),"") ->  | AG162: =IFERROR(VLOOKUP(AG161,'P2'!$B$4:$J$48,9,FALSE),"") ->  | AH162: =IFERROR(VLOOKUP(AH161,'P2'!$B$4:$J$48,9,FALSE),"") ->  | AI162: =IFERROR(VLOOKUP(AI161,'P2'!$B$4:$J$48,9,FALSE),"") ->  | AJ162: =IFERROR(VLOOKUP(AJ161,'P2'!$B$4:$J$48,9,FALSE),"") ->  | AK162: =IFERROR(VLOOKUP(AK161,'P2'!$B$4:$J$48,9,FALSE),"") ->  | AL162: =IFERROR(VLOOKUP(AL161,'P2'!$B$4:$J$48,9,FALSE),"") ->  | AM162: =IFERROR(VLOOKUP(AM161,'P2'!$B$4:$J$48,9,FALSE),"") ->  | AN162: =IFERROR(VLOOKUP(AN161,'P2'!$B$4:$J$48,9,FALSE),"") ->  | AO162: =IFERROR(VLOOKUP(AO161,'P2'!$B$4:$J$48,9,FALSE),"") ->  | AP162: =IFERROR(VLOOKUP(AP161,'P2'!$B$4:$J$48,9,FALSE),"") ->  | AQ162: =IFERROR(VLOOKUP(AQ161,'P2'!$B$4:$J$48,9,FALSE),"") ->  | AR162: =IFERROR(VLOOKUP(AR161,'P2'!$B$4:$J$48,9,FALSE),"") ->  | AS162: =IFERROR(VLOOKUP(AS161,'P2'!$B$4:$J$48,9,FALSE),"") ->  | AT162: =IFERROR(VLOOKUP(AT161,'P2'!$B$4:$J$48,9,FALSE),"") ->  | AU162: =IFERROR(VLOOKUP(AU161,'P2'!$B$4:$J$48,9,FALSE),"") ->  | AV162: =SUM(Q162:AU162) -> 0
B163: 67 | AV163: =COUNTA(Q163:AU163) -> 0 | AW163: =AV164 -> 0 | AX163: =IFERROR(ROUNDDOWN(AV164/$AT$3,1),"") -> 
Q164: =IFERROR(VLOOKUP(Q163,'P2'!$B$4:$J$48,9,FALSE),"") ->  | R164: =IFERROR(VLOOKUP(R163,'P2'!$B$4:$J$48,9,FALSE),"") ->  | S164: =IFERROR(VLOOKUP(S163,'P2'!$B$4:$J$48,9,FALSE),"") ->  | T164: =IFERROR(VLOOKUP(T163,'P2'!$B$4:$J$48,9,FALSE),"") ->  | U164: =IFERROR(VLOOKUP(U163,'P2'!$B$4:$J$48,9,FALSE),"") ->  | V164: =IFERROR(VLOOKUP(V163,'P2'!$B$4:$J$48,9,FALSE),"") ->  | W164: =IFERROR(VLOOKUP(W163,'P2'!$B$4:$J$48,9,FALSE),"") ->  | X164: =IFERROR(VLOOKUP(X163,'P2'!$B$4:$J$48,9,FALSE),"") ->  | Y164: =IFERROR(VLOOKUP(Y163,'P2'!$B$4:$J$48,9,FALSE),"") ->  | Z164: =IFERROR(VLOOKUP(Z163,'P2'!$B$4:$J$48,9,FALSE),"") ->  | AA164: =IFERROR(VLOOKUP(AA163,'P2'!$B$4:$J$48,9,FALSE),"") ->  | AB164: =IFERROR(VLOOKUP(AB163,'P2'!$B$4:$J$48,9,FALSE),"") ->  | AC164: =IFERROR(VLOOKUP(AC163,'P2'!$B$4:$J$48,9,FALSE),"") ->  | AD164: =IFERROR(VLOOKUP(AD163,'P2'!$B$4:$J$48,9,FALSE),"") ->  | AE164: =IFERROR(VLOOKUP(AE163,'P2'!$B$4:$J$48,9,FALSE),"") ->  | AF164: =IFERROR(VLOOKUP(AF163,'P2'!$B$4:$J$48,9,FALSE),"") ->  | AG164: =IFERROR(VLOOKUP(AG163,'P2'!$B$4:$J$48,9,FALSE),"") ->  | AH164: =IFERROR(VLOOKUP(AH163,'P2'!$B$4:$J$48,9,FALSE),"") ->  | AI164: =IFERROR(VLOOKUP(AI163,'P2'!$B$4:$J$48,9,FALSE),"") ->  | AJ164: =IFERROR(VLOOKUP(AJ163,'P2'!$B$4:$J$48,9,FALSE),"") ->  | AK164: =IFERROR(VLOOKUP(AK163,'P2'!$B$4:$J$48,9,FALSE),"") ->  | AL164: =IFERROR(VLOOKUP(AL163,'P2'!$B$4:$J$48,9,FALSE),"") ->  | AM164: =IFERROR(VLOOKUP(AM163,'P2'!$B$4:$J$48,9,FALSE),"") ->  | AN164: =IFERROR(VLOOKUP(AN163,'P2'!$B$4:$J$48,9,FALSE),"") ->  | AO164: =IFERROR(VLOOKUP(AO163,'P2'!$B$4:$J$48,9,FALSE),"") ->  | AP164: =IFERROR(VLOOKUP(AP163,'P2'!$B$4:$J$48,9,FALSE),"") ->  | AQ164: =IFERROR(VLOOKUP(AQ163,'P2'!$B$4:$J$48,9,FALSE),"") ->  | AR164: =IFERROR(VLOOKUP(AR163,'P2'!$B$4:$J$48,9,FALSE),"") ->  | AS164: =IFERROR(VLOOKUP(AS163,'P2'!$B$4:$J$48,9,FALSE),"") ->  | AT164: =IFERROR(VLOOKUP(AT163,'P2'!$B$4:$J$48,9,FALSE),"") ->  | AU164: =IFERROR(VLOOKUP(AU163,'P2'!$B$4:$J$48,9,FALSE),"") ->  | AV164: =SUM(Q164:AU164) -> 0
B165: 68 | AV165: =COUNTA(Q165:AU165) -> 0 | AW165: =AV166 -> 0 | AX165: =IFERROR(ROUNDDOWN(AV166/$AT$3,1),"") -> 
Q166: =IFERROR(VLOOKUP(Q165,'P2'!$B$4:$J$48,9,FALSE),"") ->  | R166: =IFERROR(VLOOKUP(R165,'P2'!$B$4:$J$48,9,FALSE),"") ->  | S166: =IFERROR(VLOOKUP(S165,'P2'!$B$4:$J$48,9,FALSE),"") ->  | T166: =IFERROR(VLOOKUP(T165,'P2'!$B$4:$J$48,9,FALSE),"") ->  | U166: =IFERROR(VLOOKUP(U165,'P2'!$B$4:$J$48,9,FALSE),"") ->  | V166: =IFERROR(VLOOKUP(V165,'P2'!$B$4:$J$48,9,FALSE),"") ->  | W166: =IFERROR(VLOOKUP(W165,'P2'!$B$4:$J$48,9,FALSE),"") ->  | X166: =IFERROR(VLOOKUP(X165,'P2'!$B$4:$J$48,9,FALSE),"") ->  | Y166: =IFERROR(VLOOKUP(Y165,'P2'!$B$4:$J$48,9,FALSE),"") ->  | Z166: =IFERROR(VLOOKUP(Z165,'P2'!$B$4:$J$48,9,FALSE),"") ->  | AA166: =IFERROR(VLOOKUP(AA165,'P2'!$B$4:$J$48,9,FALSE),"") ->  | AB166: =IFERROR(VLOOKUP(AB165,'P2'!$B$4:$J$48,9,FALSE),"") ->  | AC166: =IFERROR(VLOOKUP(AC165,'P2'!$B$4:$J$48,9,FALSE),"") ->  | AD166: =IFERROR(VLOOKUP(AD165,'P2'!$B$4:$J$48,9,FALSE),"") ->  | AE166: =IFERROR(VLOOKUP(AE165,'P2'!$B$4:$J$48,9,FALSE),"") ->  | AF166: =IFERROR(VLOOKUP(AF165,'P2'!$B$4:$J$48,9,FALSE),"") ->  | AG166: =IFERROR(VLOOKUP(AG165,'P2'!$B$4:$J$48,9,FALSE),"") ->  | AH166: =IFERROR(VLOOKUP(AH165,'P2'!$B$4:$J$48,9,FALSE),"") ->  | AI166: =IFERROR(VLOOKUP(AI165,'P2'!$B$4:$J$48,9,FALSE),"") ->  | AJ166: =IFERROR(VLOOKUP(AJ165,'P2'!$B$4:$J$48,9,FALSE),"") ->  | AK166: =IFERROR(VLOOKUP(AK165,'P2'!$B$4:$J$48,9,FALSE),"") ->  | AL166: =IFERROR(VLOOKUP(AL165,'P2'!$B$4:$J$48,9,FALSE),"") ->  | AM166: =IFERROR(VLOOKUP(AM165,'P2'!$B$4:$J$48,9,FALSE),"") ->  | AN166: =IFERROR(VLOOKUP(AN165,'P2'!$B$4:$J$48,9,FALSE),"") ->  | AO166: =IFERROR(VLOOKUP(AO165,'P2'!$B$4:$J$48,9,FALSE),"") ->  | AP166: =IFERROR(VLOOKUP(AP165,'P2'!$B$4:$J$48,9,FALSE),"") ->  | AQ166: =IFERROR(VLOOKUP(AQ165,'P2'!$B$4:$J$48,9,FALSE),"") ->  | AR166: =IFERROR(VLOOKUP(AR165,'P2'!$B$4:$J$48,9,FALSE),"") ->  | AS166: =IFERROR(VLOOKUP(AS165,'P2'!$B$4:$J$48,9,FALSE),"") ->  | AT166: =IFERROR(VLOOKUP(AT165,'P2'!$B$4:$J$48,9,FALSE),"") ->  | AU166: =IFERROR(VLOOKUP(AU165,'P2'!$B$4:$J$48,9,FALSE),"") ->  | AV166: =SUM(Q166:AU166) -> 0
B167: 69 | AV167: =COUNTA(Q167:AU167) -> 0 | AW167: =AV168 -> 0 | AX167: =IFERROR(ROUNDDOWN(AV168/$AT$3,1),"") -> 
Q168: =IFERROR(VLOOKUP(Q167,'P2'!$B$4:$J$48,9,FALSE),"") ->  | R168: =IFERROR(VLOOKUP(R167,'P2'!$B$4:$J$48,9,FALSE),"") ->  | S168: =IFERROR(VLOOKUP(S167,'P2'!$B$4:$J$48,9,FALSE),"") ->  | T168: =IFERROR(VLOOKUP(T167,'P2'!$B$4:$J$48,9,FALSE),"") ->  | U168: =IFERROR(VLOOKUP(U167,'P2'!$B$4:$J$48,9,FALSE),"") ->  | V168: =IFERROR(VLOOKUP(V167,'P2'!$B$4:$J$48,9,FALSE),"") ->  | W168: =IFERROR(VLOOKUP(W167,'P2'!$B$4:$J$48,9,FALSE),"") ->  | X168: =IFERROR(VLOOKUP(X167,'P2'!$B$4:$J$48,9,FALSE),"") ->  | Y168: =IFERROR(VLOOKUP(Y167,'P2'!$B$4:$J$48,9,FALSE),"") ->  | Z168: =IFERROR(VLOOKUP(Z167,'P2'!$B$4:$J$48,9,FALSE),"") ->  | AA168: =IFERROR(VLOOKUP(AA167,'P2'!$B$4:$J$48,9,FALSE),"") ->  | AB168: =IFERROR(VLOOKUP(AB167,'P2'!$B$4:$J$48,9,FALSE),"") ->  | AC168: =IFERROR(VLOOKUP(AC167,'P2'!$B$4:$J$48,9,FALSE),"") ->  | AD168: =IFERROR(VLOOKUP(AD167,'P2'!$B$4:$J$48,9,FALSE),"") ->  | AE168: =IFERROR(VLOOKUP(AE167,'P2'!$B$4:$J$48,9,FALSE),"") ->  | AF168: =IFERROR(VLOOKUP(AF167,'P2'!$B$4:$J$48,9,FALSE),"") ->  | AG168: =IFERROR(VLOOKUP(AG167,'P2'!$B$4:$J$48,9,FALSE),"") ->  | AH168: =IFERROR(VLOOKUP(AH167,'P2'!$B$4:$J$48,9,FALSE),"") ->  | AI168: =IFERROR(VLOOKUP(AI167,'P2'!$B$4:$J$48,9,FALSE),"") ->  | AJ168: =IFERROR(VLOOKUP(AJ167,'P2'!$B$4:$J$48,9,FALSE),"") ->  | AK168: =IFERROR(VLOOKUP(AK167,'P2'!$B$4:$J$48,9,FALSE),"") ->  | AL168: =IFERROR(VLOOKUP(AL167,'P2'!$B$4:$J$48,9,FALSE),"") ->  | AM168: =IFERROR(VLOOKUP(AM167,'P2'!$B$4:$J$48,9,FALSE),"") ->  | AN168: =IFERROR(VLOOKUP(AN167,'P2'!$B$4:$J$48,9,FALSE),"") ->  | AO168: =IFERROR(VLOOKUP(AO167,'P2'!$B$4:$J$48,9,FALSE),"") ->  | AP168: =IFERROR(VLOOKUP(AP167,'P2'!$B$4:$J$48,9,FALSE),"") ->  | AQ168: =IFERROR(VLOOKUP(AQ167,'P2'!$B$4:$J$48,9,FALSE),"") ->  | AR168: =IFERROR(VLOOKUP(AR167,'P2'!$B$4:$J$48,9,FALSE),"") ->  | AS168: =IFERROR(VLOOKUP(AS167,'P2'!$B$4:$J$48,9,FALSE),"") ->  | AT168: =IFERROR(VLOOKUP(AT167,'P2'!$B$4:$J$48,9,FALSE),"") ->  | AU168: =IFERROR(VLOOKUP(AU167,'P2'!$B$4:$J$48,9,FALSE),"") ->  | AV168: =SUM(Q168:AU168) -> 0
B169: 70 | AV169: =COUNTA(Q169:AU169) -> 0 | AW169: =AV170 -> 0 | AX169: =IFERROR(ROUNDDOWN(AV170/$AT$3,1),"") -> 
Q170: =IFERROR(VLOOKUP(Q169,'P2'!$B$4:$J$48,9,FALSE),"") ->  | R170: =IFERROR(VLOOKUP(R169,'P2'!$B$4:$J$48,9,FALSE),"") ->  | S170: =IFERROR(VLOOKUP(S169,'P2'!$B$4:$J$48,9,FALSE),"") ->  | T170: =IFERROR(VLOOKUP(T169,'P2'!$B$4:$J$48,9,FALSE),"") ->  | U170: =IFERROR(VLOOKUP(U169,'P2'!$B$4:$J$48,9,FALSE),"") ->  | V170: =IFERROR(VLOOKUP(V169,'P2'!$B$4:$J$48,9,FALSE),"") ->  | W170: =IFERROR(VLOOKUP(W169,'P2'!$B$4:$J$48,9,FALSE),"") ->  | X170: =IFERROR(VLOOKUP(X169,'P2'!$B$4:$J$48,9,FALSE),"") ->  | Y170: =IFERROR(VLOOKUP(Y169,'P2'!$B$4:$J$48,9,FALSE),"") ->  | Z170: =IFERROR(VLOOKUP(Z169,'P2'!$B$4:$J$48,9,FALSE),"") ->  | AA170: =IFERROR(VLOOKUP(AA169,'P2'!$B$4:$J$48,9,FALSE),"") ->  | AB170: =IFERROR(VLOOKUP(AB169,'P2'!$B$4:$J$48,9,FALSE),"") ->  | AC170: =IFERROR(VLOOKUP(AC169,'P2'!$B$4:$J$48,9,FALSE),"") ->  | AD170: =IFERROR(VLOOKUP(AD169,'P2'!$B$4:$J$48,9,FALSE),"") ->  | AE170: =IFERROR(VLOOKUP(AE169,'P2'!$B$4:$J$48,9,FALSE),"") ->  | AF170: =IFERROR(VLOOKUP(AF169,'P2'!$B$4:$J$48,9,FALSE),"") ->  | AG170: =IFERROR(VLOOKUP(AG169,'P2'!$B$4:$J$48,9,FALSE),"") ->  | AH170: =IFERROR(VLOOKUP(AH169,'P2'!$B$4:$J$48,9,FALSE),"") ->  | AI170: =IFERROR(VLOOKUP(AI169,'P2'!$B$4:$J$48,9,FALSE),"") ->  | AJ170: =IFERROR(VLOOKUP(AJ169,'P2'!$B$4:$J$48,9,FALSE),"") ->  | AK170: =IFERROR(VLOOKUP(AK169,'P2'!$B$4:$J$48,9,FALSE),"") ->  | AL170: =IFERROR(VLOOKUP(AL169,'P2'!$B$4:$J$48,9,FALSE),"") ->  | AM170: =IFERROR(VLOOKUP(AM169,'P2'!$B$4:$J$48,9,FALSE),"") ->  | AN170: =IFERROR(VLOOKUP(AN169,'P2'!$B$4:$J$48,9,FALSE),"") ->  | AO170: =IFERROR(VLOOKUP(AO169,'P2'!$B$4:$J$48,9,FALSE),"") ->  | AP170: =IFERROR(VLOOKUP(AP169,'P2'!$B$4:$J$48,9,FALSE),"") ->  | AQ170: =IFERROR(VLOOKUP(AQ169,'P2'!$B$4:$J$48,9,FALSE),"") ->  | AR170: =IFERROR(VLOOKUP(AR169,'P2'!$B$4:$J$48,9,FALSE),"") ->  | AS170: =IFERROR(VLOOKUP(AS169,'P2'!$B$4:$J$48,9,FALSE),"") ->  | AT170: =IFERROR(VLOOKUP(AT169,'P2'!$B$4:$J$48,9,FALSE),"") ->  | AU170: =IFERROR(VLOOKUP(AU169,'P2'!$B$4:$J$48,9,FALSE),"") ->  | AV170: =SUM(Q170:AU170) -> 0
B171: 71 | AV171: =COUNTA(Q171:AU171) -> 0 | AW171: =AV172 -> 0 | AX171: =IFERROR(ROUNDDOWN(AV172/$AT$3,1),"") -> 
Q172: =IFERROR(VLOOKUP(Q171,'P2'!$B$4:$J$48,9,FALSE),"") ->  | R172: =IFERROR(VLOOKUP(R171,'P2'!$B$4:$J$48,9,FALSE),"") ->  | S172: =IFERROR(VLOOKUP(S171,'P2'!$B$4:$J$48,9,FALSE),"") ->  | T172: =IFERROR(VLOOKUP(T171,'P2'!$B$4:$J$48,9,FALSE),"") ->  | U172: =IFERROR(VLOOKUP(U171,'P2'!$B$4:$J$48,9,FALSE),"") ->  | V172: =IFERROR(VLOOKUP(V171,'P2'!$B$4:$J$48,9,FALSE),"") ->  | W172: =IFERROR(VLOOKUP(W171,'P2'!$B$4:$J$48,9,FALSE),"") ->  | X172: =IFERROR(VLOOKUP(X171,'P2'!$B$4:$J$48,9,FALSE),"") ->  | Y172: =IFERROR(VLOOKUP(Y171,'P2'!$B$4:$J$48,9,FALSE),"") ->  | Z172: =IFERROR(VLOOKUP(Z171,'P2'!$B$4:$J$48,9,FALSE),"") ->  | AA172: =IFERROR(VLOOKUP(AA171,'P2'!$B$4:$J$48,9,FALSE),"") ->  | AB172: =IFERROR(VLOOKUP(AB171,'P2'!$B$4:$J$48,9,FALSE),"") ->  | AC172: =IFERROR(VLOOKUP(AC171,'P2'!$B$4:$J$48,9,FALSE),"") ->  | AD172: =IFERROR(VLOOKUP(AD171,'P2'!$B$4:$J$48,9,FALSE),"") ->  | AE172: =IFERROR(VLOOKUP(AE171,'P2'!$B$4:$J$48,9,FALSE),"") ->  | AF172: =IFERROR(VLOOKUP(AF171,'P2'!$B$4:$J$48,9,FALSE),"") ->  | AG172: =IFERROR(VLOOKUP(AG171,'P2'!$B$4:$J$48,9,FALSE),"") ->  | AH172: =IFERROR(VLOOKUP(AH171,'P2'!$B$4:$J$48,9,FALSE),"") ->  | AI172: =IFERROR(VLOOKUP(AI171,'P2'!$B$4:$J$48,9,FALSE),"") ->  | AJ172: =IFERROR(VLOOKUP(AJ171,'P2'!$B$4:$J$48,9,FALSE),"") ->  | AK172: =IFERROR(VLOOKUP(AK171,'P2'!$B$4:$J$48,9,FALSE),"") ->  | AL172: =IFERROR(VLOOKUP(AL171,'P2'!$B$4:$J$48,9,FALSE),"") ->  | AM172: =IFERROR(VLOOKUP(AM171,'P2'!$B$4:$J$48,9,FALSE),"") ->  | AN172: =IFERROR(VLOOKUP(AN171,'P2'!$B$4:$J$48,9,FALSE),"") ->  | AO172: =IFERROR(VLOOKUP(AO171,'P2'!$B$4:$J$48,9,FALSE),"") ->  | AP172: =IFERROR(VLOOKUP(AP171,'P2'!$B$4:$J$48,9,FALSE),"") ->  | AQ172: =IFERROR(VLOOKUP(AQ171,'P2'!$B$4:$J$48,9,FALSE),"") ->  | AR172: =IFERROR(VLOOKUP(AR171,'P2'!$B$4:$J$48,9,FALSE),"") ->  | AS172: =IFERROR(VLOOKUP(AS171,'P2'!$B$4:$J$48,9,FALSE),"") ->  | AT172: =IFERROR(VLOOKUP(AT171,'P2'!$B$4:$J$48,9,FALSE),"") ->  | AU172: =IFERROR(VLOOKUP(AU171,'P2'!$B$4:$J$48,9,FALSE),"") ->  | AV172: =SUM(Q172:AU172) -> 0
B173: 72 | AV173: =COUNTA(Q173:AU173) -> 0 | AW173: =AV174 -> 0 | AX173: =IFERROR(ROUNDDOWN(AV174/$AT$3,1),"") -> 
Q174: =IFERROR(VLOOKUP(Q173,'P2'!$B$4:$J$48,9,FALSE),"") ->  | R174: =IFERROR(VLOOKUP(R173,'P2'!$B$4:$J$48,9,FALSE),"") ->  | S174: =IFERROR(VLOOKUP(S173,'P2'!$B$4:$J$48,9,FALSE),"") ->  | T174: =IFERROR(VLOOKUP(T173,'P2'!$B$4:$J$48,9,FALSE),"") ->  | U174: =IFERROR(VLOOKUP(U173,'P2'!$B$4:$J$48,9,FALSE),"") ->  | V174: =IFERROR(VLOOKUP(V173,'P2'!$B$4:$J$48,9,FALSE),"") ->  | W174: =IFERROR(VLOOKUP(W173,'P2'!$B$4:$J$48,9,FALSE),"") ->  | X174: =IFERROR(VLOOKUP(X173,'P2'!$B$4:$J$48,9,FALSE),"") ->  | Y174: =IFERROR(VLOOKUP(Y173,'P2'!$B$4:$J$48,9,FALSE),"") ->  | Z174: =IFERROR(VLOOKUP(Z173,'P2'!$B$4:$J$48,9,FALSE),"") ->  | AA174: =IFERROR(VLOOKUP(AA173,'P2'!$B$4:$J$48,9,FALSE),"") ->  | AB174: =IFERROR(VLOOKUP(AB173,'P2'!$B$4:$J$48,9,FALSE),"") ->  | AC174: =IFERROR(VLOOKUP(AC173,'P2'!$B$4:$J$48,9,FALSE),"") ->  | AD174: =IFERROR(VLOOKUP(AD173,'P2'!$B$4:$J$48,9,FALSE),"") ->  | AE174: =IFERROR(VLOOKUP(AE173,'P2'!$B$4:$J$48,9,FALSE),"") ->  | AF174: =IFERROR(VLOOKUP(AF173,'P2'!$B$4:$J$48,9,FALSE),"") ->  | AG174: =IFERROR(VLOOKUP(AG173,'P2'!$B$4:$J$48,9,FALSE),"") ->  | AH174: =IFERROR(VLOOKUP(AH173,'P2'!$B$4:$J$48,9,FALSE),"") ->  | AI174: =IFERROR(VLOOKUP(AI173,'P2'!$B$4:$J$48,9,FALSE),"") ->  | AJ174: =IFERROR(VLOOKUP(AJ173,'P2'!$B$4:$J$48,9,FALSE),"") ->  | AK174: =IFERROR(VLOOKUP(AK173,'P2'!$B$4:$J$48,9,FALSE),"") ->  | AL174: =IFERROR(VLOOKUP(AL173,'P2'!$B$4:$J$48,9,FALSE),"") ->  | AM174: =IFERROR(VLOOKUP(AM173,'P2'!$B$4:$J$48,9,FALSE),"") ->  | AN174: =IFERROR(VLOOKUP(AN173,'P2'!$B$4:$J$48,9,FALSE),"") ->  | AO174: =IFERROR(VLOOKUP(AO173,'P2'!$B$4:$J$48,9,FALSE),"") ->  | AP174: =IFERROR(VLOOKUP(AP173,'P2'!$B$4:$J$48,9,FALSE),"") ->  | AQ174: =IFERROR(VLOOKUP(AQ173,'P2'!$B$4:$J$48,9,FALSE),"") ->  | AR174: =IFERROR(VLOOKUP(AR173,'P2'!$B$4:$J$48,9,FALSE),"") ->  | AS174: =IFERROR(VLOOKUP(AS173,'P2'!$B$4:$J$48,9,FALSE),"") ->  | AT174: =IFERROR(VLOOKUP(AT173,'P2'!$B$4:$J$48,9,FALSE),"") ->  | AU174: =IFERROR(VLOOKUP(AU173,'P2'!$B$4:$J$48,9,FALSE),"") ->  | AV174: =SUM(Q174:AU174) -> 0
B175: 73 | AV175: =COUNTA(Q175:AU175) -> 0 | AW175: =AV176 -> 0 | AX175: =IFERROR(ROUNDDOWN(AV176/$AT$3,1),"") -> 
Q176: =IFERROR(VLOOKUP(Q175,'P2'!$B$4:$J$48,9,FALSE),"") ->  | R176: =IFERROR(VLOOKUP(R175,'P2'!$B$4:$J$48,9,FALSE),"") ->  | S176: =IFERROR(VLOOKUP(S175,'P2'!$B$4:$J$48,9,FALSE),"") ->  | T176: =IFERROR(VLOOKUP(T175,'P2'!$B$4:$J$48,9,FALSE),"") ->  | U176: =IFERROR(VLOOKUP(U175,'P2'!$B$4:$J$48,9,FALSE),"") ->  | V176: =IFERROR(VLOOKUP(V175,'P2'!$B$4:$J$48,9,FALSE),"") ->  | W176: =IFERROR(VLOOKUP(W175,'P2'!$B$4:$J$48,9,FALSE),"") ->  | X176: =IFERROR(VLOOKUP(X175,'P2'!$B$4:$J$48,9,FALSE),"") ->  | Y176: =IFERROR(VLOOKUP(Y175,'P2'!$B$4:$J$48,9,FALSE),"") ->  | Z176: =IFERROR(VLOOKUP(Z175,'P2'!$B$4:$J$48,9,FALSE),"") ->  | AA176: =IFERROR(VLOOKUP(AA175,'P2'!$B$4:$J$48,9,FALSE),"") ->  | AB176: =IFERROR(VLOOKUP(AB175,'P2'!$B$4:$J$48,9,FALSE),"") ->  | AC176: =IFERROR(VLOOKUP(AC175,'P2'!$B$4:$J$48,9,FALSE),"") ->  | AD176: =IFERROR(VLOOKUP(AD175,'P2'!$B$4:$J$48,9,FALSE),"") ->  | AE176: =IFERROR(VLOOKUP(AE175,'P2'!$B$4:$J$48,9,FALSE),"") ->  | AF176: =IFERROR(VLOOKUP(AF175,'P2'!$B$4:$J$48,9,FALSE),"") ->  | AG176: =IFERROR(VLOOKUP(AG175,'P2'!$B$4:$J$48,9,FALSE),"") ->  | AH176: =IFERROR(VLOOKUP(AH175,'P2'!$B$4:$J$48,9,FALSE),"") ->  | AI176: =IFERROR(VLOOKUP(AI175,'P2'!$B$4:$J$48,9,FALSE),"") ->  | AJ176: =IFERROR(VLOOKUP(AJ175,'P2'!$B$4:$J$48,9,FALSE),"") ->  | AK176: =IFERROR(VLOOKUP(AK175,'P2'!$B$4:$J$48,9,FALSE),"") ->  | AL176: =IFERROR(VLOOKUP(AL175,'P2'!$B$4:$J$48,9,FALSE),"") ->  | AM176: =IFERROR(VLOOKUP(AM175,'P2'!$B$4:$J$48,9,FALSE),"") ->  | AN176: =IFERROR(VLOOKUP(AN175,'P2'!$B$4:$J$48,9,FALSE),"") ->  | AO176: =IFERROR(VLOOKUP(AO175,'P2'!$B$4:$J$48,9,FALSE),"") ->  | AP176: =IFERROR(VLOOKUP(AP175,'P2'!$B$4:$J$48,9,FALSE),"") ->  | AQ176: =IFERROR(VLOOKUP(AQ175,'P2'!$B$4:$J$48,9,FALSE),"") ->  | AR176: =IFERROR(VLOOKUP(AR175,'P2'!$B$4:$J$48,9,FALSE),"") ->  | AS176: =IFERROR(VLOOKUP(AS175,'P2'!$B$4:$J$48,9,FALSE),"") ->  | AT176: =IFERROR(VLOOKUP(AT175,'P2'!$B$4:$J$48,9,FALSE),"") ->  | AU176: =IFERROR(VLOOKUP(AU175,'P2'!$B$4:$J$48,9,FALSE),"") ->  | AV176: =SUM(Q176:AU176) -> 0
B177: 74 | AV177: =COUNTA(Q177:AU177) -> 0 | AW177: =AV178 -> 0 | AX177: =IFERROR(ROUNDDOWN(AV178/$AT$3,1),"") -> 
Q178: =IFERROR(VLOOKUP(Q177,'P2'!$B$4:$J$48,9,FALSE),"") ->  | R178: =IFERROR(VLOOKUP(R177,'P2'!$B$4:$J$48,9,FALSE),"") ->  | S178: =IFERROR(VLOOKUP(S177,'P2'!$B$4:$J$48,9,FALSE),"") ->  | T178: =IFERROR(VLOOKUP(T177,'P2'!$B$4:$J$48,9,FALSE),"") ->  | U178: =IFERROR(VLOOKUP(U177,'P2'!$B$4:$J$48,9,FALSE),"") ->  | V178: =IFERROR(VLOOKUP(V177,'P2'!$B$4:$J$48,9,FALSE),"") ->  | W178: =IFERROR(VLOOKUP(W177,'P2'!$B$4:$J$48,9,FALSE),"") ->  | X178: =IFERROR(VLOOKUP(X177,'P2'!$B$4:$J$48,9,FALSE),"") ->  | Y178: =IFERROR(VLOOKUP(Y177,'P2'!$B$4:$J$48,9,FALSE),"") ->  | Z178: =IFERROR(VLOOKUP(Z177,'P2'!$B$4:$J$48,9,FALSE),"") ->  | AA178: =IFERROR(VLOOKUP(AA177,'P2'!$B$4:$J$48,9,FALSE),"") ->  | AB178: =IFERROR(VLOOKUP(AB177,'P2'!$B$4:$J$48,9,FALSE),"") ->  | AC178: =IFERROR(VLOOKUP(AC177,'P2'!$B$4:$J$48,9,FALSE),"") ->  | AD178: =IFERROR(VLOOKUP(AD177,'P2'!$B$4:$J$48,9,FALSE),"") ->  | AE178: =IFERROR(VLOOKUP(AE177,'P2'!$B$4:$J$48,9,FALSE),"") ->  | AF178: =IFERROR(VLOOKUP(AF177,'P2'!$B$4:$J$48,9,FALSE),"") ->  | AG178: =IFERROR(VLOOKUP(AG177,'P2'!$B$4:$J$48,9,FALSE),"") ->  | AH178: =IFERROR(VLOOKUP(AH177,'P2'!$B$4:$J$48,9,FALSE),"") ->  | AI178: =IFERROR(VLOOKUP(AI177,'P2'!$B$4:$J$48,9,FALSE),"") ->  | AJ178: =IFERROR(VLOOKUP(AJ177,'P2'!$B$4:$J$48,9,FALSE),"") ->  | AK178: =IFERROR(VLOOKUP(AK177,'P2'!$B$4:$J$48,9,FALSE),"") ->  | AL178: =IFERROR(VLOOKUP(AL177,'P2'!$B$4:$J$48,9,FALSE),"") ->  | AM178: =IFERROR(VLOOKUP(AM177,'P2'!$B$4:$J$48,9,FALSE),"") ->  | AN178: =IFERROR(VLOOKUP(AN177,'P2'!$B$4:$J$48,9,FALSE),"") ->  | AO178: =IFERROR(VLOOKUP(AO177,'P2'!$B$4:$J$48,9,FALSE),"") ->  | AP178: =IFERROR(VLOOKUP(AP177,'P2'!$B$4:$J$48,9,FALSE),"") ->  | AQ178: =IFERROR(VLOOKUP(AQ177,'P2'!$B$4:$J$48,9,FALSE),"") ->  | AR178: =IFERROR(VLOOKUP(AR177,'P2'!$B$4:$J$48,9,FALSE),"") ->  | AS178: =IFERROR(VLOOKUP(AS177,'P2'!$B$4:$J$48,9,FALSE),"") ->  | AT178: =IFERROR(VLOOKUP(AT177,'P2'!$B$4:$J$48,9,FALSE),"") ->  | AU178: =IFERROR(VLOOKUP(AU177,'P2'!$B$4:$J$48,9,FALSE),"") ->  | AV178: =SUM(Q178:AU178) -> 0
B179: 75 | AV179: =COUNTA(Q179:AU179) -> 0 | AW179: =AV180 -> 0 | AX179: =IFERROR(ROUNDDOWN(AV180/$AT$3,1),"") -> 
Q180: =IFERROR(VLOOKUP(Q179,'P2'!$B$4:$J$48,9,FALSE),"") ->  | R180: =IFERROR(VLOOKUP(R179,'P2'!$B$4:$J$48,9,FALSE),"") ->  | S180: =IFERROR(VLOOKUP(S179,'P2'!$B$4:$J$48,9,FALSE),"") ->  | T180: =IFERROR(VLOOKUP(T179,'P2'!$B$4:$J$48,9,FALSE),"") ->  | U180: =IFERROR(VLOOKUP(U179,'P2'!$B$4:$J$48,9,FALSE),"") ->  | V180: =IFERROR(VLOOKUP(V179,'P2'!$B$4:$J$48,9,FALSE),"") ->  | W180: =IFERROR(VLOOKUP(W179,'P2'!$B$4:$J$48,9,FALSE),"") ->  | X180: =IFERROR(VLOOKUP(X179,'P2'!$B$4:$J$48,9,FALSE),"") ->  | Y180: =IFERROR(VLOOKUP(Y179,'P2'!$B$4:$J$48,9,FALSE),"") ->  | Z180: =IFERROR(VLOOKUP(Z179,'P2'!$B$4:$J$48,9,FALSE),"") ->  | AA180: =IFERROR(VLOOKUP(AA179,'P2'!$B$4:$J$48,9,FALSE),"") ->  | AB180: =IFERROR(VLOOKUP(AB179,'P2'!$B$4:$J$48,9,FALSE),"") ->  | AC180: =IFERROR(VLOOKUP(AC179,'P2'!$B$4:$J$48,9,FALSE),"") ->  | AD180: =IFERROR(VLOOKUP(AD179,'P2'!$B$4:$J$48,9,FALSE),"") ->  | AE180: =IFERROR(VLOOKUP(AE179,'P2'!$B$4:$J$48,9,FALSE),"") ->  | AF180: =IFERROR(VLOOKUP(AF179,'P2'!$B$4:$J$48,9,FALSE),"") ->  | AG180: =IFERROR(VLOOKUP(AG179,'P2'!$B$4:$J$48,9,FALSE),"") ->  | AH180: =IFERROR(VLOOKUP(AH179,'P2'!$B$4:$J$48,9,FALSE),"") ->  | AI180: =IFERROR(VLOOKUP(AI179,'P2'!$B$4:$J$48,9,FALSE),"") ->  | AJ180: =IFERROR(VLOOKUP(AJ179,'P2'!$B$4:$J$48,9,FALSE),"") ->  | AK180: =IFERROR(VLOOKUP(AK179,'P2'!$B$4:$J$48,9,FALSE),"") ->  | AL180: =IFERROR(VLOOKUP(AL179,'P2'!$B$4:$J$48,9,FALSE),"") ->  | AM180: =IFERROR(VLOOKUP(AM179,'P2'!$B$4:$J$48,9,FALSE),"") ->  | AN180: =IFERROR(VLOOKUP(AN179,'P2'!$B$4:$J$48,9,FALSE),"") ->  | AO180: =IFERROR(VLOOKUP(AO179,'P2'!$B$4:$J$48,9,FALSE),"") ->  | AP180: =IFERROR(VLOOKUP(AP179,'P2'!$B$4:$J$48,9,FALSE),"") ->  | AQ180: =IFERROR(VLOOKUP(AQ179,'P2'!$B$4:$J$48,9,FALSE),"") ->  | AR180: =IFERROR(VLOOKUP(AR179,'P2'!$B$4:$J$48,9,FALSE),"") ->  | AS180: =IFERROR(VLOOKUP(AS179,'P2'!$B$4:$J$48,9,FALSE),"") ->  | AT180: =IFERROR(VLOOKUP(AT179,'P2'!$B$4:$J$48,9,FALSE),"") ->  | AU180: =IFERROR(VLOOKUP(AU179,'P2'!$B$4:$J$48,9,FALSE),"") ->  | AV180: =SUM(Q180:AU180) -> 0
B181: 76 | AV181: =COUNTA(Q181:AU181) -> 0 | AW181: =AV182 -> 0 | AX181: =IFERROR(ROUNDDOWN(AV182/$AT$3,1),"") -> 
Q182: =IFERROR(VLOOKUP(Q181,'P2'!$B$4:$J$48,9,FALSE),"") ->  | R182: =IFERROR(VLOOKUP(R181,'P2'!$B$4:$J$48,9,FALSE),"") ->  | S182: =IFERROR(VLOOKUP(S181,'P2'!$B$4:$J$48,9,FALSE),"") ->  | T182: =IFERROR(VLOOKUP(T181,'P2'!$B$4:$J$48,9,FALSE),"") ->  | U182: =IFERROR(VLOOKUP(U181,'P2'!$B$4:$J$48,9,FALSE),"") ->  | V182: =IFERROR(VLOOKUP(V181,'P2'!$B$4:$J$48,9,FALSE),"") ->  | W182: =IFERROR(VLOOKUP(W181,'P2'!$B$4:$J$48,9,FALSE),"") ->  | X182: =IFERROR(VLOOKUP(X181,'P2'!$B$4:$J$48,9,FALSE),"") ->  | Y182: =IFERROR(VLOOKUP(Y181,'P2'!$B$4:$J$48,9,FALSE),"") ->  | Z182: =IFERROR(VLOOKUP(Z181,'P2'!$B$4:$J$48,9,FALSE),"") ->  | AA182: =IFERROR(VLOOKUP(AA181,'P2'!$B$4:$J$48,9,FALSE),"") ->  | AB182: =IFERROR(VLOOKUP(AB181,'P2'!$B$4:$J$48,9,FALSE),"") ->  | AC182: =IFERROR(VLOOKUP(AC181,'P2'!$B$4:$J$48,9,FALSE),"") ->  | AD182: =IFERROR(VLOOKUP(AD181,'P2'!$B$4:$J$48,9,FALSE),"") ->  | AE182: =IFERROR(VLOOKUP(AE181,'P2'!$B$4:$J$48,9,FALSE),"") ->  | AF182: =IFERROR(VLOOKUP(AF181,'P2'!$B$4:$J$48,9,FALSE),"") ->  | AG182: =IFERROR(VLOOKUP(AG181,'P2'!$B$4:$J$48,9,FALSE),"") ->  | AH182: =IFERROR(VLOOKUP(AH181,'P2'!$B$4:$J$48,9,FALSE),"") ->  | AI182: =IFERROR(VLOOKUP(AI181,'P2'!$B$4:$J$48,9,FALSE),"") ->  | AJ182: =IFERROR(VLOOKUP(AJ181,'P2'!$B$4:$J$48,9,FALSE),"") ->  | AK182: =IFERROR(VLOOKUP(AK181,'P2'!$B$4:$J$48,9,FALSE),"") ->  | AL182: =IFERROR(VLOOKUP(AL181,'P2'!$B$4:$J$48,9,FALSE),"") ->  | AM182: =IFERROR(VLOOKUP(AM181,'P2'!$B$4:$J$48,9,FALSE),"") ->  | AN182: =IFERROR(VLOOKUP(AN181,'P2'!$B$4:$J$48,9,FALSE),"") ->  | AO182: =IFERROR(VLOOKUP(AO181,'P2'!$B$4:$J$48,9,FALSE),"") ->  | AP182: =IFERROR(VLOOKUP(AP181,'P2'!$B$4:$J$48,9,FALSE),"") ->  | AQ182: =IFERROR(VLOOKUP(AQ181,'P2'!$B$4:$J$48,9,FALSE),"") ->  | AR182: =IFERROR(VLOOKUP(AR181,'P2'!$B$4:$J$48,9,FALSE),"") ->  | AS182: =IFERROR(VLOOKUP(AS181,'P2'!$B$4:$J$48,9,FALSE),"") ->  | AT182: =IFERROR(VLOOKUP(AT181,'P2'!$B$4:$J$48,9,FALSE),"") ->  | AU182: =IFERROR(VLOOKUP(AU181,'P2'!$B$4:$J$48,9,FALSE),"") ->  | AV182: =SUM(Q182:AU182) -> 0
B183: 77 | AV183: =COUNTA(Q183:AU183) -> 0 | AW183: =AV184 -> 0 | AX183: =IFERROR(ROUNDDOWN(AV184/$AT$3,1),"") -> 
Q184: =IFERROR(VLOOKUP(Q183,'P2'!$B$4:$J$48,9,FALSE),"") ->  | R184: =IFERROR(VLOOKUP(R183,'P2'!$B$4:$J$48,9,FALSE),"") ->  | S184: =IFERROR(VLOOKUP(S183,'P2'!$B$4:$J$48,9,FALSE),"") ->  | T184: =IFERROR(VLOOKUP(T183,'P2'!$B$4:$J$48,9,FALSE),"") ->  | U184: =IFERROR(VLOOKUP(U183,'P2'!$B$4:$J$48,9,FALSE),"") ->  | V184: =IFERROR(VLOOKUP(V183,'P2'!$B$4:$J$48,9,FALSE),"") ->  | W184: =IFERROR(VLOOKUP(W183,'P2'!$B$4:$J$48,9,FALSE),"") ->  | X184: =IFERROR(VLOOKUP(X183,'P2'!$B$4:$J$48,9,FALSE),"") ->  | Y184: =IFERROR(VLOOKUP(Y183,'P2'!$B$4:$J$48,9,FALSE),"") ->  | Z184: =IFERROR(VLOOKUP(Z183,'P2'!$B$4:$J$48,9,FALSE),"") ->  | AA184: =IFERROR(VLOOKUP(AA183,'P2'!$B$4:$J$48,9,FALSE),"") ->  | AB184: =IFERROR(VLOOKUP(AB183,'P2'!$B$4:$J$48,9,FALSE),"") ->  | AC184: =IFERROR(VLOOKUP(AC183,'P2'!$B$4:$J$48,9,FALSE),"") ->  | AD184: =IFERROR(VLOOKUP(AD183,'P2'!$B$4:$J$48,9,FALSE),"") ->  | AE184: =IFERROR(VLOOKUP(AE183,'P2'!$B$4:$J$48,9,FALSE),"") ->  | AF184: =IFERROR(VLOOKUP(AF183,'P2'!$B$4:$J$48,9,FALSE),"") ->  | AG184: =IFERROR(VLOOKUP(AG183,'P2'!$B$4:$J$48,9,FALSE),"") ->  | AH184: =IFERROR(VLOOKUP(AH183,'P2'!$B$4:$J$48,9,FALSE),"") ->  | AI184: =IFERROR(VLOOKUP(AI183,'P2'!$B$4:$J$48,9,FALSE),"") ->  | AJ184: =IFERROR(VLOOKUP(AJ183,'P2'!$B$4:$J$48,9,FALSE),"") ->  | AK184: =IFERROR(VLOOKUP(AK183,'P2'!$B$4:$J$48,9,FALSE),"") ->  | AL184: =IFERROR(VLOOKUP(AL183,'P2'!$B$4:$J$48,9,FALSE),"") ->  | AM184: =IFERROR(VLOOKUP(AM183,'P2'!$B$4:$J$48,9,FALSE),"") ->  | AN184: =IFERROR(VLOOKUP(AN183,'P2'!$B$4:$J$48,9,FALSE),"") ->  | AO184: =IFERROR(VLOOKUP(AO183,'P2'!$B$4:$J$48,9,FALSE),"") ->  | AP184: =IFERROR(VLOOKUP(AP183,'P2'!$B$4:$J$48,9,FALSE),"") ->  | AQ184: =IFERROR(VLOOKUP(AQ183,'P2'!$B$4:$J$48,9,FALSE),"") ->  | AR184: =IFERROR(VLOOKUP(AR183,'P2'!$B$4:$J$48,9,FALSE),"") ->  | AS184: =IFERROR(VLOOKUP(AS183,'P2'!$B$4:$J$48,9,FALSE),"") ->  | AT184: =IFERROR(VLOOKUP(AT183,'P2'!$B$4:$J$48,9,FALSE),"") ->  | AU184: =IFERROR(VLOOKUP(AU183,'P2'!$B$4:$J$48,9,FALSE),"") ->  | AV184: =SUM(Q184:AU184) -> 0
B185: 78 | AV185: =COUNTA(Q185:AU185) -> 0 | AW185: =AV186 -> 0 | AX185: =IFERROR(ROUNDDOWN(AV186/$AT$3,1),"") -> 
Q186: =IFERROR(VLOOKUP(Q185,'P2'!$B$4:$J$48,9,FALSE),"") ->  | R186: =IFERROR(VLOOKUP(R185,'P2'!$B$4:$J$48,9,FALSE),"") ->  | S186: =IFERROR(VLOOKUP(S185,'P2'!$B$4:$J$48,9,FALSE),"") ->  | T186: =IFERROR(VLOOKUP(T185,'P2'!$B$4:$J$48,9,FALSE),"") ->  | U186: =IFERROR(VLOOKUP(U185,'P2'!$B$4:$J$48,9,FALSE),"") ->  | V186: =IFERROR(VLOOKUP(V185,'P2'!$B$4:$J$48,9,FALSE),"") ->  | W186: =IFERROR(VLOOKUP(W185,'P2'!$B$4:$J$48,9,FALSE),"") ->  | X186: =IFERROR(VLOOKUP(X185,'P2'!$B$4:$J$48,9,FALSE),"") ->  | Y186: =IFERROR(VLOOKUP(Y185,'P2'!$B$4:$J$48,9,FALSE),"") ->  | Z186: =IFERROR(VLOOKUP(Z185,'P2'!$B$4:$J$48,9,FALSE),"") ->  | AA186: =IFERROR(VLOOKUP(AA185,'P2'!$B$4:$J$48,9,FALSE),"") ->  | AB186: =IFERROR(VLOOKUP(AB185,'P2'!$B$4:$J$48,9,FALSE),"") ->  | AC186: =IFERROR(VLOOKUP(AC185,'P2'!$B$4:$J$48,9,FALSE),"") ->  | AD186: =IFERROR(VLOOKUP(AD185,'P2'!$B$4:$J$48,9,FALSE),"") ->  | AE186: =IFERROR(VLOOKUP(AE185,'P2'!$B$4:$J$48,9,FALSE),"") ->  | AF186: =IFERROR(VLOOKUP(AF185,'P2'!$B$4:$J$48,9,FALSE),"") ->  | AG186: =IFERROR(VLOOKUP(AG185,'P2'!$B$4:$J$48,9,FALSE),"") ->  | AH186: =IFERROR(VLOOKUP(AH185,'P2'!$B$4:$J$48,9,FALSE),"") ->  | AI186: =IFERROR(VLOOKUP(AI185,'P2'!$B$4:$J$48,9,FALSE),"") ->  | AJ186: =IFERROR(VLOOKUP(AJ185,'P2'!$B$4:$J$48,9,FALSE),"") ->  | AK186: =IFERROR(VLOOKUP(AK185,'P2'!$B$4:$J$48,9,FALSE),"") ->  | AL186: =IFERROR(VLOOKUP(AL185,'P2'!$B$4:$J$48,9,FALSE),"") ->  | AM186: =IFERROR(VLOOKUP(AM185,'P2'!$B$4:$J$48,9,FALSE),"") ->  | AN186: =IFERROR(VLOOKUP(AN185,'P2'!$B$4:$J$48,9,FALSE),"") ->  | AO186: =IFERROR(VLOOKUP(AO185,'P2'!$B$4:$J$48,9,FALSE),"") ->  | AP186: =IFERROR(VLOOKUP(AP185,'P2'!$B$4:$J$48,9,FALSE),"") ->  | AQ186: =IFERROR(VLOOKUP(AQ185,'P2'!$B$4:$J$48,9,FALSE),"") ->  | AR186: =IFERROR(VLOOKUP(AR185,'P2'!$B$4:$J$48,9,FALSE),"") ->  | AS186: =IFERROR(VLOOKUP(AS185,'P2'!$B$4:$J$48,9,FALSE),"") ->  | AT186: =IFERROR(VLOOKUP(AT185,'P2'!$B$4:$J$48,9,FALSE),"") ->  | AU186: =IFERROR(VLOOKUP(AU185,'P2'!$B$4:$J$48,9,FALSE),"") ->  | AV186: =SUM(Q186:AU186) -> 0
B187: 79 | AV187: =COUNTA(Q187:AU187) -> 0 | AW187: =AV188 -> 0 | AX187: =IFERROR(ROUNDDOWN(AV188/$AT$3,1),"") -> 
Q188: =IFERROR(VLOOKUP(Q187,'P2'!$B$4:$J$48,9,FALSE),"") ->  | R188: =IFERROR(VLOOKUP(R187,'P2'!$B$4:$J$48,9,FALSE),"") ->  | S188: =IFERROR(VLOOKUP(S187,'P2'!$B$4:$J$48,9,FALSE),"") ->  | T188: =IFERROR(VLOOKUP(T187,'P2'!$B$4:$J$48,9,FALSE),"") ->  | U188: =IFERROR(VLOOKUP(U187,'P2'!$B$4:$J$48,9,FALSE),"") ->  | V188: =IFERROR(VLOOKUP(V187,'P2'!$B$4:$J$48,9,FALSE),"") ->  | W188: =IFERROR(VLOOKUP(W187,'P2'!$B$4:$J$48,9,FALSE),"") ->  | X188: =IFERROR(VLOOKUP(X187,'P2'!$B$4:$J$48,9,FALSE),"") ->  | Y188: =IFERROR(VLOOKUP(Y187,'P2'!$B$4:$J$48,9,FALSE),"") ->  | Z188: =IFERROR(VLOOKUP(Z187,'P2'!$B$4:$J$48,9,FALSE),"") ->  | AA188: =IFERROR(VLOOKUP(AA187,'P2'!$B$4:$J$48,9,FALSE),"") ->  | AB188: =IFERROR(VLOOKUP(AB187,'P2'!$B$4:$J$48,9,FALSE),"") ->  | AC188: =IFERROR(VLOOKUP(AC187,'P2'!$B$4:$J$48,9,FALSE),"") ->  | AD188: =IFERROR(VLOOKUP(AD187,'P2'!$B$4:$J$48,9,FALSE),"") ->  | AE188: =IFERROR(VLOOKUP(AE187,'P2'!$B$4:$J$48,9,FALSE),"") ->  | AF188: =IFERROR(VLOOKUP(AF187,'P2'!$B$4:$J$48,9,FALSE),"") ->  | AG188: =IFERROR(VLOOKUP(AG187,'P2'!$B$4:$J$48,9,FALSE),"") ->  | AH188: =IFERROR(VLOOKUP(AH187,'P2'!$B$4:$J$48,9,FALSE),"") ->  | AI188: =IFERROR(VLOOKUP(AI187,'P2'!$B$4:$J$48,9,FALSE),"") ->  | AJ188: =IFERROR(VLOOKUP(AJ187,'P2'!$B$4:$J$48,9,FALSE),"") ->  | AK188: =IFERROR(VLOOKUP(AK187,'P2'!$B$4:$J$48,9,FALSE),"") ->  | AL188: =IFERROR(VLOOKUP(AL187,'P2'!$B$4:$J$48,9,FALSE),"") ->  | AM188: =IFERROR(VLOOKUP(AM187,'P2'!$B$4:$J$48,9,FALSE),"") ->  | AN188: =IFERROR(VLOOKUP(AN187,'P2'!$B$4:$J$48,9,FALSE),"") ->  | AO188: =IFERROR(VLOOKUP(AO187,'P2'!$B$4:$J$48,9,FALSE),"") ->  | AP188: =IFERROR(VLOOKUP(AP187,'P2'!$B$4:$J$48,9,FALSE),"") ->  | AQ188: =IFERROR(VLOOKUP(AQ187,'P2'!$B$4:$J$48,9,FALSE),"") ->  | AR188: =IFERROR(VLOOKUP(AR187,'P2'!$B$4:$J$48,9,FALSE),"") ->  | AS188: =IFERROR(VLOOKUP(AS187,'P2'!$B$4:$J$48,9,FALSE),"") ->  | AT188: =IFERROR(VLOOKUP(AT187,'P2'!$B$4:$J$48,9,FALSE),"") ->  | AU188: =IFERROR(VLOOKUP(AU187,'P2'!$B$4:$J$48,9,FALSE),"") ->  | AV188: =SUM(Q188:AU188) -> 0
B189: 80 | AV189: =COUNTA(Q189:AU189) -> 0 | AW189: =AV190 -> 0 | AX189: =IFERROR(ROUNDDOWN(AV190/$AT$3,1),"") -> 
Q190: =IFERROR(VLOOKUP(Q189,'P2'!$B$4:$J$48,9,FALSE),"") ->  | R190: =IFERROR(VLOOKUP(R189,'P2'!$B$4:$J$48,9,FALSE),"") ->  | S190: =IFERROR(VLOOKUP(S189,'P2'!$B$4:$J$48,9,FALSE),"") ->  | T190: =IFERROR(VLOOKUP(T189,'P2'!$B$4:$J$48,9,FALSE),"") ->  | U190: =IFERROR(VLOOKUP(U189,'P2'!$B$4:$J$48,9,FALSE),"") ->  | V190: =IFERROR(VLOOKUP(V189,'P2'!$B$4:$J$48,9,FALSE),"") ->  | W190: =IFERROR(VLOOKUP(W189,'P2'!$B$4:$J$48,9,FALSE),"") ->  | X190: =IFERROR(VLOOKUP(X189,'P2'!$B$4:$J$48,9,FALSE),"") ->  | Y190: =IFERROR(VLOOKUP(Y189,'P2'!$B$4:$J$48,9,FALSE),"") ->  | Z190: =IFERROR(VLOOKUP(Z189,'P2'!$B$4:$J$48,9,FALSE),"") ->  | AA190: =IFERROR(VLOOKUP(AA189,'P2'!$B$4:$J$48,9,FALSE),"") ->  | AB190: =IFERROR(VLOOKUP(AB189,'P2'!$B$4:$J$48,9,FALSE),"") ->  | AC190: =IFERROR(VLOOKUP(AC189,'P2'!$B$4:$J$48,9,FALSE),"") ->  | AD190: =IFERROR(VLOOKUP(AD189,'P2'!$B$4:$J$48,9,FALSE),"") ->  | AE190: =IFERROR(VLOOKUP(AE189,'P2'!$B$4:$J$48,9,FALSE),"") ->  | AF190: =IFERROR(VLOOKUP(AF189,'P2'!$B$4:$J$48,9,FALSE),"") ->  | AG190: =IFERROR(VLOOKUP(AG189,'P2'!$B$4:$J$48,9,FALSE),"") ->  | AH190: =IFERROR(VLOOKUP(AH189,'P2'!$B$4:$J$48,9,FALSE),"") ->  | AI190: =IFERROR(VLOOKUP(AI189,'P2'!$B$4:$J$48,9,FALSE),"") ->  | AJ190: =IFERROR(VLOOKUP(AJ189,'P2'!$B$4:$J$48,9,FALSE),"") ->  | AK190: =IFERROR(VLOOKUP(AK189,'P2'!$B$4:$J$48,9,FALSE),"") ->  | AL190: =IFERROR(VLOOKUP(AL189,'P2'!$B$4:$J$48,9,FALSE),"") ->  | AM190: =IFERROR(VLOOKUP(AM189,'P2'!$B$4:$J$48,9,FALSE),"") ->  | AN190: =IFERROR(VLOOKUP(AN189,'P2'!$B$4:$J$48,9,FALSE),"") ->  | AO190: =IFERROR(VLOOKUP(AO189,'P2'!$B$4:$J$48,9,FALSE),"") ->  | AP190: =IFERROR(VLOOKUP(AP189,'P2'!$B$4:$J$48,9,FALSE),"") ->  | AQ190: =IFERROR(VLOOKUP(AQ189,'P2'!$B$4:$J$48,9,FALSE),"") ->  | AR190: =IFERROR(VLOOKUP(AR189,'P2'!$B$4:$J$48,9,FALSE),"") ->  | AS190: =IFERROR(VLOOKUP(AS189,'P2'!$B$4:$J$48,9,FALSE),"") ->  | AT190: =IFERROR(VLOOKUP(AT189,'P2'!$B$4:$J$48,9,FALSE),"") ->  | AU190: =IFERROR(VLOOKUP(AU189,'P2'!$B$4:$J$48,9,FALSE),"") ->  | AV190: =SUM(Q190:AU190) -> 0
B191: 81 | AV191: =COUNTA(Q191:AU191) -> 0 | AW191: =AV192 -> 0 | AX191: =IFERROR(ROUNDDOWN(AV192/$AT$3,1),"") -> 
Q192: =IFERROR(VLOOKUP(Q191,'P2'!$B$4:$J$48,9,FALSE),"") ->  | R192: =IFERROR(VLOOKUP(R191,'P2'!$B$4:$J$48,9,FALSE),"") ->  | S192: =IFERROR(VLOOKUP(S191,'P2'!$B$4:$J$48,9,FALSE),"") ->  | T192: =IFERROR(VLOOKUP(T191,'P2'!$B$4:$J$48,9,FALSE),"") ->  | U192: =IFERROR(VLOOKUP(U191,'P2'!$B$4:$J$48,9,FALSE),"") ->  | V192: =IFERROR(VLOOKUP(V191,'P2'!$B$4:$J$48,9,FALSE),"") ->  | W192: =IFERROR(VLOOKUP(W191,'P2'!$B$4:$J$48,9,FALSE),"") ->  | X192: =IFERROR(VLOOKUP(X191,'P2'!$B$4:$J$48,9,FALSE),"") ->  | Y192: =IFERROR(VLOOKUP(Y191,'P2'!$B$4:$J$48,9,FALSE),"") ->  | Z192: =IFERROR(VLOOKUP(Z191,'P2'!$B$4:$J$48,9,FALSE),"") ->  | AA192: =IFERROR(VLOOKUP(AA191,'P2'!$B$4:$J$48,9,FALSE),"") ->  | AB192: =IFERROR(VLOOKUP(AB191,'P2'!$B$4:$J$48,9,FALSE),"") ->  | AC192: =IFERROR(VLOOKUP(AC191,'P2'!$B$4:$J$48,9,FALSE),"") ->  | AD192: =IFERROR(VLOOKUP(AD191,'P2'!$B$4:$J$48,9,FALSE),"") ->  | AE192: =IFERROR(VLOOKUP(AE191,'P2'!$B$4:$J$48,9,FALSE),"") ->  | AF192: =IFERROR(VLOOKUP(AF191,'P2'!$B$4:$J$48,9,FALSE),"") ->  | AG192: =IFERROR(VLOOKUP(AG191,'P2'!$B$4:$J$48,9,FALSE),"") ->  | AH192: =IFERROR(VLOOKUP(AH191,'P2'!$B$4:$J$48,9,FALSE),"") ->  | AI192: =IFERROR(VLOOKUP(AI191,'P2'!$B$4:$J$48,9,FALSE),"") ->  | AJ192: =IFERROR(VLOOKUP(AJ191,'P2'!$B$4:$J$48,9,FALSE),"") ->  | AK192: =IFERROR(VLOOKUP(AK191,'P2'!$B$4:$J$48,9,FALSE),"") ->  | AL192: =IFERROR(VLOOKUP(AL191,'P2'!$B$4:$J$48,9,FALSE),"") ->  | AM192: =IFERROR(VLOOKUP(AM191,'P2'!$B$4:$J$48,9,FALSE),"") ->  | AN192: =IFERROR(VLOOKUP(AN191,'P2'!$B$4:$J$48,9,FALSE),"") ->  | AO192: =IFERROR(VLOOKUP(AO191,'P2'!$B$4:$J$48,9,FALSE),"") ->  | AP192: =IFERROR(VLOOKUP(AP191,'P2'!$B$4:$J$48,9,FALSE),"") ->  | AQ192: =IFERROR(VLOOKUP(AQ191,'P2'!$B$4:$J$48,9,FALSE),"") ->  | AR192: =IFERROR(VLOOKUP(AR191,'P2'!$B$4:$J$48,9,FALSE),"") ->  | AS192: =IFERROR(VLOOKUP(AS191,'P2'!$B$4:$J$48,9,FALSE),"") ->  | AT192: =IFERROR(VLOOKUP(AT191,'P2'!$B$4:$J$48,9,FALSE),"") ->  | AU192: =IFERROR(VLOOKUP(AU191,'P2'!$B$4:$J$48,9,FALSE),"") ->  | AV192: =SUM(Q192:AU192) -> 0
B193: 82 | AV193: =COUNTA(Q193:AU193) -> 0 | AW193: =AV194 -> 0 | AX193: =IFERROR(ROUNDDOWN(AV194/$AT$3,1),"") -> 
Q194: =IFERROR(VLOOKUP(Q193,'P2'!$B$4:$J$48,9,FALSE),"") ->  | R194: =IFERROR(VLOOKUP(R193,'P2'!$B$4:$J$48,9,FALSE),"") ->  | S194: =IFERROR(VLOOKUP(S193,'P2'!$B$4:$J$48,9,FALSE),"") ->  | T194: =IFERROR(VLOOKUP(T193,'P2'!$B$4:$J$48,9,FALSE),"") ->  | U194: =IFERROR(VLOOKUP(U193,'P2'!$B$4:$J$48,9,FALSE),"") ->  | V194: =IFERROR(VLOOKUP(V193,'P2'!$B$4:$J$48,9,FALSE),"") ->  | W194: =IFERROR(VLOOKUP(W193,'P2'!$B$4:$J$48,9,FALSE),"") ->  | X194: =IFERROR(VLOOKUP(X193,'P2'!$B$4:$J$48,9,FALSE),"") ->  | Y194: =IFERROR(VLOOKUP(Y193,'P2'!$B$4:$J$48,9,FALSE),"") ->  | Z194: =IFERROR(VLOOKUP(Z193,'P2'!$B$4:$J$48,9,FALSE),"") ->  | AA194: =IFERROR(VLOOKUP(AA193,'P2'!$B$4:$J$48,9,FALSE),"") ->  | AB194: =IFERROR(VLOOKUP(AB193,'P2'!$B$4:$J$48,9,FALSE),"") ->  | AC194: =IFERROR(VLOOKUP(AC193,'P2'!$B$4:$J$48,9,FALSE),"") ->  | AD194: =IFERROR(VLOOKUP(AD193,'P2'!$B$4:$J$48,9,FALSE),"") ->  | AE194: =IFERROR(VLOOKUP(AE193,'P2'!$B$4:$J$48,9,FALSE),"") ->  | AF194: =IFERROR(VLOOKUP(AF193,'P2'!$B$4:$J$48,9,FALSE),"") ->  | AG194: =IFERROR(VLOOKUP(AG193,'P2'!$B$4:$J$48,9,FALSE),"") ->  | AH194: =IFERROR(VLOOKUP(AH193,'P2'!$B$4:$J$48,9,FALSE),"") ->  | AI194: =IFERROR(VLOOKUP(AI193,'P2'!$B$4:$J$48,9,FALSE),"") ->  | AJ194: =IFERROR(VLOOKUP(AJ193,'P2'!$B$4:$J$48,9,FALSE),"") ->  | AK194: =IFERROR(VLOOKUP(AK193,'P2'!$B$4:$J$48,9,FALSE),"") ->  | AL194: =IFERROR(VLOOKUP(AL193,'P2'!$B$4:$J$48,9,FALSE),"") ->  | AM194: =IFERROR(VLOOKUP(AM193,'P2'!$B$4:$J$48,9,FALSE),"") ->  | AN194: =IFERROR(VLOOKUP(AN193,'P2'!$B$4:$J$48,9,FALSE),"") ->  | AO194: =IFERROR(VLOOKUP(AO193,'P2'!$B$4:$J$48,9,FALSE),"") ->  | AP194: =IFERROR(VLOOKUP(AP193,'P2'!$B$4:$J$48,9,FALSE),"") ->  | AQ194: =IFERROR(VLOOKUP(AQ193,'P2'!$B$4:$J$48,9,FALSE),"") ->  | AR194: =IFERROR(VLOOKUP(AR193,'P2'!$B$4:$J$48,9,FALSE),"") ->  | AS194: =IFERROR(VLOOKUP(AS193,'P2'!$B$4:$J$48,9,FALSE),"") ->  | AT194: =IFERROR(VLOOKUP(AT193,'P2'!$B$4:$J$48,9,FALSE),"") ->  | AU194: =IFERROR(VLOOKUP(AU193,'P2'!$B$4:$J$48,9,FALSE),"") ->  | AV194: =SUM(Q194:AU194) -> 0
B195: 83 | AV195: =COUNTA(Q195:AU195) -> 0 | AW195: =AV196 -> 0 | AX195: =IFERROR(ROUNDDOWN(AV196/$AT$3,1),"") -> 
Q196: =IFERROR(VLOOKUP(Q195,'P2'!$B$4:$J$48,9,FALSE),"") ->  | R196: =IFERROR(VLOOKUP(R195,'P2'!$B$4:$J$48,9,FALSE),"") ->  | S196: =IFERROR(VLOOKUP(S195,'P2'!$B$4:$J$48,9,FALSE),"") ->  | T196: =IFERROR(VLOOKUP(T195,'P2'!$B$4:$J$48,9,FALSE),"") ->  | U196: =IFERROR(VLOOKUP(U195,'P2'!$B$4:$J$48,9,FALSE),"") ->  | V196: =IFERROR(VLOOKUP(V195,'P2'!$B$4:$J$48,9,FALSE),"") ->  | W196: =IFERROR(VLOOKUP(W195,'P2'!$B$4:$J$48,9,FALSE),"") ->  | X196: =IFERROR(VLOOKUP(X195,'P2'!$B$4:$J$48,9,FALSE),"") ->  | Y196: =IFERROR(VLOOKUP(Y195,'P2'!$B$4:$J$48,9,FALSE),"") ->  | Z196: =IFERROR(VLOOKUP(Z195,'P2'!$B$4:$J$48,9,FALSE),"") ->  | AA196: =IFERROR(VLOOKUP(AA195,'P2'!$B$4:$J$48,9,FALSE),"") ->  | AB196: =IFERROR(VLOOKUP(AB195,'P2'!$B$4:$J$48,9,FALSE),"") ->  | AC196: =IFERROR(VLOOKUP(AC195,'P2'!$B$4:$J$48,9,FALSE),"") ->  | AD196: =IFERROR(VLOOKUP(AD195,'P2'!$B$4:$J$48,9,FALSE),"") ->  | AE196: =IFERROR(VLOOKUP(AE195,'P2'!$B$4:$J$48,9,FALSE),"") ->  | AF196: =IFERROR(VLOOKUP(AF195,'P2'!$B$4:$J$48,9,FALSE),"") ->  | AG196: =IFERROR(VLOOKUP(AG195,'P2'!$B$4:$J$48,9,FALSE),"") ->  | AH196: =IFERROR(VLOOKUP(AH195,'P2'!$B$4:$J$48,9,FALSE),"") ->  | AI196: =IFERROR(VLOOKUP(AI195,'P2'!$B$4:$J$48,9,FALSE),"") ->  | AJ196: =IFERROR(VLOOKUP(AJ195,'P2'!$B$4:$J$48,9,FALSE),"") ->  | AK196: =IFERROR(VLOOKUP(AK195,'P2'!$B$4:$J$48,9,FALSE),"") ->  | AL196: =IFERROR(VLOOKUP(AL195,'P2'!$B$4:$J$48,9,FALSE),"") ->  | AM196: =IFERROR(VLOOKUP(AM195,'P2'!$B$4:$J$48,9,FALSE),"") ->  | AN196: =IFERROR(VLOOKUP(AN195,'P2'!$B$4:$J$48,9,FALSE),"") ->  | AO196: =IFERROR(VLOOKUP(AO195,'P2'!$B$4:$J$48,9,FALSE),"") ->  | AP196: =IFERROR(VLOOKUP(AP195,'P2'!$B$4:$J$48,9,FALSE),"") ->  | AQ196: =IFERROR(VLOOKUP(AQ195,'P2'!$B$4:$J$48,9,FALSE),"") ->  | AR196: =IFERROR(VLOOKUP(AR195,'P2'!$B$4:$J$48,9,FALSE),"") ->  | AS196: =IFERROR(VLOOKUP(AS195,'P2'!$B$4:$J$48,9,FALSE),"") ->  | AT196: =IFERROR(VLOOKUP(AT195,'P2'!$B$4:$J$48,9,FALSE),"") ->  | AU196: =IFERROR(VLOOKUP(AU195,'P2'!$B$4:$J$48,9,FALSE),"") ->  | AV196: =SUM(Q196:AU196) -> 0
B197: 84 | AV197: =COUNTA(Q197:AU197) -> 0 | AW197: =AV198 -> 0 | AX197: =IFERROR(ROUNDDOWN(AV198/$AT$3,1),"") -> 
Q198: =IFERROR(VLOOKUP(Q197,'P2'!$B$4:$J$48,9,FALSE),"") ->  | R198: =IFERROR(VLOOKUP(R197,'P2'!$B$4:$J$48,9,FALSE),"") ->  | S198: =IFERROR(VLOOKUP(S197,'P2'!$B$4:$J$48,9,FALSE),"") ->  | T198: =IFERROR(VLOOKUP(T197,'P2'!$B$4:$J$48,9,FALSE),"") ->  | U198: =IFERROR(VLOOKUP(U197,'P2'!$B$4:$J$48,9,FALSE),"") ->  | V198: =IFERROR(VLOOKUP(V197,'P2'!$B$4:$J$48,9,FALSE),"") ->  | W198: =IFERROR(VLOOKUP(W197,'P2'!$B$4:$J$48,9,FALSE),"") ->  | X198: =IFERROR(VLOOKUP(X197,'P2'!$B$4:$J$48,9,FALSE),"") ->  | Y198: =IFERROR(VLOOKUP(Y197,'P2'!$B$4:$J$48,9,FALSE),"") ->  | Z198: =IFERROR(VLOOKUP(Z197,'P2'!$B$4:$J$48,9,FALSE),"") ->  | AA198: =IFERROR(VLOOKUP(AA197,'P2'!$B$4:$J$48,9,FALSE),"") ->  | AB198: =IFERROR(VLOOKUP(AB197,'P2'!$B$4:$J$48,9,FALSE),"") ->  | AC198: =IFERROR(VLOOKUP(AC197,'P2'!$B$4:$J$48,9,FALSE),"") ->  | AD198: =IFERROR(VLOOKUP(AD197,'P2'!$B$4:$J$48,9,FALSE),"") ->  | AE198: =IFERROR(VLOOKUP(AE197,'P2'!$B$4:$J$48,9,FALSE),"") ->  | AF198: =IFERROR(VLOOKUP(AF197,'P2'!$B$4:$J$48,9,FALSE),"") ->  | AG198: =IFERROR(VLOOKUP(AG197,'P2'!$B$4:$J$48,9,FALSE),"") ->  | AH198: =IFERROR(VLOOKUP(AH197,'P2'!$B$4:$J$48,9,FALSE),"") ->  | AI198: =IFERROR(VLOOKUP(AI197,'P2'!$B$4:$J$48,9,FALSE),"") ->  | AJ198: =IFERROR(VLOOKUP(AJ197,'P2'!$B$4:$J$48,9,FALSE),"") ->  | AK198: =IFERROR(VLOOKUP(AK197,'P2'!$B$4:$J$48,9,FALSE),"") ->  | AL198: =IFERROR(VLOOKUP(AL197,'P2'!$B$4:$J$48,9,FALSE),"") ->  | AM198: =IFERROR(VLOOKUP(AM197,'P2'!$B$4:$J$48,9,FALSE),"") ->  | AN198: =IFERROR(VLOOKUP(AN197,'P2'!$B$4:$J$48,9,FALSE),"") ->  | AO198: =IFERROR(VLOOKUP(AO197,'P2'!$B$4:$J$48,9,FALSE),"") ->  | AP198: =IFERROR(VLOOKUP(AP197,'P2'!$B$4:$J$48,9,FALSE),"") ->  | AQ198: =IFERROR(VLOOKUP(AQ197,'P2'!$B$4:$J$48,9,FALSE),"") ->  | AR198: =IFERROR(VLOOKUP(AR197,'P2'!$B$4:$J$48,9,FALSE),"") ->  | AS198: =IFERROR(VLOOKUP(AS197,'P2'!$B$4:$J$48,9,FALSE),"") ->  | AT198: =IFERROR(VLOOKUP(AT197,'P2'!$B$4:$J$48,9,FALSE),"") ->  | AU198: =IFERROR(VLOOKUP(AU197,'P2'!$B$4:$J$48,9,FALSE),"") ->  | AV198: =SUM(Q198:AU198) -> 0
B201: (2) 勤務実績 （直近3か月分の実績） | S201: （ | T201: =$T$3 -> 令和 7 | V201: 年 | W201: =$W$3 -> 5 | X201: 月分実績 | Z201: ） | AX201: ="5 / "&COUNTA(C$7,C$57,C$106,C$155,C$204) -> 5 / 1
C202: 職 種 | I202: 氏 名 | N202: 勤務 形態 | Q202: =Q$5 -> 2025-05-01 | R202: =R$5 -> 2025-05-02 | S202: 2025-05-03 | T202: 2025-05-04 | U202: 2025-05-05 | V202: 2025-05-06 | W202: 2025-05-07 | X202: 2025-05-08 | Y202: 2025-05-09 | Z202: 2025-05-10 | AA202: 2025-05-11 | AB202: 2025-05-12 | AC202: 2025-05-13 | AD202: 2025-05-14 | AE202: 2025-05-15 | AF202: 2025-05-16 | AG202: 2025-05-17 | AH202: 2025-05-18 | AI202: 2025-05-19 | AJ202: 2025-05-20 | AK202: 2025-05-21 | AL202: 2025-05-22 | AM202: 2025-05-23 | AN202: 2025-05-24 | AO202: 2025-05-25 | AP202: 2025-05-26 | AQ202: 2025-05-27 | AR202: 2025-05-28 | AS202: 2025-05-29 | AT202: 2025-05-30 | AU202: 2025-05-31 | AV202: 勤務日数 | AX202: 常勤換算
Q203: =Q$6 -> 木 | R203: =R$6 -> 金 | S203: 土 | T203: 日 | U203: 月 | V203: 火 | W203: 水 | X203: 木 | Y203: 金 | Z203: 土 | AA203: 日 | AB203: 月 | AC203: 火 | AD203: 水 | AE203: 木 | AF203: 金 | AG203: 土 | AH203: 日 | AI203: 月 | AJ203: 火 | AK203: 水 | AL203: 木 | AM203: 金 | AN203: 土 | AO203: 日 | AP203: 月 | AQ203: 火 | AR203: 水 | AS203: 木 | AT203: 金 | AU203: 土 | AV203: 勤務時間
B204: =B197+1 -> 85 | AV204: =COUNTA(Q204:AU204) -> 0 | AW204: =AV205 -> 0 | AX204: =IFERROR(ROUNDDOWN(AV205/$AT$3,1),"") -> 
Q205: =IFERROR(VLOOKUP(Q204,'P2'!$B$4:$J$48,9,FALSE),"") ->  | R205: =IFERROR(VLOOKUP(R204,'P2'!$B$4:$J$48,9,FALSE),"") ->  | S205: =IFERROR(VLOOKUP(S204,'P2'!$B$4:$J$48,9,FALSE),"") ->  | T205: =IFERROR(VLOOKUP(T204,'P2'!$B$4:$J$48,9,FALSE),"") ->  | U205: =IFERROR(VLOOKUP(U204,'P2'!$B$4:$J$48,9,FALSE),"") ->  | V205: =IFERROR(VLOOKUP(V204,'P2'!$B$4:$J$48,9,FALSE),"") ->  | W205: =IFERROR(VLOOKUP(W204,'P2'!$B$4:$J$48,9,FALSE),"") ->  | X205: =IFERROR(VLOOKUP(X204,'P2'!$B$4:$J$48,9,FALSE),"") ->  | Y205: =IFERROR(VLOOKUP(Y204,'P2'!$B$4:$J$48,9,FALSE),"") ->  | Z205: =IFERROR(VLOOKUP(Z204,'P2'!$B$4:$J$48,9,FALSE),"") ->  | AA205: =IFERROR(VLOOKUP(AA204,'P2'!$B$4:$J$48,9,FALSE),"") ->  | AB205: =IFERROR(VLOOKUP(AB204,'P2'!$B$4:$J$48,9,FALSE),"") ->  | AC205: =IFERROR(VLOOKUP(AC204,'P2'!$B$4:$J$48,9,FALSE),"") ->  | AD205: =IFERROR(VLOOKUP(AD204,'P2'!$B$4:$J$48,9,FALSE),"") ->  | AE205: =IFERROR(VLOOKUP(AE204,'P2'!$B$4:$J$48,9,FALSE),"") ->  | AF205: =IFERROR(VLOOKUP(AF204,'P2'!$B$4:$J$48,9,FALSE),"") ->  | AG205: =IFERROR(VLOOKUP(AG204,'P2'!$B$4:$J$48,9,FALSE),"") ->  | AH205: =IFERROR(VLOOKUP(AH204,'P2'!$B$4:$J$48,9,FALSE),"") ->  | AI205: =IFERROR(VLOOKUP(AI204,'P2'!$B$4:$J$48,9,FALSE),"") ->  | AJ205: =IFERROR(VLOOKUP(AJ204,'P2'!$B$4:$J$48,9,FALSE),"") ->  | AK205: =IFERROR(VLOOKUP(AK204,'P2'!$B$4:$J$48,9,FALSE),"") ->  | AL205: =IFERROR(VLOOKUP(AL204,'P2'!$B$4:$J$48,9,FALSE),"") ->  | AM205: =IFERROR(VLOOKUP(AM204,'P2'!$B$4:$J$48,9,FALSE),"") ->  | AN205: =IFERROR(VLOOKUP(AN204,'P2'!$B$4:$J$48,9,FALSE),"") ->  | AO205: =IFERROR(VLOOKUP(AO204,'P2'!$B$4:$J$48,9,FALSE),"") ->  | AP205: =IFERROR(VLOOKUP(AP204,'P2'!$B$4:$J$48,9,FALSE),"") ->  | AQ205: =IFERROR(VLOOKUP(AQ204,'P2'!$B$4:$J$48,9,FALSE),"") ->  | AR205: =IFERROR(VLOOKUP(AR204,'P2'!$B$4:$J$48,9,FALSE),"") ->  | AS205: =IFERROR(VLOOKUP(AS204,'P2'!$B$4:$J$48,9,FALSE),"") ->  | AT205: =IFERROR(VLOOKUP(AT204,'P2'!$B$4:$J$48,9,FALSE),"") ->  | AU205: =IFERROR(VLOOKUP(AU204,'P2'!$B$4:$J$48,9,FALSE),"") ->  | AV205: =SUM(Q205:AU205) -> 0
B206: =B204+1 -> 86 | AV206: =COUNTA(Q206:AU206) -> 0 | AW206: =AV207 -> 0 | AX206: =IFERROR(ROUNDDOWN(AV207/$AT$3,1),"") -> 
Q207: =IFERROR(VLOOKUP(Q206,'P2'!$B$4:$J$48,9,FALSE),"") ->  | R207: =IFERROR(VLOOKUP(R206,'P2'!$B$4:$J$48,9,FALSE),"") ->  | S207: =IFERROR(VLOOKUP(S206,'P2'!$B$4:$J$48,9,FALSE),"") ->  | T207: =IFERROR(VLOOKUP(T206,'P2'!$B$4:$J$48,9,FALSE),"") ->  | U207: =IFERROR(VLOOKUP(U206,'P2'!$B$4:$J$48,9,FALSE),"") ->  | V207: =IFERROR(VLOOKUP(V206,'P2'!$B$4:$J$48,9,FALSE),"") ->  | W207: =IFERROR(VLOOKUP(W206,'P2'!$B$4:$J$48,9,FALSE),"") ->  | X207: =IFERROR(VLOOKUP(X206,'P2'!$B$4:$J$48,9,FALSE),"") ->  | Y207: =IFERROR(VLOOKUP(Y206,'P2'!$B$4:$J$48,9,FALSE),"") ->  | Z207: =IFERROR(VLOOKUP(Z206,'P2'!$B$4:$J$48,9,FALSE),"") ->  | AA207: =IFERROR(VLOOKUP(AA206,'P2'!$B$4:$J$48,9,FALSE),"") ->  | AB207: =IFERROR(VLOOKUP(AB206,'P2'!$B$4:$J$48,9,FALSE),"") ->  | AC207: =IFERROR(VLOOKUP(AC206,'P2'!$B$4:$J$48,9,FALSE),"") ->  | AD207: =IFERROR(VLOOKUP(AD206,'P2'!$B$4:$J$48,9,FALSE),"") ->  | AE207: =IFERROR(VLOOKUP(AE206,'P2'!$B$4:$J$48,9,FALSE),"") ->  | AF207: =IFERROR(VLOOKUP(AF206,'P2'!$B$4:$J$48,9,FALSE),"") ->  | AG207: =IFERROR(VLOOKUP(AG206,'P2'!$B$4:$J$48,9,FALSE),"") ->  | AH207: =IFERROR(VLOOKUP(AH206,'P2'!$B$4:$J$48,9,FALSE),"") ->  | AI207: =IFERROR(VLOOKUP(AI206,'P2'!$B$4:$J$48,9,FALSE),"") ->  | AJ207: =IFERROR(VLOOKUP(AJ206,'P2'!$B$4:$J$48,9,FALSE),"") ->  | AK207: =IFERROR(VLOOKUP(AK206,'P2'!$B$4:$J$48,9,FALSE),"") ->  | AL207: =IFERROR(VLOOKUP(AL206,'P2'!$B$4:$J$48,9,FALSE),"") ->  | AM207: =IFERROR(VLOOKUP(AM206,'P2'!$B$4:$J$48,9,FALSE),"") ->  | AN207: =IFERROR(VLOOKUP(AN206,'P2'!$B$4:$J$48,9,FALSE),"") ->  | AO207: =IFERROR(VLOOKUP(AO206,'P2'!$B$4:$J$48,9,FALSE),"") ->  | AP207: =IFERROR(VLOOKUP(AP206,'P2'!$B$4:$J$48,9,FALSE),"") ->  | AQ207: =IFERROR(VLOOKUP(AQ206,'P2'!$B$4:$J$48,9,FALSE),"") ->  | AR207: =IFERROR(VLOOKUP(AR206,'P2'!$B$4:$J$48,9,FALSE),"") ->  | AS207: =IFERROR(VLOOKUP(AS206,'P2'!$B$4:$J$48,9,FALSE),"") ->  | AT207: =IFERROR(VLOOKUP(AT206,'P2'!$B$4:$J$48,9,FALSE),"") ->  | AU207: =IFERROR(VLOOKUP(AU206,'P2'!$B$4:$J$48,9,FALSE),"") ->  | AV207: =SUM(Q207:AU207) -> 0
B208: 87 | AV208: =COUNTA(Q208:AU208) -> 0 | AW208: =AV209 -> 0 | AX208: =IFERROR(ROUNDDOWN(AV209/$AT$3,1),"") -> 
Q209: =IFERROR(VLOOKUP(Q208,'P2'!$B$4:$J$48,9,FALSE),"") ->  | R209: =IFERROR(VLOOKUP(R208,'P2'!$B$4:$J$48,9,FALSE),"") ->  | S209: =IFERROR(VLOOKUP(S208,'P2'!$B$4:$J$48,9,FALSE),"") ->  | T209: =IFERROR(VLOOKUP(T208,'P2'!$B$4:$J$48,9,FALSE),"") ->  | U209: =IFERROR(VLOOKUP(U208,'P2'!$B$4:$J$48,9,FALSE),"") ->  | V209: =IFERROR(VLOOKUP(V208,'P2'!$B$4:$J$48,9,FALSE),"") ->  | W209: =IFERROR(VLOOKUP(W208,'P2'!$B$4:$J$48,9,FALSE),"") ->  | X209: =IFERROR(VLOOKUP(X208,'P2'!$B$4:$J$48,9,FALSE),"") ->  | Y209: =IFERROR(VLOOKUP(Y208,'P2'!$B$4:$J$48,9,FALSE),"") ->  | Z209: =IFERROR(VLOOKUP(Z208,'P2'!$B$4:$J$48,9,FALSE),"") ->  | AA209: =IFERROR(VLOOKUP(AA208,'P2'!$B$4:$J$48,9,FALSE),"") ->  | AB209: =IFERROR(VLOOKUP(AB208,'P2'!$B$4:$J$48,9,FALSE),"") ->  | AC209: =IFERROR(VLOOKUP(AC208,'P2'!$B$4:$J$48,9,FALSE),"") ->  | AD209: =IFERROR(VLOOKUP(AD208,'P2'!$B$4:$J$48,9,FALSE),"") ->  | AE209: =IFERROR(VLOOKUP(AE208,'P2'!$B$4:$J$48,9,FALSE),"") ->  | AF209: =IFERROR(VLOOKUP(AF208,'P2'!$B$4:$J$48,9,FALSE),"") ->  | AG209: =IFERROR(VLOOKUP(AG208,'P2'!$B$4:$J$48,9,FALSE),"") ->  | AH209: =IFERROR(VLOOKUP(AH208,'P2'!$B$4:$J$48,9,FALSE),"") ->  | AI209: =IFERROR(VLOOKUP(AI208,'P2'!$B$4:$J$48,9,FALSE),"") ->  | AJ209: =IFERROR(VLOOKUP(AJ208,'P2'!$B$4:$J$48,9,FALSE),"") ->  | AK209: =IFERROR(VLOOKUP(AK208,'P2'!$B$4:$J$48,9,FALSE),"") ->  | AL209: =IFERROR(VLOOKUP(AL208,'P2'!$B$4:$J$48,9,FALSE),"") ->  | AM209: =IFERROR(VLOOKUP(AM208,'P2'!$B$4:$J$48,9,FALSE),"") ->  | AN209: =IFERROR(VLOOKUP(AN208,'P2'!$B$4:$J$48,9,FALSE),"") ->  | AO209: =IFERROR(VLOOKUP(AO208,'P2'!$B$4:$J$48,9,FALSE),"") ->  | AP209: =IFERROR(VLOOKUP(AP208,'P2'!$B$4:$J$48,9,FALSE),"") ->  | AQ209: =IFERROR(VLOOKUP(AQ208,'P2'!$B$4:$J$48,9,FALSE),"") ->  | AR209: =IFERROR(VLOOKUP(AR208,'P2'!$B$4:$J$48,9,FALSE),"") ->  | AS209: =IFERROR(VLOOKUP(AS208,'P2'!$B$4:$J$48,9,FALSE),"") ->  | AT209: =IFERROR(VLOOKUP(AT208,'P2'!$B$4:$J$48,9,FALSE),"") ->  | AU209: =IFERROR(VLOOKUP(AU208,'P2'!$B$4:$J$48,9,FALSE),"") ->  | AV209: =SUM(Q209:AU209) -> 0
B210: 88 | AV210: =COUNTA(Q210:AU210) -> 0 | AW210: =AV211 -> 0 | AX210: =IFERROR(ROUNDDOWN(AV211/$AT$3,1),"") -> 
Q211: =IFERROR(VLOOKUP(Q210,'P2'!$B$4:$J$48,9,FALSE),"") ->  | R211: =IFERROR(VLOOKUP(R210,'P2'!$B$4:$J$48,9,FALSE),"") ->  | S211: =IFERROR(VLOOKUP(S210,'P2'!$B$4:$J$48,9,FALSE),"") ->  | T211: =IFERROR(VLOOKUP(T210,'P2'!$B$4:$J$48,9,FALSE),"") ->  | U211: =IFERROR(VLOOKUP(U210,'P2'!$B$4:$J$48,9,FALSE),"") ->  | V211: =IFERROR(VLOOKUP(V210,'P2'!$B$4:$J$48,9,FALSE),"") ->  | W211: =IFERROR(VLOOKUP(W210,'P2'!$B$4:$J$48,9,FALSE),"") ->  | X211: =IFERROR(VLOOKUP(X210,'P2'!$B$4:$J$48,9,FALSE),"") ->  | Y211: =IFERROR(VLOOKUP(Y210,'P2'!$B$4:$J$48,9,FALSE),"") ->  | Z211: =IFERROR(VLOOKUP(Z210,'P2'!$B$4:$J$48,9,FALSE),"") ->  | AA211: =IFERROR(VLOOKUP(AA210,'P2'!$B$4:$J$48,9,FALSE),"") ->  | AB211: =IFERROR(VLOOKUP(AB210,'P2'!$B$4:$J$48,9,FALSE),"") ->  | AC211: =IFERROR(VLOOKUP(AC210,'P2'!$B$4:$J$48,9,FALSE),"") ->  | AD211: =IFERROR(VLOOKUP(AD210,'P2'!$B$4:$J$48,9,FALSE),"") ->  | AE211: =IFERROR(VLOOKUP(AE210,'P2'!$B$4:$J$48,9,FALSE),"") ->  | AF211: =IFERROR(VLOOKUP(AF210,'P2'!$B$4:$J$48,9,FALSE),"") ->  | AG211: =IFERROR(VLOOKUP(AG210,'P2'!$B$4:$J$48,9,FALSE),"") ->  | AH211: =IFERROR(VLOOKUP(AH210,'P2'!$B$4:$J$48,9,FALSE),"") ->  | AI211: =IFERROR(VLOOKUP(AI210,'P2'!$B$4:$J$48,9,FALSE),"") ->  | AJ211: =IFERROR(VLOOKUP(AJ210,'P2'!$B$4:$J$48,9,FALSE),"") ->  | AK211: =IFERROR(VLOOKUP(AK210,'P2'!$B$4:$J$48,9,FALSE),"") ->  | AL211: =IFERROR(VLOOKUP(AL210,'P2'!$B$4:$J$48,9,FALSE),"") ->  | AM211: =IFERROR(VLOOKUP(AM210,'P2'!$B$4:$J$48,9,FALSE),"") ->  | AN211: =IFERROR(VLOOKUP(AN210,'P2'!$B$4:$J$48,9,FALSE),"") ->  | AO211: =IFERROR(VLOOKUP(AO210,'P2'!$B$4:$J$48,9,FALSE),"") ->  | AP211: =IFERROR(VLOOKUP(AP210,'P2'!$B$4:$J$48,9,FALSE),"") ->  | AQ211: =IFERROR(VLOOKUP(AQ210,'P2'!$B$4:$J$48,9,FALSE),"") ->  | AR211: =IFERROR(VLOOKUP(AR210,'P2'!$B$4:$J$48,9,FALSE),"") ->  | AS211: =IFERROR(VLOOKUP(AS210,'P2'!$B$4:$J$48,9,FALSE),"") ->  | AT211: =IFERROR(VLOOKUP(AT210,'P2'!$B$4:$J$48,9,FALSE),"") ->  | AU211: =IFERROR(VLOOKUP(AU210,'P2'!$B$4:$J$48,9,FALSE),"") ->  | AV211: =SUM(Q211:AU211) -> 0
B212: 89 | AV212: =COUNTA(Q212:AU212) -> 0 | AW212: =AV213 -> 0 | AX212: =IFERROR(ROUNDDOWN(AV213/$AT$3,1),"") -> 
... 35 more rows

Sheet P3-2
B3: (2) 勤務実績 （直近3か月分の実績） | N3: =YEAR(EOMONTH(DATE(SUM(2018+【共通】!L9),【共通】!N9,【共通】!P9),-2)) -> 2025 | S3: （ | T3: =IFERROR("令和 "&VLOOKUP(N3,BL5:BM12,2,FALSE),"") -> 令和 7 | V3: 年 | W3: =MONTH(EOMONTH(DATE(2023,【共通】!N9,【共通】!P9),-3)) -> 4 | X3: 月分実績 | Z3: ） | AA3: 当該事業所の常勤の職員が当該月に勤務すべき時間数 | AN3: 時間／日 | AR3: 時間／週 | AV3: 時間／月 | AX3: ="1 / "&COUNTA(C$7,C$57,C$106,C$155,C$204) -> 1 / 1
C5: 職 種 | I5: 氏 名 | N5: 勤務 形態 | Q5: =DATE($N$3,$W$3,1) -> 2025-04-01 | R5: =Q5+1 -> 2025-04-02 | S5: =R5+1 -> 2025-04-03 | T5: =S5+1 -> 2025-04-04 | U5: 2025-04-05 | V5: 2025-04-06 | W5: 2025-04-07 | X5: 2025-04-08 | Y5: 2025-04-09 | Z5: 2025-04-10 | AA5: 2025-04-11 | AB5: 2025-04-12 | AC5: 2025-04-13 | AD5: 2025-04-14 | AE5: 2025-04-15 | AF5: 2025-04-16 | AG5: 2025-04-17 | AH5: 2025-04-18 | AI5: 2025-04-19 | AJ5: 2025-04-20 | AK5: 2025-04-21 | AL5: 2025-04-22 | AM5: 2025-04-23 | AN5: 2025-04-24 | AO5: 2025-04-25 | AP5: 2025-04-26 | AQ5: 2025-04-27 | AR5: =AQ5+1 -> 2025-04-28 | AS5: =IF(DAY(DATE($N$3,$W$3,29))=29,AR5+1,"") -> 2025-04-29 | AT5: =IF(DAY(DATE($N$3,$W$3,30))=30,AS5+1,"") -> 2025-04-30 | AU5: =IF(DAY(DATE($N$3,$W$3,31))=31,AT5+1,"") ->  | AV5: 勤務日数 | AX5: 常勤換算 | BL5: 2023 | BM5: 5
Q6: =VLOOKUP(WEEKDAY(Q5,2),$BA$7:$BB$14,2,FALSE) -> 火 | R6: 水 | S6: 木 | T6: 金 | U6: 土 | V6: 日 | W6: 月 | X6: 火 | Y6: 水 | Z6: 木 | AA6: 金 | AB6: 土 | AC6: 日 | AD6: 月 | AE6: 火 | AF6: 水 | AG6: 木 | AH6: 金 | AI6: 土 | AJ6: 日 | AK6: 月 | AL6: 火 | AM6: 水 | AN6: 木 | AO6: 金 | AP6: 土 | AQ6: 日 | AR6: 月 | AS6: =IF(AS5="","",VLOOKUP(WEEKDAY(AS5,2),$BA$7:$BB$14,2,FALSE)) -> 火 | AT6: =IF(AT5="","",VLOOKUP(WEEKDAY(AT5,2),$BA$7:$BB$14,2,FALSE)) -> 水 | AU6: =IF(AU5="","",VLOOKUP(WEEKDAY(AU5,2),$BA$7:$BB$14,2,FALSE)) ->  | AV6: 勤務時間 | BL6: =BL5+1 -> 2024 | BM6: =BM5+1 -> 6
B7: 例 | C7: 管理者 | I7: ○○ ○○ | N7: 常勤 兼務 | Q7: A | R7: A | U7: A | V7: A | W7: A | X7: A | Y7: A | AB7: A | AC7: A | AD7: A | AE7: A | AF7: A | AI7: A | AJ7: A | AK7: A | AL7: A | AM7: A | AP7: A | AQ7: A | AR7: A | AS7: A | AT7: A | AV7: =COUNTA(Q7:AU7) -> 22 | AW7: =AV8 -> 170.5 | AX7: =IFERROR(ROUNDDOWN(AV8/$AT$3,1),"") ->  | BA7: 1 | BB7: 月 | BC7: 管理者 | BG7: 常勤 専従 | BH7: 常勤 兼務 | BI7: 非常勤 専従 | BJ7: 非常勤 兼務 | BL7: =BL6+1 -> 2025 | BM7: 7
Q8: =IFERROR(VLOOKUP(Q7,'P2'!$B$59:$J$64,9,FALSE),"") -> 7.75 | R8: =IFERROR(VLOOKUP(R7,'P2'!$B$59:$J$64,9,FALSE),"") -> 7.75 | S8: =IFERROR(VLOOKUP(S7,'P2'!$B$59:$J$64,9,FALSE),"") ->  | T8: =IFERROR(VLOOKUP(T7,'P2'!$B$59:$J$64,9,FALSE),"") ->  | U8: =IFERROR(VLOOKUP(U7,'P2'!$B$59:$J$64,9,FALSE),"") -> 7.75 | V8: =IFERROR(VLOOKUP(V7,'P2'!$B$59:$J$64,9,FALSE),"") -> 7.75 | W8: =IFERROR(VLOOKUP(W7,'P2'!$B$59:$J$64,9,FALSE),"") -> 7.75 | X8: =IFERROR(VLOOKUP(X7,'P2'!$B$59:$J$64,9,FALSE),"") -> 7.75 | Y8: =IFERROR(VLOOKUP(Y7,'P2'!$B$59:$J$64,9,FALSE),"") -> 7.75 | Z8: =IFERROR(VLOOKUP(Z7,'P2'!$B$59:$J$64,9,FALSE),"") ->  | AA8: =IFERROR(VLOOKUP(AA7,'P2'!$B$59:$J$64,9,FALSE),"") ->  | AB8: =IFERROR(VLOOKUP(AB7,'P2'!$B$59:$J$64,9,FALSE),"") -> 7.75 | AC8: =IFERROR(VLOOKUP(AC7,'P2'!$B$59:$J$64,9,FALSE),"") -> 7.75 | AD8: =IFERROR(VLOOKUP(AD7,'P2'!$B$59:$J$64,9,FALSE),"") -> 7.75 | AE8: =IFERROR(VLOOKUP(AE7,'P2'!$B$59:$J$64,9,FALSE),"") -> 7.75 | AF8: =IFERROR(VLOOKUP(AF7,'P2'!$B$59:$J$64,9,FALSE),"") -> 7.75 | AG8: =IFERROR(VLOOKUP(AG7,'P2'!$B$59:$J$64,9,FALSE),"") ->  | AH8: =IFERROR(VLOOKUP(AH7,'P2'!$B$59:$J$64,9,FALSE),"") ->  | AI8: =IFERROR(VLOOKUP(AI7,'P2'!$B$59:$J$64,9,FALSE),"") -> 7.75 | AJ8: =IFERROR(VLOOKUP(AJ7,'P2'!$B$59:$J$64,9,FALSE),"") -> 7.75 | AK8: =IFERROR(VLOOKUP(AK7,'P2'!$B$59:$J$64,9,FALSE),"") -> 7.75 | AL8: =IFERROR(VLOOKUP(AL7,'P2'!$B$59:$J$64,9,FALSE),"") -> 7.75 | AM8: =IFERROR(VLOOKUP(AM7,'P2'!$B$59:$J$64,9,FALSE),"") -> 7.75 | AN8: =IFERROR(VLOOKUP(AN7,'P2'!$B$59:$J$64,9,FALSE),"") ->  | AO8: =IFERROR(VLOOKUP(AO7,'P2'!$B$59:$J$64,9,FALSE),"") ->  | AP8: =IFERROR(VLOOKUP(AP7,'P2'!$B$59:$J$64,9,FALSE),"") -> 7.75 | AQ8: =IFERROR(VLOOKUP(AQ7,'P2'!$B$59:$J$64,9,FALSE),"") -> 7.75 | AR8: =IFERROR(VLOOKUP(AR7,'P2'!$B$59:$J$64,9,FALSE),"") -> 7.75 | AS8: =IFERROR(VLOOKUP(AS7,'P2'!$B$59:$J$64,9,FALSE),"") -> 7.75 | AT8: =IFERROR(VLOOKUP(AT7,'P2'!$B$59:$J$64,9,FALSE),"") -> 7.75 | AU8: =IFERROR(VLOOKUP(AU7,'P2'!$B$59:$J$64,9,FALSE),"") ->  | AV8: =SUM(Q8:AU8) -> 170.5 | BA8: 2 | BB8: 火 | BC8: サービス提供責任者 | BL8: 2026 | BM8: 8
B9: 例 | C9: サービス提供責任者 | I9: ×× ×× | N9: 常勤 専従 | Q9: B | R9: B | U9: B | V9: B | W9: B | X9: B | Y9: B | AB9: B | AC9: B | AD9: B | AE9: B | AF9: B | AI9: B | AJ9: B | AK9: B | AL9: B | AM9: B | AP9: B | AQ9: B | AR9: B | AS9: B | AT9: B | AU9: B | AV9: =COUNTA(Q9:AU9) -> 23 | AW9: =AV10 -> 155.25 | AX9: =IFERROR(ROUNDDOWN(AV10/$AT$3,1),"") ->  | BA9: 3 | BB9: 水 | BC9: ヘルパー | BL9: 2027 | BM9: 9
Q10: =IFERROR(VLOOKUP(Q9,'P2'!$B$59:$J$64,9,FALSE),"") -> 6.75 | R10: =IFERROR(VLOOKUP(R9,'P2'!$B$59:$J$64,9,FALSE),"") -> 6.75 | S10: =IFERROR(VLOOKUP(S9,'P2'!$B$59:$J$64,9,FALSE),"") ->  | T10: =IFERROR(VLOOKUP(T9,'P2'!$B$59:$J$64,9,FALSE),"") ->  | U10: =IFERROR(VLOOKUP(U9,'P2'!$B$59:$J$64,9,FALSE),"") -> 6.75 | V10: =IFERROR(VLOOKUP(V9,'P2'!$B$59:$J$64,9,FALSE),"") -> 6.75 | W10: =IFERROR(VLOOKUP(W9,'P2'!$B$59:$J$64,9,FALSE),"") -> 6.75 | X10: =IFERROR(VLOOKUP(X9,'P2'!$B$59:$J$64,9,FALSE),"") -> 6.75 | Y10: =IFERROR(VLOOKUP(Y9,'P2'!$B$59:$J$64,9,FALSE),"") -> 6.75 | Z10: =IFERROR(VLOOKUP(Z9,'P2'!$B$59:$J$64,9,FALSE),"") ->  | AA10: =IFERROR(VLOOKUP(AA9,'P2'!$B$59:$J$64,9,FALSE),"") ->  | AB10: =IFERROR(VLOOKUP(AB9,'P2'!$B$59:$J$64,9,FALSE),"") -> 6.75 | AC10: =IFERROR(VLOOKUP(AC9,'P2'!$B$59:$J$64,9,FALSE),"") -> 6.75 | AD10: =IFERROR(VLOOKUP(AD9,'P2'!$B$59:$J$64,9,FALSE),"") -> 6.75 | AE10: =IFERROR(VLOOKUP(AE9,'P2'!$B$59:$J$64,9,FALSE),"") -> 6.75 | AF10: =IFERROR(VLOOKUP(AF9,'P2'!$B$59:$J$64,9,FALSE),"") -> 6.75 | AG10: =IFERROR(VLOOKUP(AG9,'P2'!$B$59:$J$64,9,FALSE),"") ->  | AH10: =IFERROR(VLOOKUP(AH9,'P2'!$B$59:$J$64,9,FALSE),"") ->  | AI10: =IFERROR(VLOOKUP(AI9,'P2'!$B$59:$J$64,9,FALSE),"") -> 6.75 | AJ10: =IFERROR(VLOOKUP(AJ9,'P2'!$B$59:$J$64,9,FALSE),"") -> 6.75 | AK10: =IFERROR(VLOOKUP(AK9,'P2'!$B$59:$J$64,9,FALSE),"") -> 6.75 | AL10: =IFERROR(VLOOKUP(AL9,'P2'!$B$59:$J$64,9,FALSE),"") -> 6.75 | AM10: =IFERROR(VLOOKUP(AM9,'P2'!$B$59:$J$64,9,FALSE),"") -> 6.75 | AN10: =IFERROR(VLOOKUP(AN9,'P2'!$B$59:$J$64,9,FALSE),"") ->  | AO10: =IFERROR(VLOOKUP(AO9,'P2'!$B$59:$J$64,9,FALSE),"") ->  | AP10: =IFERROR(VLOOKUP(AP9,'P2'!$B$59:$J$64,9,FALSE),"") -> 6.75 | AQ10: =IFERROR(VLOOKUP(AQ9,'P2'!$B$59:$J$64,9,FALSE),"") -> 6.75 | AR10: =IFERROR(VLOOKUP(AR9,'P2'!$B$59:$J$64,9,FALSE),"") -> 6.75 | AS10: =IFERROR(VLOOKUP(AS9,'P2'!$B$59:$J$64,9,FALSE),"") -> 6.75 | AT10: =IFERROR(VLOOKUP(AT9,'P2'!$B$59:$J$64,9,FALSE),"") -> 6.75 | AU10: =IFERROR(VLOOKUP(AU9,'P2'!$B$59:$J$64,9,FALSE),"") -> 6.75 | AV10: =SUM(Q10:AU10) -> 155.25 | BA10: 4 | BB10: 木 | BC10: 登録ヘルパー | BL10: 2028 | BM10: 10
B11: 例 | C11: ヘルパー | I11: △△ △△ | N11: 非常勤 兼務 | Q11: 登② | R11: 登② | U11: 登① | V11: 登① | X11: 登② | Y11: 登② | AB11: 登① | AC11: 登① | AE11: 登② | AF11: 登② | AI11: 登① | AJ11: 登① | AL11: 登② | AM11: 登② | AP11: 登① | AQ11: 登① | AS11: 登② | AT11: 登② | AV11: =COUNTA(Q11:AU11) -> 18 | AW11: =AV12 -> 39.5 | AX11: =IFERROR(ROUNDDOWN(AV12/$AT$3,1),"") ->  | BA11: 5 | BB11: 金 | BL11: 2029 | BM11: 11
Q12: =IFERROR(VLOOKUP(Q11,'P2'!$B$59:$J$64,9,FALSE),"") -> 2.75 | R12: =IFERROR(VLOOKUP(R11,'P2'!$B$59:$J$64,9,FALSE),"") -> 2.75 | S12: =IFERROR(VLOOKUP(S11,'P2'!$B$59:$J$64,9,FALSE),"") ->  | T12: =IFERROR(VLOOKUP(T11,'P2'!$B$59:$J$64,9,FALSE),"") ->  | U12: =IFERROR(VLOOKUP(U11,'P2'!$B$59:$J$64,9,FALSE),"") -> 1.5 | V12: =IFERROR(VLOOKUP(V11,'P2'!$B$59:$J$64,9,FALSE),"") -> 1.5 | W12: =IFERROR(VLOOKUP(W11,'P2'!$B$59:$J$64,9,FALSE),"") ->  | X12: =IFERROR(VLOOKUP(X11,'P2'!$B$59:$J$64,9,FALSE),"") -> 2.75 | Y12: =IFERROR(VLOOKUP(Y11,'P2'!$B$59:$J$64,9,FALSE),"") -> 2.75 | Z12: =IFERROR(VLOOKUP(Z11,'P2'!$B$59:$J$64,9,FALSE),"") ->  | AA12: =IFERROR(VLOOKUP(AA11,'P2'!$B$59:$J$64,9,FALSE),"") ->  | AB12: =IFERROR(VLOOKUP(AB11,'P2'!$B$59:$J$64,9,FALSE),"") -> 1.5 | AC12: =IFERROR(VLOOKUP(AC11,'P2'!$B$59:$J$64,9,FALSE),"") -> 1.5 | AD12: =IFERROR(VLOOKUP(AD11,'P2'!$B$59:$J$64,9,FALSE),"") ->  | AE12: =IFERROR(VLOOKUP(AE11,'P2'!$B$59:$J$64,9,FALSE),"") -> 2.75 | AF12: =IFERROR(VLOOKUP(AF11,'P2'!$B$59:$J$64,9,FALSE),"") -> 2.75 | AG12: =IFERROR(VLOOKUP(AG11,'P2'!$B$59:$J$64,9,FALSE),"") ->  | AH12: =IFERROR(VLOOKUP(AH11,'P2'!$B$59:$J$64,9,FALSE),"") ->  | AI12: =IFERROR(VLOOKUP(AI11,'P2'!$B$59:$J$64,9,FALSE),"") -> 1.5 | AJ12: =IFERROR(VLOOKUP(AJ11,'P2'!$B$59:$J$64,9,FALSE),"") -> 1.5 | AK12: =IFERROR(VLOOKUP(AK11,'P2'!$B$59:$J$64,9,FALSE),"") ->  | AL12: =IFERROR(VLOOKUP(AL11,'P2'!$B$59:$J$64,9,FALSE),"") -> 2.75 | AM12: =IFERROR(VLOOKUP(AM11,'P2'!$B$59:$J$64,9,FALSE),"") -> 2.75 | AN12: =IFERROR(VLOOKUP(AN11,'P2'!$B$59:$J$64,9,FALSE),"") ->  | AO12: =IFERROR(VLOOKUP(AO11,'P2'!$B$59:$J$64,9,FALSE),"") ->  | AP12: =IFERROR(VLOOKUP(AP11,'P2'!$B$59:$J$64,9,FALSE),"") -> 1.5 | AQ12: =IFERROR(VLOOKUP(AQ11,'P2'!$B$59:$J$64,9,FALSE),"") -> 1.5 | AR12: =IFERROR(VLOOKUP(AR11,'P2'!$B$59:$J$64,9,FALSE),"") ->  | AS12: =IFERROR(VLOOKUP(AS11,'P2'!$B$59:$J$64,9,FALSE),"") -> 2.75 | AT12: =IFERROR(VLOOKUP(AT11,'P2'!$B$59:$J$64,9,FALSE),"") -> 2.75 | AU12: =IFERROR(VLOOKUP(AU11,'P2'!$B$59:$J$64,9,FALSE),"") ->  | AV12: =SUM(Q12:AU12) -> 39.5 | BA12: 6 | BB12: 土 | BL12: 2030 | BM12: 12
B13: =ROW(B1) -> 1 | AV13: =COUNTA(Q13:AU13) -> 0 | AW13: =AV14 -> 0 | AX13: =IFERROR(ROUNDDOWN(AV14/$AT$3,1),"") ->  | BA13: 7 | BB13: 日
Q14: =IFERROR(VLOOKUP(Q13,'P2'!$B$4:$J$48,9,FALSE),"") ->  | R14: =IFERROR(VLOOKUP(R13,'P2'!$B$4:$J$48,9,FALSE),"") ->  | S14: =IFERROR(VLOOKUP(S13,'P2'!$B$4:$J$48,9,FALSE),"") ->  | T14: =IFERROR(VLOOKUP(T13,'P2'!$B$4:$J$48,9,FALSE),"") ->  | U14: =IFERROR(VLOOKUP(U13,'P2'!$B$4:$J$48,9,FALSE),"") ->  | V14: =IFERROR(VLOOKUP(V13,'P2'!$B$4:$J$48,9,FALSE),"") ->  | W14: =IFERROR(VLOOKUP(W13,'P2'!$B$4:$J$48,9,FALSE),"") ->  | X14: =IFERROR(VLOOKUP(X13,'P2'!$B$4:$J$48,9,FALSE),"") ->  | Y14: =IFERROR(VLOOKUP(Y13,'P2'!$B$4:$J$48,9,FALSE),"") ->  | Z14: =IFERROR(VLOOKUP(Z13,'P2'!$B$4:$J$48,9,FALSE),"") ->  | AA14: =IFERROR(VLOOKUP(AA13,'P2'!$B$4:$J$48,9,FALSE),"") ->  | AB14: =IFERROR(VLOOKUP(AB13,'P2'!$B$4:$J$48,9,FALSE),"") ->  | AC14: =IFERROR(VLOOKUP(AC13,'P2'!$B$4:$J$48,9,FALSE),"") ->  | AD14: =IFERROR(VLOOKUP(AD13,'P2'!$B$4:$J$48,9,FALSE),"") ->  | AE14: =IFERROR(VLOOKUP(AE13,'P2'!$B$4:$J$48,9,FALSE),"") ->  | AF14: =IFERROR(VLOOKUP(AF13,'P2'!$B$4:$J$48,9,FALSE),"") ->  | AG14: =IFERROR(VLOOKUP(AG13,'P2'!$B$4:$J$48,9,FALSE),"") ->  | AH14: =IFERROR(VLOOKUP(AH13,'P2'!$B$4:$J$48,9,FALSE),"") ->  | AI14: =IFERROR(VLOOKUP(AI13,'P2'!$B$4:$J$48,9,FALSE),"") ->  | AJ14: =IFERROR(VLOOKUP(AJ13,'P2'!$B$4:$J$48,9,FALSE),"") ->  | AK14: =IFERROR(VLOOKUP(AK13,'P2'!$B$4:$J$48,9,FALSE),"") ->  | AL14: =IFERROR(VLOOKUP(AL13,'P2'!$B$4:$J$48,9,FALSE),"") ->  | AM14: =IFERROR(VLOOKUP(AM13,'P2'!$B$4:$J$48,9,FALSE),"") ->  | AN14: =IFERROR(VLOOKUP(AN13,'P2'!$B$4:$J$48,9,FALSE),"") ->  | AO14: =IFERROR(VLOOKUP(AO13,'P2'!$B$4:$J$48,9,FALSE),"") ->  | AP14: =IFERROR(VLOOKUP(AP13,'P2'!$B$4:$J$48,9,FALSE),"") ->  | AQ14: =IFERROR(VLOOKUP(AQ13,'P2'!$B$4:$J$48,9,FALSE),"") ->  | AR14: =IFERROR(VLOOKUP(AR13,'P2'!$B$4:$J$48,9,FALSE),"") ->  | AS14: =IFERROR(VLOOKUP(AS13,'P2'!$B$4:$J$48,9,FALSE),"") ->  | AT14: =IFERROR(VLOOKUP(AT13,'P2'!$B$4:$J$48,9,FALSE),"") ->  | AU14: =IFERROR(VLOOKUP(AU13,'P2'!$B$4:$J$48,9,FALSE),"") ->  | AV14: =SUM(Q14:AU14) -> 0
B15: =B13+1 -> 2 | AV15: =COUNTA(Q15:AU15) -> 0 | AW15: =AV16 -> 0 | AX15: =IFERROR(ROUNDDOWN(AV16/$AT$3,1),"") -> 
Q16: =IFERROR(VLOOKUP(Q15,'P2'!$B$4:$J$48,9,FALSE),"") ->  | R16: =IFERROR(VLOOKUP(R15,'P2'!$B$4:$J$48,9,FALSE),"") ->  | S16: =IFERROR(VLOOKUP(S15,'P2'!$B$4:$J$48,9,FALSE),"") ->  | T16: =IFERROR(VLOOKUP(T15,'P2'!$B$4:$J$48,9,FALSE),"") ->  | U16: =IFERROR(VLOOKUP(U15,'P2'!$B$4:$J$48,9,FALSE),"") ->  | V16: =IFERROR(VLOOKUP(V15,'P2'!$B$4:$J$48,9,FALSE),"") ->  | W16: =IFERROR(VLOOKUP(W15,'P2'!$B$4:$J$48,9,FALSE),"") ->  | X16: =IFERROR(VLOOKUP(X15,'P2'!$B$4:$J$48,9,FALSE),"") ->  | Y16: =IFERROR(VLOOKUP(Y15,'P2'!$B$4:$J$48,9,FALSE),"") ->  | Z16: =IFERROR(VLOOKUP(Z15,'P2'!$B$4:$J$48,9,FALSE),"") ->  | AA16: =IFERROR(VLOOKUP(AA15,'P2'!$B$4:$J$48,9,FALSE),"") ->  | AB16: =IFERROR(VLOOKUP(AB15,'P2'!$B$4:$J$48,9,FALSE),"") ->  | AC16: =IFERROR(VLOOKUP(AC15,'P2'!$B$4:$J$48,9,FALSE),"") ->  | AD16: =IFERROR(VLOOKUP(AD15,'P2'!$B$4:$J$48,9,FALSE),"") ->  | AE16: =IFERROR(VLOOKUP(AE15,'P2'!$B$4:$J$48,9,FALSE),"") ->  | AF16: =IFERROR(VLOOKUP(AF15,'P2'!$B$4:$J$48,9,FALSE),"") ->  | AG16: =IFERROR(VLOOKUP(AG15,'P2'!$B$4:$J$48,9,FALSE),"") ->  | AH16: =IFERROR(VLOOKUP(AH15,'P2'!$B$4:$J$48,9,FALSE),"") ->  | AI16: =IFERROR(VLOOKUP(AI15,'P2'!$B$4:$J$48,9,FALSE),"") ->  | AJ16: =IFERROR(VLOOKUP(AJ15,'P2'!$B$4:$J$48,9,FALSE),"") ->  | AK16: =IFERROR(VLOOKUP(AK15,'P2'!$B$4:$J$48,9,FALSE),"") ->  | AL16: =IFERROR(VLOOKUP(AL15,'P2'!$B$4:$J$48,9,FALSE),"") ->  | AM16: =IFERROR(VLOOKUP(AM15,'P2'!$B$4:$J$48,9,FALSE),"") ->  | AN16: =IFERROR(VLOOKUP(AN15,'P2'!$B$4:$J$48,9,FALSE),"") ->  | AO16: =IFERROR(VLOOKUP(AO15,'P2'!$B$4:$J$48,9,FALSE),"") ->  | AP16: =IFERROR(VLOOKUP(AP15,'P2'!$B$4:$J$48,9,FALSE),"") ->  | AQ16: =IFERROR(VLOOKUP(AQ15,'P2'!$B$4:$J$48,9,FALSE),"") ->  | AR16: =IFERROR(VLOOKUP(AR15,'P2'!$B$4:$J$48,9,FALSE),"") ->  | AS16: =IFERROR(VLOOKUP(AS15,'P2'!$B$4:$J$48,9,FALSE),"") ->  | AT16: =IFERROR(VLOOKUP(AT15,'P2'!$B$4:$J$48,9,FALSE),"") ->  | AU16: =IFERROR(VLOOKUP(AU15,'P2'!$B$4:$J$48,9,FALSE),"") ->  | AV16: =SUM(Q16:AU16) -> 0
B17: =B15+1 -> 3 | AV17: =COUNTA(Q17:AU17) -> 0 | AW17: =AV18 -> 0 | AX17: =IFERROR(ROUNDDOWN(AV18/$AT$3,1),"") -> 
Q18: =IFERROR(VLOOKUP(Q17,'P2'!$B$4:$J$48,9,FALSE),"") ->  | R18: =IFERROR(VLOOKUP(R17,'P2'!$B$4:$J$48,9,FALSE),"") ->  | S18: =IFERROR(VLOOKUP(S17,'P2'!$B$4:$J$48,9,FALSE),"") ->  | T18: =IFERROR(VLOOKUP(T17,'P2'!$B$4:$J$48,9,FALSE),"") ->  | U18: =IFERROR(VLOOKUP(U17,'P2'!$B$4:$J$48,9,FALSE),"") ->  | V18: =IFERROR(VLOOKUP(V17,'P2'!$B$4:$J$48,9,FALSE),"") ->  | W18: =IFERROR(VLOOKUP(W17,'P2'!$B$4:$J$48,9,FALSE),"") ->  | X18: =IFERROR(VLOOKUP(X17,'P2'!$B$4:$J$48,9,FALSE),"") ->  | Y18: =IFERROR(VLOOKUP(Y17,'P2'!$B$4:$J$48,9,FALSE),"") ->  | Z18: =IFERROR(VLOOKUP(Z17,'P2'!$B$4:$J$48,9,FALSE),"") ->  | AA18: =IFERROR(VLOOKUP(AA17,'P2'!$B$4:$J$48,9,FALSE),"") ->  | AB18: =IFERROR(VLOOKUP(AB17,'P2'!$B$4:$J$48,9,FALSE),"") ->  | AC18: =IFERROR(VLOOKUP(AC17,'P2'!$B$4:$J$48,9,FALSE),"") ->  | AD18: =IFERROR(VLOOKUP(AD17,'P2'!$B$4:$J$48,9,FALSE),"") ->  | AE18: =IFERROR(VLOOKUP(AE17,'P2'!$B$4:$J$48,9,FALSE),"") ->  | AF18: =IFERROR(VLOOKUP(AF17,'P2'!$B$4:$J$48,9,FALSE),"") ->  | AG18: =IFERROR(VLOOKUP(AG17,'P2'!$B$4:$J$48,9,FALSE),"") ->  | AH18: =IFERROR(VLOOKUP(AH17,'P2'!$B$4:$J$48,9,FALSE),"") ->  | AI18: =IFERROR(VLOOKUP(AI17,'P2'!$B$4:$J$48,9,FALSE),"") ->  | AJ18: =IFERROR(VLOOKUP(AJ17,'P2'!$B$4:$J$48,9,FALSE),"") ->  | AK18: =IFERROR(VLOOKUP(AK17,'P2'!$B$4:$J$48,9,FALSE),"") ->  | AL18: =IFERROR(VLOOKUP(AL17,'P2'!$B$4:$J$48,9,FALSE),"") ->  | AM18: =IFERROR(VLOOKUP(AM17,'P2'!$B$4:$J$48,9,FALSE),"") ->  | AN18: =IFERROR(VLOOKUP(AN17,'P2'!$B$4:$J$48,9,FALSE),"") ->  | AO18: =IFERROR(VLOOKUP(AO17,'P2'!$B$4:$J$48,9,FALSE),"") ->  | AP18: =IFERROR(VLOOKUP(AP17,'P2'!$B$4:$J$48,9,FALSE),"") ->  | AQ18: =IFERROR(VLOOKUP(AQ17,'P2'!$B$4:$J$48,9,FALSE),"") ->  | AR18: =IFERROR(VLOOKUP(AR17,'P2'!$B$4:$J$48,9,FALSE),"") ->  | AS18: =IFERROR(VLOOKUP(AS17,'P2'!$B$4:$J$48,9,FALSE),"") ->  | AT18: =IFERROR(VLOOKUP(AT17,'P2'!$B$4:$J$48,9,FALSE),"") ->  | AU18: =IFERROR(VLOOKUP(AU17,'P2'!$B$4:$J$48,9,FALSE),"") ->  | AV18: =SUM(Q18:AU18) -> 0
B19: =B17+1 -> 4 | AV19: =COUNTA(Q19:AU19) -> 0 | AW19: =AV20 -> 0 | AX19: =IFERROR(ROUNDDOWN(AV20/$AT$3,1),"") -> 
Q20: =IFERROR(VLOOKUP(Q19,'P2'!$B$4:$J$48,9,FALSE),"") ->  | R20: =IFERROR(VLOOKUP(R19,'P2'!$B$4:$J$48,9,FALSE),"") ->  | S20: =IFERROR(VLOOKUP(S19,'P2'!$B$4:$J$48,9,FALSE),"") ->  | T20: =IFERROR(VLOOKUP(T19,'P2'!$B$4:$J$48,9,FALSE),"") ->  | U20: =IFERROR(VLOOKUP(U19,'P2'!$B$4:$J$48,9,FALSE),"") ->  | V20: =IFERROR(VLOOKUP(V19,'P2'!$B$4:$J$48,9,FALSE),"") ->  | W20: =IFERROR(VLOOKUP(W19,'P2'!$B$4:$J$48,9,FALSE),"") ->  | X20: =IFERROR(VLOOKUP(X19,'P2'!$B$4:$J$48,9,FALSE),"") ->  | Y20: =IFERROR(VLOOKUP(Y19,'P2'!$B$4:$J$48,9,FALSE),"") ->  | Z20: =IFERROR(VLOOKUP(Z19,'P2'!$B$4:$J$48,9,FALSE),"") ->  | AA20: =IFERROR(VLOOKUP(AA19,'P2'!$B$4:$J$48,9,FALSE),"") ->  | AB20: =IFERROR(VLOOKUP(AB19,'P2'!$B$4:$J$48,9,FALSE),"") ->  | AC20: =IFERROR(VLOOKUP(AC19,'P2'!$B$4:$J$48,9,FALSE),"") ->  | AD20: =IFERROR(VLOOKUP(AD19,'P2'!$B$4:$J$48,9,FALSE),"") ->  | AE20: =IFERROR(VLOOKUP(AE19,'P2'!$B$4:$J$48,9,FALSE),"") ->  | AF20: =IFERROR(VLOOKUP(AF19,'P2'!$B$4:$J$48,9,FALSE),"") ->  | AG20: =IFERROR(VLOOKUP(AG19,'P2'!$B$4:$J$48,9,FALSE),"") ->  | AH20: =IFERROR(VLOOKUP(AH19,'P2'!$B$4:$J$48,9,FALSE),"") ->  | AI20: =IFERROR(VLOOKUP(AI19,'P2'!$B$4:$J$48,9,FALSE),"") ->  | AJ20: =IFERROR(VLOOKUP(AJ19,'P2'!$B$4:$J$48,9,FALSE),"") ->  | AK20: =IFERROR(VLOOKUP(AK19,'P2'!$B$4:$J$48,9,FALSE),"") ->  | AL20: =IFERROR(VLOOKUP(AL19,'P2'!$B$4:$J$48,9,FALSE),"") ->  | AM20: =IFERROR(VLOOKUP(AM19,'P2'!$B$4:$J$48,9,FALSE),"") ->  | AN20: =IFERROR(VLOOKUP(AN19,'P2'!$B$4:$J$48,9,FALSE),"") ->  | AO20: =IFERROR(VLOOKUP(AO19,'P2'!$B$4:$J$48,9,FALSE),"") ->  | AP20: =IFERROR(VLOOKUP(AP19,'P2'!$B$4:$J$48,9,FALSE),"") ->  | AQ20: =IFERROR(VLOOKUP(AQ19,'P2'!$B$4:$J$48,9,FALSE),"") ->  | AR20: =IFERROR(VLOOKUP(AR19,'P2'!$B$4:$J$48,9,FALSE),"") ->  | AS20: =IFERROR(VLOOKUP(AS19,'P2'!$B$4:$J$48,9,FALSE),"") ->  | AT20: =IFERROR(VLOOKUP(AT19,'P2'!$B$4:$J$48,9,FALSE),"") ->  | AU20: =IFERROR(VLOOKUP(AU19,'P2'!$B$4:$J$48,9,FALSE),"") ->  | AV20: =SUM(Q20:AU20) -> 0
B21: =B19+1 -> 5 | AV21: =COUNTA(Q21:AU21) -> 0 | AW21: =AV22 -> 0 | AX21: =IFERROR(ROUNDDOWN(AV22/$AT$3,1),"") -> 
Q22: =IFERROR(VLOOKUP(Q21,'P2'!$B$4:$J$48,9,FALSE),"") ->  | R22: =IFERROR(VLOOKUP(R21,'P2'!$B$4:$J$48,9,FALSE),"") ->  | S22: =IFERROR(VLOOKUP(S21,'P2'!$B$4:$J$48,9,FALSE),"") ->  | T22: =IFERROR(VLOOKUP(T21,'P2'!$B$4:$J$48,9,FALSE),"") ->  | U22: =IFERROR(VLOOKUP(U21,'P2'!$B$4:$J$48,9,FALSE),"") ->  | V22: =IFERROR(VLOOKUP(V21,'P2'!$B$4:$J$48,9,FALSE),"") ->  | W22: =IFERROR(VLOOKUP(W21,'P2'!$B$4:$J$48,9,FALSE),"") ->  | X22: =IFERROR(VLOOKUP(X21,'P2'!$B$4:$J$48,9,FALSE),"") ->  | Y22: =IFERROR(VLOOKUP(Y21,'P2'!$B$4:$J$48,9,FALSE),"") ->  | Z22: =IFERROR(VLOOKUP(Z21,'P2'!$B$4:$J$48,9,FALSE),"") ->  | AA22: =IFERROR(VLOOKUP(AA21,'P2'!$B$4:$J$48,9,FALSE),"") ->  | AB22: =IFERROR(VLOOKUP(AB21,'P2'!$B$4:$J$48,9,FALSE),"") ->  | AC22: =IFERROR(VLOOKUP(AC21,'P2'!$B$4:$J$48,9,FALSE),"") ->  | AD22: =IFERROR(VLOOKUP(AD21,'P2'!$B$4:$J$48,9,FALSE),"") ->  | AE22: =IFERROR(VLOOKUP(AE21,'P2'!$B$4:$J$48,9,FALSE),"") ->  | AF22: =IFERROR(VLOOKUP(AF21,'P2'!$B$4:$J$48,9,FALSE),"") ->  | AG22: =IFERROR(VLOOKUP(AG21,'P2'!$B$4:$J$48,9,FALSE),"") ->  | AH22: =IFERROR(VLOOKUP(AH21,'P2'!$B$4:$J$48,9,FALSE),"") ->  | AI22: =IFERROR(VLOOKUP(AI21,'P2'!$B$4:$J$48,9,FALSE),"") ->  | AJ22: =IFERROR(VLOOKUP(AJ21,'P2'!$B$4:$J$48,9,FALSE),"") ->  | AK22: =IFERROR(VLOOKUP(AK21,'P2'!$B$4:$J$48,9,FALSE),"") ->  | AL22: =IFERROR(VLOOKUP(AL21,'P2'!$B$4:$J$48,9,FALSE),"") ->  | AM22: =IFERROR(VLOOKUP(AM21,'P2'!$B$4:$J$48,9,FALSE),"") ->  | AN22: =IFERROR(VLOOKUP(AN21,'P2'!$B$4:$J$48,9,FALSE),"") ->  | AO22: =IFERROR(VLOOKUP(AO21,'P2'!$B$4:$J$48,9,FALSE),"") ->  | AP22: =IFERROR(VLOOKUP(AP21,'P2'!$B$4:$J$48,9,FALSE),"") ->  | AQ22: =IFERROR(VLOOKUP(AQ21,'P2'!$B$4:$J$48,9,FALSE),"") ->  | AR22: =IFERROR(VLOOKUP(AR21,'P2'!$B$4:$J$48,9,FALSE),"") ->  | AS22: =IFERROR(VLOOKUP(AS21,'P2'!$B$4:$J$48,9,FALSE),"") ->  | AT22: =IFERROR(VLOOKUP(AT21,'P2'!$B$4:$J$48,9,FALSE),"") ->  | AU22: =IFERROR(VLOOKUP(AU21,'P2'!$B$4:$J$48,9,FALSE),"") ->  | AV22: =SUM(Q22:AU22) -> 0
B23: =B21+1 -> 6 | AV23: =COUNTA(Q23:AU23) -> 0 | AW23: =AV24 -> 0 | AX23: =IFERROR(ROUNDDOWN(AV24/$AT$3,1),"") -> 
Q24: =IFERROR(VLOOKUP(Q23,'P2'!$B$4:$J$48,9,FALSE),"") ->  | R24: =IFERROR(VLOOKUP(R23,'P2'!$B$4:$J$48,9,FALSE),"") ->  | S24: =IFERROR(VLOOKUP(S23,'P2'!$B$4:$J$48,9,FALSE),"") ->  | T24: =IFERROR(VLOOKUP(T23,'P2'!$B$4:$J$48,9,FALSE),"") ->  | U24: =IFERROR(VLOOKUP(U23,'P2'!$B$4:$J$48,9,FALSE),"") ->  | V24: =IFERROR(VLOOKUP(V23,'P2'!$B$4:$J$48,9,FALSE),"") ->  | W24: =IFERROR(VLOOKUP(W23,'P2'!$B$4:$J$48,9,FALSE),"") ->  | X24: =IFERROR(VLOOKUP(X23,'P2'!$B$4:$J$48,9,FALSE),"") ->  | Y24: =IFERROR(VLOOKUP(Y23,'P2'!$B$4:$J$48,9,FALSE),"") ->  | Z24: =IFERROR(VLOOKUP(Z23,'P2'!$B$4:$J$48,9,FALSE),"") ->  | AA24: =IFERROR(VLOOKUP(AA23,'P2'!$B$4:$J$48,9,FALSE),"") ->  | AB24: =IFERROR(VLOOKUP(AB23,'P2'!$B$4:$J$48,9,FALSE),"") ->  | AC24: =IFERROR(VLOOKUP(AC23,'P2'!$B$4:$J$48,9,FALSE),"") ->  | AD24: =IFERROR(VLOOKUP(AD23,'P2'!$B$4:$J$48,9,FALSE),"") ->  | AE24: =IFERROR(VLOOKUP(AE23,'P2'!$B$4:$J$48,9,FALSE),"") ->  | AF24: =IFERROR(VLOOKUP(AF23,'P2'!$B$4:$J$48,9,FALSE),"") ->  | AG24: =IFERROR(VLOOKUP(AG23,'P2'!$B$4:$J$48,9,FALSE),"") ->  | AH24: =IFERROR(VLOOKUP(AH23,'P2'!$B$4:$J$48,9,FALSE),"") ->  | AI24: =IFERROR(VLOOKUP(AI23,'P2'!$B$4:$J$48,9,FALSE),"") ->  | AJ24: =IFERROR(VLOOKUP(AJ23,'P2'!$B$4:$J$48,9,FALSE),"") ->  | AK24: =IFERROR(VLOOKUP(AK23,'P2'!$B$4:$J$48,9,FALSE),"") ->  | AL24: =IFERROR(VLOOKUP(AL23,'P2'!$B$4:$J$48,9,FALSE),"") ->  | AM24: =IFERROR(VLOOKUP(AM23,'P2'!$B$4:$J$48,9,FALSE),"") ->  | AN24: =IFERROR(VLOOKUP(AN23,'P2'!$B$4:$J$48,9,FALSE),"") ->  | AO24: =IFERROR(VLOOKUP(AO23,'P2'!$B$4:$J$48,9,FALSE),"") ->  | AP24: =IFERROR(VLOOKUP(AP23,'P2'!$B$4:$J$48,9,FALSE),"") ->  | AQ24: =IFERROR(VLOOKUP(AQ23,'P2'!$B$4:$J$48,9,FALSE),"") ->  | AR24: =IFERROR(VLOOKUP(AR23,'P2'!$B$4:$J$48,9,FALSE),"") ->  | AS24: =IFERROR(VLOOKUP(AS23,'P2'!$B$4:$J$48,9,FALSE),"") ->  | AT24: =IFERROR(VLOOKUP(AT23,'P2'!$B$4:$J$48,9,FALSE),"") ->  | AU24: =IFERROR(VLOOKUP(AU23,'P2'!$B$4:$J$48,9,FALSE),"") ->  | AV24: =SUM(Q24:AU24) -> 0
B25: =B23+1 -> 7 | AV25: =COUNTA(Q25:AU25) -> 0 | AW25: =AV26 -> 0 | AX25: =IFERROR(ROUNDDOWN(AV26/$AT$3,1),"") -> 
Q26: =IFERROR(VLOOKUP(Q25,'P2'!$B$4:$J$48,9,FALSE),"") ->  | R26: =IFERROR(VLOOKUP(R25,'P2'!$B$4:$J$48,9,FALSE),"") ->  | S26: =IFERROR(VLOOKUP(S25,'P2'!$B$4:$J$48,9,FALSE),"") ->  | T26: =IFERROR(VLOOKUP(T25,'P2'!$B$4:$J$48,9,FALSE),"") ->  | U26: =IFERROR(VLOOKUP(U25,'P2'!$B$4:$J$48,9,FALSE),"") ->  | V26: =IFERROR(VLOOKUP(V25,'P2'!$B$4:$J$48,9,FALSE),"") ->  | W26: =IFERROR(VLOOKUP(W25,'P2'!$B$4:$J$48,9,FALSE),"") ->  | X26: =IFERROR(VLOOKUP(X25,'P2'!$B$4:$J$48,9,FALSE),"") ->  | Y26: =IFERROR(VLOOKUP(Y25,'P2'!$B$4:$J$48,9,FALSE),"") ->  | Z26: =IFERROR(VLOOKUP(Z25,'P2'!$B$4:$J$48,9,FALSE),"") ->  | AA26: =IFERROR(VLOOKUP(AA25,'P2'!$B$4:$J$48,9,FALSE),"") ->  | AB26: =IFERROR(VLOOKUP(AB25,'P2'!$B$4:$J$48,9,FALSE),"") ->  | AC26: =IFERROR(VLOOKUP(AC25,'P2'!$B$4:$J$48,9,FALSE),"") ->  | AD26: =IFERROR(VLOOKUP(AD25,'P2'!$B$4:$J$48,9,FALSE),"") ->  | AE26: =IFERROR(VLOOKUP(AE25,'P2'!$B$4:$J$48,9,FALSE),"") ->  | AF26: =IFERROR(VLOOKUP(AF25,'P2'!$B$4:$J$48,9,FALSE),"") ->  | AG26: =IFERROR(VLOOKUP(AG25,'P2'!$B$4:$J$48,9,FALSE),"") ->  | AH26: =IFERROR(VLOOKUP(AH25,'P2'!$B$4:$J$48,9,FALSE),"") ->  | AI26: =IFERROR(VLOOKUP(AI25,'P2'!$B$4:$J$48,9,FALSE),"") ->  | AJ26: =IFERROR(VLOOKUP(AJ25,'P2'!$B$4:$J$48,9,FALSE),"") ->  | AK26: =IFERROR(VLOOKUP(AK25,'P2'!$B$4:$J$48,9,FALSE),"") ->  | AL26: =IFERROR(VLOOKUP(AL25,'P2'!$B$4:$J$48,9,FALSE),"") ->  | AM26: =IFERROR(VLOOKUP(AM25,'P2'!$B$4:$J$48,9,FALSE),"") ->  | AN26: =IFERROR(VLOOKUP(AN25,'P2'!$B$4:$J$48,9,FALSE),"") ->  | AO26: =IFERROR(VLOOKUP(AO25,'P2'!$B$4:$J$48,9,FALSE),"") ->  | AP26: =IFERROR(VLOOKUP(AP25,'P2'!$B$4:$J$48,9,FALSE),"") ->  | AQ26: =IFERROR(VLOOKUP(AQ25,'P2'!$B$4:$J$48,9,FALSE),"") ->  | AR26: =IFERROR(VLOOKUP(AR25,'P2'!$B$4:$J$48,9,FALSE),"") ->  | AS26: =IFERROR(VLOOKUP(AS25,'P2'!$B$4:$J$48,9,FALSE),"") ->  | AT26: =IFERROR(VLOOKUP(AT25,'P2'!$B$4:$J$48,9,FALSE),"") ->  | AU26: =IFERROR(VLOOKUP(AU25,'P2'!$B$4:$J$48,9,FALSE),"") ->  | AV26: =SUM(Q26:AU26) -> 0
B27: =B25+1 -> 8 | AV27: =COUNTA(Q27:AU27) -> 0 | AW27: =AV28 -> 0 | AX27: =IFERROR(ROUNDDOWN(AV28/$AT$3,1),"") -> 
Q28: =IFERROR(VLOOKUP(Q27,'P2'!$B$4:$J$48,9,FALSE),"") ->  | R28: =IFERROR(VLOOKUP(R27,'P2'!$B$4:$J$48,9,FALSE),"") ->  | S28: =IFERROR(VLOOKUP(S27,'P2'!$B$4:$J$48,9,FALSE),"") ->  | T28: =IFERROR(VLOOKUP(T27,'P2'!$B$4:$J$48,9,FALSE),"") ->  | U28: =IFERROR(VLOOKUP(U27,'P2'!$B$4:$J$48,9,FALSE),"") ->  | V28: =IFERROR(VLOOKUP(V27,'P2'!$B$4:$J$48,9,FALSE),"") ->  | W28: =IFERROR(VLOOKUP(W27,'P2'!$B$4:$J$48,9,FALSE),"") ->  | X28: =IFERROR(VLOOKUP(X27,'P2'!$B$4:$J$48,9,FALSE),"") ->  | Y28: =IFERROR(VLOOKUP(Y27,'P2'!$B$4:$J$48,9,FALSE),"") ->  | Z28: =IFERROR(VLOOKUP(Z27,'P2'!$B$4:$J$48,9,FALSE),"") ->  | AA28: =IFERROR(VLOOKUP(AA27,'P2'!$B$4:$J$48,9,FALSE),"") ->  | AB28: =IFERROR(VLOOKUP(AB27,'P2'!$B$4:$J$48,9,FALSE),"") ->  | AC28: =IFERROR(VLOOKUP(AC27,'P2'!$B$4:$J$48,9,FALSE),"") ->  | AD28: =IFERROR(VLOOKUP(AD27,'P2'!$B$4:$J$48,9,FALSE),"") ->  | AE28: =IFERROR(VLOOKUP(AE27,'P2'!$B$4:$J$48,9,FALSE),"") ->  | AF28: =IFERROR(VLOOKUP(AF27,'P2'!$B$4:$J$48,9,FALSE),"") ->  | AG28: =IFERROR(VLOOKUP(AG27,'P2'!$B$4:$J$48,9,FALSE),"") ->  | AH28: =IFERROR(VLOOKUP(AH27,'P2'!$B$4:$J$48,9,FALSE),"") ->  | AI28: =IFERROR(VLOOKUP(AI27,'P2'!$B$4:$J$48,9,FALSE),"") ->  | AJ28: =IFERROR(VLOOKUP(AJ27,'P2'!$B$4:$J$48,9,FALSE),"") ->  | AK28: =IFERROR(VLOOKUP(AK27,'P2'!$B$4:$J$48,9,FALSE),"") ->  | AL28: =IFERROR(VLOOKUP(AL27,'P2'!$B$4:$J$48,9,FALSE),"") ->  | AM28: =IFERROR(VLOOKUP(AM27,'P2'!$B$4:$J$48,9,FALSE),"") ->  | AN28: =IFERROR(VLOOKUP(AN27,'P2'!$B$4:$J$48,9,FALSE),"") ->  | AO28: =IFERROR(VLOOKUP(AO27,'P2'!$B$4:$J$48,9,FALSE),"") ->  | AP28: =IFERROR(VLOOKUP(AP27,'P2'!$B$4:$J$48,9,FALSE),"") ->  | AQ28: =IFERROR(VLOOKUP(AQ27,'P2'!$B$4:$J$48,9,FALSE),"") ->  | AR28: =IFERROR(VLOOKUP(AR27,'P2'!$B$4:$J$48,9,FALSE),"") ->  | AS28: =IFERROR(VLOOKUP(AS27,'P2'!$B$4:$J$48,9,FALSE),"") ->  | AT28: =IFERROR(VLOOKUP(AT27,'P2'!$B$4:$J$48,9,FALSE),"") ->  | AU28: =IFERROR(VLOOKUP(AU27,'P2'!$B$4:$J$48,9,FALSE),"") ->  | AV28: =SUM(Q28:AU28) -> 0
B29: =B27+1 -> 9 | AV29: =COUNTA(Q29:AU29) -> 0 | AW29: =AV30 -> 0 | AX29: =IFERROR(ROUNDDOWN(AV30/$AT$3,1),"") -> 
Q30: =IFERROR(VLOOKUP(Q29,'P2'!$B$4:$J$48,9,FALSE),"") ->  | R30: =IFERROR(VLOOKUP(R29,'P2'!$B$4:$J$48,9,FALSE),"") ->  | S30: =IFERROR(VLOOKUP(S29,'P2'!$B$4:$J$48,9,FALSE),"") ->  | T30: =IFERROR(VLOOKUP(T29,'P2'!$B$4:$J$48,9,FALSE),"") ->  | U30: =IFERROR(VLOOKUP(U29,'P2'!$B$4:$J$48,9,FALSE),"") ->  | V30: =IFERROR(VLOOKUP(V29,'P2'!$B$4:$J$48,9,FALSE),"") ->  | W30: =IFERROR(VLOOKUP(W29,'P2'!$B$4:$J$48,9,FALSE),"") ->  | X30: =IFERROR(VLOOKUP(X29,'P2'!$B$4:$J$48,9,FALSE),"") ->  | Y30: =IFERROR(VLOOKUP(Y29,'P2'!$B$4:$J$48,9,FALSE),"") ->  | Z30: =IFERROR(VLOOKUP(Z29,'P2'!$B$4:$J$48,9,FALSE),"") ->  | AA30: =IFERROR(VLOOKUP(AA29,'P2'!$B$4:$J$48,9,FALSE),"") ->  | AB30: =IFERROR(VLOOKUP(AB29,'P2'!$B$4:$J$48,9,FALSE),"") ->  | AC30: =IFERROR(VLOOKUP(AC29,'P2'!$B$4:$J$48,9,FALSE),"") ->  | AD30: =IFERROR(VLOOKUP(AD29,'P2'!$B$4:$J$48,9,FALSE),"") ->  | AE30: =IFERROR(VLOOKUP(AE29,'P2'!$B$4:$J$48,9,FALSE),"") ->  | AF30: =IFERROR(VLOOKUP(AF29,'P2'!$B$4:$J$48,9,FALSE),"") ->  | AG30: =IFERROR(VLOOKUP(AG29,'P2'!$B$4:$J$48,9,FALSE),"") ->  | AH30: =IFERROR(VLOOKUP(AH29,'P2'!$B$4:$J$48,9,FALSE),"") ->  | AI30: =IFERROR(VLOOKUP(AI29,'P2'!$B$4:$J$48,9,FALSE),"") ->  | AJ30: =IFERROR(VLOOKUP(AJ29,'P2'!$B$4:$J$48,9,FALSE),"") ->  | AK30: =IFERROR(VLOOKUP(AK29,'P2'!$B$4:$J$48,9,FALSE),"") ->  | AL30: =IFERROR(VLOOKUP(AL29,'P2'!$B$4:$J$48,9,FALSE),"") ->  | AM30: =IFERROR(VLOOKUP(AM29,'P2'!$B$4:$J$48,9,FALSE),"") ->  | AN30: =IFERROR(VLOOKUP(AN29,'P2'!$B$4:$J$48,9,FALSE),"") ->  | AO30: =IFERROR(VLOOKUP(AO29,'P2'!$B$4:$J$48,9,FALSE),"") ->  | AP30: =IFERROR(VLOOKUP(AP29,'P2'!$B$4:$J$48,9,FALSE),"") ->  | AQ30: =IFERROR(VLOOKUP(AQ29,'P2'!$B$4:$J$48,9,FALSE),"") ->  | AR30: =IFERROR(VLOOKUP(AR29,'P2'!$B$4:$J$48,9,FALSE),"") ->  | AS30: =IFERROR(VLOOKUP(AS29,'P2'!$B$4:$J$48,9,FALSE),"") ->  | AT30: =IFERROR(VLOOKUP(AT29,'P2'!$B$4:$J$48,9,FALSE),"") ->  | AU30: =IFERROR(VLOOKUP(AU29,'P2'!$B$4:$J$48,9,FALSE),"") ->  | AV30: =SUM(Q30:AU30) -> 0
B31: =B29+1 -> 10 | AV31: =COUNTA(Q31:AU31) -> 0 | AW31: =AV32 -> 0 | AX31: =IFERROR(ROUNDDOWN(AV32/$AT$3,1),"") -> 
Q32: =IFERROR(VLOOKUP(Q31,'P2'!$B$4:$J$48,9,FALSE),"") ->  | R32: =IFERROR(VLOOKUP(R31,'P2'!$B$4:$J$48,9,FALSE),"") ->  | S32: =IFERROR(VLOOKUP(S31,'P2'!$B$4:$J$48,9,FALSE),"") ->  | T32: =IFERROR(VLOOKUP(T31,'P2'!$B$4:$J$48,9,FALSE),"") ->  | U32: =IFERROR(VLOOKUP(U31,'P2'!$B$4:$J$48,9,FALSE),"") ->  | V32: =IFERROR(VLOOKUP(V31,'P2'!$B$4:$J$48,9,FALSE),"") ->  | W32: =IFERROR(VLOOKUP(W31,'P2'!$B$4:$J$48,9,FALSE),"") ->  | X32: =IFERROR(VLOOKUP(X31,'P2'!$B$4:$J$48,9,FALSE),"") ->  | Y32: =IFERROR(VLOOKUP(Y31,'P2'!$B$4:$J$48,9,FALSE),"") ->  | Z32: =IFERROR(VLOOKUP(Z31,'P2'!$B$4:$J$48,9,FALSE),"") ->  | AA32: =IFERROR(VLOOKUP(AA31,'P2'!$B$4:$J$48,9,FALSE),"") ->  | AB32: =IFERROR(VLOOKUP(AB31,'P2'!$B$4:$J$48,9,FALSE),"") ->  | AC32: =IFERROR(VLOOKUP(AC31,'P2'!$B$4:$J$48,9,FALSE),"") ->  | AD32: =IFERROR(VLOOKUP(AD31,'P2'!$B$4:$J$48,9,FALSE),"") ->  | AE32: =IFERROR(VLOOKUP(AE31,'P2'!$B$4:$J$48,9,FALSE),"") ->  | AF32: =IFERROR(VLOOKUP(AF31,'P2'!$B$4:$J$48,9,FALSE),"") ->  | AG32: =IFERROR(VLOOKUP(AG31,'P2'!$B$4:$J$48,9,FALSE),"") ->  | AH32: =IFERROR(VLOOKUP(AH31,'P2'!$B$4:$J$48,9,FALSE),"") ->  | AI32: =IFERROR(VLOOKUP(AI31,'P2'!$B$4:$J$48,9,FALSE),"") ->  | AJ32: =IFERROR(VLOOKUP(AJ31,'P2'!$B$4:$J$48,9,FALSE),"") ->  | AK32: =IFERROR(VLOOKUP(AK31,'P2'!$B$4:$J$48,9,FALSE),"") ->  | AL32: =IFERROR(VLOOKUP(AL31,'P2'!$B$4:$J$48,9,FALSE),"") ->  | AM32: =IFERROR(VLOOKUP(AM31,'P2'!$B$4:$J$48,9,FALSE),"") ->  | AN32: =IFERROR(VLOOKUP(AN31,'P2'!$B$4:$J$48,9,FALSE),"") ->  | AO32: =IFERROR(VLOOKUP(AO31,'P2'!$B$4:$J$48,9,FALSE),"") ->  | AP32: =IFERROR(VLOOKUP(AP31,'P2'!$B$4:$J$48,9,FALSE),"") ->  | AQ32: =IFERROR(VLOOKUP(AQ31,'P2'!$B$4:$J$48,9,FALSE),"") ->  | AR32: =IFERROR(VLOOKUP(AR31,'P2'!$B$4:$J$48,9,FALSE),"") ->  | AS32: =IFERROR(VLOOKUP(AS31,'P2'!$B$4:$J$48,9,FALSE),"") ->  | AT32: =IFERROR(VLOOKUP(AT31,'P2'!$B$4:$J$48,9,FALSE),"") ->  | AU32: =IFERROR(VLOOKUP(AU31,'P2'!$B$4:$J$48,9,FALSE),"") ->  | AV32: =SUM(Q32:AU32) -> 0
B33: =B31+1 -> 11 | AV33: =COUNTA(Q33:AU33) -> 0 | AW33: =AV34 -> 0 | AX33: =IFERROR(ROUNDDOWN(AV34/$AT$3,1),"") -> 
Q34: =IFERROR(VLOOKUP(Q33,'P2'!$B$4:$J$48,9,FALSE),"") ->  | R34: =IFERROR(VLOOKUP(R33,'P2'!$B$4:$J$48,9,FALSE),"") ->  | S34: =IFERROR(VLOOKUP(S33,'P2'!$B$4:$J$48,9,FALSE),"") ->  | T34: =IFERROR(VLOOKUP(T33,'P2'!$B$4:$J$48,9,FALSE),"") ->  | U34: =IFERROR(VLOOKUP(U33,'P2'!$B$4:$J$48,9,FALSE),"") ->  | V34: =IFERROR(VLOOKUP(V33,'P2'!$B$4:$J$48,9,FALSE),"") ->  | W34: =IFERROR(VLOOKUP(W33,'P2'!$B$4:$J$48,9,FALSE),"") ->  | X34: =IFERROR(VLOOKUP(X33,'P2'!$B$4:$J$48,9,FALSE),"") ->  | Y34: =IFERROR(VLOOKUP(Y33,'P2'!$B$4:$J$48,9,FALSE),"") ->  | Z34: =IFERROR(VLOOKUP(Z33,'P2'!$B$4:$J$48,9,FALSE),"") ->  | AA34: =IFERROR(VLOOKUP(AA33,'P2'!$B$4:$J$48,9,FALSE),"") ->  | AB34: =IFERROR(VLOOKUP(AB33,'P2'!$B$4:$J$48,9,FALSE),"") ->  | AC34: =IFERROR(VLOOKUP(AC33,'P2'!$B$4:$J$48,9,FALSE),"") ->  | AD34: =IFERROR(VLOOKUP(AD33,'P2'!$B$4:$J$48,9,FALSE),"") ->  | AE34: =IFERROR(VLOOKUP(AE33,'P2'!$B$4:$J$48,9,FALSE),"") ->  | AF34: =IFERROR(VLOOKUP(AF33,'P2'!$B$4:$J$48,9,FALSE),"") ->  | AG34: =IFERROR(VLOOKUP(AG33,'P2'!$B$4:$J$48,9,FALSE),"") ->  | AH34: =IFERROR(VLOOKUP(AH33,'P2'!$B$4:$J$48,9,FALSE),"") ->  | AI34: =IFERROR(VLOOKUP(AI33,'P2'!$B$4:$J$48,9,FALSE),"") ->  | AJ34: =IFERROR(VLOOKUP(AJ33,'P2'!$B$4:$J$48,9,FALSE),"") ->  | AK34: =IFERROR(VLOOKUP(AK33,'P2'!$B$4:$J$48,9,FALSE),"") ->  | AL34: =IFERROR(VLOOKUP(AL33,'P2'!$B$4:$J$48,9,FALSE),"") ->  | AM34: =IFERROR(VLOOKUP(AM33,'P2'!$B$4:$J$48,9,FALSE),"") ->  | AN34: =IFERROR(VLOOKUP(AN33,'P2'!$B$4:$J$48,9,FALSE),"") ->  | AO34: =IFERROR(VLOOKUP(AO33,'P2'!$B$4:$J$48,9,FALSE),"") ->  | AP34: =IFERROR(VLOOKUP(AP33,'P2'!$B$4:$J$48,9,FALSE),"") ->  | AQ34: =IFERROR(VLOOKUP(AQ33,'P2'!$B$4:$J$48,9,FALSE),"") ->  | AR34: =IFERROR(VLOOKUP(AR33,'P2'!$B$4:$J$48,9,FALSE),"") ->  | AS34: =IFERROR(VLOOKUP(AS33,'P2'!$B$4:$J$48,9,FALSE),"") ->  | AT34: =IFERROR(VLOOKUP(AT33,'P2'!$B$4:$J$48,9,FALSE),"") ->  | AU34: =IFERROR(VLOOKUP(AU33,'P2'!$B$4:$J$48,9,FALSE),"") ->  | AV34: =SUM(Q34:AU34) -> 0
B35: =B33+1 -> 12 | AV35: =COUNTA(Q35:AU35) -> 0 | AW35: =AV36 -> 0 | AX35: =IFERROR(ROUNDDOWN(AV36/$AT$3,1),"") -> 
Q36: =IFERROR(VLOOKUP(Q35,'P2'!$B$4:$J$48,9,FALSE),"") ->  | R36: =IFERROR(VLOOKUP(R35,'P2'!$B$4:$J$48,9,FALSE),"") ->  | S36: =IFERROR(VLOOKUP(S35,'P2'!$B$4:$J$48,9,FALSE),"") ->  | T36: =IFERROR(VLOOKUP(T35,'P2'!$B$4:$J$48,9,FALSE),"") ->  | U36: =IFERROR(VLOOKUP(U35,'P2'!$B$4:$J$48,9,FALSE),"") ->  | V36: =IFERROR(VLOOKUP(V35,'P2'!$B$4:$J$48,9,FALSE),"") ->  | W36: =IFERROR(VLOOKUP(W35,'P2'!$B$4:$J$48,9,FALSE),"") ->  | X36: =IFERROR(VLOOKUP(X35,'P2'!$B$4:$J$48,9,FALSE),"") ->  | Y36: =IFERROR(VLOOKUP(Y35,'P2'!$B$4:$J$48,9,FALSE),"") ->  | Z36: =IFERROR(VLOOKUP(Z35,'P2'!$B$4:$J$48,9,FALSE),"") ->  | AA36: =IFERROR(VLOOKUP(AA35,'P2'!$B$4:$J$48,9,FALSE),"") ->  | AB36: =IFERROR(VLOOKUP(AB35,'P2'!$B$4:$J$48,9,FALSE),"") ->  | AC36: =IFERROR(VLOOKUP(AC35,'P2'!$B$4:$J$48,9,FALSE),"") ->  | AD36: =IFERROR(VLOOKUP(AD35,'P2'!$B$4:$J$48,9,FALSE),"") ->  | AE36: =IFERROR(VLOOKUP(AE35,'P2'!$B$4:$J$48,9,FALSE),"") ->  | AF36: =IFERROR(VLOOKUP(AF35,'P2'!$B$4:$J$48,9,FALSE),"") ->  | AG36: =IFERROR(VLOOKUP(AG35,'P2'!$B$4:$J$48,9,FALSE),"") ->  | AH36: =IFERROR(VLOOKUP(AH35,'P2'!$B$4:$J$48,9,FALSE),"") ->  | AI36: =IFERROR(VLOOKUP(AI35,'P2'!$B$4:$J$48,9,FALSE),"") ->  | AJ36: =IFERROR(VLOOKUP(AJ35,'P2'!$B$4:$J$48,9,FALSE),"") ->  | AK36: =IFERROR(VLOOKUP(AK35,'P2'!$B$4:$J$48,9,FALSE),"") ->  | AL36: =IFERROR(VLOOKUP(AL35,'P2'!$B$4:$J$48,9,FALSE),"") ->  | AM36: =IFERROR(VLOOKUP(AM35,'P2'!$B$4:$J$48,9,FALSE),"") ->  | AN36: =IFERROR(VLOOKUP(AN35,'P2'!$B$4:$J$48,9,FALSE),"") ->  | AO36: =IFERROR(VLOOKUP(AO35,'P2'!$B$4:$J$48,9,FALSE),"") ->  | AP36: =IFERROR(VLOOKUP(AP35,'P2'!$B$4:$J$48,9,FALSE),"") ->  | AQ36: =IFERROR(VLOOKUP(AQ35,'P2'!$B$4:$J$48,9,FALSE),"") ->  | AR36: =IFERROR(VLOOKUP(AR35,'P2'!$B$4:$J$48,9,FALSE),"") ->  | AS36: =IFERROR(VLOOKUP(AS35,'P2'!$B$4:$J$48,9,FALSE),"") ->  | AT36: =IFERROR(VLOOKUP(AT35,'P2'!$B$4:$J$48,9,FALSE),"") ->  | AU36: =IFERROR(VLOOKUP(AU35,'P2'!$B$4:$J$48,9,FALSE),"") ->  | AV36: =SUM(Q36:AU36) -> 0
B37: =B35+1 -> 13 | AV37: =COUNTA(Q37:AU37) -> 0 | AW37: =AV38 -> 0 | AX37: =IFERROR(ROUNDDOWN(AV38/$AT$3,1),"") -> 
Q38: =IFERROR(VLOOKUP(Q37,'P2'!$B$4:$J$48,9,FALSE),"") ->  | R38: =IFERROR(VLOOKUP(R37,'P2'!$B$4:$J$48,9,FALSE),"") ->  | S38: =IFERROR(VLOOKUP(S37,'P2'!$B$4:$J$48,9,FALSE),"") ->  | T38: =IFERROR(VLOOKUP(T37,'P2'!$B$4:$J$48,9,FALSE),"") ->  | U38: =IFERROR(VLOOKUP(U37,'P2'!$B$4:$J$48,9,FALSE),"") ->  | V38: =IFERROR(VLOOKUP(V37,'P2'!$B$4:$J$48,9,FALSE),"") ->  | W38: =IFERROR(VLOOKUP(W37,'P2'!$B$4:$J$48,9,FALSE),"") ->  | X38: =IFERROR(VLOOKUP(X37,'P2'!$B$4:$J$48,9,FALSE),"") ->  | Y38: =IFERROR(VLOOKUP(Y37,'P2'!$B$4:$J$48,9,FALSE),"") ->  | Z38: =IFERROR(VLOOKUP(Z37,'P2'!$B$4:$J$48,9,FALSE),"") ->  | AA38: =IFERROR(VLOOKUP(AA37,'P2'!$B$4:$J$48,9,FALSE),"") ->  | AB38: =IFERROR(VLOOKUP(AB37,'P2'!$B$4:$J$48,9,FALSE),"") ->  | AC38: =IFERROR(VLOOKUP(AC37,'P2'!$B$4:$J$48,9,FALSE),"") ->  | AD38: =IFERROR(VLOOKUP(AD37,'P2'!$B$4:$J$48,9,FALSE),"") ->  | AE38: =IFERROR(VLOOKUP(AE37,'P2'!$B$4:$J$48,9,FALSE),"") ->  | AF38: =IFERROR(VLOOKUP(AF37,'P2'!$B$4:$J$48,9,FALSE),"") ->  | AG38: =IFERROR(VLOOKUP(AG37,'P2'!$B$4:$J$48,9,FALSE),"") ->  | AH38: =IFERROR(VLOOKUP(AH37,'P2'!$B$4:$J$48,9,FALSE),"") ->  | AI38: =IFERROR(VLOOKUP(AI37,'P2'!$B$4:$J$48,9,FALSE),"") ->  | AJ38: =IFERROR(VLOOKUP(AJ37,'P2'!$B$4:$J$48,9,FALSE),"") ->  | AK38: =IFERROR(VLOOKUP(AK37,'P2'!$B$4:$J$48,9,FALSE),"") ->  | AL38: =IFERROR(VLOOKUP(AL37,'P2'!$B$4:$J$48,9,FALSE),"") ->  | AM38: =IFERROR(VLOOKUP(AM37,'P2'!$B$4:$J$48,9,FALSE),"") ->  | AN38: =IFERROR(VLOOKUP(AN37,'P2'!$B$4:$J$48,9,FALSE),"") ->  | AO38: =IFERROR(VLOOKUP(AO37,'P2'!$B$4:$J$48,9,FALSE),"") ->  | AP38: =IFERROR(VLOOKUP(AP37,'P2'!$B$4:$J$48,9,FALSE),"") ->  | AQ38: =IFERROR(VLOOKUP(AQ37,'P2'!$B$4:$J$48,9,FALSE),"") ->  | AR38: =IFERROR(VLOOKUP(AR37,'P2'!$B$4:$J$48,9,FALSE),"") ->  | AS38: =IFERROR(VLOOKUP(AS37,'P2'!$B$4:$J$48,9,FALSE),"") ->  | AT38: =IFERROR(VLOOKUP(AT37,'P2'!$B$4:$J$48,9,FALSE),"") ->  | AU38: =IFERROR(VLOOKUP(AU37,'P2'!$B$4:$J$48,9,FALSE),"") ->  | AV38: =SUM(Q38:AU38) -> 0
B39: =B37+1 -> 14 | AV39: =COUNTA(Q39:AU39) -> 0 | AW39: =AV40 -> 0 | AX39: =IFERROR(ROUNDDOWN(AV40/$AT$3,1),"") -> 
Q40: =IFERROR(VLOOKUP(Q39,'P2'!$B$4:$J$48,9,FALSE),"") ->  | R40: =IFERROR(VLOOKUP(R39,'P2'!$B$4:$J$48,9,FALSE),"") ->  | S40: =IFERROR(VLOOKUP(S39,'P2'!$B$4:$J$48,9,FALSE),"") ->  | T40: =IFERROR(VLOOKUP(T39,'P2'!$B$4:$J$48,9,FALSE),"") ->  | U40: =IFERROR(VLOOKUP(U39,'P2'!$B$4:$J$48,9,FALSE),"") ->  | V40: =IFERROR(VLOOKUP(V39,'P2'!$B$4:$J$48,9,FALSE),"") ->  | W40: =IFERROR(VLOOKUP(W39,'P2'!$B$4:$J$48,9,FALSE),"") ->  | X40: =IFERROR(VLOOKUP(X39,'P2'!$B$4:$J$48,9,FALSE),"") ->  | Y40: =IFERROR(VLOOKUP(Y39,'P2'!$B$4:$J$48,9,FALSE),"") ->  | Z40: =IFERROR(VLOOKUP(Z39,'P2'!$B$4:$J$48,9,FALSE),"") ->  | AA40: =IFERROR(VLOOKUP(AA39,'P2'!$B$4:$J$48,9,FALSE),"") ->  | AB40: =IFERROR(VLOOKUP(AB39,'P2'!$B$4:$J$48,9,FALSE),"") ->  | AC40: =IFERROR(VLOOKUP(AC39,'P2'!$B$4:$J$48,9,FALSE),"") ->  | AD40: =IFERROR(VLOOKUP(AD39,'P2'!$B$4:$J$48,9,FALSE),"") ->  | AE40: =IFERROR(VLOOKUP(AE39,'P2'!$B$4:$J$48,9,FALSE),"") ->  | AF40: =IFERROR(VLOOKUP(AF39,'P2'!$B$4:$J$48,9,FALSE),"") ->  | AG40: =IFERROR(VLOOKUP(AG39,'P2'!$B$4:$J$48,9,FALSE),"") ->  | AH40: =IFERROR(VLOOKUP(AH39,'P2'!$B$4:$J$48,9,FALSE),"") ->  | AI40: =IFERROR(VLOOKUP(AI39,'P2'!$B$4:$J$48,9,FALSE),"") ->  | AJ40: =IFERROR(VLOOKUP(AJ39,'P2'!$B$4:$J$48,9,FALSE),"") ->  | AK40: =IFERROR(VLOOKUP(AK39,'P2'!$B$4:$J$48,9,FALSE),"") ->  | AL40: =IFERROR(VLOOKUP(AL39,'P2'!$B$4:$J$48,9,FALSE),"") ->  | AM40: =IFERROR(VLOOKUP(AM39,'P2'!$B$4:$J$48,9,FALSE),"") ->  | AN40: =IFERROR(VLOOKUP(AN39,'P2'!$B$4:$J$48,9,FALSE),"") ->  | AO40: =IFERROR(VLOOKUP(AO39,'P2'!$B$4:$J$48,9,FALSE),"") ->  | AP40: =IFERROR(VLOOKUP(AP39,'P2'!$B$4:$J$48,9,FALSE),"") ->  | AQ40: =IFERROR(VLOOKUP(AQ39,'P2'!$B$4:$J$48,9,FALSE),"") ->  | AR40: =IFERROR(VLOOKUP(AR39,'P2'!$B$4:$J$48,9,FALSE),"") ->  | AS40: =IFERROR(VLOOKUP(AS39,'P2'!$B$4:$J$48,9,FALSE),"") ->  | AT40: =IFERROR(VLOOKUP(AT39,'P2'!$B$4:$J$48,9,FALSE),"") ->  | AU40: =IFERROR(VLOOKUP(AU39,'P2'!$B$4:$J$48,9,FALSE),"") ->  | AV40: =SUM(Q40:AU40) -> 0
B41: =B39+1 -> 15 | AV41: =COUNTA(Q41:AU41) -> 0 | AW41: =AV42 -> 0 | AX41: =IFERROR(ROUNDDOWN(AV42/$AT$3,1),"") -> 
Q42: =IFERROR(VLOOKUP(Q41,'P2'!$B$4:$J$48,9,FALSE),"") ->  | R42: =IFERROR(VLOOKUP(R41,'P2'!$B$4:$J$48,9,FALSE),"") ->  | S42: =IFERROR(VLOOKUP(S41,'P2'!$B$4:$J$48,9,FALSE),"") ->  | T42: =IFERROR(VLOOKUP(T41,'P2'!$B$4:$J$48,9,FALSE),"") ->  | U42: =IFERROR(VLOOKUP(U41,'P2'!$B$4:$J$48,9,FALSE),"") ->  | V42: =IFERROR(VLOOKUP(V41,'P2'!$B$4:$J$48,9,FALSE),"") ->  | W42: =IFERROR(VLOOKUP(W41,'P2'!$B$4:$J$48,9,FALSE),"") ->  | X42: =IFERROR(VLOOKUP(X41,'P2'!$B$4:$J$48,9,FALSE),"") ->  | Y42: =IFERROR(VLOOKUP(Y41,'P2'!$B$4:$J$48,9,FALSE),"") ->  | Z42: =IFERROR(VLOOKUP(Z41,'P2'!$B$4:$J$48,9,FALSE),"") ->  | AA42: =IFERROR(VLOOKUP(AA41,'P2'!$B$4:$J$48,9,FALSE),"") ->  | AB42: =IFERROR(VLOOKUP(AB41,'P2'!$B$4:$J$48,9,FALSE),"") ->  | AC42: =IFERROR(VLOOKUP(AC41,'P2'!$B$4:$J$48,9,FALSE),"") ->  | AD42: =IFERROR(VLOOKUP(AD41,'P2'!$B$4:$J$48,9,FALSE),"") ->  | AE42: =IFERROR(VLOOKUP(AE41,'P2'!$B$4:$J$48,9,FALSE),"") ->  | AF42: =IFERROR(VLOOKUP(AF41,'P2'!$B$4:$J$48,9,FALSE),"") ->  | AG42: =IFERROR(VLOOKUP(AG41,'P2'!$B$4:$J$48,9,FALSE),"") ->  | AH42: =IFERROR(VLOOKUP(AH41,'P2'!$B$4:$J$48,9,FALSE),"") ->  | AI42: =IFERROR(VLOOKUP(AI41,'P2'!$B$4:$J$48,9,FALSE),"") ->  | AJ42: =IFERROR(VLOOKUP(AJ41,'P2'!$B$4:$J$48,9,FALSE),"") ->  | AK42: =IFERROR(VLOOKUP(AK41,'P2'!$B$4:$J$48,9,FALSE),"") ->  | AL42: =IFERROR(VLOOKUP(AL41,'P2'!$B$4:$J$48,9,FALSE),"") ->  | AM42: =IFERROR(VLOOKUP(AM41,'P2'!$B$4:$J$48,9,FALSE),"") ->  | AN42: =IFERROR(VLOOKUP(AN41,'P2'!$B$4:$J$48,9,FALSE),"") ->  | AO42: =IFERROR(VLOOKUP(AO41,'P2'!$B$4:$J$48,9,FALSE),"") ->  | AP42: =IFERROR(VLOOKUP(AP41,'P2'!$B$4:$J$48,9,FALSE),"") ->  | AQ42: =IFERROR(VLOOKUP(AQ41,'P2'!$B$4:$J$48,9,FALSE),"") ->  | AR42: =IFERROR(VLOOKUP(AR41,'P2'!$B$4:$J$48,9,FALSE),"") ->  | AS42: =IFERROR(VLOOKUP(AS41,'P2'!$B$4:$J$48,9,FALSE),"") ->  | AT42: =IFERROR(VLOOKUP(AT41,'P2'!$B$4:$J$48,9,FALSE),"") ->  | AU42: =IFERROR(VLOOKUP(AU41,'P2'!$B$4:$J$48,9,FALSE),"") ->  | AV42: =SUM(Q42:AU42) -> 0
B43: =B41+1 -> 16 | AV43: =COUNTA(Q43:AU43) -> 0 | AW43: =AV44 -> 0 | AX43: =IFERROR(ROUNDDOWN(AV44/$AT$3,1),"") -> 
Q44: =IFERROR(VLOOKUP(Q43,'P2'!$B$4:$J$48,9,FALSE),"") ->  | R44: =IFERROR(VLOOKUP(R43,'P2'!$B$4:$J$48,9,FALSE),"") ->  | S44: =IFERROR(VLOOKUP(S43,'P2'!$B$4:$J$48,9,FALSE),"") ->  | T44: =IFERROR(VLOOKUP(T43,'P2'!$B$4:$J$48,9,FALSE),"") ->  | U44: =IFERROR(VLOOKUP(U43,'P2'!$B$4:$J$48,9,FALSE),"") ->  | V44: =IFERROR(VLOOKUP(V43,'P2'!$B$4:$J$48,9,FALSE),"") ->  | W44: =IFERROR(VLOOKUP(W43,'P2'!$B$4:$J$48,9,FALSE),"") ->  | X44: =IFERROR(VLOOKUP(X43,'P2'!$B$4:$J$48,9,FALSE),"") ->  | Y44: =IFERROR(VLOOKUP(Y43,'P2'!$B$4:$J$48,9,FALSE),"") ->  | Z44: =IFERROR(VLOOKUP(Z43,'P2'!$B$4:$J$48,9,FALSE),"") ->  | AA44: =IFERROR(VLOOKUP(AA43,'P2'!$B$4:$J$48,9,FALSE),"") ->  | AB44: =IFERROR(VLOOKUP(AB43,'P2'!$B$4:$J$48,9,FALSE),"") ->  | AC44: =IFERROR(VLOOKUP(AC43,'P2'!$B$4:$J$48,9,FALSE),"") ->  | AD44: =IFERROR(VLOOKUP(AD43,'P2'!$B$4:$J$48,9,FALSE),"") ->  | AE44: =IFERROR(VLOOKUP(AE43,'P2'!$B$4:$J$48,9,FALSE),"") ->  | AF44: =IFERROR(VLOOKUP(AF43,'P2'!$B$4:$J$48,9,FALSE),"") ->  | AG44: =IFERROR(VLOOKUP(AG43,'P2'!$B$4:$J$48,9,FALSE),"") ->  | AH44: =IFERROR(VLOOKUP(AH43,'P2'!$B$4:$J$48,9,FALSE),"") ->  | AI44: =IFERROR(VLOOKUP(AI43,'P2'!$B$4:$J$48,9,FALSE),"") ->  | AJ44: =IFERROR(VLOOKUP(AJ43,'P2'!$B$4:$J$48,9,FALSE),"") ->  | AK44: =IFERROR(VLOOKUP(AK43,'P2'!$B$4:$J$48,9,FALSE),"") ->  | AL44: =IFERROR(VLOOKUP(AL43,'P2'!$B$4:$J$48,9,FALSE),"") ->  | AM44: =IFERROR(VLOOKUP(AM43,'P2'!$B$4:$J$48,9,FALSE),"") ->  | AN44: =IFERROR(VLOOKUP(AN43,'P2'!$B$4:$J$48,9,FALSE),"") ->  | AO44: =IFERROR(VLOOKUP(AO43,'P2'!$B$4:$J$48,9,FALSE),"") ->  | AP44: =IFERROR(VLOOKUP(AP43,'P2'!$B$4:$J$48,9,FALSE),"") ->  | AQ44: =IFERROR(VLOOKUP(AQ43,'P2'!$B$4:$J$48,9,FALSE),"") ->  | AR44: =IFERROR(VLOOKUP(AR43,'P2'!$B$4:$J$48,9,FALSE),"") ->  | AS44: =IFERROR(VLOOKUP(AS43,'P2'!$B$4:$J$48,9,FALSE),"") ->  | AT44: =IFERROR(VLOOKUP(AT43,'P2'!$B$4:$J$48,9,FALSE),"") ->  | AU44: =IFERROR(VLOOKUP(AU43,'P2'!$B$4:$J$48,9,FALSE),"") ->  | AV44: =SUM(Q44:AU44) -> 0
B45: =B43+1 -> 17 | AV45: =COUNTA(Q45:AU45) -> 0 | AW45: =AV46 -> 0 | AX45: =IFERROR(ROUNDDOWN(AV46/$AT$3,1),"") -> 
Q46: =IFERROR(VLOOKUP(Q45,'P2'!$B$4:$J$48,9,FALSE),"") ->  | R46: =IFERROR(VLOOKUP(R45,'P2'!$B$4:$J$48,9,FALSE),"") ->  | S46: =IFERROR(VLOOKUP(S45,'P2'!$B$4:$J$48,9,FALSE),"") ->  | T46: =IFERROR(VLOOKUP(T45,'P2'!$B$4:$J$48,9,FALSE),"") ->  | U46: =IFERROR(VLOOKUP(U45,'P2'!$B$4:$J$48,9,FALSE),"") ->  | V46: =IFERROR(VLOOKUP(V45,'P2'!$B$4:$J$48,9,FALSE),"") ->  | W46: =IFERROR(VLOOKUP(W45,'P2'!$B$4:$J$48,9,FALSE),"") ->  | X46: =IFERROR(VLOOKUP(X45,'P2'!$B$4:$J$48,9,FALSE),"") ->  | Y46: =IFERROR(VLOOKUP(Y45,'P2'!$B$4:$J$48,9,FALSE),"") ->  | Z46: =IFERROR(VLOOKUP(Z45,'P2'!$B$4:$J$48,9,FALSE),"") ->  | AA46: =IFERROR(VLOOKUP(AA45,'P2'!$B$4:$J$48,9,FALSE),"") ->  | AB46: =IFERROR(VLOOKUP(AB45,'P2'!$B$4:$J$48,9,FALSE),"") ->  | AC46: =IFERROR(VLOOKUP(AC45,'P2'!$B$4:$J$48,9,FALSE),"") ->  | AD46: =IFERROR(VLOOKUP(AD45,'P2'!$B$4:$J$48,9,FALSE),"") ->  | AE46: =IFERROR(VLOOKUP(AE45,'P2'!$B$4:$J$48,9,FALSE),"") ->  | AF46: =IFERROR(VLOOKUP(AF45,'P2'!$B$4:$J$48,9,FALSE),"") ->  | AG46: =IFERROR(VLOOKUP(AG45,'P2'!$B$4:$J$48,9,FALSE),"") ->  | AH46: =IFERROR(VLOOKUP(AH45,'P2'!$B$4:$J$48,9,FALSE),"") ->  | AI46: =IFERROR(VLOOKUP(AI45,'P2'!$B$4:$J$48,9,FALSE),"") ->  | AJ46: =IFERROR(VLOOKUP(AJ45,'P2'!$B$4:$J$48,9,FALSE),"") ->  | AK46: =IFERROR(VLOOKUP(AK45,'P2'!$B$4:$J$48,9,FALSE),"") ->  | AL46: =IFERROR(VLOOKUP(AL45,'P2'!$B$4:$J$48,9,FALSE),"") ->  | AM46: =IFERROR(VLOOKUP(AM45,'P2'!$B$4:$J$48,9,FALSE),"") ->  | AN46: =IFERROR(VLOOKUP(AN45,'P2'!$B$4:$J$48,9,FALSE),"") ->  | AO46: =IFERROR(VLOOKUP(AO45,'P2'!$B$4:$J$48,9,FALSE),"") ->  | AP46: =IFERROR(VLOOKUP(AP45,'P2'!$B$4:$J$48,9,FALSE),"") ->  | AQ46: =IFERROR(VLOOKUP(AQ45,'P2'!$B$4:$J$48,9,FALSE),"") ->  | AR46: =IFERROR(VLOOKUP(AR45,'P2'!$B$4:$J$48,9,FALSE),"") ->  | AS46: =IFERROR(VLOOKUP(AS45,'P2'!$B$4:$J$48,9,FALSE),"") ->  | AT46: =IFERROR(VLOOKUP(AT45,'P2'!$B$4:$J$48,9,FALSE),"") ->  | AU46: =IFERROR(VLOOKUP(AU45,'P2'!$B$4:$J$48,9,FALSE),"") ->  | AV46: =SUM(Q46:AU46) -> 0
B47: =B45+1 -> 18 | AV47: =COUNTA(Q47:AU47) -> 0 | AW47: =AV48 -> 0 | AX47: =IFERROR(ROUNDDOWN(AV48/$AT$3,1),"") -> 
Q48: =IFERROR(VLOOKUP(Q47,'P2'!$B$4:$J$48,9,FALSE),"") ->  | R48: =IFERROR(VLOOKUP(R47,'P2'!$B$4:$J$48,9,FALSE),"") ->  | S48: =IFERROR(VLOOKUP(S47,'P2'!$B$4:$J$48,9,FALSE),"") ->  | T48: =IFERROR(VLOOKUP(T47,'P2'!$B$4:$J$48,9,FALSE),"") ->  | U48: =IFERROR(VLOOKUP(U47,'P2'!$B$4:$J$48,9,FALSE),"") ->  | V48: =IFERROR(VLOOKUP(V47,'P2'!$B$4:$J$48,9,FALSE),"") ->  | W48: =IFERROR(VLOOKUP(W47,'P2'!$B$4:$J$48,9,FALSE),"") ->  | X48: =IFERROR(VLOOKUP(X47,'P2'!$B$4:$J$48,9,FALSE),"") ->  | Y48: =IFERROR(VLOOKUP(Y47,'P2'!$B$4:$J$48,9,FALSE),"") ->  | Z48: =IFERROR(VLOOKUP(Z47,'P2'!$B$4:$J$48,9,FALSE),"") ->  | AA48: =IFERROR(VLOOKUP(AA47,'P2'!$B$4:$J$48,9,FALSE),"") ->  | AB48: =IFERROR(VLOOKUP(AB47,'P2'!$B$4:$J$48,9,FALSE),"") ->  | AC48: =IFERROR(VLOOKUP(AC47,'P2'!$B$4:$J$48,9,FALSE),"") ->  | AD48: =IFERROR(VLOOKUP(AD47,'P2'!$B$4:$J$48,9,FALSE),"") ->  | AE48: =IFERROR(VLOOKUP(AE47,'P2'!$B$4:$J$48,9,FALSE),"") ->  | AF48: =IFERROR(VLOOKUP(AF47,'P2'!$B$4:$J$48,9,FALSE),"") ->  | AG48: =IFERROR(VLOOKUP(AG47,'P2'!$B$4:$J$48,9,FALSE),"") ->  | AH48: =IFERROR(VLOOKUP(AH47,'P2'!$B$4:$J$48,9,FALSE),"") ->  | AI48: =IFERROR(VLOOKUP(AI47,'P2'!$B$4:$J$48,9,FALSE),"") ->  | AJ48: =IFERROR(VLOOKUP(AJ47,'P2'!$B$4:$J$48,9,FALSE),"") ->  | AK48: =IFERROR(VLOOKUP(AK47,'P2'!$B$4:$J$48,9,FALSE),"") ->  | AL48: =IFERROR(VLOOKUP(AL47,'P2'!$B$4:$J$48,9,FALSE),"") ->  | AM48: =IFERROR(VLOOKUP(AM47,'P2'!$B$4:$J$48,9,FALSE),"") ->  | AN48: =IFERROR(VLOOKUP(AN47,'P2'!$B$4:$J$48,9,FALSE),"") ->  | AO48: =IFERROR(VLOOKUP(AO47,'P2'!$B$4:$J$48,9,FALSE),"") ->  | AP48: =IFERROR(VLOOKUP(AP47,'P2'!$B$4:$J$48,9,FALSE),"") ->  | AQ48: =IFERROR(VLOOKUP(AQ47,'P2'!$B$4:$J$48,9,FALSE),"") ->  | AR48: =IFERROR(VLOOKUP(AR47,'P2'!$B$4:$J$48,9,FALSE),"") ->  | AS48: =IFERROR(VLOOKUP(AS47,'P2'!$B$4:$J$48,9,FALSE),"") ->  | AT48: =IFERROR(VLOOKUP(AT47,'P2'!$B$4:$J$48,9,FALSE),"") ->  | AU48: =IFERROR(VLOOKUP(AU47,'P2'!$B$4:$J$48,9,FALSE),"") ->  | AV48: =SUM(Q48:AU48) -> 0
B51: ※P2で作成したシフト記号を記載すること。なお、公休の場合は空欄とすること。
B52: ※管理者が他の職種と兼務する場合は、職種ごとに分けて記載すること。
B54: (2) 勤務実績 （直近3か月分の実績） | S54: （ | T54: =$T$3 -> 令和 7 | V54: 年 | W54: =$W$3 -> 4 | X54: 月分実績 | Z54: ） | AX54: ="2 / "&COUNTA(C$7,C$57,C$106,C$155,C$204) -> 2 / 1
C55: 職 種 | I55: 氏 名 | N55: 勤務 形態 | Q55: =Q$5 -> 2025-04-01 | R55: =R$5 -> 2025-04-02 | S55: 2025-04-03 | T55: 2025-04-04 | U55: 2025-04-05 | V55: 2025-04-06 | W55: 2025-04-07 | X55: 2025-04-08 | Y55: 2025-04-09 | Z55: 2025-04-10 | AA55: 2025-04-11 | AB55: 2025-04-12 | AC55: 2025-04-13 | AD55: 2025-04-14 | AE55: 2025-04-15 | AF55: 2025-04-16 | AG55: 2025-04-17 | AH55: 2025-04-18 | AI55: 2025-04-19 | AJ55: 2025-04-20 | AK55: 2025-04-21 | AL55: 2025-04-22 | AM55: 2025-04-23 | AN55: 2025-04-24 | AO55: 2025-04-25 | AP55: 2025-04-26 | AQ55: 2025-04-27 | AR55: 2025-04-28 | AS55: 2025-04-29 | AT55: 2025-04-30 | AV55: 勤務日数 | AX55: 常勤換算
Q56: =Q$6 -> 火 | R56: =R$6 -> 水 | S56: 木 | T56: 金 | U56: 土 | V56: 日 | W56: 月 | X56: 火 | Y56: 水 | Z56: 木 | AA56: 金 | AB56: 土 | AC56: 日 | AD56: 月 | AE56: 火 | AF56: 水 | AG56: 木 | AH56: 金 | AI56: 土 | AJ56: 日 | AK56: 月 | AL56: 火 | AM56: 水 | AN56: 木 | AO56: 金 | AP56: 土 | AQ56: 日 | AR56: 月 | AS56: 火 | AT56: 水 | AV56: 勤務時間
B57: =B47+1 -> 19 | AV57: =COUNTA(Q57:AU57) -> 0 | AW57: =AV58 -> 0 | AX57: =IFERROR(ROUNDDOWN(AV58/$AT$3,1),"") -> 
Q58: =IFERROR(VLOOKUP(Q57,'P2'!$B$4:$J$48,9,FALSE),"") ->  | R58: =IFERROR(VLOOKUP(R57,'P2'!$B$4:$J$48,9,FALSE),"") ->  | S58: =IFERROR(VLOOKUP(S57,'P2'!$B$4:$J$48,9,FALSE),"") ->  | T58: =IFERROR(VLOOKUP(T57,'P2'!$B$4:$J$48,9,FALSE),"") ->  | U58: =IFERROR(VLOOKUP(U57,'P2'!$B$4:$J$48,9,FALSE),"") ->  | V58: =IFERROR(VLOOKUP(V57,'P2'!$B$4:$J$48,9,FALSE),"") ->  | W58: =IFERROR(VLOOKUP(W57,'P2'!$B$4:$J$48,9,FALSE),"") ->  | X58: =IFERROR(VLOOKUP(X57,'P2'!$B$4:$J$48,9,FALSE),"") ->  | Y58: =IFERROR(VLOOKUP(Y57,'P2'!$B$4:$J$48,9,FALSE),"") ->  | Z58: =IFERROR(VLOOKUP(Z57,'P2'!$B$4:$J$48,9,FALSE),"") ->  | AA58: =IFERROR(VLOOKUP(AA57,'P2'!$B$4:$J$48,9,FALSE),"") ->  | AB58: =IFERROR(VLOOKUP(AB57,'P2'!$B$4:$J$48,9,FALSE),"") ->  | AC58: =IFERROR(VLOOKUP(AC57,'P2'!$B$4:$J$48,9,FALSE),"") ->  | AD58: =IFERROR(VLOOKUP(AD57,'P2'!$B$4:$J$48,9,FALSE),"") ->  | AE58: =IFERROR(VLOOKUP(AE57,'P2'!$B$4:$J$48,9,FALSE),"") ->  | AF58: =IFERROR(VLOOKUP(AF57,'P2'!$B$4:$J$48,9,FALSE),"") ->  | AG58: =IFERROR(VLOOKUP(AG57,'P2'!$B$4:$J$48,9,FALSE),"") ->  | AH58: =IFERROR(VLOOKUP(AH57,'P2'!$B$4:$J$48,9,FALSE),"") ->  | AI58: =IFERROR(VLOOKUP(AI57,'P2'!$B$4:$J$48,9,FALSE),"") ->  | AJ58: =IFERROR(VLOOKUP(AJ57,'P2'!$B$4:$J$48,9,FALSE),"") ->  | AK58: =IFERROR(VLOOKUP(AK57,'P2'!$B$4:$J$48,9,FALSE),"") ->  | AL58: =IFERROR(VLOOKUP(AL57,'P2'!$B$4:$J$48,9,FALSE),"") ->  | AM58: =IFERROR(VLOOKUP(AM57,'P2'!$B$4:$J$48,9,FALSE),"") ->  | AN58: =IFERROR(VLOOKUP(AN57,'P2'!$B$4:$J$48,9,FALSE),"") ->  | AO58: =IFERROR(VLOOKUP(AO57,'P2'!$B$4:$J$48,9,FALSE),"") ->  | AP58: =IFERROR(VLOOKUP(AP57,'P2'!$B$4:$J$48,9,FALSE),"") ->  | AQ58: =IFERROR(VLOOKUP(AQ57,'P2'!$B$4:$J$48,9,FALSE),"") ->  | AR58: =IFERROR(VLOOKUP(AR57,'P2'!$B$4:$J$48,9,FALSE),"") ->  | AS58: =IFERROR(VLOOKUP(AS57,'P2'!$B$4:$J$48,9,FALSE),"") ->  | AT58: =IFERROR(VLOOKUP(AT57,'P2'!$B$4:$J$48,9,FALSE),"") ->  | AU58: =IFERROR(VLOOKUP(AU57,'P2'!$B$4:$J$48,9,FALSE),"") ->  | AV58: =SUM(Q58:AU58) -> 0
B59: =B57+1 -> 20 | AV59: =COUNTA(Q59:AU59) -> 0 | AW59: =AV60 -> 0 | AX59: =IFERROR(ROUNDDOWN(AV60/$AT$3,1),"") -> 
Q60: =IFERROR(VLOOKUP(Q59,'P2'!$B$4:$J$48,9,FALSE),"") ->  | R60: =IFERROR(VLOOKUP(R59,'P2'!$B$4:$J$48,9,FALSE),"") ->  | S60: =IFERROR(VLOOKUP(S59,'P2'!$B$4:$J$48,9,FALSE),"") ->  | T60: =IFERROR(VLOOKUP(T59,'P2'!$B$4:$J$48,9,FALSE),"") ->  | U60: =IFERROR(VLOOKUP(U59,'P2'!$B$4:$J$48,9,FALSE),"") ->  | V60: =IFERROR(VLOOKUP(V59,'P2'!$B$4:$J$48,9,FALSE),"") ->  | W60: =IFERROR(VLOOKUP(W59,'P2'!$B$4:$J$48,9,FALSE),"") ->  | X60: =IFERROR(VLOOKUP(X59,'P2'!$B$4:$J$48,9,FALSE),"") ->  | Y60: =IFERROR(VLOOKUP(Y59,'P2'!$B$4:$J$48,9,FALSE),"") ->  | Z60: =IFERROR(VLOOKUP(Z59,'P2'!$B$4:$J$48,9,FALSE),"") ->  | AA60: =IFERROR(VLOOKUP(AA59,'P2'!$B$4:$J$48,9,FALSE),"") ->  | AB60: =IFERROR(VLOOKUP(AB59,'P2'!$B$4:$J$48,9,FALSE),"") ->  | AC60: =IFERROR(VLOOKUP(AC59,'P2'!$B$4:$J$48,9,FALSE),"") ->  | AD60: =IFERROR(VLOOKUP(AD59,'P2'!$B$4:$J$48,9,FALSE),"") ->  | AE60: =IFERROR(VLOOKUP(AE59,'P2'!$B$4:$J$48,9,FALSE),"") ->  | AF60: =IFERROR(VLOOKUP(AF59,'P2'!$B$4:$J$48,9,FALSE),"") ->  | AG60: =IFERROR(VLOOKUP(AG59,'P2'!$B$4:$J$48,9,FALSE),"") ->  | AH60: =IFERROR(VLOOKUP(AH59,'P2'!$B$4:$J$48,9,FALSE),"") ->  | AI60: =IFERROR(VLOOKUP(AI59,'P2'!$B$4:$J$48,9,FALSE),"") ->  | AJ60: =IFERROR(VLOOKUP(AJ59,'P2'!$B$4:$J$48,9,FALSE),"") ->  | AK60: =IFERROR(VLOOKUP(AK59,'P2'!$B$4:$J$48,9,FALSE),"") ->  | AL60: =IFERROR(VLOOKUP(AL59,'P2'!$B$4:$J$48,9,FALSE),"") ->  | AM60: =IFERROR(VLOOKUP(AM59,'P2'!$B$4:$J$48,9,FALSE),"") ->  | AN60: =IFERROR(VLOOKUP(AN59,'P2'!$B$4:$J$48,9,FALSE),"") ->  | AO60: =IFERROR(VLOOKUP(AO59,'P2'!$B$4:$J$48,9,FALSE),"") ->  | AP60: =IFERROR(VLOOKUP(AP59,'P2'!$B$4:$J$48,9,FALSE),"") ->  | AQ60: =IFERROR(VLOOKUP(AQ59,'P2'!$B$4:$J$48,9,FALSE),"") ->  | AR60: =IFERROR(VLOOKUP(AR59,'P2'!$B$4:$J$48,9,FALSE),"") ->  | AS60: =IFERROR(VLOOKUP(AS59,'P2'!$B$4:$J$48,9,FALSE),"") ->  | AT60: =IFERROR(VLOOKUP(AT59,'P2'!$B$4:$J$48,9,FALSE),"") ->  | AU60: =IFERROR(VLOOKUP(AU59,'P2'!$B$4:$J$48,9,FALSE),"") ->  | AV60: =SUM(Q60:AU60) -> 0
B61: 21 | AV61: =COUNTA(Q61:AU61) -> 0 | AW61: =AV62 -> 0 | AX61: =IFERROR(ROUNDDOWN(AV62/$AT$3,1),"") -> 
Q62: =IFERROR(VLOOKUP(Q61,'P2'!$B$4:$J$48,9,FALSE),"") ->  | R62: =IFERROR(VLOOKUP(R61,'P2'!$B$4:$J$48,9,FALSE),"") ->  | S62: =IFERROR(VLOOKUP(S61,'P2'!$B$4:$J$48,9,FALSE),"") ->  | T62: =IFERROR(VLOOKUP(T61,'P2'!$B$4:$J$48,9,FALSE),"") ->  | U62: =IFERROR(VLOOKUP(U61,'P2'!$B$4:$J$48,9,FALSE),"") ->  | V62: =IFERROR(VLOOKUP(V61,'P2'!$B$4:$J$48,9,FALSE),"") ->  | W62: =IFERROR(VLOOKUP(W61,'P2'!$B$4:$J$48,9,FALSE),"") ->  | X62: =IFERROR(VLOOKUP(X61,'P2'!$B$4:$J$48,9,FALSE),"") ->  | Y62: =IFERROR(VLOOKUP(Y61,'P2'!$B$4:$J$48,9,FALSE),"") ->  | Z62: =IFERROR(VLOOKUP(Z61,'P2'!$B$4:$J$48,9,FALSE),"") ->  | AA62: =IFERROR(VLOOKUP(AA61,'P2'!$B$4:$J$48,9,FALSE),"") ->  | AB62: =IFERROR(VLOOKUP(AB61,'P2'!$B$4:$J$48,9,FALSE),"") ->  | AC62: =IFERROR(VLOOKUP(AC61,'P2'!$B$4:$J$48,9,FALSE),"") ->  | AD62: =IFERROR(VLOOKUP(AD61,'P2'!$B$4:$J$48,9,FALSE),"") ->  | AE62: =IFERROR(VLOOKUP(AE61,'P2'!$B$4:$J$48,9,FALSE),"") ->  | AF62: =IFERROR(VLOOKUP(AF61,'P2'!$B$4:$J$48,9,FALSE),"") ->  | AG62: =IFERROR(VLOOKUP(AG61,'P2'!$B$4:$J$48,9,FALSE),"") ->  | AH62: =IFERROR(VLOOKUP(AH61,'P2'!$B$4:$J$48,9,FALSE),"") ->  | AI62: =IFERROR(VLOOKUP(AI61,'P2'!$B$4:$J$48,9,FALSE),"") ->  | AJ62: =IFERROR(VLOOKUP(AJ61,'P2'!$B$4:$J$48,9,FALSE),"") ->  | AK62: =IFERROR(VLOOKUP(AK61,'P2'!$B$4:$J$48,9,FALSE),"") ->  | AL62: =IFERROR(VLOOKUP(AL61,'P2'!$B$4:$J$48,9,FALSE),"") ->  | AM62: =IFERROR(VLOOKUP(AM61,'P2'!$B$4:$J$48,9,FALSE),"") ->  | AN62: =IFERROR(VLOOKUP(AN61,'P2'!$B$4:$J$48,9,FALSE),"") ->  | AO62: =IFERROR(VLOOKUP(AO61,'P2'!$B$4:$J$48,9,FALSE),"") ->  | AP62: =IFERROR(VLOOKUP(AP61,'P2'!$B$4:$J$48,9,FALSE),"") ->  | AQ62: =IFERROR(VLOOKUP(AQ61,'P2'!$B$4:$J$48,9,FALSE),"") ->  | AR62: =IFERROR(VLOOKUP(AR61,'P2'!$B$4:$J$48,9,FALSE),"") ->  | AS62: =IFERROR(VLOOKUP(AS61,'P2'!$B$4:$J$48,9,FALSE),"") ->  | AT62: =IFERROR(VLOOKUP(AT61,'P2'!$B$4:$J$48,9,FALSE),"") ->  | AU62: =IFERROR(VLOOKUP(AU61,'P2'!$B$4:$J$48,9,FALSE),"") ->  | AV62: =SUM(Q62:AU62) -> 0
B63: 22 | AV63: =COUNTA(Q63:AU63) -> 0 | AW63: =AV64 -> 0 | AX63: =IFERROR(ROUNDDOWN(AV64/$AT$3,1),"") -> 
Q64: =IFERROR(VLOOKUP(Q63,'P2'!$B$4:$J$48,9,FALSE),"") ->  | R64: =IFERROR(VLOOKUP(R63,'P2'!$B$4:$J$48,9,FALSE),"") ->  | S64: =IFERROR(VLOOKUP(S63,'P2'!$B$4:$J$48,9,FALSE),"") ->  | T64: =IFERROR(VLOOKUP(T63,'P2'!$B$4:$J$48,9,FALSE),"") ->  | U64: =IFERROR(VLOOKUP(U63,'P2'!$B$4:$J$48,9,FALSE),"") ->  | V64: =IFERROR(VLOOKUP(V63,'P2'!$B$4:$J$48,9,FALSE),"") ->  | W64: =IFERROR(VLOOKUP(W63,'P2'!$B$4:$J$48,9,FALSE),"") ->  | X64: =IFERROR(VLOOKUP(X63,'P2'!$B$4:$J$48,9,FALSE),"") ->  | Y64: =IFERROR(VLOOKUP(Y63,'P2'!$B$4:$J$48,9,FALSE),"") ->  | Z64: =IFERROR(VLOOKUP(Z63,'P2'!$B$4:$J$48,9,FALSE),"") ->  | AA64: =IFERROR(VLOOKUP(AA63,'P2'!$B$4:$J$48,9,FALSE),"") ->  | AB64: =IFERROR(VLOOKUP(AB63,'P2'!$B$4:$J$48,9,FALSE),"") ->  | AC64: =IFERROR(VLOOKUP(AC63,'P2'!$B$4:$J$48,9,FALSE),"") ->  | AD64: =IFERROR(VLOOKUP(AD63,'P2'!$B$4:$J$48,9,FALSE),"") ->  | AE64: =IFERROR(VLOOKUP(AE63,'P2'!$B$4:$J$48,9,FALSE),"") ->  | AF64: =IFERROR(VLOOKUP(AF63,'P2'!$B$4:$J$48,9,FALSE),"") ->  | AG64: =IFERROR(VLOOKUP(AG63,'P2'!$B$4:$J$48,9,FALSE),"") ->  | AH64: =IFERROR(VLOOKUP(AH63,'P2'!$B$4:$J$48,9,FALSE),"") ->  | AI64: =IFERROR(VLOOKUP(AI63,'P2'!$B$4:$J$48,9,FALSE),"") ->  | AJ64: =IFERROR(VLOOKUP(AJ63,'P2'!$B$4:$J$48,9,FALSE),"") ->  | AK64: =IFERROR(VLOOKUP(AK63,'P2'!$B$4:$J$48,9,FALSE),"") ->  | AL64: =IFERROR(VLOOKUP(AL63,'P2'!$B$4:$J$48,9,FALSE),"") ->  | AM64: =IFERROR(VLOOKUP(AM63,'P2'!$B$4:$J$48,9,FALSE),"") ->  | AN64: =IFERROR(VLOOKUP(AN63,'P2'!$B$4:$J$48,9,FALSE),"") ->  | AO64: =IFERROR(VLOOKUP(AO63,'P2'!$B$4:$J$48,9,FALSE),"") ->  | AP64: =IFERROR(VLOOKUP(AP63,'P2'!$B$4:$J$48,9,FALSE),"") ->  | AQ64: =IFERROR(VLOOKUP(AQ63,'P2'!$B$4:$J$48,9,FALSE),"") ->  | AR64: =IFERROR(VLOOKUP(AR63,'P2'!$B$4:$J$48,9,FALSE),"") ->  | AS64: =IFERROR(VLOOKUP(AS63,'P2'!$B$4:$J$48,9,FALSE),"") ->  | AT64: =IFERROR(VLOOKUP(AT63,'P2'!$B$4:$J$48,9,FALSE),"") ->  | AU64: =IFERROR(VLOOKUP(AU63,'P2'!$B$4:$J$48,9,FALSE),"") ->  | AV64: =SUM(Q64:AU64) -> 0
B65: 23 | AV65: =COUNTA(Q65:AU65) -> 0 | AW65: =AV66 -> 0 | AX65: =IFERROR(ROUNDDOWN(AV66/$AT$3,1),"") -> 
Q66: =IFERROR(VLOOKUP(Q65,'P2'!$B$4:$J$48,9,FALSE),"") ->  | R66: =IFERROR(VLOOKUP(R65,'P2'!$B$4:$J$48,9,FALSE),"") ->  | S66: =IFERROR(VLOOKUP(S65,'P2'!$B$4:$J$48,9,FALSE),"") ->  | T66: =IFERROR(VLOOKUP(T65,'P2'!$B$4:$J$48,9,FALSE),"") ->  | U66: =IFERROR(VLOOKUP(U65,'P2'!$B$4:$J$48,9,FALSE),"") ->  | V66: =IFERROR(VLOOKUP(V65,'P2'!$B$4:$J$48,9,FALSE),"") ->  | W66: =IFERROR(VLOOKUP(W65,'P2'!$B$4:$J$48,9,FALSE),"") ->  | X66: =IFERROR(VLOOKUP(X65,'P2'!$B$4:$J$48,9,FALSE),"") ->  | Y66: =IFERROR(VLOOKUP(Y65,'P2'!$B$4:$J$48,9,FALSE),"") ->  | Z66: =IFERROR(VLOOKUP(Z65,'P2'!$B$4:$J$48,9,FALSE),"") ->  | AA66: =IFERROR(VLOOKUP(AA65,'P2'!$B$4:$J$48,9,FALSE),"") ->  | AB66: =IFERROR(VLOOKUP(AB65,'P2'!$B$4:$J$48,9,FALSE),"") ->  | AC66: =IFERROR(VLOOKUP(AC65,'P2'!$B$4:$J$48,9,FALSE),"") ->  | AD66: =IFERROR(VLOOKUP(AD65,'P2'!$B$4:$J$48,9,FALSE),"") ->  | AE66: =IFERROR(VLOOKUP(AE65,'P2'!$B$4:$J$48,9,FALSE),"") ->  | AF66: =IFERROR(VLOOKUP(AF65,'P2'!$B$4:$J$48,9,FALSE),"") ->  | AG66: =IFERROR(VLOOKUP(AG65,'P2'!$B$4:$J$48,9,FALSE),"") ->  | AH66: =IFERROR(VLOOKUP(AH65,'P2'!$B$4:$J$48,9,FALSE),"") ->  | AI66: =IFERROR(VLOOKUP(AI65,'P2'!$B$4:$J$48,9,FALSE),"") ->  | AJ66: =IFERROR(VLOOKUP(AJ65,'P2'!$B$4:$J$48,9,FALSE),"") ->  | AK66: =IFERROR(VLOOKUP(AK65,'P2'!$B$4:$J$48,9,FALSE),"") ->  | AL66: =IFERROR(VLOOKUP(AL65,'P2'!$B$4:$J$48,9,FALSE),"") ->  | AM66: =IFERROR(VLOOKUP(AM65,'P2'!$B$4:$J$48,9,FALSE),"") ->  | AN66: =IFERROR(VLOOKUP(AN65,'P2'!$B$4:$J$48,9,FALSE),"") ->  | AO66: =IFERROR(VLOOKUP(AO65,'P2'!$B$4:$J$48,9,FALSE),"") ->  | AP66: =IFERROR(VLOOKUP(AP65,'P2'!$B$4:$J$48,9,FALSE),"") ->  | AQ66: =IFERROR(VLOOKUP(AQ65,'P2'!$B$4:$J$48,9,FALSE),"") ->  | AR66: =IFERROR(VLOOKUP(AR65,'P2'!$B$4:$J$48,9,FALSE),"") ->  | AS66: =IFERROR(VLOOKUP(AS65,'P2'!$B$4:$J$48,9,FALSE),"") ->  | AT66: =IFERROR(VLOOKUP(AT65,'P2'!$B$4:$J$48,9,FALSE),"") ->  | AU66: =IFERROR(VLOOKUP(AU65,'P2'!$B$4:$J$48,9,FALSE),"") ->  | AV66: =SUM(Q66:AU66) -> 0
B67: 24 | AV67: =COUNTA(Q67:AU67) -> 0 | AW67: =AV68 -> 0 | AX67: =IFERROR(ROUNDDOWN(AV68/$AT$3,1),"") -> 
Q68: =IFERROR(VLOOKUP(Q67,'P2'!$B$4:$J$48,9,FALSE),"") ->  | R68: =IFERROR(VLOOKUP(R67,'P2'!$B$4:$J$48,9,FALSE),"") ->  | S68: =IFERROR(VLOOKUP(S67,'P2'!$B$4:$J$48,9,FALSE),"") ->  | T68: =IFERROR(VLOOKUP(T67,'P2'!$B$4:$J$48,9,FALSE),"") ->  | U68: =IFERROR(VLOOKUP(U67,'P2'!$B$4:$J$48,9,FALSE),"") ->  | V68: =IFERROR(VLOOKUP(V67,'P2'!$B$4:$J$48,9,FALSE),"") ->  | W68: =IFERROR(VLOOKUP(W67,'P2'!$B$4:$J$48,9,FALSE),"") ->  | X68: =IFERROR(VLOOKUP(X67,'P2'!$B$4:$J$48,9,FALSE),"") ->  | Y68: =IFERROR(VLOOKUP(Y67,'P2'!$B$4:$J$48,9,FALSE),"") ->  | Z68: =IFERROR(VLOOKUP(Z67,'P2'!$B$4:$J$48,9,FALSE),"") ->  | AA68: =IFERROR(VLOOKUP(AA67,'P2'!$B$4:$J$48,9,FALSE),"") ->  | AB68: =IFERROR(VLOOKUP(AB67,'P2'!$B$4:$J$48,9,FALSE),"") ->  | AC68: =IFERROR(VLOOKUP(AC67,'P2'!$B$4:$J$48,9,FALSE),"") ->  | AD68: =IFERROR(VLOOKUP(AD67,'P2'!$B$4:$J$48,9,FALSE),"") ->  | AE68: =IFERROR(VLOOKUP(AE67,'P2'!$B$4:$J$48,9,FALSE),"") ->  | AF68: =IFERROR(VLOOKUP(AF67,'P2'!$B$4:$J$48,9,FALSE),"") ->  | AG68: =IFERROR(VLOOKUP(AG67,'P2'!$B$4:$J$48,9,FALSE),"") ->  | AH68: =IFERROR(VLOOKUP(AH67,'P2'!$B$4:$J$48,9,FALSE),"") ->  | AI68: =IFERROR(VLOOKUP(AI67,'P2'!$B$4:$J$48,9,FALSE),"") ->  | AJ68: =IFERROR(VLOOKUP(AJ67,'P2'!$B$4:$J$48,9,FALSE),"") ->  | AK68: =IFERROR(VLOOKUP(AK67,'P2'!$B$4:$J$48,9,FALSE),"") ->  | AL68: =IFERROR(VLOOKUP(AL67,'P2'!$B$4:$J$48,9,FALSE),"") ->  | AM68: =IFERROR(VLOOKUP(AM67,'P2'!$B$4:$J$48,9,FALSE),"") ->  | AN68: =IFERROR(VLOOKUP(AN67,'P2'!$B$4:$J$48,9,FALSE),"") ->  | AO68: =IFERROR(VLOOKUP(AO67,'P2'!$B$4:$J$48,9,FALSE),"") ->  | AP68: =IFERROR(VLOOKUP(AP67,'P2'!$B$4:$J$48,9,FALSE),"") ->  | AQ68: =IFERROR(VLOOKUP(AQ67,'P2'!$B$4:$J$48,9,FALSE),"") ->  | AR68: =IFERROR(VLOOKUP(AR67,'P2'!$B$4:$J$48,9,FALSE),"") ->  | AS68: =IFERROR(VLOOKUP(AS67,'P2'!$B$4:$J$48,9,FALSE),"") ->  | AT68: =IFERROR(VLOOKUP(AT67,'P2'!$B$4:$J$48,9,FALSE),"") ->  | AU68: =IFERROR(VLOOKUP(AU67,'P2'!$B$4:$J$48,9,FALSE),"") ->  | AV68: =SUM(Q68:AU68) -> 0
B69: 25 | AV69: =COUNTA(Q69:AU69) -> 0 | AW69: =AV70 -> 0 | AX69: =IFERROR(ROUNDDOWN(AV70/$AT$3,1),"") -> 
Q70: =IFERROR(VLOOKUP(Q69,'P2'!$B$4:$J$48,9,FALSE),"") ->  | R70: =IFERROR(VLOOKUP(R69,'P2'!$B$4:$J$48,9,FALSE),"") ->  | S70: =IFERROR(VLOOKUP(S69,'P2'!$B$4:$J$48,9,FALSE),"") ->  | T70: =IFERROR(VLOOKUP(T69,'P2'!$B$4:$J$48,9,FALSE),"") ->  | U70: =IFERROR(VLOOKUP(U69,'P2'!$B$4:$J$48,9,FALSE),"") ->  | V70: =IFERROR(VLOOKUP(V69,'P2'!$B$4:$J$48,9,FALSE),"") ->  | W70: =IFERROR(VLOOKUP(W69,'P2'!$B$4:$J$48,9,FALSE),"") ->  | X70: =IFERROR(VLOOKUP(X69,'P2'!$B$4:$J$48,9,FALSE),"") ->  | Y70: =IFERROR(VLOOKUP(Y69,'P2'!$B$4:$J$48,9,FALSE),"") ->  | Z70: =IFERROR(VLOOKUP(Z69,'P2'!$B$4:$J$48,9,FALSE),"") ->  | AA70: =IFERROR(VLOOKUP(AA69,'P2'!$B$4:$J$48,9,FALSE),"") ->  | AB70: =IFERROR(VLOOKUP(AB69,'P2'!$B$4:$J$48,9,FALSE),"") ->  | AC70: =IFERROR(VLOOKUP(AC69,'P2'!$B$4:$J$48,9,FALSE),"") ->  | AD70: =IFERROR(VLOOKUP(AD69,'P2'!$B$4:$J$48,9,FALSE),"") ->  | AE70: =IFERROR(VLOOKUP(AE69,'P2'!$B$4:$J$48,9,FALSE),"") ->  | AF70: =IFERROR(VLOOKUP(AF69,'P2'!$B$4:$J$48,9,FALSE),"") ->  | AG70: =IFERROR(VLOOKUP(AG69,'P2'!$B$4:$J$48,9,FALSE),"") ->  | AH70: =IFERROR(VLOOKUP(AH69,'P2'!$B$4:$J$48,9,FALSE),"") ->  | AI70: =IFERROR(VLOOKUP(AI69,'P2'!$B$4:$J$48,9,FALSE),"") ->  | AJ70: =IFERROR(VLOOKUP(AJ69,'P2'!$B$4:$J$48,9,FALSE),"") ->  | AK70: =IFERROR(VLOOKUP(AK69,'P2'!$B$4:$J$48,9,FALSE),"") ->  | AL70: =IFERROR(VLOOKUP(AL69,'P2'!$B$4:$J$48,9,FALSE),"") ->  | AM70: =IFERROR(VLOOKUP(AM69,'P2'!$B$4:$J$48,9,FALSE),"") ->  | AN70: =IFERROR(VLOOKUP(AN69,'P2'!$B$4:$J$48,9,FALSE),"") ->  | AO70: =IFERROR(VLOOKUP(AO69,'P2'!$B$4:$J$48,9,FALSE),"") ->  | AP70: =IFERROR(VLOOKUP(AP69,'P2'!$B$4:$J$48,9,FALSE),"") ->  | AQ70: =IFERROR(VLOOKUP(AQ69,'P2'!$B$4:$J$48,9,FALSE),"") ->  | AR70: =IFERROR(VLOOKUP(AR69,'P2'!$B$4:$J$48,9,FALSE),"") ->  | AS70: =IFERROR(VLOOKUP(AS69,'P2'!$B$4:$J$48,9,FALSE),"") ->  | AT70: =IFERROR(VLOOKUP(AT69,'P2'!$B$4:$J$48,9,FALSE),"") ->  | AU70: =IFERROR(VLOOKUP(AU69,'P2'!$B$4:$J$48,9,FALSE),"") ->  | AV70: =SUM(Q70:AU70) -> 0
B71: 26 | AV71: =COUNTA(Q71:AU71) -> 0 | AW71: =AV72 -> 0 | AX71: =IFERROR(ROUNDDOWN(AV72/$AT$3,1),"") -> 
Q72: =IFERROR(VLOOKUP(Q71,'P2'!$B$4:$J$48,9,FALSE),"") ->  | R72: =IFERROR(VLOOKUP(R71,'P2'!$B$4:$J$48,9,FALSE),"") ->  | S72: =IFERROR(VLOOKUP(S71,'P2'!$B$4:$J$48,9,FALSE),"") ->  | T72: =IFERROR(VLOOKUP(T71,'P2'!$B$4:$J$48,9,FALSE),"") ->  | U72: =IFERROR(VLOOKUP(U71,'P2'!$B$4:$J$48,9,FALSE),"") ->  | V72: =IFERROR(VLOOKUP(V71,'P2'!$B$4:$J$48,9,FALSE),"") ->  | W72: =IFERROR(VLOOKUP(W71,'P2'!$B$4:$J$48,9,FALSE),"") ->  | X72: =IFERROR(VLOOKUP(X71,'P2'!$B$4:$J$48,9,FALSE),"") ->  | Y72: =IFERROR(VLOOKUP(Y71,'P2'!$B$4:$J$48,9,FALSE),"") ->  | Z72: =IFERROR(VLOOKUP(Z71,'P2'!$B$4:$J$48,9,FALSE),"") ->  | AA72: =IFERROR(VLOOKUP(AA71,'P2'!$B$4:$J$48,9,FALSE),"") ->  | AB72: =IFERROR(VLOOKUP(AB71,'P2'!$B$4:$J$48,9,FALSE),"") ->  | AC72: =IFERROR(VLOOKUP(AC71,'P2'!$B$4:$J$48,9,FALSE),"") ->  | AD72: =IFERROR(VLOOKUP(AD71,'P2'!$B$4:$J$48,9,FALSE),"") ->  | AE72: =IFERROR(VLOOKUP(AE71,'P2'!$B$4:$J$48,9,FALSE),"") ->  | AF72: =IFERROR(VLOOKUP(AF71,'P2'!$B$4:$J$48,9,FALSE),"") ->  | AG72: =IFERROR(VLOOKUP(AG71,'P2'!$B$4:$J$48,9,FALSE),"") ->  | AH72: =IFERROR(VLOOKUP(AH71,'P2'!$B$4:$J$48,9,FALSE),"") ->  | AI72: =IFERROR(VLOOKUP(AI71,'P2'!$B$4:$J$48,9,FALSE),"") ->  | AJ72: =IFERROR(VLOOKUP(AJ71,'P2'!$B$4:$J$48,9,FALSE),"") ->  | AK72: =IFERROR(VLOOKUP(AK71,'P2'!$B$4:$J$48,9,FALSE),"") ->  | AL72: =IFERROR(VLOOKUP(AL71,'P2'!$B$4:$J$48,9,FALSE),"") ->  | AM72: =IFERROR(VLOOKUP(AM71,'P2'!$B$4:$J$48,9,FALSE),"") ->  | AN72: =IFERROR(VLOOKUP(AN71,'P2'!$B$4:$J$48,9,FALSE),"") ->  | AO72: =IFERROR(VLOOKUP(AO71,'P2'!$B$4:$J$48,9,FALSE),"") ->  | AP72: =IFERROR(VLOOKUP(AP71,'P2'!$B$4:$J$48,9,FALSE),"") ->  | AQ72: =IFERROR(VLOOKUP(AQ71,'P2'!$B$4:$J$48,9,FALSE),"") ->  | AR72: =IFERROR(VLOOKUP(AR71,'P2'!$B$4:$J$48,9,FALSE),"") ->  | AS72: =IFERROR(VLOOKUP(AS71,'P2'!$B$4:$J$48,9,FALSE),"") ->  | AT72: =IFERROR(VLOOKUP(AT71,'P2'!$B$4:$J$48,9,FALSE),"") ->  | AU72: =IFERROR(VLOOKUP(AU71,'P2'!$B$4:$J$48,9,FALSE),"") ->  | AV72: =SUM(Q72:AU72) -> 0
B73: 27 | AV73: =COUNTA(Q73:AU73) -> 0 | AW73: =AV74 -> 0 | AX73: =IFERROR(ROUNDDOWN(AV74/$AT$3,1),"") -> 
Q74: =IFERROR(VLOOKUP(Q73,'P2'!$B$4:$J$48,9,FALSE),"") ->  | R74: =IFERROR(VLOOKUP(R73,'P2'!$B$4:$J$48,9,FALSE),"") ->  | S74: =IFERROR(VLOOKUP(S73,'P2'!$B$4:$J$48,9,FALSE),"") ->  | T74: =IFERROR(VLOOKUP(T73,'P2'!$B$4:$J$48,9,FALSE),"") ->  | U74: =IFERROR(VLOOKUP(U73,'P2'!$B$4:$J$48,9,FALSE),"") ->  | V74: =IFERROR(VLOOKUP(V73,'P2'!$B$4:$J$48,9,FALSE),"") ->  | W74: =IFERROR(VLOOKUP(W73,'P2'!$B$4:$J$48,9,FALSE),"") ->  | X74: =IFERROR(VLOOKUP(X73,'P2'!$B$4:$J$48,9,FALSE),"") ->  | Y74: =IFERROR(VLOOKUP(Y73,'P2'!$B$4:$J$48,9,FALSE),"") ->  | Z74: =IFERROR(VLOOKUP(Z73,'P2'!$B$4:$J$48,9,FALSE),"") ->  | AA74: =IFERROR(VLOOKUP(AA73,'P2'!$B$4:$J$48,9,FALSE),"") ->  | AB74: =IFERROR(VLOOKUP(AB73,'P2'!$B$4:$J$48,9,FALSE),"") ->  | AC74: =IFERROR(VLOOKUP(AC73,'P2'!$B$4:$J$48,9,FALSE),"") ->  | AD74: =IFERROR(VLOOKUP(AD73,'P2'!$B$4:$J$48,9,FALSE),"") ->  | AE74: =IFERROR(VLOOKUP(AE73,'P2'!$B$4:$J$48,9,FALSE),"") ->  | AF74: =IFERROR(VLOOKUP(AF73,'P2'!$B$4:$J$48,9,FALSE),"") ->  | AG74: =IFERROR(VLOOKUP(AG73,'P2'!$B$4:$J$48,9,FALSE),"") ->  | AH74: =IFERROR(VLOOKUP(AH73,'P2'!$B$4:$J$48,9,FALSE),"") ->  | AI74: =IFERROR(VLOOKUP(AI73,'P2'!$B$4:$J$48,9,FALSE),"") ->  | AJ74: =IFERROR(VLOOKUP(AJ73,'P2'!$B$4:$J$48,9,FALSE),"") ->  | AK74: =IFERROR(VLOOKUP(AK73,'P2'!$B$4:$J$48,9,FALSE),"") ->  | AL74: =IFERROR(VLOOKUP(AL73,'P2'!$B$4:$J$48,9,FALSE),"") ->  | AM74: =IFERROR(VLOOKUP(AM73,'P2'!$B$4:$J$48,9,FALSE),"") ->  | AN74: =IFERROR(VLOOKUP(AN73,'P2'!$B$4:$J$48,9,FALSE),"") ->  | AO74: =IFERROR(VLOOKUP(AO73,'P2'!$B$4:$J$48,9,FALSE),"") ->  | AP74: =IFERROR(VLOOKUP(AP73,'P2'!$B$4:$J$48,9,FALSE),"") ->  | AQ74: =IFERROR(VLOOKUP(AQ73,'P2'!$B$4:$J$48,9,FALSE),"") ->  | AR74: =IFERROR(VLOOKUP(AR73,'P2'!$B$4:$J$48,9,FALSE),"") ->  | AS74: =IFERROR(VLOOKUP(AS73,'P2'!$B$4:$J$48,9,FALSE),"") ->  | AT74: =IFERROR(VLOOKUP(AT73,'P2'!$B$4:$J$48,9,FALSE),"") ->  | AU74: =IFERROR(VLOOKUP(AU73,'P2'!$B$4:$J$48,9,FALSE),"") ->  | AV74: =SUM(Q74:AU74) -> 0
B75: 28 | AV75: =COUNTA(Q75:AU75) -> 0 | AW75: =AV76 -> 0 | AX75: =IFERROR(ROUNDDOWN(AV76/$AT$3,1),"") -> 
Q76: =IFERROR(VLOOKUP(Q75,'P2'!$B$4:$J$48,9,FALSE),"") ->  | R76: =IFERROR(VLOOKUP(R75,'P2'!$B$4:$J$48,9,FALSE),"") ->  | S76: =IFERROR(VLOOKUP(S75,'P2'!$B$4:$J$48,9,FALSE),"") ->  | T76: =IFERROR(VLOOKUP(T75,'P2'!$B$4:$J$48,9,FALSE),"") ->  | U76: =IFERROR(VLOOKUP(U75,'P2'!$B$4:$J$48,9,FALSE),"") ->  | V76: =IFERROR(VLOOKUP(V75,'P2'!$B$4:$J$48,9,FALSE),"") ->  | W76: =IFERROR(VLOOKUP(W75,'P2'!$B$4:$J$48,9,FALSE),"") ->  | X76: =IFERROR(VLOOKUP(X75,'P2'!$B$4:$J$48,9,FALSE),"") ->  | Y76: =IFERROR(VLOOKUP(Y75,'P2'!$B$4:$J$48,9,FALSE),"") ->  | Z76: =IFERROR(VLOOKUP(Z75,'P2'!$B$4:$J$48,9,FALSE),"") ->  | AA76: =IFERROR(VLOOKUP(AA75,'P2'!$B$4:$J$48,9,FALSE),"") ->  | AB76: =IFERROR(VLOOKUP(AB75,'P2'!$B$4:$J$48,9,FALSE),"") ->  | AC76: =IFERROR(VLOOKUP(AC75,'P2'!$B$4:$J$48,9,FALSE),"") ->  | AD76: =IFERROR(VLOOKUP(AD75,'P2'!$B$4:$J$48,9,FALSE),"") ->  | AE76: =IFERROR(VLOOKUP(AE75,'P2'!$B$4:$J$48,9,FALSE),"") ->  | AF76: =IFERROR(VLOOKUP(AF75,'P2'!$B$4:$J$48,9,FALSE),"") ->  | AG76: =IFERROR(VLOOKUP(AG75,'P2'!$B$4:$J$48,9,FALSE),"") ->  | AH76: =IFERROR(VLOOKUP(AH75,'P2'!$B$4:$J$48,9,FALSE),"") ->  | AI76: =IFERROR(VLOOKUP(AI75,'P2'!$B$4:$J$48,9,FALSE),"") ->  | AJ76: =IFERROR(VLOOKUP(AJ75,'P2'!$B$4:$J$48,9,FALSE),"") ->  | AK76: =IFERROR(VLOOKUP(AK75,'P2'!$B$4:$J$48,9,FALSE),"") ->  | AL76: =IFERROR(VLOOKUP(AL75,'P2'!$B$4:$J$48,9,FALSE),"") ->  | AM76: =IFERROR(VLOOKUP(AM75,'P2'!$B$4:$J$48,9,FALSE),"") ->  | AN76: =IFERROR(VLOOKUP(AN75,'P2'!$B$4:$J$48,9,FALSE),"") ->  | AO76: =IFERROR(VLOOKUP(AO75,'P2'!$B$4:$J$48,9,FALSE),"") ->  | AP76: =IFERROR(VLOOKUP(AP75,'P2'!$B$4:$J$48,9,FALSE),"") ->  | AQ76: =IFERROR(VLOOKUP(AQ75,'P2'!$B$4:$J$48,9,FALSE),"") ->  | AR76: =IFERROR(VLOOKUP(AR75,'P2'!$B$4:$J$48,9,FALSE),"") ->  | AS76: =IFERROR(VLOOKUP(AS75,'P2'!$B$4:$J$48,9,FALSE),"") ->  | AT76: =IFERROR(VLOOKUP(AT75,'P2'!$B$4:$J$48,9,FALSE),"") ->  | AU76: =IFERROR(VLOOKUP(AU75,'P2'!$B$4:$J$48,9,FALSE),"") ->  | AV76: =SUM(Q76:AU76) -> 0
B77: 29 | AV77: =COUNTA(Q77:AU77) -> 0 | AW77: =AV78 -> 0 | AX77: =IFERROR(ROUNDDOWN(AV78/$AT$3,1),"") -> 
Q78: =IFERROR(VLOOKUP(Q77,'P2'!$B$4:$J$48,9,FALSE),"") ->  | R78: =IFERROR(VLOOKUP(R77,'P2'!$B$4:$J$48,9,FALSE),"") ->  | S78: =IFERROR(VLOOKUP(S77,'P2'!$B$4:$J$48,9,FALSE),"") ->  | T78: =IFERROR(VLOOKUP(T77,'P2'!$B$4:$J$48,9,FALSE),"") ->  | U78: =IFERROR(VLOOKUP(U77,'P2'!$B$4:$J$48,9,FALSE),"") ->  | V78: =IFERROR(VLOOKUP(V77,'P2'!$B$4:$J$48,9,FALSE),"") ->  | W78: =IFERROR(VLOOKUP(W77,'P2'!$B$4:$J$48,9,FALSE),"") ->  | X78: =IFERROR(VLOOKUP(X77,'P2'!$B$4:$J$48,9,FALSE),"") ->  | Y78: =IFERROR(VLOOKUP(Y77,'P2'!$B$4:$J$48,9,FALSE),"") ->  | Z78: =IFERROR(VLOOKUP(Z77,'P2'!$B$4:$J$48,9,FALSE),"") ->  | AA78: =IFERROR(VLOOKUP(AA77,'P2'!$B$4:$J$48,9,FALSE),"") ->  | AB78: =IFERROR(VLOOKUP(AB77,'P2'!$B$4:$J$48,9,FALSE),"") ->  | AC78: =IFERROR(VLOOKUP(AC77,'P2'!$B$4:$J$48,9,FALSE),"") ->  | AD78: =IFERROR(VLOOKUP(AD77,'P2'!$B$4:$J$48,9,FALSE),"") ->  | AE78: =IFERROR(VLOOKUP(AE77,'P2'!$B$4:$J$48,9,FALSE),"") ->  | AF78: =IFERROR(VLOOKUP(AF77,'P2'!$B$4:$J$48,9,FALSE),"") ->  | AG78: =IFERROR(VLOOKUP(AG77,'P2'!$B$4:$J$48,9,FALSE),"") ->  | AH78: =IFERROR(VLOOKUP(AH77,'P2'!$B$4:$J$48,9,FALSE),"") ->  | AI78: =IFERROR(VLOOKUP(AI77,'P2'!$B$4:$J$48,9,FALSE),"") ->  | AJ78: =IFERROR(VLOOKUP(AJ77,'P2'!$B$4:$J$48,9,FALSE),"") ->  | AK78: =IFERROR(VLOOKUP(AK77,'P2'!$B$4:$J$48,9,FALSE),"") ->  | AL78: =IFERROR(VLOOKUP(AL77,'P2'!$B$4:$J$48,9,FALSE),"") ->  | AM78: =IFERROR(VLOOKUP(AM77,'P2'!$B$4:$J$48,9,FALSE),"") ->  | AN78: =IFERROR(VLOOKUP(AN77,'P2'!$B$4:$J$48,9,FALSE),"") ->  | AO78: =IFERROR(VLOOKUP(AO77,'P2'!$B$4:$J$48,9,FALSE),"") ->  | AP78: =IFERROR(VLOOKUP(AP77,'P2'!$B$4:$J$48,9,FALSE),"") ->  | AQ78: =IFERROR(VLOOKUP(AQ77,'P2'!$B$4:$J$48,9,FALSE),"") ->  | AR78: =IFERROR(VLOOKUP(AR77,'P2'!$B$4:$J$48,9,FALSE),"") ->  | AS78: =IFERROR(VLOOKUP(AS77,'P2'!$B$4:$J$48,9,FALSE),"") ->  | AT78: =IFERROR(VLOOKUP(AT77,'P2'!$B$4:$J$48,9,FALSE),"") ->  | AU78: =IFERROR(VLOOKUP(AU77,'P2'!$B$4:$J$48,9,FALSE),"") ->  | AV78: =SUM(Q78:AU78) -> 0
B79: 30 | AV79: =COUNTA(Q79:AU79) -> 0 | AW79: =AV80 -> 0 | AX79: =IFERROR(ROUNDDOWN(AV80/$AT$3,1),"") -> 
Q80: =IFERROR(VLOOKUP(Q79,'P2'!$B$4:$J$48,9,FALSE),"") ->  | R80: =IFERROR(VLOOKUP(R79,'P2'!$B$4:$J$48,9,FALSE),"") ->  | S80: =IFERROR(VLOOKUP(S79,'P2'!$B$4:$J$48,9,FALSE),"") ->  | T80: =IFERROR(VLOOKUP(T79,'P2'!$B$4:$J$48,9,FALSE),"") ->  | U80: =IFERROR(VLOOKUP(U79,'P2'!$B$4:$J$48,9,FALSE),"") ->  | V80: =IFERROR(VLOOKUP(V79,'P2'!$B$4:$J$48,9,FALSE),"") ->  | W80: =IFERROR(VLOOKUP(W79,'P2'!$B$4:$J$48,9,FALSE),"") ->  | X80: =IFERROR(VLOOKUP(X79,'P2'!$B$4:$J$48,9,FALSE),"") ->  | Y80: =IFERROR(VLOOKUP(Y79,'P2'!$B$4:$J$48,9,FALSE),"") ->  | Z80: =IFERROR(VLOOKUP(Z79,'P2'!$B$4:$J$48,9,FALSE),"") ->  | AA80: =IFERROR(VLOOKUP(AA79,'P2'!$B$4:$J$48,9,FALSE),"") ->  | AB80: =IFERROR(VLOOKUP(AB79,'P2'!$B$4:$J$48,9,FALSE),"") ->  | AC80: =IFERROR(VLOOKUP(AC79,'P2'!$B$4:$J$48,9,FALSE),"") ->  | AD80: =IFERROR(VLOOKUP(AD79,'P2'!$B$4:$J$48,9,FALSE),"") ->  | AE80: =IFERROR(VLOOKUP(AE79,'P2'!$B$4:$J$48,9,FALSE),"") ->  | AF80: =IFERROR(VLOOKUP(AF79,'P2'!$B$4:$J$48,9,FALSE),"") ->  | AG80: =IFERROR(VLOOKUP(AG79,'P2'!$B$4:$J$48,9,FALSE),"") ->  | AH80: =IFERROR(VLOOKUP(AH79,'P2'!$B$4:$J$48,9,FALSE),"") ->  | AI80: =IFERROR(VLOOKUP(AI79,'P2'!$B$4:$J$48,9,FALSE),"") ->  | AJ80: =IFERROR(VLOOKUP(AJ79,'P2'!$B$4:$J$48,9,FALSE),"") ->  | AK80: =IFERROR(VLOOKUP(AK79,'P2'!$B$4:$J$48,9,FALSE),"") ->  | AL80: =IFERROR(VLOOKUP(AL79,'P2'!$B$4:$J$48,9,FALSE),"") ->  | AM80: =IFERROR(VLOOKUP(AM79,'P2'!$B$4:$J$48,9,FALSE),"") ->  | AN80: =IFERROR(VLOOKUP(AN79,'P2'!$B$4:$J$48,9,FALSE),"") ->  | AO80: =IFERROR(VLOOKUP(AO79,'P2'!$B$4:$J$48,9,FALSE),"") ->  | AP80: =IFERROR(VLOOKUP(AP79,'P2'!$B$4:$J$48,9,FALSE),"") ->  | AQ80: =IFERROR(VLOOKUP(AQ79,'P2'!$B$4:$J$48,9,FALSE),"") ->  | AR80: =IFERROR(VLOOKUP(AR79,'P2'!$B$4:$J$48,9,FALSE),"") ->  | AS80: =IFERROR(VLOOKUP(AS79,'P2'!$B$4:$J$48,9,FALSE),"") ->  | AT80: =IFERROR(VLOOKUP(AT79,'P2'!$B$4:$J$48,9,FALSE),"") ->  | AU80: =IFERROR(VLOOKUP(AU79,'P2'!$B$4:$J$48,9,FALSE),"") ->  | AV80: =SUM(Q80:AU80) -> 0
B81: 31 | AV81: =COUNTA(Q81:AU81) -> 0 | AW81: =AV82 -> 0 | AX81: =IFERROR(ROUNDDOWN(AV82/$AT$3,1),"") -> 
Q82: =IFERROR(VLOOKUP(Q81,'P2'!$B$4:$J$48,9,FALSE),"") ->  | R82: =IFERROR(VLOOKUP(R81,'P2'!$B$4:$J$48,9,FALSE),"") ->  | S82: =IFERROR(VLOOKUP(S81,'P2'!$B$4:$J$48,9,FALSE),"") ->  | T82: =IFERROR(VLOOKUP(T81,'P2'!$B$4:$J$48,9,FALSE),"") ->  | U82: =IFERROR(VLOOKUP(U81,'P2'!$B$4:$J$48,9,FALSE),"") ->  | V82: =IFERROR(VLOOKUP(V81,'P2'!$B$4:$J$48,9,FALSE),"") ->  | W82: =IFERROR(VLOOKUP(W81,'P2'!$B$4:$J$48,9,FALSE),"") ->  | X82: =IFERROR(VLOOKUP(X81,'P2'!$B$4:$J$48,9,FALSE),"") ->  | Y82: =IFERROR(VLOOKUP(Y81,'P2'!$B$4:$J$48,9,FALSE),"") ->  | Z82: =IFERROR(VLOOKUP(Z81,'P2'!$B$4:$J$48,9,FALSE),"") ->  | AA82: =IFERROR(VLOOKUP(AA81,'P2'!$B$4:$J$48,9,FALSE),"") ->  | AB82: =IFERROR(VLOOKUP(AB81,'P2'!$B$4:$J$48,9,FALSE),"") ->  | AC82: =IFERROR(VLOOKUP(AC81,'P2'!$B$4:$J$48,9,FALSE),"") ->  | AD82: =IFERROR(VLOOKUP(AD81,'P2'!$B$4:$J$48,9,FALSE),"") ->  | AE82: =IFERROR(VLOOKUP(AE81,'P2'!$B$4:$J$48,9,FALSE),"") ->  | AF82: =IFERROR(VLOOKUP(AF81,'P2'!$B$4:$J$48,9,FALSE),"") ->  | AG82: =IFERROR(VLOOKUP(AG81,'P2'!$B$4:$J$48,9,FALSE),"") ->  | AH82: =IFERROR(VLOOKUP(AH81,'P2'!$B$4:$J$48,9,FALSE),"") ->  | AI82: =IFERROR(VLOOKUP(AI81,'P2'!$B$4:$J$48,9,FALSE),"") ->  | AJ82: =IFERROR(VLOOKUP(AJ81,'P2'!$B$4:$J$48,9,FALSE),"") ->  | AK82: =IFERROR(VLOOKUP(AK81,'P2'!$B$4:$J$48,9,FALSE),"") ->  | AL82: =IFERROR(VLOOKUP(AL81,'P2'!$B$4:$J$48,9,FALSE),"") ->  | AM82: =IFERROR(VLOOKUP(AM81,'P2'!$B$4:$J$48,9,FALSE),"") ->  | AN82: =IFERROR(VLOOKUP(AN81,'P2'!$B$4:$J$48,9,FALSE),"") ->  | AO82: =IFERROR(VLOOKUP(AO81,'P2'!$B$4:$J$48,9,FALSE),"") ->  | AP82: =IFERROR(VLOOKUP(AP81,'P2'!$B$4:$J$48,9,FALSE),"") ->  | AQ82: =IFERROR(VLOOKUP(AQ81,'P2'!$B$4:$J$48,9,FALSE),"") ->  | AR82: =IFERROR(VLOOKUP(AR81,'P2'!$B$4:$J$48,9,FALSE),"") ->  | AS82: =IFERROR(VLOOKUP(AS81,'P2'!$B$4:$J$48,9,FALSE),"") ->  | AT82: =IFERROR(VLOOKUP(AT81,'P2'!$B$4:$J$48,9,FALSE),"") ->  | AU82: =IFERROR(VLOOKUP(AU81,'P2'!$B$4:$J$48,9,FALSE),"") ->  | AV82: =SUM(Q82:AU82) -> 0
B83: 32 | AV83: =COUNTA(Q83:AU83) -> 0 | AW83: =AV84 -> 0 | AX83: =IFERROR(ROUNDDOWN(AV84/$AT$3,1),"") -> 
Q84: =IFERROR(VLOOKUP(Q83,'P2'!$B$4:$J$48,9,FALSE),"") ->  | R84: =IFERROR(VLOOKUP(R83,'P2'!$B$4:$J$48,9,FALSE),"") ->  | S84: =IFERROR(VLOOKUP(S83,'P2'!$B$4:$J$48,9,FALSE),"") ->  | T84: =IFERROR(VLOOKUP(T83,'P2'!$B$4:$J$48,9,FALSE),"") ->  | U84: =IFERROR(VLOOKUP(U83,'P2'!$B$4:$J$48,9,FALSE),"") ->  | V84: =IFERROR(VLOOKUP(V83,'P2'!$B$4:$J$48,9,FALSE),"") ->  | W84: =IFERROR(VLOOKUP(W83,'P2'!$B$4:$J$48,9,FALSE),"") ->  | X84: =IFERROR(VLOOKUP(X83,'P2'!$B$4:$J$48,9,FALSE),"") ->  | Y84: =IFERROR(VLOOKUP(Y83,'P2'!$B$4:$J$48,9,FALSE),"") ->  | Z84: =IFERROR(VLOOKUP(Z83,'P2'!$B$4:$J$48,9,FALSE),"") ->  | AA84: =IFERROR(VLOOKUP(AA83,'P2'!$B$4:$J$48,9,FALSE),"") ->  | AB84: =IFERROR(VLOOKUP(AB83,'P2'!$B$4:$J$48,9,FALSE),"") ->  | AC84: =IFERROR(VLOOKUP(AC83,'P2'!$B$4:$J$48,9,FALSE),"") ->  | AD84: =IFERROR(VLOOKUP(AD83,'P2'!$B$4:$J$48,9,FALSE),"") ->  | AE84: =IFERROR(VLOOKUP(AE83,'P2'!$B$4:$J$48,9,FALSE),"") ->  | AF84: =IFERROR(VLOOKUP(AF83,'P2'!$B$4:$J$48,9,FALSE),"") ->  | AG84: =IFERROR(VLOOKUP(AG83,'P2'!$B$4:$J$48,9,FALSE),"") ->  | AH84: =IFERROR(VLOOKUP(AH83,'P2'!$B$4:$J$48,9,FALSE),"") ->  | AI84: =IFERROR(VLOOKUP(AI83,'P2'!$B$4:$J$48,9,FALSE),"") ->  | AJ84: =IFERROR(VLOOKUP(AJ83,'P2'!$B$4:$J$48,9,FALSE),"") ->  | AK84: =IFERROR(VLOOKUP(AK83,'P2'!$B$4:$J$48,9,FALSE),"") ->  | AL84: =IFERROR(VLOOKUP(AL83,'P2'!$B$4:$J$48,9,FALSE),"") ->  | AM84: =IFERROR(VLOOKUP(AM83,'P2'!$B$4:$J$48,9,FALSE),"") ->  | AN84: =IFERROR(VLOOKUP(AN83,'P2'!$B$4:$J$48,9,FALSE),"") ->  | AO84: =IFERROR(VLOOKUP(AO83,'P2'!$B$4:$J$48,9,FALSE),"") ->  | AP84: =IFERROR(VLOOKUP(AP83,'P2'!$B$4:$J$48,9,FALSE),"") ->  | AQ84: =IFERROR(VLOOKUP(AQ83,'P2'!$B$4:$J$48,9,FALSE),"") ->  | AR84: =IFERROR(VLOOKUP(AR83,'P2'!$B$4:$J$48,9,FALSE),"") ->  | AS84: =IFERROR(VLOOKUP(AS83,'P2'!$B$4:$J$48,9,FALSE),"") ->  | AT84: =IFERROR(VLOOKUP(AT83,'P2'!$B$4:$J$48,9,FALSE),"") ->  | AU84: =IFERROR(VLOOKUP(AU83,'P2'!$B$4:$J$48,9,FALSE),"") ->  | AV84: =SUM(Q84:AU84) -> 0
B85: 33 | AV85: =COUNTA(Q85:AU85) -> 0 | AW85: =AV86 -> 0 | AX85: =IFERROR(ROUNDDOWN(AV86/$AT$3,1),"") -> 
Q86: =IFERROR(VLOOKUP(Q85,'P2'!$B$4:$J$48,9,FALSE),"") ->  | R86: =IFERROR(VLOOKUP(R85,'P2'!$B$4:$J$48,9,FALSE),"") ->  | S86: =IFERROR(VLOOKUP(S85,'P2'!$B$4:$J$48,9,FALSE),"") ->  | T86: =IFERROR(VLOOKUP(T85,'P2'!$B$4:$J$48,9,FALSE),"") ->  | U86: =IFERROR(VLOOKUP(U85,'P2'!$B$4:$J$48,9,FALSE),"") ->  | V86: =IFERROR(VLOOKUP(V85,'P2'!$B$4:$J$48,9,FALSE),"") ->  | W86: =IFERROR(VLOOKUP(W85,'P2'!$B$4:$J$48,9,FALSE),"") ->  | X86: =IFERROR(VLOOKUP(X85,'P2'!$B$4:$J$48,9,FALSE),"") ->  | Y86: =IFERROR(VLOOKUP(Y85,'P2'!$B$4:$J$48,9,FALSE),"") ->  | Z86: =IFERROR(VLOOKUP(Z85,'P2'!$B$4:$J$48,9,FALSE),"") ->  | AA86: =IFERROR(VLOOKUP(AA85,'P2'!$B$4:$J$48,9,FALSE),"") ->  | AB86: =IFERROR(VLOOKUP(AB85,'P2'!$B$4:$J$48,9,FALSE),"") ->  | AC86: =IFERROR(VLOOKUP(AC85,'P2'!$B$4:$J$48,9,FALSE),"") ->  | AD86: =IFERROR(VLOOKUP(AD85,'P2'!$B$4:$J$48,9,FALSE),"") ->  | AE86: =IFERROR(VLOOKUP(AE85,'P2'!$B$4:$J$48,9,FALSE),"") ->  | AF86: =IFERROR(VLOOKUP(AF85,'P2'!$B$4:$J$48,9,FALSE),"") ->  | AG86: =IFERROR(VLOOKUP(AG85,'P2'!$B$4:$J$48,9,FALSE),"") ->  | AH86: =IFERROR(VLOOKUP(AH85,'P2'!$B$4:$J$48,9,FALSE),"") ->  | AI86: =IFERROR(VLOOKUP(AI85,'P2'!$B$4:$J$48,9,FALSE),"") ->  | AJ86: =IFERROR(VLOOKUP(AJ85,'P2'!$B$4:$J$48,9,FALSE),"") ->  | AK86: =IFERROR(VLOOKUP(AK85,'P2'!$B$4:$J$48,9,FALSE),"") ->  | AL86: =IFERROR(VLOOKUP(AL85,'P2'!$B$4:$J$48,9,FALSE),"") ->  | AM86: =IFERROR(VLOOKUP(AM85,'P2'!$B$4:$J$48,9,FALSE),"") ->  | AN86: =IFERROR(VLOOKUP(AN85,'P2'!$B$4:$J$48,9,FALSE),"") ->  | AO86: =IFERROR(VLOOKUP(AO85,'P2'!$B$4:$J$48,9,FALSE),"") ->  | AP86: =IFERROR(VLOOKUP(AP85,'P2'!$B$4:$J$48,9,FALSE),"") ->  | AQ86: =IFERROR(VLOOKUP(AQ85,'P2'!$B$4:$J$48,9,FALSE),"") ->  | AR86: =IFERROR(VLOOKUP(AR85,'P2'!$B$4:$J$48,9,FALSE),"") ->  | AS86: =IFERROR(VLOOKUP(AS85,'P2'!$B$4:$J$48,9,FALSE),"") ->  | AT86: =IFERROR(VLOOKUP(AT85,'P2'!$B$4:$J$48,9,FALSE),"") ->  | AU86: =IFERROR(VLOOKUP(AU85,'P2'!$B$4:$J$48,9,FALSE),"") ->  | AV86: =SUM(Q86:AU86) -> 0
B87: 34 | AV87: =COUNTA(Q87:AU87) -> 0 | AW87: =AV88 -> 0 | AX87: =IFERROR(ROUNDDOWN(AV88/$AT$3,1),"") -> 
Q88: =IFERROR(VLOOKUP(Q87,'P2'!$B$4:$J$48,9,FALSE),"") ->  | R88: =IFERROR(VLOOKUP(R87,'P2'!$B$4:$J$48,9,FALSE),"") ->  | S88: =IFERROR(VLOOKUP(S87,'P2'!$B$4:$J$48,9,FALSE),"") ->  | T88: =IFERROR(VLOOKUP(T87,'P2'!$B$4:$J$48,9,FALSE),"") ->  | U88: =IFERROR(VLOOKUP(U87,'P2'!$B$4:$J$48,9,FALSE),"") ->  | V88: =IFERROR(VLOOKUP(V87,'P2'!$B$4:$J$48,9,FALSE),"") ->  | W88: =IFERROR(VLOOKUP(W87,'P2'!$B$4:$J$48,9,FALSE),"") ->  | X88: =IFERROR(VLOOKUP(X87,'P2'!$B$4:$J$48,9,FALSE),"") ->  | Y88: =IFERROR(VLOOKUP(Y87,'P2'!$B$4:$J$48,9,FALSE),"") ->  | Z88: =IFERROR(VLOOKUP(Z87,'P2'!$B$4:$J$48,9,FALSE),"") ->  | AA88: =IFERROR(VLOOKUP(AA87,'P2'!$B$4:$J$48,9,FALSE),"") ->  | AB88: =IFERROR(VLOOKUP(AB87,'P2'!$B$4:$J$48,9,FALSE),"") ->  | AC88: =IFERROR(VLOOKUP(AC87,'P2'!$B$4:$J$48,9,FALSE),"") ->  | AD88: =IFERROR(VLOOKUP(AD87,'P2'!$B$4:$J$48,9,FALSE),"") ->  | AE88: =IFERROR(VLOOKUP(AE87,'P2'!$B$4:$J$48,9,FALSE),"") ->  | AF88: =IFERROR(VLOOKUP(AF87,'P2'!$B$4:$J$48,9,FALSE),"") ->  | AG88: =IFERROR(VLOOKUP(AG87,'P2'!$B$4:$J$48,9,FALSE),"") ->  | AH88: =IFERROR(VLOOKUP(AH87,'P2'!$B$4:$J$48,9,FALSE),"") ->  | AI88: =IFERROR(VLOOKUP(AI87,'P2'!$B$4:$J$48,9,FALSE),"") ->  | AJ88: =IFERROR(VLOOKUP(AJ87,'P2'!$B$4:$J$48,9,FALSE),"") ->  | AK88: =IFERROR(VLOOKUP(AK87,'P2'!$B$4:$J$48,9,FALSE),"") ->  | AL88: =IFERROR(VLOOKUP(AL87,'P2'!$B$4:$J$48,9,FALSE),"") ->  | AM88: =IFERROR(VLOOKUP(AM87,'P2'!$B$4:$J$48,9,FALSE),"") ->  | AN88: =IFERROR(VLOOKUP(AN87,'P2'!$B$4:$J$48,9,FALSE),"") ->  | AO88: =IFERROR(VLOOKUP(AO87,'P2'!$B$4:$J$48,9,FALSE),"") ->  | AP88: =IFERROR(VLOOKUP(AP87,'P2'!$B$4:$J$48,9,FALSE),"") ->  | AQ88: =IFERROR(VLOOKUP(AQ87,'P2'!$B$4:$J$48,9,FALSE),"") ->  | AR88: =IFERROR(VLOOKUP(AR87,'P2'!$B$4:$J$48,9,FALSE),"") ->  | AS88: =IFERROR(VLOOKUP(AS87,'P2'!$B$4:$J$48,9,FALSE),"") ->  | AT88: =IFERROR(VLOOKUP(AT87,'P2'!$B$4:$J$48,9,FALSE),"") ->  | AU88: =IFERROR(VLOOKUP(AU87,'P2'!$B$4:$J$48,9,FALSE),"") ->  | AV88: =SUM(Q88:AU88) -> 0
B89: 35 | AV89: =COUNTA(Q89:AU89) -> 0 | AW89: =AV90 -> 0 | AX89: =IFERROR(ROUNDDOWN(AV90/$AT$3,1),"") -> 
Q90: =IFERROR(VLOOKUP(Q89,'P2'!$B$4:$J$48,9,FALSE),"") ->  | R90: =IFERROR(VLOOKUP(R89,'P2'!$B$4:$J$48,9,FALSE),"") ->  | S90: =IFERROR(VLOOKUP(S89,'P2'!$B$4:$J$48,9,FALSE),"") ->  | T90: =IFERROR(VLOOKUP(T89,'P2'!$B$4:$J$48,9,FALSE),"") ->  | U90: =IFERROR(VLOOKUP(U89,'P2'!$B$4:$J$48,9,FALSE),"") ->  | V90: =IFERROR(VLOOKUP(V89,'P2'!$B$4:$J$48,9,FALSE),"") ->  | W90: =IFERROR(VLOOKUP(W89,'P2'!$B$4:$J$48,9,FALSE),"") ->  | X90: =IFERROR(VLOOKUP(X89,'P2'!$B$4:$J$48,9,FALSE),"") ->  | Y90: =IFERROR(VLOOKUP(Y89,'P2'!$B$4:$J$48,9,FALSE),"") ->  | Z90: =IFERROR(VLOOKUP(Z89,'P2'!$B$4:$J$48,9,FALSE),"") ->  | AA90: =IFERROR(VLOOKUP(AA89,'P2'!$B$4:$J$48,9,FALSE),"") ->  | AB90: =IFERROR(VLOOKUP(AB89,'P2'!$B$4:$J$48,9,FALSE),"") ->  | AC90: =IFERROR(VLOOKUP(AC89,'P2'!$B$4:$J$48,9,FALSE),"") ->  | AD90: =IFERROR(VLOOKUP(AD89,'P2'!$B$4:$J$48,9,FALSE),"") ->  | AE90: =IFERROR(VLOOKUP(AE89,'P2'!$B$4:$J$48,9,FALSE),"") ->  | AF90: =IFERROR(VLOOKUP(AF89,'P2'!$B$4:$J$48,9,FALSE),"") ->  | AG90: =IFERROR(VLOOKUP(AG89,'P2'!$B$4:$J$48,9,FALSE),"") ->  | AH90: =IFERROR(VLOOKUP(AH89,'P2'!$B$4:$J$48,9,FALSE),"") ->  | AI90: =IFERROR(VLOOKUP(AI89,'P2'!$B$4:$J$48,9,FALSE),"") ->  | AJ90: =IFERROR(VLOOKUP(AJ89,'P2'!$B$4:$J$48,9,FALSE),"") ->  | AK90: =IFERROR(VLOOKUP(AK89,'P2'!$B$4:$J$48,9,FALSE),"") ->  | AL90: =IFERROR(VLOOKUP(AL89,'P2'!$B$4:$J$48,9,FALSE),"") ->  | AM90: =IFERROR(VLOOKUP(AM89,'P2'!$B$4:$J$48,9,FALSE),"") ->  | AN90: =IFERROR(VLOOKUP(AN89,'P2'!$B$4:$J$48,9,FALSE),"") ->  | AO90: =IFERROR(VLOOKUP(AO89,'P2'!$B$4:$J$48,9,FALSE),"") ->  | AP90: =IFERROR(VLOOKUP(AP89,'P2'!$B$4:$J$48,9,FALSE),"") ->  | AQ90: =IFERROR(VLOOKUP(AQ89,'P2'!$B$4:$J$48,9,FALSE),"") ->  | AR90: =IFERROR(VLOOKUP(AR89,'P2'!$B$4:$J$48,9,FALSE),"") ->  | AS90: =IFERROR(VLOOKUP(AS89,'P2'!$B$4:$J$48,9,FALSE),"") ->  | AT90: =IFERROR(VLOOKUP(AT89,'P2'!$B$4:$J$48,9,FALSE),"") ->  | AU90: =IFERROR(VLOOKUP(AU89,'P2'!$B$4:$J$48,9,FALSE),"") ->  | AV90: =SUM(Q90:AU90) -> 0
B91: 36 | AV91: =COUNTA(Q91:AU91) -> 0 | AW91: =AV92 -> 0 | AX91: =IFERROR(ROUNDDOWN(AV92/$AT$3,1),"") -> 
Q92: =IFERROR(VLOOKUP(Q91,'P2'!$B$4:$J$48,9,FALSE),"") ->  | R92: =IFERROR(VLOOKUP(R91,'P2'!$B$4:$J$48,9,FALSE),"") ->  | S92: =IFERROR(VLOOKUP(S91,'P2'!$B$4:$J$48,9,FALSE),"") ->  | T92: =IFERROR(VLOOKUP(T91,'P2'!$B$4:$J$48,9,FALSE),"") ->  | U92: =IFERROR(VLOOKUP(U91,'P2'!$B$4:$J$48,9,FALSE),"") ->  | V92: =IFERROR(VLOOKUP(V91,'P2'!$B$4:$J$48,9,FALSE),"") ->  | W92: =IFERROR(VLOOKUP(W91,'P2'!$B$4:$J$48,9,FALSE),"") ->  | X92: =IFERROR(VLOOKUP(X91,'P2'!$B$4:$J$48,9,FALSE),"") ->  | Y92: =IFERROR(VLOOKUP(Y91,'P2'!$B$4:$J$48,9,FALSE),"") ->  | Z92: =IFERROR(VLOOKUP(Z91,'P2'!$B$4:$J$48,9,FALSE),"") ->  | AA92: =IFERROR(VLOOKUP(AA91,'P2'!$B$4:$J$48,9,FALSE),"") ->  | AB92: =IFERROR(VLOOKUP(AB91,'P2'!$B$4:$J$48,9,FALSE),"") ->  | AC92: =IFERROR(VLOOKUP(AC91,'P2'!$B$4:$J$48,9,FALSE),"") ->  | AD92: =IFERROR(VLOOKUP(AD91,'P2'!$B$4:$J$48,9,FALSE),"") ->  | AE92: =IFERROR(VLOOKUP(AE91,'P2'!$B$4:$J$48,9,FALSE),"") ->  | AF92: =IFERROR(VLOOKUP(AF91,'P2'!$B$4:$J$48,9,FALSE),"") ->  | AG92: =IFERROR(VLOOKUP(AG91,'P2'!$B$4:$J$48,9,FALSE),"") ->  | AH92: =IFERROR(VLOOKUP(AH91,'P2'!$B$4:$J$48,9,FALSE),"") ->  | AI92: =IFERROR(VLOOKUP(AI91,'P2'!$B$4:$J$48,9,FALSE),"") ->  | AJ92: =IFERROR(VLOOKUP(AJ91,'P2'!$B$4:$J$48,9,FALSE),"") ->  | AK92: =IFERROR(VLOOKUP(AK91,'P2'!$B$4:$J$48,9,FALSE),"") ->  | AL92: =IFERROR(VLOOKUP(AL91,'P2'!$B$4:$J$48,9,FALSE),"") ->  | AM92: =IFERROR(VLOOKUP(AM91,'P2'!$B$4:$J$48,9,FALSE),"") ->  | AN92: =IFERROR(VLOOKUP(AN91,'P2'!$B$4:$J$48,9,FALSE),"") ->  | AO92: =IFERROR(VLOOKUP(AO91,'P2'!$B$4:$J$48,9,FALSE),"") ->  | AP92: =IFERROR(VLOOKUP(AP91,'P2'!$B$4:$J$48,9,FALSE),"") ->  | AQ92: =IFERROR(VLOOKUP(AQ91,'P2'!$B$4:$J$48,9,FALSE),"") ->  | AR92: =IFERROR(VLOOKUP(AR91,'P2'!$B$4:$J$48,9,FALSE),"") ->  | AS92: =IFERROR(VLOOKUP(AS91,'P2'!$B$4:$J$48,9,FALSE),"") ->  | AT92: =IFERROR(VLOOKUP(AT91,'P2'!$B$4:$J$48,9,FALSE),"") ->  | AU92: =IFERROR(VLOOKUP(AU91,'P2'!$B$4:$J$48,9,FALSE),"") ->  | AV92: =SUM(Q92:AU92) -> 0
B93: 37 | AV93: =COUNTA(Q93:AU93) -> 0 | AW93: =AV94 -> 0 | AX93: =IFERROR(ROUNDDOWN(AV94/$AT$3,1),"") -> 
Q94: =IFERROR(VLOOKUP(Q93,'P2'!$B$4:$J$48,9,FALSE),"") ->  | R94: =IFERROR(VLOOKUP(R93,'P2'!$B$4:$J$48,9,FALSE),"") ->  | S94: =IFERROR(VLOOKUP(S93,'P2'!$B$4:$J$48,9,FALSE),"") ->  | T94: =IFERROR(VLOOKUP(T93,'P2'!$B$4:$J$48,9,FALSE),"") ->  | U94: =IFERROR(VLOOKUP(U93,'P2'!$B$4:$J$48,9,FALSE),"") ->  | V94: =IFERROR(VLOOKUP(V93,'P2'!$B$4:$J$48,9,FALSE),"") ->  | W94: =IFERROR(VLOOKUP(W93,'P2'!$B$4:$J$48,9,FALSE),"") ->  | X94: =IFERROR(VLOOKUP(X93,'P2'!$B$4:$J$48,9,FALSE),"") ->  | Y94: =IFERROR(VLOOKUP(Y93,'P2'!$B$4:$J$48,9,FALSE),"") ->  | Z94: =IFERROR(VLOOKUP(Z93,'P2'!$B$4:$J$48,9,FALSE),"") ->  | AA94: =IFERROR(VLOOKUP(AA93,'P2'!$B$4:$J$48,9,FALSE),"") ->  | AB94: =IFERROR(VLOOKUP(AB93,'P2'!$B$4:$J$48,9,FALSE),"") ->  | AC94: =IFERROR(VLOOKUP(AC93,'P2'!$B$4:$J$48,9,FALSE),"") ->  | AD94: =IFERROR(VLOOKUP(AD93,'P2'!$B$4:$J$48,9,FALSE),"") ->  | AE94: =IFERROR(VLOOKUP(AE93,'P2'!$B$4:$J$48,9,FALSE),"") ->  | AF94: =IFERROR(VLOOKUP(AF93,'P2'!$B$4:$J$48,9,FALSE),"") ->  | AG94: =IFERROR(VLOOKUP(AG93,'P2'!$B$4:$J$48,9,FALSE),"") ->  | AH94: =IFERROR(VLOOKUP(AH93,'P2'!$B$4:$J$48,9,FALSE),"") ->  | AI94: =IFERROR(VLOOKUP(AI93,'P2'!$B$4:$J$48,9,FALSE),"") ->  | AJ94: =IFERROR(VLOOKUP(AJ93,'P2'!$B$4:$J$48,9,FALSE),"") ->  | AK94: =IFERROR(VLOOKUP(AK93,'P2'!$B$4:$J$48,9,FALSE),"") ->  | AL94: =IFERROR(VLOOKUP(AL93,'P2'!$B$4:$J$48,9,FALSE),"") ->  | AM94: =IFERROR(VLOOKUP(AM93,'P2'!$B$4:$J$48,9,FALSE),"") ->  | AN94: =IFERROR(VLOOKUP(AN93,'P2'!$B$4:$J$48,9,FALSE),"") ->  | AO94: =IFERROR(VLOOKUP(AO93,'P2'!$B$4:$J$48,9,FALSE),"") ->  | AP94: =IFERROR(VLOOKUP(AP93,'P2'!$B$4:$J$48,9,FALSE),"") ->  | AQ94: =IFERROR(VLOOKUP(AQ93,'P2'!$B$4:$J$48,9,FALSE),"") ->  | AR94: =IFERROR(VLOOKUP(AR93,'P2'!$B$4:$J$48,9,FALSE),"") ->  | AS94: =IFERROR(VLOOKUP(AS93,'P2'!$B$4:$J$48,9,FALSE),"") ->  | AT94: =IFERROR(VLOOKUP(AT93,'P2'!$B$4:$J$48,9,FALSE),"") ->  | AU94: =IFERROR(VLOOKUP(AU93,'P2'!$B$4:$J$48,9,FALSE),"") ->  | AV94: =SUM(Q94:AU94) -> 0
B95: =B93+1 -> 38 | AV95: =COUNTA(Q95:AU95) -> 0 | AW95: =AV96 -> 0 | AX95: =IFERROR(ROUNDDOWN(AV96/$AT$3,1),"") -> 
Q96: =IFERROR(VLOOKUP(Q95,'P2'!$B$4:$J$48,9,FALSE),"") ->  | R96: =IFERROR(VLOOKUP(R95,'P2'!$B$4:$J$48,9,FALSE),"") ->  | S96: =IFERROR(VLOOKUP(S95,'P2'!$B$4:$J$48,9,FALSE),"") ->  | T96: =IFERROR(VLOOKUP(T95,'P2'!$B$4:$J$48,9,FALSE),"") ->  | U96: =IFERROR(VLOOKUP(U95,'P2'!$B$4:$J$48,9,FALSE),"") ->  | V96: =IFERROR(VLOOKUP(V95,'P2'!$B$4:$J$48,9,FALSE),"") ->  | W96: =IFERROR(VLOOKUP(W95,'P2'!$B$4:$J$48,9,FALSE),"") ->  | X96: =IFERROR(VLOOKUP(X95,'P2'!$B$4:$J$48,9,FALSE),"") ->  | Y96: =IFERROR(VLOOKUP(Y95,'P2'!$B$4:$J$48,9,FALSE),"") ->  | Z96: =IFERROR(VLOOKUP(Z95,'P2'!$B$4:$J$48,9,FALSE),"") ->  | AA96: =IFERROR(VLOOKUP(AA95,'P2'!$B$4:$J$48,9,FALSE),"") ->  | AB96: =IFERROR(VLOOKUP(AB95,'P2'!$B$4:$J$48,9,FALSE),"") ->  | AC96: =IFERROR(VLOOKUP(AC95,'P2'!$B$4:$J$48,9,FALSE),"") ->  | AD96: =IFERROR(VLOOKUP(AD95,'P2'!$B$4:$J$48,9,FALSE),"") ->  | AE96: =IFERROR(VLOOKUP(AE95,'P2'!$B$4:$J$48,9,FALSE),"") ->  | AF96: =IFERROR(VLOOKUP(AF95,'P2'!$B$4:$J$48,9,FALSE),"") ->  | AG96: =IFERROR(VLOOKUP(AG95,'P2'!$B$4:$J$48,9,FALSE),"") ->  | AH96: =IFERROR(VLOOKUP(AH95,'P2'!$B$4:$J$48,9,FALSE),"") ->  | AI96: =IFERROR(VLOOKUP(AI95,'P2'!$B$4:$J$48,9,FALSE),"") ->  | AJ96: =IFERROR(VLOOKUP(AJ95,'P2'!$B$4:$J$48,9,FALSE),"") ->  | AK96: =IFERROR(VLOOKUP(AK95,'P2'!$B$4:$J$48,9,FALSE),"") ->  | AL96: =IFERROR(VLOOKUP(AL95,'P2'!$B$4:$J$48,9,FALSE),"") ->  | AM96: =IFERROR(VLOOKUP(AM95,'P2'!$B$4:$J$48,9,FALSE),"") ->  | AN96: =IFERROR(VLOOKUP(AN95,'P2'!$B$4:$J$48,9,FALSE),"") ->  | AO96: =IFERROR(VLOOKUP(AO95,'P2'!$B$4:$J$48,9,FALSE),"") ->  | AP96: =IFERROR(VLOOKUP(AP95,'P2'!$B$4:$J$48,9,FALSE),"") ->  | AQ96: =IFERROR(VLOOKUP(AQ95,'P2'!$B$4:$J$48,9,FALSE),"") ->  | AR96: =IFERROR(VLOOKUP(AR95,'P2'!$B$4:$J$48,9,FALSE),"") ->  | AS96: =IFERROR(VLOOKUP(AS95,'P2'!$B$4:$J$48,9,FALSE),"") ->  | AT96: =IFERROR(VLOOKUP(AT95,'P2'!$B$4:$J$48,9,FALSE),"") ->  | AU96: =IFERROR(VLOOKUP(AU95,'P2'!$B$4:$J$48,9,FALSE),"") ->  | AV96: =SUM(Q96:AU96) -> 0
B97: 39 | AV97: =COUNTA(Q97:AU97) -> 0 | AW97: =AV98 -> 0 | AX97: =IFERROR(ROUNDDOWN(AV98/$AT$3,1),"") -> 
